Workbook

Sheet Sample Report (hidden)
A2: Date
A3: Hen
A4: Program
A5: Start at 999999
A6: Sequence component 1 | B6: Time 1 | C6: Seqeunce Component 2 | D6: Time 2 | E6: Seqeunce Component 3 | F6: Time 3 | G6: Correct 0 = No 1=Yes | J6: Seqeunce | K6: Time
A7: 12 | B7: 7 | C7: 12 | D7: 42 | E7: 13 | F7: 18 | G7: if 77 new line, if 31 or 41 = yes new line on 77, | J7: =string of Seqeunce compponent 1, 2 & 3 | K7: =time 3
A8: This continues until ther is a 1 on its own to indicate start of summary data
J9: 10-19 =1
A10: Summary Data | J10: 20-29 =2
A11: Correct | B11: Incorrect | C11: Rft | D11: total | E11: Av Correct | F11: Av Incorrect | G11: Percent correct | H11: Time | J11: in this example the seqeunce would be 111
A12: 40 | B12: 33 | C12: 40 | D12: 73 | E12: 23.95 | F12: 15 | G12: 54 | H12: 806

Sheet Summary
A2: Day | B2: Date | C2: Average Response Rate | D2: Target % | E2: RF for non correct sequence | F2: U Value | K2: Block 1 | L2: Block 2 | M2: Block 3 | N2: Block 4 | O2: Block 5 | P2: Block 6
A3: 1 | B3: ='!MB0895I.sha'!B2:C2 -> <date> | C3: =('!MB0895I.sha'!F187/60)/'!MB0895I.sha'!Q3 -> 2.133609576 | D3: ='!MB0895I.sha'!N20/'!MB0895I.sha'!Q3 -> 0.0773480663 | E3: =SUM('!MB0895I.sha'!L20:Q20)/'!MB0895I.sha'!Q3 -> 1.629834254 | F3: ='!MB0895I.sha'!Q16 -> 0.3331066656 | J3: Average Response Rate | K3: =AVERAGE(C3:C7) -> 2.262983149 | L3: =AVERAGE(C8:C12) -> 2.206805765 | M3: =AVERAGE(C13:C17) -> 2.204524445 | N3: =AVERAGE(C18:C22) -> 3.745226714 | O3: =AVERAGE(C23:C27) -> 3.480313928 | P3: =AVERAGE(C28:C31) -> 2.341504237
A4: 2 | B4: ='!MB0990I.sha'!B2:C2 -> <date> | C4: =('!MB0990I.sha'!F173/60)/'!MB0990I.sha'!Q3 -> 2.389720559 | D4: ='!MB0990I.sha'!N20/'!MB0990I.sha'!Q3 -> 0.1437125749 | E4: =SUM('!MB0990I.sha'!L20:Q20)/'!MB0990I.sha'!Q3 -> 1.209580838 | F4: ='!MB0990I.sha'!Q16 -> 0.3505377575 | J4: Target % | K4: =AVERAGE(D3:D7) -> 0.1589748842 | L4: =AVERAGE(D8:D12) -> 0.3347743643 | M4: =AVERAGE(D13:D17) -> 0.3453419488 | N4: =AVERAGE(D18:D22) -> 0.3572787389 | O4: =AVERAGE(D23:D27) -> 0.4038321017 | P4: =AVERAGE(D28:D31) -> 0.4355074448
A5: 3 | B5: ='!MB10A2I.sha'!B2:C2 -> <date> | C5: =('!MB10A2I.sha'!F187/60)/'!MB10A2I.sha'!Q3 -> 2.208287293 | D5: ='!MB10A2I.sha'!N20/'!MB10A2I.sha'!Q3 -> 0.1546961326 | E5: =SUM('!MB10A2I.sha'!L20:Q20)/'!MB10A2I.sha'!Q3 -> 1.712707182 | F5: ='!MB10A2I.sha'!Q16 -> 0.3679157631 | J5: CCRF | K5: =AVERAGE(E3:E7) -> 1.717847424 | L5: =AVERAGE(E8:E12) -> 2.000170784 | M5: =AVERAGE(E13:E17) -> 1.889004489 | N5: =AVERAGE(E18:E22) -> 2.357838026 | O5: =AVERAGE(E23:E27) -> 2.764872952 | P5: =AVERAGE(E28:E31) -> 2.431245682
A6: 4 | B6: ='!MB11B1I.sha'!B2:C2 -> <date> | C6: =('!MB11B1I.sha'!F174/60)/'!MB11B1I.sha'!Q3 -> 2.380357143 | D6: ='!MB11B1I.sha'!N20/'!MB11B1I.sha'!Q3 -> 0.125 | E6: =SUM('!MB11B1I.sha'!L20:Q20)/'!MB11B1I.sha'!Q3 -> 1.779761905 | F6: ='!MB11B1I.sha'!Q16 -> 0.3388660467 | J6: U Value | K6: =AVERAGE(F3:F7) -> 0.3472300291 | L6: =AVERAGE(F8:F12) -> 0.3210672885 | M6: =AVERAGE(F13:F17) -> 0.2657245819 | N6: =AVERAGE(F18:F22) -> 0.3205096425 | O6: =AVERAGE(F23:F27) -> 0.3408636214 | P6: =AVERAGE(F28:F31) -> 0.301650958
A7: 5 | B7: ='!MB12A2I.sha'!B2:C2 -> <date> | C7: =('!MB12A2I.sha'!F142/60)/'!MB12A2I.sha'!Q3 -> 2.202941176 | D7: ='!MB12A2I.sha'!N20/'!MB12A2I.sha'!Q3 -> 0.2941176471 | E7: =SUM('!MB12A2I.sha'!L20:Q20)/'!MB12A2I.sha'!Q3 -> 2.257352941 | F7: ='!MB12A2I.sha'!Q16 -> 0.3457239124
A8: 6 | B8: ='!MB1391I.sha'!B2:C2 -> <date> | C8: =('!MB1391I.sha'!F134/60)/'!MB1391I.sha'!Q3 -> 2.213932292 | D8: ='!MB1391I.sha'!N20/'!MB1391I.sha'!Q3 -> 0.3125 | E8: =SUM('!MB1391I.sha'!L20:Q20)/'!MB1391I.sha'!Q3 -> 2.3046875 | F8: ='!MB1391I.sha'!Q16 -> 0.355120581
A9: 7 | B9: ='!MB14A5I.sha'!B2:C2 -> <date> | C9: =('!MB14A5I.sha'!F142/60)/'!MB14A5I.sha'!Q3 -> 2.23872549 | D9: ='!MB14A5I.sha'!N20/'!MB14A5I.sha'!Q3 -> 0.2941176471 | E9: =SUM('!MB14A5I.sha'!L20:Q20)/'!MB14A5I.sha'!Q3 -> 1.441176471 | F9: ='!MB14A5I.sha'!Q16 -> 0.3579944903 | G9: =K3 -> 2.262983149 | H9: =L3 -> 2.206805765 | I9: 2.204524445 | J9: 3.745226714 | K9: 3.480313928 | L9: 2.341504237 | M9: =K4 -> 0.1589748842 | N9: =L4 -> 0.3347743643 | O9: 0.3453419488 | P9: 0.3572787389 | Q9: 0.4038321017 | R9: 0.4355074448 | S9: =K6 -> 0.3472300291 | T9: =L6 -> 0.3210672885 | U9: 0.2657245819 | V9: 0.3205096425 | W9: 0.3408636214 | X9: 0.301650958
A10: 8 | B10: ='!MB15A0I.sha'!B2:C2 -> <date> | C10: =('!MB15A0I.sha'!F171/60)/'!MB15A0I.sha'!Q3 -> 2.146262626 | D10: ='!MB15A0I.sha'!N20/'!MB15A0I.sha'!Q3 -> 0.2424242424 | E10: =SUM('!MB15A0I.sha'!L20:Q20)/'!MB15A0I.sha'!Q3 -> 1.315151515 | F10: ='!MB15A0I.sha'!Q16 -> 0.3013815945
A11: 9 | B11: ='!MB1691I.sha'!B2:C2 -> <date> | C11: =('!MB1691I.sha'!F104/60)/'!MB1691I.sha'!Q3 -> 2.164795918 | D11: ='!MB1691I.sha'!N20/'!MB1691I.sha'!Q3 -> 0.4081632653 | E11: =SUM('!MB1691I.sha'!L20:Q20)/'!MB1691I.sha'!Q3 -> 1.887755102 | F11: ='!MB1691I.sha'!Q16 -> 0.2826578831
A12: 10 | B12: ='!MB1780I.sha'!B2:C2 -> <date> | C12: =('!MB1780I.sha'!F102/60)/'!MB1780I.sha'!Q3 -> 2.2703125 | D12: ='!MB1780I.sha'!N20/'!MB1780I.sha'!Q3 -> 0.4166666667 | E12: =SUM('!MB1780I.sha'!L20:Q20)/'!MB1780I.sha'!Q3 -> 3.052083333 | F12: ='!MB1780I.sha'!Q16 -> 0.3081818937
A13: 11 | B13: ='!MB1893I.sha'!B2:C2 -> <date> | C13: =('!MB1893I.sha'!F129/60)/'!MB1893I.sha'!Q3 -> 2.15596206 | D13: ='!MB1893I.sha'!N20/'!MB1893I.sha'!Q3 -> 0.325203252 | E13: =SUM('!MB1893I.sha'!L20:Q20)/'!MB1893I.sha'!Q3 -> 1.569105691 | F13: ='!MB1893I.sha'!Q16 -> 0.2300783773
A14: 12 | B14: ='!MB19A3I.sha'!B2:C2 -> <date> | C14: =('!MB19A3I.sha'!F121/60)/'!MB19A3I.sha'!Q3 -> 2.190434783 | D14: ='!MB19A3I.sha'!N20/'!MB19A3I.sha'!Q3 -> 0.347826087 | E14: =SUM('!MB19A3I.sha'!L20:Q20)/'!MB19A3I.sha'!Q3 -> 2.608695652 | F14: ='!MB19A3I.sha'!Q16 -> 0.278993997
A15: 13 | B15: ='!MB2091I.sha'!B2:C2 -> <date> | C15: =('!MB2091I.sha'!F123/60)/'!MB2091I.sha'!Q3 -> 2.157549858 | D15: ='!MB2091I.sha'!N20/'!MB2091I.sha'!Q3 -> 0.3418803419 | E15: =SUM('!MB2091I.sha'!L20:Q20)/'!MB2091I.sha'!Q3 -> 1.717948718 | F15: ='!MB2091I.sha'!Q16 -> 0.2689394477
A16: 14 | B16: ='!MB21A4I.sha'!B2:C2 -> <date> | C16: =('!MB21A4I.sha'!F115/60)/'!MB21A4I.sha'!Q3 -> 2.142813456 | D16: ='!MB21A4I.sha'!N20/'!MB21A4I.sha'!Q3 -> 0.3669724771 | E16: =SUM('!MB21A4I.sha'!L20:Q20)/'!MB21A4I.sha'!Q3 -> 1.816513761 | F16: ='!MB21A4I.sha'!Q16 -> 0.2697027083
A17: 15 | B17: ='!MB2392I.sha'!B2:C2 -> <date> | C17: =('!MB2392I.sha'!F122/60)/'!MB2392I.sha'!Q3 -> 2.375862069 | D17: ='!MB2392I.sha'!N20/'!MB2392I.sha'!Q3 -> 0.3448275862 | E17: =SUM('!MB2392I.sha'!L20:Q20)/'!MB2392I.sha'!Q3 -> 1.732758621 | F17: ='!MB2392I.sha'!Q16 -> 0.280908379
A18: 16 | B18: ='!MB24A3I.sha'!B2:C2 -> <date> | C18: =('!MB24A3I.sha'!F105/60)/'!MB24A3I.sha'!Q3 -> 2.305050505 | D18: ='!MB24A3I.sha'!N20/'!MB24A3I.sha'!Q3 -> 0.404040404 | E18: =SUM('!MB24A3I.sha'!L20:Q20)/'!MB24A3I.sha'!Q3 -> 1.95959596 | F18: ='!MB24A3I.sha'!Q16 -> 0.3060831341
A19: 17 | B19: ='!MB25A3I.sha'!B2:C2 -> <date> | C19: =('!MB25A3I.sha'!F97/60)/'!MB25A3I.sha'!Q3 -> 2.588827839 | D19: ='!MB25A3I.sha'!N20/'!MB25A3I.sha'!Q3 -> 0.4395604396 | E19: =SUM('!MB25A3I.sha'!L20:Q20)/'!MB25A3I.sha'!Q3 -> 2.098901099 | F19: ='!MB25A3I.sha'!Q16 -> 0.3082316998
A20: 18 | B20: ='!MB26A2I.sha'!B2:C2 -> <date> | C20: =('!MB26A2I.sha'!F107/60)/'!MB26A2I.sha'!Q3 -> 2.330033003 | D20: ='!MB26A2I.sha'!N20/'!MB26A2I.sha'!Q3 -> 0.396039604 | E20: =SUM('!MB26A2I.sha'!L20:Q20)/'!MB26A2I.sha'!Q3 -> 2.930693069 | F20: ='!MB26A2I.sha'!Q16 -> 0.2925197526
A21: 19 | B21: ='!MB2792I.sha'!B2:C2 -> <date> | C21: =('!MB2792I.sha'!F76/60)/'!MB2792I.sha'!Q3 -> 5.446666667 | D21: ='!MB2792I.sha'!N20/'!MB2792I.sha'!Q3 -> 0.2285714286 | E21: =SUM('!MB2792I.sha'!L20:Q20)/'!MB2792I.sha'!Q3 -> 2.3 | F21: ='!MB2792I.sha'!Q16 -> 0.3314624432
A22: 20 | B22: ='!MB28A0I.sha'!B2:C2 -> <date> | C22: =('!MB28A0I.sha'!F72/60)/'!MB28A0I.sha'!Q3 -> 6.055555556 | D22: ='!MB28A0I.sha'!N20/'!MB28A0I.sha'!Q3 -> 0.3181818182 | E22: =SUM('!MB28A0I.sha'!L20:Q20)/'!MB28A0I.sha'!Q3 -> 2.5 | F22: ='!MB28A0I.sha'!Q16 -> 0.3642511829
A23: 21 | B23: ='!MB2991I.sha'!B2:C2 -> <date> | C23: =('!MB2991I.sha'!F105/60)/'!MB2991I.sha'!Q3 -> 2.332323232 | D23: ='!MB2991I.sha'!N20/'!MB2991I.sha'!Q3 -> 0.404040404 | E23: =SUM('!MB2991I.sha'!L20:Q20)/'!MB2991I.sha'!Q3 -> 1.868686869 | F23: ='!MB2991I.sha'!Q16 -> 0.2998454294
A24: 22 | B24: ='!MB3090I.sha'!B2:C2 -> <date> | C24: =('!MB3090I.sha'!F50/60)/'!MB3090I.sha'!Q3 -> 8.454166667 | D24: ='!MB3090I.sha'!N20/'!MB3090I.sha'!Q3 -> 0.2727272727 | E24: =SUM('!MB3090I.sha'!L20:Q20)/'!MB3090I.sha'!Q3 -> 5.636363636 | F24: ='!MB3090I.sha'!Q16 -> 0.464283864
A25: 23 | B25: ='!MC01A2I.sha'!B2:C2 -> <date> | C25: =('!MC01A2I.sha'!F105/60)/'!MC01A2I.sha'!Q3 -> 2.105218855 | D25: ='!MC01A2I.sha'!N20/'!MC01A2I.sha'!Q3 -> 0.404040404 | E25: =SUM('!MC01A2I.sha'!L20:Q20)/'!MC01A2I.sha'!Q3 -> 1.868686869 | F25: ='!MC01A2I.sha'!Q16 -> 0.3096500515
A26: 24 | B26: ='!MC02A1I.sha'!B2:C2 -> <date> | C26: =('!MC02A1I.sha'!F84/60)/'!MC02A1I.sha'!Q3 -> 2.233974359 | D26: ='!MC02A1I.sha'!N20/'!MC02A1I.sha'!Q3 -> 0.5128205128 | E26: =SUM('!MC02A1I.sha'!L20:Q20)/'!MC02A1I.sha'!Q3 -> 2.397435897 | F26: ='!MC02A1I.sha'!Q16 -> 0.3111246648
A27: 25 | B27: ='!MC0395I.sha'!B2:C2 -> <date> | C27: =('!MC0395I.sha'!F100/60)/'!MC0395I.sha'!Q3 -> 2.275886525 | D27: ='!MC0395I.sha'!N20/'!MC0395I.sha'!Q3 -> 0.4255319149 | E27: =SUM('!MC0395I.sha'!L20:Q20)/'!MC0395I.sha'!Q3 -> 2.053191489 | F27: ='!MC0395I.sha'!Q16 -> 0.3194140975
A28: 26 | B28: ='!MC0491I.sha'!B2:C2 -> <date> | C28: =('!MC0491I.sha'!F131/60)/'!MC0491I.sha'!Q3 -> 2.293333333 | D28: ='!MC0491I.sha'!N20/'!MC0491I.sha'!Q3 -> 0.32 | E28: =SUM('!MC0491I.sha'!L20:Q20)/'!MC0491I.sha'!Q3 -> 1.632 | F28: ='!MC0491I.sha'!Q16 -> 0.2867649798
A29: 27 | B29: ='!MC05A0I.sha'!B2:C2 -> <date> | C29: =('!MC05A0I.sha'!F108/60)/'!MC05A0I.sha'!Q3 -> 2.466830065 | D29: ='!MC05A0I.sha'!N20/'!MC05A0I.sha'!Q3 -> 0.3921568627 | E29: =SUM('!MC05A0I.sha'!L20:Q20)/'!MC05A0I.sha'!Q3 -> 1.911764706 | F29: ='!MC05A0I.sha'!Q16 -> 0.3138936539
A30: 28 | B30: ='!MC05C1I.sha'!B2:C2 -> <date> | C30: =('!MC06A4I.sha'!F79/60)/'!MC06A4I.sha'!Q3 -> 2.121917808 | D30: ='!MC06A4I.sha'!N20/'!MC06A4I.sha'!Q3 -> 0.5479452055 | E30: =SUM('!MC06A4I.sha'!L20:Q20)/'!MC06A4I.sha'!Q3 -> 3.904109589 | F30: ='!MC06A4I.sha'!Q16 -> 0.2763580057
A31: 29 | B31: ='!MC06A4I.sha'!B2:C2 -> <date> | C31: =('!MC0790I.sha'!F89/60)/'!MC0790I.sha'!Q3 -> 2.483935743 | D31: ='!MC0790I.sha'!N20/'!MC0790I.sha'!Q3 -> 0.4819277108 | E31: =SUM('!MC0790I.sha'!L20:Q20)/'!MC0790I.sha'!Q3 -> 2.277108434 | F31: ='!MC0790I.sha'!Q16 -> 0.3295871924
A32: 30 | B32: ='!MC0790I.sha'!B2:C2 -> <date> | C32: =('!MC0892I.sha'!F101/60)/'!MC0892I.sha'!Q3 -> 2.46245614 | D32: ='!MC0892I.sha'!N20/'!MC0892I.sha'!Q3 -> 0.4210526316 | E32: =SUM('!MC0892I.sha'!L20:Q20)/'!MC0892I.sha'!Q3 -> 2.042105263 | F32: ='!MC0892I.sha'!Q16 -> 0.3199902485
B33: ='!MC0892I.sha'!B2:C2 -> <date> | C33: =('!MC09A2I.sha'!F112/60)/'!MC09A2I.sha'!Q3 -> 2.457232704 | D33: ='!MC09A2I.sha'!N20/'!MC09A2I.sha'!Q3 -> 0.3773584906 | E33: =SUM('!MC09A2I.sha'!L20:Q20)/'!MC09A2I.sha'!Q3 -> 1.764150943 | F33: ='!MC09A2I.sha'!Q16 -> 0.3170022227
B34: ='!MC09A2I.sha'!B2:C2 -> <date> | C34: =('!MC1094I.sha'!F90/60)/'!MC1094I.sha'!Q3 -> 2.39047619 | D34: ='!MC1094I.sha'!N20/'!MC1094I.sha'!Q3 -> 0.4761904762 | E34: =SUM('!MC1094I.sha'!L20:Q20)/'!MC1094I.sha'!Q3 -> 2.261904762 | F34: ='!MC1094I.sha'!Q16 -> 0.3160362986
B35: ='!MC1094I.sha'!B2:C2 -> <date> | C35: =('!MC1195I.sha'!F85/60)/'!MC1195I.sha'!Q3 -> 2.534177215 | D35: ='!MC1195I.sha'!N20/'!MC1195I.sha'!Q3 -> 0.5063291139 | E35: =SUM('!MC1195I.sha'!L20:Q20)/'!MC1195I.sha'!Q3 -> 2.253164557 | F35: ='!MC1195I.sha'!Q16 -> 0.287236415
B36: ='!MC1195I.sha'!B2:C2 -> <date> | C36: =('!MC1293I.sha'!F95/60)/'!MC1293I.sha'!Q3 -> 2.293820225 | D36: ='!MC1293I.sha'!N20/'!MC1293I.sha'!Q3 -> 0.4494382022 | E36: =SUM('!MC1293I.sha'!L20:Q20)/'!MC1293I.sha'!Q3 -> 2.157303371 | F36: ='!MC1293I.sha'!Q16 -> 0.2842833877
B37: ='!MC1293I.sha'!B2:C2 -> <date> | C37: =('!MC1392I.sha'!F102/60)/'!MC1392I.sha'!Q3 -> 2.2859375 | D37: ='!MC1392I.sha'!N20/'!MC1392I.sha'!Q3 -> 0.4166666667 | E37: =SUM('!MC1392I.sha'!L20:Q20)/'!MC1392I.sha'!Q3 -> 1.916666667 | F37: ='!MC1392I.sha'!Q16 -> 0.2990760316
B38: ='!MC1392I.sha'!B2:C2 -> <date> | C38: =('!MC14A1I.sha'!F91/60)/'!MC14A1I.sha'!Q3 -> 2.407647059 | D38: ='!MC14A1I.sha'!N20/'!MC14A1I.sha'!Q3 -> 0.4705882353 | E38: =SUM('!MC14A1I.sha'!L20:Q20)/'!MC14A1I.sha'!Q3 -> 2.117647059 | F38: ='!MC14A1I.sha'!Q16 -> 0.2787743181
B39: ='!MC14A1I.sha'!B2:C2 -> <date>

Sheet Start
F1: Use Folder 51 | H1: Auto Clean Up | J1: Correct sequence
F2: FALSE | H2: TRUE | J2: 112
A4: Working with Folder | G4: Process All/Or Pick A number: ALL or an integer
A5: F:\Possum Chapter\Raw Data\Ishan\New LLR\ | G5: ALL
A6: Filenames:
A7: !MC14A1I.sha | G7: Paint Cells
A8: !MB0895I.sha | G8: FALSE
A9: !MB0990I.sha
A10: !MB10A2I.sha
A11: !MB11B1I.sha
A12: !MB12A2I.sha
A13: !MB1391I.sha
A14: !MB14A5I.sha
A15: !MB15A0I.sha
A16: !MB1691I.sha
A17: !MB1780I.sha
A18: !MB1893I.sha
A19: !MB19A3I.sha
A20: !MB2091I.sha
A21: !MB21A4I.sha
A22: !MB2392I.sha
A23: !MB24A3I.sha
A24: !MB25A3I.sha
A25: !MB26A2I.sha
A26: !MB2792I.sha
A27: !MB28A0I.sha
A28: !MB2991I.sha
A29: !MB3090I.sha
A30: !MC01A2I.sha
A31: !MC02A1I.sha
A32: !MC0395I.sha
A33: !MC0491I.sha
A34: !MC05A0I.sha
A35: !MC05C1I.sha
A36: !MC06A4I.sha
A37: !MC0790I.sha
A38: !MC0892I.sha
A39: !MC09A2I.sha
A40: !MC1094I.sha
A41: !MC1195I.sha
A42: !MC1293I.sha
A43: !MC1392I.sha

Sheet !MB0895I.sha
A1: Report for:!MB0895I.sha
A2: Date: | B2: <date>
A3: Hen: | B3: <hen> | F3: Correct Sequence | G3: =Start!J2 -> 112 | P3: Total Sequences in Data | Q3: =4994-COUNTBLANK(L7:L5000) -> 181 | V3: Total Sequences in Block Data | W3: =COUNTA(L7:L36) -> 30 | AA3: Total Sequences in Block Data | AB3: =COUNTA(L37:L66) -> 30 | AF3: Total Sequences in Block Data | AG3: =COUNTA(L67:L97) -> 31 | AK3: Total Sequences in Block Data | AL3: =COUNTA(L98:L127) -> 30 | AP3: Total Sequences in Block Data | AQ3: =COUNTA(L128:L157) -> 30 | AU3: Total Sequences in Block Data | AV3: =COUNTA(L158:L187) -> 30
P4: Total Sequences in Summary | Q4: =SUM(O7:O14) -> 181 | V4: Total Sequences in Block Summary | W4: =SUM(U7:U14) -> 30 | AA4: Total Sequences in Block Summary | AB4: =SUM(Z7:Z14) -> 30 | AF4: Total Sequences in Block Summary | AG4: =SUM(AE7:AE14) -> 31 | AK4: Total Sequences in Block Summary | AL4: =SUM(AJ7:AJ14) -> 30 | AP4: Total Sequences in Block Summary | AQ4: =SUM(AO7:AO14) -> 30 | AU4: Total Sequences in Block Summary | AV4: =SUM(AT7:AT14) -> 30
T5: Block 1 | Y5: Block 2 | AD5: Block 3 | AI5: Block 4 | AN5: Block 5 | AS5: Block 6
A6: Sequence Component 1 | B6: Time 1 | C6: Sequence Component 2 | D6: Time 2 | E6: Sequence Component 3 | F6: Time 3 | G6: Sequence Component 4 | H6: Time 4 | I6: Sequence Component 5 | J6: Time 5 | K6: Correct? 0=No 1=Yes | L6: Sequence | N6: Frequency | P6: Relative Frequency | Q6: Variability | T6: Frequency | V6: Relative Frequency | W6: Variability | Y6: Frequency | AA6: Relative Frequency | AB6: Variability | AD6: Frequency | AF6: Relative Frequency | AG6: Variability | AI6: Frequency | AK6: Relative Frequency | AL6: Variability | AN6: Frequency | AP6: Relative Frequency | AQ6: Variability | AS6: Frequency | AU6: Relative Frequency | AV6: Variability
A7: 11 | B7: 16 | C7: 11 | D7: 38 | E7: 21 | F7: 51 | K7: 0 | L7: 112 | N7: 111 | O7: =COUNTIF($L$7:$L$500,N7) -> 3 | P7: =O7/$Q$4 -> 0.01657458564 | Q7: =IF(P7=0,0,(P7*((LOG(P7))/LOG(2)))) -> -0.09803674121 | T7: =N7 -> 111 | U7: =COUNTIF(L7:L36,T7) -> 0 | V7: =U7/(W4-U8) -> 0 | W7: =IF(V7=0,0,(V7*((LOG(V7))/LOG(2)))) -> 0 | Y7: =N7 -> 111 | Z7: =COUNTIF(L37:L66,Y7) -> 1 | AA7: =Z7/(AB4-Z8) -> 0.03571428571 | AB7: =IF(AA7=0,0,(AA7*((LOG(AA7))/LOG(2)))) -> -0.1716912472 | AD7: =N7 -> 111 | AE7: =COUNTIF(L67:L97,AD7) -> 1 | AF7: =AE7/(AG4-AE8) -> 0.03571428571 | AG7: =IF(AF7=0,0,(AF7*((LOG(AF7))/LOG(2)))) -> -0.1716912472 | AI7: =N7 -> 111 | AJ7: =COUNTIF(L98:L127,AI7) -> 1 | AK7: =AJ7/(AL4-AJ8) -> 0.03571428571 | AL7: =IF(AK7=0,0,(AK7*((LOG(AK7))/LOG(2)))) -> -0.1716912472 | AN7: =N7 -> 111 | AO7: =COUNTIF(L128:L157,AN7) -> 0 | AP7: =AO7/(AQ4-AO8) -> 0 | AQ7: =IF(AP7=0,0,(AP7*((LOG(AP7))/LOG(2)))) -> 0 | AS7: =N7 -> 111 | AT7: =COUNTIF(L158:L187,AS7) -> 0 | AU7: =AT7/(AV4-AT8) -> 0 | AV7: =IF(AU7=0,0,(AU7*((LOG(AU7))/LOG(2)))) -> 0
A8: 22 | B8: 180 | C8: 24 | D8: 185 | E8: 23 | F8: 196 | K8: 0 | L8: 222 | N8: 112 | O8: =COUNTIF($L$7:$L$500,N8) -> 14 | P8: =O8/$Q$4 -> 0.0773480663 | Q8: =IF(P8=0,0,(P8*((LOG(P8))/LOG(2)))) -> -0.285607036 | T8: =N8 -> 112 | U8: =COUNTIF(L7:L36,T8) -> 2 | Y8: =N8 -> 112 | Z8: =COUNTIF(L37:L66,Y8) -> 2 | AD8: =N8 -> 112 | AE8: =COUNTIF(L67:L97,AD8) -> 3 | AI8: =N8 -> 112 | AJ8: =COUNTIF(L98:L127,AI8) -> 2 | AN8: =N8 -> 112 | AO8: =COUNTIF(L128:L157,AN8) -> 2 | AS8: =N8 -> 112 | AT8: =COUNTIF(L158:L187,AS8) -> 3
A9: 11 | B9: 292 | C9: 22 | D9: 301 | E9: 23 | F9: 308 | K9: 0 | L9: 122 | N9: 121 | O9: =COUNTIF($L$7:$L$500,N9) -> 1 | P9: =O9/$Q$4 -> 0.005524861878 | Q9: =IF(P9=0,0,(P9*((LOG(P9))/LOG(2)))) -> -0.04143561264 | T9: =N9 -> 121 | U9: =COUNTIF(L7:L36,T9) -> 1 | V9: =U9/(W4-U8) -> 0.03571428571 | W9: =IF(V9=0,0,(V9*((LOG(V9))/LOG(2)))) -> -0.1716912472 | Y9: =N9 -> 121 | Z9: =COUNTIF(L37:L66,Y9) -> 0 | AA9: =Z9/(AB4-Z8) -> 0 | AB9: =IF(AA9=0,0,(AA9*((LOG(AA9))/LOG(2)))) -> 0 | AD9: =N9 -> 121 | AE9: =COUNTIF(L67:L97,AD9) -> 0 | AF9: =AE9/(AG4-AE8) -> 0 | AG9: =IF(AF9=0,0,(AF9*((LOG(AF9))/LOG(2)))) -> 0 | AI9: =N9 -> 121 | AJ9: =COUNTIF(L98:L127,AI9) -> 0 | AK9: =AJ9/(AL4-AJ8) -> 0 | AL9: =IF(AK9=0,0,(AK9*((LOG(AK9))/LOG(2)))) -> 0 | AN9: =N9 -> 121 | AO9: =COUNTIF(L128:L157,AN9) -> 0 | AP9: =AO9/(AQ4-AO8) -> 0 | AQ9: =IF(AP9=0,0,(AP9*((LOG(AP9))/LOG(2)))) -> 0 | AS9: =N9 -> 121 | AT9: =COUNTIF(L158:L187,AS9) -> 0 | AU9: =AT9/(AV4-AT8) -> 0 | AV9: =IF(AU9=0,0,(AU9*((LOG(AU9))/LOG(2)))) -> 0
A10: 11 | B10: 403 | C10: 22 | D10: 416 | E10: 23 | F10: 423 | K10: 0 | L10: 122 | N10: 122 | O10: =COUNTIF($L$7:$L$500,N10) -> 58 | P10: =O10/$Q$4 -> 0.320441989 | Q10: =IF(P10=0,0,(P10*((LOG(P10))/LOG(2)))) -> -0.5261224516 | T10: =N10 -> 122 | U10: =COUNTIF(L7:L36,T10) -> 11 | V10: =U10/(W4-U8) -> 0.3928571429 | W10: =IF(V10=0,0,(V10*((LOG(V10))/LOG(2)))) -> -0.5295412978 | Y10: =N10 -> 122 | Z10: =COUNTIF(L37:L66,Y10) -> 7 | AA10: =Z10/(AB4-Z8) -> 0.25 | AB10: =IF(AA10=0,0,(AA10*((LOG(AA10))/LOG(2)))) -> -0.5 | AD10: =N10 -> 122 | AE10: =COUNTIF(L67:L97,AD10) -> 8 | AF10: =AE10/(AG4-AE8) -> 0.2857142857 | AG10: =IF(AF10=0,0,(AF10*((LOG(AF10))/LOG(2)))) -> -0.5163871206 | AI10: =N10 -> 122 | AJ10: =COUNTIF(L98:L127,AI10) -> 11 | AK10: =AJ10/(AL4-AJ8) -> 0.3928571429 | AL10: =IF(AK10=0,0,(AK10*((LOG(AK10))/LOG(2)))) -> -0.5295412978 | AN10: =N10 -> 122 | AO10: =COUNTIF(L128:L157,AN10) -> 5 | AP10: =AO10/(AQ4-AO8) -> 0.1785714286 | AQ10: =IF(AP10=0,0,(AP10*((LOG(AP10))/LOG(2)))) -> -0.4438262191 | AS10: =N10 -> 122 | AT10: =COUNTIF(L158:L187,AS10) -> 16 | AU10: =AT10/(AV4-AT8) -> 0.5925925926 | AV10: =IF(AU10=0,0,(AU10*((LOG(AU10))/LOG(2)))) -> -0.447340742
A11: 22 | B11: 541 | C11: 24 | D11: 548 | E11: 23 | F11: 555 | K11: 0 | L11: 222 | N11: 211 | O11: =COUNTIF($L$7:$L$500,N11) -> 15 | P11: =O11/$Q$4 -> 0.08287292818 | Q11: =IF(P11=0,0,(P11*((LOG(P11))/LOG(2)))) -> -0.2977587258 | T11: =N11 -> 211 | U11: =COUNTIF(L7:L36,T11) -> 0 | V11: =U11/(W4-U8) -> 0 | W11: =IF(V11=0,0,(V11*((LOG(V11))/LOG(2)))) -> 0 | Y11: =N11 -> 211 | Z11: =COUNTIF(L37:L66,Y11) -> 6 | AA11: =Z11/(AB4-Z8) -> 0.2142857143 | AB11: =IF(AA11=0,0,(AA11*((LOG(AA11))/LOG(2)))) -> -0.4762269474 | AD11: =N11 -> 211 | AE11: =COUNTIF(L67:L97,AD11) -> 7 | AF11: =AE11/(AG4-AE8) -> 0.25 | AG11: =IF(AF11=0,0,(AF11*((LOG(AF11))/LOG(2)))) -> -0.5 | AI11: =N11 -> 211 | AJ11: =COUNTIF(L98:L127,AI11) -> 1 | AK11: =AJ11/(AL4-AJ8) -> 0.03571428571 | AL11: =IF(AK11=0,0,(AK11*((LOG(AK11))/LOG(2)))) -> -0.1716912472 | AN11: =N11 -> 211 | AO11: =COUNTIF(L128:L157,AN11) -> 0 | AP11: =AO11/(AQ4-AO8) -> 0 | AQ11: =IF(AP11=0,0,(AP11*((LOG(AP11))/LOG(2)))) -> 0 | AS11: =N11 -> 211 | AT11: =COUNTIF(L158:L187,AS11) -> 1 | AU11: =AT11/(AV4-AT8) -> 0.03703703704 | AV11: =IF(AU11=0,0,(AU11*((LOG(AU11))/LOG(2)))) -> -0.1761069445
A12: 11 | B12: 658 | C12: 22 | D12: 669 | E12: 23 | F12: 676 | K12: 0 | L12: 122 | N12: 212 | O12: =COUNTIF($L$7:$L$500,N12) -> 26 | P12: =O12/$Q$4 -> 0.1436464088 | Q12: =IF(P12=0,0,(P12*((LOG(P12))/LOG(2)))) -> -0.4021246431 | T12: =N12 -> 212 | U12: =COUNTIF(L7:L36,T12) -> 2 | V12: =U12/(W4-U8) -> 0.07142857143 | W12: =IF(V12=0,0,(V12*((LOG(V12))/LOG(2)))) -> -0.271953923 | Y12: =N12 -> 212 | Z12: =COUNTIF(L37:L66,Y12) -> 3 | AA12: =Z12/(AB4-Z8) -> 0.1071428571 | AB12: =IF(AA12=0,0,(AA12*((LOG(AA12))/LOG(2)))) -> -0.3452563309 | AD12: =N12 -> 212 | AE12: =COUNTIF(L67:L97,AD12) -> 4 | AF12: =AE12/(AG4-AE8) -> 0.1428571429 | AG12: =IF(AF12=0,0,(AF12*((LOG(AF12))/LOG(2)))) -> -0.4010507032 | AI12: =N12 -> 212 | AJ12: =COUNTIF(L98:L127,AI12) -> 7 | AK12: =AJ12/(AL4-AJ8) -> 0.25 | AL12: =IF(AK12=0,0,(AK12*((LOG(AK12))/LOG(2)))) -> -0.5 | AN12: =N12 -> 212 | AO12: =COUNTIF(L128:L157,AN12) -> 8 | AP12: =AO12/(AQ4-AO8) -> 0.2857142857 | AQ12: =IF(AP12=0,0,(AP12*((LOG(AP12))/LOG(2)))) -> -0.5163871206 | AS12: =N12 -> 212 | AT12: =COUNTIF(L158:L187,AS12) -> 2 | AU12: =AT12/(AV4-AT8) -> 0.07407407407 | AV12: =IF(AU12=0,0,(AU12*((LOG(AU12))/LOG(2)))) -> -0.278139815
A13: 11 | B13: 770 | C13: 22 | D13: 787 | E13: 14 | F13: 800 | K13: 0 | L13: 121 | N13: 221 | O13: =COUNTIF($L$7:$L$500,N13) -> 20 | P13: =O13/$Q$4 -> 0.1104972376 | Q13: =IF(P13=0,0,(P13*((LOG(P13))/LOG(2)))) -> -0.3511511373 | T13: =N13 -> 221 | U13: =COUNTIF(L7:L36,T13) -> 5 | V13: =U13/(W4-U8) -> 0.1785714286 | W13: =IF(V13=0,0,(V13*((LOG(V13))/LOG(2)))) -> -0.4438262191 | Y13: =N13 -> 221 | Z13: =COUNTIF(L37:L66,Y13) -> 3 | AA13: =Z13/(AB4-Z8) -> 0.1071428571 | AB13: =IF(AA13=0,0,(AA13*((LOG(AA13))/LOG(2)))) -> -0.3452563309 | AD13: =N13 -> 221 | AE13: =COUNTIF(L67:L97,AD13) -> 5 | AF13: =AE13/(AG4-AE8) -> 0.1785714286 | AG13: =IF(AF13=0,0,(AF13*((LOG(AF13))/LOG(2)))) -> -0.4438262191 | AI13: =N13 -> 221 | AJ13: =COUNTIF(L98:L127,AI13) -> 3 | AK13: =AJ13/(AL4-AJ8) -> 0.1071428571 | AL13: =IF(AK13=0,0,(AK13*((LOG(AK13))/LOG(2)))) -> -0.3452563309 | AN13: =N13 -> 221 | AO13: =COUNTIF(L128:L157,AN13) -> 1 | AP13: =AO13/(AQ4-AO8) -> 0.03571428571 | AQ13: =IF(AP13=0,0,(AP13*((LOG(AP13))/LOG(2)))) -> -0.1716912472 | AS13: =N13 -> 221 | AT13: =COUNTIF(L158:L187,AS13) -> 3 | AU13: =AT13/(AV4-AT8) -> 0.1111111111 | AV13: =IF(AU13=0,0,(AU13*((LOG(AU13))/LOG(2)))) -> -0.352213889
A14: 22 | B14: 906 | C14: 24 | D14: 920 | E14: 14 | F14: 933 | K14: 0 | L14: 221 | N14: 222 | O14: =COUNTIF($L$7:$L$500,N14) -> 44 | P14: =O14/$Q$4 -> 0.2430939227 | Q14: =IF(P14=0,0,(P14*((LOG(P14))/LOG(2)))) -> -0.4960123084 | T14: =N14 -> 222 | U14: =COUNTIF(L7:L36,T14) -> 9 | V14: =U14/(W4-U8) -> 0.3214285714 | W14: =IF(V14=0,0,(V14*((LOG(V14))/LOG(2)))) -> -0.5263167602 | Y14: =N14 -> 222 | Z14: =COUNTIF(L37:L66,Y14) -> 8 | AA14: =Z14/(AB4-Z8) -> 0.2857142857 | AB14: =IF(AA14=0,0,(AA14*((LOG(AA14))/LOG(2)))) -> -0.5163871206 | AD14: =N14 -> 222 | AE14: =COUNTIF(L67:L97,AD14) -> 3 | AF14: =AE14/(AG4-AE8) -> 0.1071428571 | AG14: =IF(AF14=0,0,(AF14*((LOG(AF14))/LOG(2)))) -> -0.3452563309 | AI14: =N14 -> 222 | AJ14: =COUNTIF(L98:L127,AI14) -> 5 | AK14: =AJ14/(AL4-AJ8) -> 0.1785714286 | AL14: =IF(AK14=0,0,(AK14*((LOG(AK14))/LOG(2)))) -> -0.4438262191 | AN14: =N14 -> 222 | AO14: =COUNTIF(L128:L157,AN14) -> 14 | AP14: =AO14/(AQ4-AO8) -> 0.5 | AQ14: =IF(AP14=0,0,(AP14*((LOG(AP14))/LOG(2)))) -> -0.5 | AS14: =N14 -> 222 | AT14: =COUNTIF(L158:L187,AS14) -> 5 | AU14: =AT14/(AV4-AT8) -> 0.1851851852 | AV14: =IF(AU14=0,0,(AU14*((LOG(AU14))/LOG(2)))) -> -0.4505480384
A15: 22 | B15: 1029 | C15: 24 | D15: 1040 | E15: 23 | F15: 1072 | K15: 0 | L15: 222 | P15: =SUM(P7:P14) -> 1 | Q15: =-SUM(Q7:Q14) -> 2.498248656 | V15: =SUM(V7:V14) -> 1 | W15: =-SUM(W7:W14) -> 1.943329447 | AA15: =SUM(AA7:AA14) -> 1 | AB15: =-SUM(AB7:AB14) -> 2.354817977 | AF15: =SUM(AF7:AF14) -> 1 | AG15: =-SUM(AG7:AG14) -> 2.378211621 | AK15: =SUM(AK7:AK14) -> 1 | AL15: =-SUM(AL7:AL14) -> 2.162006342 | AP15: =SUM(AP7:AP14) -> 1 | AQ15: =-SUM(AQ7:AQ14) -> 1.631904587 | AU15: =SUM(AU7:AU14) -> 1 | AV15: =-SUM(AV7:AV14) -> 1.704349429
A16: 11 | B16: 1171 | C16: 22 | D16: 1179 | E16: 23 | F16: 1188 | K16: 0 | L16: 122 | P16: U= | Q16: =Q15/(LOG(Q4)/LOG(2)) -> 0.3331066656 | V16: U1= | W16: =W15/(LOG(W4)/LOG(2)) -> 0.3960409162 | AA16: U2= | AB16: =AB15/(LOG(AB4)/LOG(2)) -> 0.4799002405 | AF16: U3= | AG16: =AG15/(LOG(AG4)/LOG(2)) -> 0.4800398434 | AK16: U4= | AL16: =AL15/(LOG(AL4)/LOG(2)) -> 0.4406061843 | AP16: U5= | AQ16: =AQ15/(LOG(AQ4)/LOG(2)) -> 0.3325740721 | AU16: U6= | AV16: =AV15/(LOG(AV4)/LOG(2)) -> 0.3473379721
A17: 22 | B17: 1304 | C17: 24 | D17: 1324 | E17: 23 | F17: 1331 | K17: 0 | L17: 222
A18: 11 | B18: 1426 | C18: 22 | D18: 1441 | E18: 23 | F18: 1450 | K18: 0 | L18: 122
A19: 22 | B19: 1542 | C19: 24 | D19: 1550 | E19: 14 | F19: 1562 | K19: 0 | L19: 221 | N19: Total Target Seq
A20: 22 | B20: 1659 | C20: 24 | D20: 1669 | E20: 14 | F20: 1681 | K20: 0 | L20: 221 | N20: =COUNTIF(L7:L187,G3) -> 14 | P20: 30 | Q20: 30 | R20: 31 | S20: 30 | T20: 30 | U20: 30
A21: 22 | B21: 1779 | C21: 13 | D21: 1789 | E21: 23 | F21: 1800 | K21: 0 | L21: 212 | P21: % of reinforcement given in 6 equal intervals based on number of trials
A22: 22 | B22: 1905 | C22: 13 | D22: 1916 | E22: 23 | F22: 1925 | K22: 0 | L22: 212 | P22: %_1 | Q22: %_2 | R22: %_3 | S22: %_4 | T22: %_5 | U22: %_6
A23: 11 | B23: 2021 | C23: 22 | D23: 2030 | E23: 23 | F23: 2039 | K23: 0 | L23: 122 | O23: target sequence | P23: =$G$3 -> 112 | Q23: =$G$3 -> 112 | R23: =$G$3 -> 112 | S23: =$G$3 -> 112 | T23: =$G$3 -> 112 | U23: =$G$3 -> 112
A24: 11 | B24: 2133 | C24: 22 | D24: 2141 | E24: 23 | F24: 2149 | K24: 0 | L24: 122 | O24: total reinforcement | P24: =U8 -> 2 | Q24: =Z8 -> 2 | R24: =AE8 -> 3 | S24: =AJ8 -> 2 | T24: =AO8 -> 2 | U24: =AT8 -> 3
A25: 22 | B25: 2246 | C25: 24 | D25: 2268 | E25: 23 | F25: 2272 | K25: 0 | L25: 222 | O25: % target
A26: 11 | B26: 2389 | C26: 22 | D26: 2400 | E26: 23 | F26: 2406 | K26: 0 | L26: 122 | O26: CCRF
A27: 22 | B27: 2507 | C27: 24 | D27: 2528 | E27: 23 | F27: 2536 | K27: 0 | L27: 222 | O27: % CCRf
A28: 22 | B28: 2646 | C28: 24 | D28: 2653 | E28: 23 | F28: 2659 | K28: 0 | L28: 222 | O28: average response rate | P28: =F36/P20 -> 124.3 | Q28: =(F66-F36)/Q20 -> 127.2 | R28: =(F97-F66)/R20 -> 128.9032258 | S28: =(F127-F97)/S20 -> 129.1 | T28: =(F157-F127)/T20 -> 129.3 | U28: =(F187-F157)/U20 -> 129.2666667
A29: 11 | B29: 2762 | C29: 22 | D29: 2773 | E29: 23 | F29: 2780 | K29: 0 | L29: 122
A30: 22 | B30: 2896 | C30: 24 | D30: 2904 | E30: 23 | F30: 2910 | K30: 0 | L30: 222
A31: 22 | B31: 3007 | C31: 24 | D31: 3016 | E31: 14 | F31: 3031 | K31: 0 | L31: 221
A32: 22 | B32: 3127 | C32: 24 | D32: 3137 | E32: 23 | F32: 3148 | K32: 0 | L32: 222
A33: 11 | B33: 3243 | C33: 22 | D33: 3253 | E33: 23 | F33: 3258 | K33: 0 | L33: 122
A34: 11 | B34: 3356 | C34: 22 | D34: 3368 | E34: 23 | F34: 3373 | K34: 0 | L34: 122
A35: 11 | B35: 3468 | C35: 11 | D35: 3470 | E35: 21 | F35: 3479 | K35: 0 | L35: 112
A36: 22 | B36: 3713 | C36: 24 | D36: 3718 | E36: 14 | F36: 3729 | K36: 0 | L36: 221
A37: 22 | B37: 3847 | C37: 24 | D37: 3853 | E37: 23 | F37: 3861 | K37: 0 | L37: 222
A38: 11 | B38: 3958 | C38: 22 | D38: 3971 | E38: 23 | F38: 3978 | K38: 0 | L38: 122
A39: 11 | B39: 4086 | C39: 22 | D39: 4097 | E39: 23 | F39: 4101 | K39: 0 | L39: 122
A40: 22 | B40: 4194 | C40: 13 | D40: 4212 | E40: 14 | F40: 4218 | K40: 0 | L40: 211
A41: 22 | B41: 4318 | C41: 13 | D41: 4342 | E41: 23 | F41: 4366 | K41: 0 | L41: 212
A42: 11 | B42: 4472 | C42: 22 | D42: 4491 | E42: 23 | F42: 4499 | K42: 0 | L42: 122
A43: 11 | B43: 4594 | C43: 22 | D43: 4605 | E43: 23 | F43: 4611 | K43: 0 | L43: 122
A44: 11 | B44: 4715 | C44: 22 | D44: 4726 | E44: 23 | F44: 4733 | K44: 0 | L44: 122
A45: 22 | B45: 4828 | C45: 13 | D45: 4844 | E45: 23 | F45: 4857 | K45: 0 | L45: 212
A46: 22 | B46: 4955 | C46: 13 | D46: 4964 | E46: 14 | F46: 4969 | K46: 0 | L46: 211
A47: 22 | B47: 5066 | C47: 13 | D47: 5077 | E47: 14 | F47: 5079 | K47: 0 | L47: 211
A48: 22 | B48: 5197 | C48: 24 | D48: 5205 | E48: 14 | F48: 5222 | K48: 0 | L48: 221
A49: 22 | B49: 5313 | C49: 13 | D49: 5329 | E49: 23 | F49: 5342 | K49: 0 | L49: 212
A50: 11 | B50: 5437 | C50: 11 | D50: 5442 | E50: 21 | F50: 5456 | K50: 0 | L50: 112
A51: 22 | B51: 5725 | C51: 24 | D51: 5738 | E51: 23 | F51: 5743 | K51: 0 | L51: 222
A52: 22 | B52: 5842 | C52: 13 | D52: 5854 | E52: 14 | F52: 5859 | K52: 0 | L52: 211
A53: 22 | B53: 5969 | C53: 24 | D53: 5976 | E53: 23 | F53: 5984 | K53: 0 | L53: 222
A54: 22 | B54: 6098 | C54: 24 | D54: 6106 | E54: 14 | F54: 6123 | K54: 0 | L54: 221
A55: 22 | B55: 6216 | C55: 24 | D55: 6224 | E55: 14 | F55: 6235 | K55: 0 | L55: 221
A56: 22 | B56: 6334 | C56: 24 | D56: 6352 | E56: 23 | F56: 6364 | K56: 0 | L56: 222
A57: 11 | B57: 6469 | C57: 11 | D57: 6473 | E57: 12 | F57: 6478 | K57: 0 | L57: 111
A58: 22 | B58: 6572 | C58: 24 | D58: 6575 | E58: 23 | F58: 6587 | K58: 0 | L58: 222
A59: 22 | B59: 6685 | C59: 24 | D59: 6690 | E59: 23 | F59: 6696 | K59: 0 | L59: 222
A60: 22 | B60: 6790 | C60: 13 | D60: 6802 | E60: 14 | F60: 6806 | K60: 0 | L60: 211
A61: 11 | B61: 6897 | C61: 22 | D61: 6906 | E61: 23 | F61: 6910 | K61: 0 | L61: 122
A62: 22 | B62: 7003 | C62: 13 | D62: 7020 | E62: 14 | F62: 7024 | K62: 0 | L62: 211
A63: 22 | B63: 7121 | C63: 24 | D63: 7131 | E63: 23 | F63: 7140 | K63: 0 | L63: 222
A64: 11 | B64: 7234 | C64: 11 | D64: 7242 | E64: 21 | F64: 7252 | K64: 0 | L64: 112
A65: 22 | B65: 7410 | C65: 24 | D65: 7418 | E65: 23 | F65: 7423 | K65: 0 | L65: 222
A66: 11 | B66: 7520 | C66: 22 | D66: 7536 | E66: 23 | F66: 7545 | K66: 0 | L66: 122
A67: 11 | B67: 7638 | C67: 11 | D67: 7642 | E67: 21 | F67: 7652 | K67: 0 | L67: 112
A68: 22 | B68: 7831 | C68: 24 | D68: 7835 | E68: 14 | F68: 7850 | K68: 0 | L68: 221
A69: 11 | B69: 7956 | C69: 22 | D69: 7977 | E69: 23 | F69: 7986 | K69: 0 | L69: 122
A70: 11 | B70: 8085 | C70: 11 | D70: 8090 | E70: 21 | F70: 8103 | K70: 0 | L70: 112
A71: 22 | B71: 8252 | C71: 24 | D71: 8257 | E71: 23 | F71: 8262 | K71: 0 | L71: 222
A72: 22 | B72: 8355 | C72: 13 | D72: 8371 | E72: 23 | F72: 8386 | K72: 0 | L72: 212
A73: 22 | B73: 8512 | C73: 24 | D73: 8523 | E73: 14 | F73: 8538 | K73: 0 | L73: 221
A74: 22 | B74: 8630 | C74: 24 | D74: 8633 | E74: 14 | F74: 8644 | K74: 0 | L74: 221
A75: 22 | B75: 8757 | C75: 24 | D75: 8763 | E75: 23 | F75: 8771 | K75: 0 | L75: 222
A76: 22 | B76: 8893 | C76: 13 | D76: 8902 | E76: 14 | F76: 8951 | K76: 0 | L76: 211
A77: 22 | B77: 9052 | C77: 24 | D77: 9057 | E77: 14 | F77: 9072 | K77: 0 | L77: 221
A78: 22 | B78: 9199 | C78: 13 | D78: 9211 | E78: 14 | F78: 9216 | K78: 0 | L78: 211
A79: 11 | B79: 9312 | C79: 22 | D79: 9327 | E79: 23 | F79: 9338 | K79: 0 | L79: 122
A80: 22 | B80: 9444 | C80: 24 | D80: 9448 | E80: 23 | F80: 9454 | K80: 0 | L80: 222
A81: 22 | B81: 9549 | C81: 13 | D81: 9561 | E81: 23 | F81: 9576 | K81: 0 | L81: 212
A82: 11 | B82: 9674 | C82: 22 | D82: 9689 | E82: 23 | F82: 9695 | K82: 0 | L82: 122
A83: 22 | B83: 9787 | C83: 13 | D83: 9799 | E83: 14 | F83: 9803 | K83: 0 | L83: 211
A84: 11 | B84: 9899 | C84: 11 | D84: 9901 | E84: 12 | F84: 9906 | K84: 0 | L84: 111
A85: 22 | B85: 9997 | C85: 13 | D85: 10016 | E85: 23 | F85: 10027 | K85: 0 | L85: 212
A86: 11 | B86: 10124 | C86: 22 | D86: 10133 | E86: 23 | F86: 10139 | K86: 0 | L86: 122
A87: 11 | B87: 10232 | C87: 22 | D87: 10249 | E87: 23 | F87: 10257 | K87: 0 | L87: 122
A88: 11 | B88: 10352 | C88: 22 | D88: 10361 | E88: 23 | F88: 10366 | K88: 0 | L88: 122
A89: 22 | B89: 10462 | C89: 13 | D89: 10472 | E89: 14 | F89: 10477 | K89: 0 | L89: 211
A90: 22 | B90: 10569 | C90: 13 | D90: 10582 | E90: 14 | F90: 10588 | K90: 0 | L90: 211
A91: 11 | B91: 10686 | C91: 11 | D91: 10691 | E91: 21 | F91: 10703 | K91: 0 | L91: 112
A92: 22 | B92: 10937 | C92: 24 | D92: 10941 | E92: 14 | F92: 10956 | K92: 0 | L92: 221
A93: 11 | B93: 11059 | C93: 22 | D93: 11068 | E93: 23 | F93: 11075 | K93: 0 | L93: 122
A94: 22 | B94: 11172 | C94: 13 | D94: 11183 | E94: 14 | F94: 11187 | K94: 0 | L94: 211
A95: 22 | B95: 11280 | C95: 13 | D95: 11294 | E95: 23 | F95: 11312 | K95: 0 | L95: 212
A96: 22 | B96: 11409 | C96: 13 | D96: 11423 | E96: 14 | F96: 11427 | K96: 0 | L96: 211
A97: 11 | B97: 11522 | C97: 22 | D97: 11533 | E97: 23 | F97: 11541 | K97: 0 | L97: 122
A98: 11 | B98: 11669 | C98: 22 | D98: 11678 | E98: 23 | F98: 11686 | K98: 0 | L98: 122
A99: 11 | B99: 11812 | C99: 22 | D99: 11821 | E99: 23 | F99: 11826 | K99: 0 | L99: 122
A100: 11 | B100: 11918 | C100: 11 | D100: 11923 | E100: 21 | F100: 11935 | K100: 0 | L100: 112
A101: 22 | B101: 12128 | C101: 24 | D101: 12132 | E101: 23 | F101: 12138 | K101: 0 | L101: 222
A102: 11 | B102: 12244 | C102: 11 | D102: 12265 | E102: 12 | F102: 12272 | K102: 0 | L102: 111
A103: 11 | B103: 12364 | C103: 22 | D103: 12373 | E103: 23 | F103: 12377 | K103: 0 | L103: 122
A104: 11 | B104: 12504 | C104: 22 | D104: 12511 | E104: 23 | F104: 12516 | K104: 0 | L104: 122
A105: 11 | B105: 12625 | C105: 22 | D105: 12635 | E105: 23 | F105: 12641 | K105: 0 | L105: 122
A106: 11 | B106: 12748 | C106: 22 | D106: 12760 | E106: 23 | F106: 12769 | K106: 0 | L106: 122
A107: 11 | B107: 12861 | C107: 22 | D107: 12869 | E107: 23 | F107: 12873 | K107: 0 | L107: 122
A108: 22 | B108: 12992 | C108: 24 | D108: 12999 | E108: 14 | F108: 13011 | K108: 0 | L108: 221
A109: 22 | B109: 13112 | C109: 24 | D109: 13117 | E109: 23 | F109: 13123 | K109: 0 | L109: 222
A110: 22 | B110: 13224 | C110: 13 | D110: 13241 | E110: 23 | F110: 13255 | K110: 0 | L110: 212
A111: 22 | B111: 13353 | C111: 13 | D111: 13364 | E111: 14 | F111: 13369 | K111: 0 | L111: 211
A112: 22 | B112: 13471 | C112: 24 | D112: 13477 | E112: 23 | F112: 13486 | K112: 0 | L112: 222
A113: 22 | B113: 13581 | C113: 13 | D113: 13597 | E113: 23 | F113: 13620 | K113: 0 | L113: 212
A114: 11 | B114: 13720 | C114: 11 | D114: 13726 | E114: 21 | F114: 13741 | K114: 0 | L114: 112
A115: 22 | B115: 13940 | C115: 24 | D115: 13948 | E115: 14 | F115: 13959 | K115: 0 | L115: 221
A116: 22 | B116: 14055 | C116: 13 | D116: 14072 | E116: 23 | F116: 14089 | K116: 0 | L116: 212
A117: 22 | B117: 14190 | C117: 13 | D117: 14200 | E117: 23 | F117: 14210 | K117: 0 | L117: 212
A118: 22 | B118: 14305 | C118: 13 | D118: 14316 | E118: 23 | F118: 14326 | K118: 0 | L118: 212
A119: 11 | B119: 14426 | C119: 22 | D119: 14435 | E119: 23 | F119: 14439 | K119: 0 | L119: 122
A120: 22 | B120: 14534 | C120: 13 | D120: 14548 | E120: 23 | F120: 14561 | K120: 0 | L120: 212
A121: 22 | B121: 14660 | C121: 13 | D121: 14670 | E121: 23 | F121: 14680 | K121: 0 | L121: 212
A122: 22 | B122: 14793 | C122: 24 | D122: 14800 | E122: 23 | F122: 14808 | K122: 0 | L122: 222
A123: 11 | B123: 14935 | C123: 22 | D123: 14948 | E123: 23 | F123: 14954 | K123: 0 | L123: 122
A124: 11 | B124: 15049 | C124: 22 | D124: 15059 | E124: 23 | F124: 15064 | K124: 0 | L124: 122
A125: 22 | B125: 15157 | C125: 24 | D125: 15166 | E125: 14 | F125: 15177 | K125: 0 | L125: 221
A126: 11 | B126: 15270 | C126: 22 | D126: 15280 | E126: 23 | F126: 15284 | K126: 0 | L126: 122
A127: 22 | B127: 15402 | C127: 24 | D127: 15409 | E127: 23 | F127: 15414 | K127: 0 | L127: 222
A128: 22 | B128: 15510 | C128: 13 | D128: 15524 | E128: 23 | F128: 15543 | K128: 0 | L128: 212
A129: 22 | B129: 15641 | C129: 13 | D129: 15651 | E129: 23 | F129: 15664 | K129: 0 | L129: 212
A130: 22 | B130: 15768 | C130: 24 | D130: 15773 | E130: 23 | F130: 15780 | K130: 0 | L130: 222
A131: 22 | B131: 15879 | C131: 24 | D131: 15884 | E131: 23 | F131: 15890 | K131: 0 | L131: 222
A132: 22 | B132: 15986 | C132: 13 | D132: 16001 | E132: 23 | F132: 16017 | K132: 0 | L132: 212
A133: 22 | B133: 16113 | C133: 24 | D133: 16122 | E133: 14 | F133: 16138 | K133: 0 | L133: 221
A134: 11 | B134: 16245 | C134: 22 | D134: 16252 | E134: 23 | F134: 16262 | K134: 0 | L134: 122
A135: 22 | B135: 16373 | C135: 24 | D135: 16378 | E135: 23 | F135: 16386 | K135: 0 | L135: 222
A136: 11 | B136: 16492 | C136: 22 | D136: 16500 | E136: 23 | F136: 16507 | K136: 0 | L136: 122
A137: 22 | B137: 16609 | C137: 24 | D137: 16614 | E137: 23 | F137: 16624 | K137: 0 | L137: 222
A138: 11 | B138: 16793 | C138: 22 | D138: 16801 | E138: 23 | F138: 16807 | K138: 0 | L138: 122
A139: 11 | B139: 16910 | C139: 22 | D139: 16920 | E139: 23 | F139: 16928 | K139: 0 | L139: 122
A140: 22 | B140: 17030 | C140: 24 | D140: 17038 | E140: 23 | F140: 17047 | K140: 0 | L140: 222
A141: 11 | B141: 17150 | C141: 11 | D141: 17153 | E141: 21 | F141: 17163 | K141: 0 | L141: 112
A142: 22 | B142: 17327 | C142: 24 | D142: 17330 | E142: 23 | F142: 17336 | K142: 0 | L142: 222
A143: 22 | B143: 17427 | C143: 13 | D143: 17440 | E143: 23 | F143: 17455 | K143: 0 | L143: 212
A144: 22 | B144: 17565 | C144: 24 | D144: 17583 | E144: 23 | F144: 17596 | K144: 0 | L144: 222
A145: 22 | B145: 17688 | C145: 13 | D145: 17701 | E145: 23 | F145: 17710 | K145: 0 | L145: 212
A146: 22 | B146: 17820 | C146: 24 | D146: 17825 | E146: 23 | F146: 17832 | K146: 0 | L146: 222
A147: 22 | B147: 17950 | C147: 24 | D147: 17955 | E147: 23 | F147: 17961 | K147: 0 | L147: 222
A148: 22 | B148: 18059 | C148: 13 | D148: 18069 | E148: 23 | F148: 18081 | K148: 0 | L148: 212
A149: 22 | B149: 18175 | C149: 24 | D149: 18180 | E149: 23 | F149: 18187 | K149: 0 | L149: 222
A150: 22 | B150: 18301 | C150: 24 | D150: 18306 | E150: 23 | F150: 18312 | K150: 0 | L150: 222
A151: 22 | B151: 18420 | C151: 24 | D151: 18424 | E151: 23 | F151: 18428 | K151: 0 | L151: 222
A152: 11 | B152: 18522 | C152: 11 | D152: 18526 | E152: 21 | F152: 18536 | K152: 0 | L152: 112
A153: 22 | B153: 18737 | C153: 24 | D153: 18741 | E153: 23 | F153: 18763 | K153: 0 | L153: 222
A154: 22 | B154: 18870 | C154: 13 | D154: 18882 | E154: 23 | F154: 18906 | K154: 0 | L154: 212
A155: 22 | B155: 19000 | C155: 13 | D155: 19017 | E155: 23 | F155: 19036 | K155: 0 | L155: 212
A156: 11 | B156: 19146 | C156: 22 | D156: 19155 | E156: 23 | F156: 19164 | K156: 0 | L156: 122
A157: 22 | B157: 19275 | C157: 24 | D157: 19283 | E157: 23 | F157: 19293 | K157: 0 | L157: 222
A158: 11 | B158: 19387 | C158: 11 | D158: 19390 | E158: 21 | F158: 19400 | K158: 0 | L158: 112
A159: 22 | B159: 19565 | C159: 24 | D159: 19569 | E159: 23 | F159: 19573 | K159: 0 | L159: 222
A160: 11 | B160: 19688 | C160: 22 | D160: 19706 | E160: 23 | F160: 19715 | K160: 0 | L160: 122
A161: 11 | B161: 19811 | C161: 11 | D161: 19815 | E161: 21 | F161: 19823 | K161: 0 | L161: 112
A162: 22 | B162: 19973 | C162: 24 | D162: 19976 | E162: 23 | F162: 19982 | K162: 0 | L162: 222
A163: 11 | B163: 20074 | C163: 11 | D163: 20077 | E163: 21 | F163: 20086 | K163: 0 | L163: 112
A164: 22 | B164: 20283 | C164: 24 | D164: 20289 | E164: 14 | F164: 20308 | K164: 0 | L164: 221
A165: 11 | B165: 20404 | C165: 22 | D165: 20414 | E165: 23 | F165: 20422 | K165: 0 | L165: 122
A166: 22 | B166: 20539 | C166: 13 | D166: 20562 | E166: 23 | F166: 20581 | K166: 0 | L166: 212
A167: 11 | B167: 20678 | C167: 22 | D167: 20686 | E167: 23 | F167: 20693 | K167: 0 | L167: 122
A168: 22 | B168: 20792 | C168: 24 | D168: 20809 | E168: 23 | F168: 20815 | K168: 0 | L168: 222
A169: 22 | B169: 20912 | C169: 24 | D169: 20932 | E169: 23 | F169: 20940 | K169: 0 | L169: 222
A170: 11 | B170: 21045 | C170: 22 | D170: 21053 | E170: 23 | F170: 21065 | K170: 0 | L170: 122
A171: 11 | B171: 21177 | C171: 22 | D171: 21187 | E171: 23 | F171: 21194 | K171: 0 | L171: 122
A172: 22 | B172: 21290 | C172: 24 | D172: 21302 | E172: 14 | F172: 21315 | K172: 0 | L172: 221
A173: 11 | B173: 21407 | C173: 22 | D173: 21421 | E173: 23 | F173: 21428 | K173: 0 | L173: 122
A174: 11 | B174: 21542 | C174: 22 | D174: 21555 | E174: 23 | F174: 21562 | K174: 0 | L174: 122
A175: 11 | B175: 21662 | C175: 22 | D175: 21674 | E175: 23 | F175: 21679 | K175: 0 | L175: 122
A176: 11 | B176: 21785 | C176: 22 | D176: 21794 | E176: 23 | F176: 21806 | K176: 0 | L176: 122
A177: 22 | B177: 21903 | C177: 24 | D177: 21919 | E177: 14 | F177: 21936 | K177: 0 | L177: 221
A178: 22 | B178: 22045 | C178: 24 | D178: 22053 | E178: 23 | F178: 22060 | K178: 0 | L178: 222
A179: 11 | B179: 22168 | C179: 22 | D179: 22181 | E179: 23 | F179: 22188 | K179: 0 | L179: 122
A180: 22 | B180: 22288 | C180: 13 | D180: 22297 | E180: 14 | F180: 22302 | K180: 0 | L180: 211
A181: 11 | B181: 22418 | C181: 22 | D181: 22427 | E181: 23 | F181: 22434 | K181: 0 | L181: 122
A182: 11 | B182: 22530 | C182: 22 | D182: 22540 | E182: 23 | F182: 22544 | K182: 0 | L182: 122
A183: 11 | B183: 22654 | C183: 22 | D183: 22682 | E183: 23 | F183: 22690 | K183: 0 | L183: 122
A184: 11 | B184: 22786 | C184: 22 | D184: 22795 | E184: 23 | F184: 22800 | K184: 0 | L184: 122
A185: 11 | B185: 22898 | C185: 22 | D185: 22908 | E185: 23 | F185: 22914 | K185: 0 | L185: 122
A186: 11 | B186: 23008 | C186: 22 | D186: 23016 | E186: 23 | F186: 23023 | K186: 0 | L186: 122
A187: 22 | B187: 23137 | C187: 13 | D187: 23157 | E187: 23 | F187: 23171 | K187: 0 | L187: 212

Sheet !MB0990I.sha
A1: Report for:!MB0990I.sha
A2: Date: | B2: <date>
A3: Hen: | B3: <hen> | F3: Correct Sequence | G3: =Start!J2 -> 112 | P3: Total Sequences in Data | Q3: =4994-COUNTBLANK(L7:L5000) -> 167 | V3: Total Sequences in Block Data | W3: =COUNTA(L7:L34) -> 28 | AA3: Total Sequences in Block Data | AB3: =COUNTA(L35:L62) -> 28 | AF3: Total Sequences in Block Data | AG3: =COUNTA(L63:L89) -> 27 | AK3: Total Sequences in Block Data | AL3: =COUNTA(L90:L117) -> 28 | AP3: Total Sequences in Block Data | AQ3: =COUNTA(L118:L145) -> 28 | AU3: Total Sequences in Block Data | AV3: =COUNTA(L146:L173) -> 28
P4: Total Sequences in Summary | Q4: =SUM(O7:O14) -> 167 | V4: Total Sequences in Block Summary | W4: =SUM(U7:U14) -> 28 | AA4: Total Sequences in Block Summary | AB4: =SUM(Z7:Z14) -> 28 | AF4: Total Sequences in Block Summary | AG4: =SUM(AE7:AE14) -> 27 | AK4: Total Sequences in Block Summary | AL4: =SUM(AJ7:AJ14) -> 28 | AP4: Total Sequences in Block Summary | AQ4: =SUM(AO7:AO14) -> 28 | AU4: Total Sequences in Block Summary | AV4: =SUM(AT7:AT14) -> 28
T5: Block 1 | Y5: Block 2 | AD5: Block 3 | AI5: Block 4 | AN5: Block 5 | AS5: Block 6
A6: Sequence Component 1 | B6: Time 1 | C6: Sequence Component 2 | D6: Time 2 | E6: Sequence Component 3 | F6: Time 3 | G6: Sequence Component 4 | H6: Time 4 | I6: Sequence Component 5 | J6: Time 5 | K6: Correct? 0=No 1=Yes | L6: Sequence | N6: Frequency | P6: Relative Frequency | Q6: Variability | T6: Frequency | V6: Relative Frequency | W6: Variability | Y6: Frequency | AA6: Relative Frequency | AB6: Variability | AD6: Frequency | AF6: Relative Frequency | AG6: Variability | AI6: Frequency | AK6: Relative Frequency | AL6: Variability | AN6: Frequency | AP6: Relative Frequency | AQ6: Variability | AS6: Frequency | AU6: Relative Frequency | AV6: Variability
A7: 22 | B7: 132 | C7: 24 | D7: 140 | E7: 23 | F7: 160 | K7: 0 | L7: 222 | N7: 111 | O7: =COUNTIF($L$7:$L$500,N7) -> 5 | P7: =O7/$Q$4 -> 0.02994011976 | Q7: =IF(P7=0,0,(P7*((LOG(P7))/LOG(2)))) -> -0.1515501856 | T7: =N7 -> 111 | U7: =COUNTIF(L7:L34,T7) -> 1 | V7: =U7/(W4-U8) -> 0.03571428571 | W7: =IF(V7=0,0,(V7*((LOG(V7))/LOG(2)))) -> -0.1716912472 | Y7: =N7 -> 111 | Z7: =COUNTIF(L35:L62,Y7) -> 0 | AA7: =Z7/(AB4-Z8) -> 0 | AB7: =IF(AA7=0,0,(AA7*((LOG(AA7))/LOG(2)))) -> 0 | AD7: =N7 -> 111 | AE7: =COUNTIF(L63:L89,AD7) -> 2 | AF7: =AE7/(AG4-AE8) -> 0.09090909091 | AG7: =IF(AF7=0,0,(AF7*((LOG(AF7))/LOG(2)))) -> -0.3144937835 | AI7: =N7 -> 111 | AJ7: =COUNTIF(L90:L117,AI7) -> 0 | AK7: =AJ7/(AL4-AJ8) -> 0 | AL7: =IF(AK7=0,0,(AK7*((LOG(AK7))/LOG(2)))) -> 0 | AN7: =N7 -> 111 | AO7: =COUNTIF(L118:L145,AN7) -> 1 | AP7: =AO7/(AQ4-AO8) -> 0.04166666667 | AQ7: =IF(AP7=0,0,(AP7*((LOG(AP7))/LOG(2)))) -> -0.1910401042 | AS7: =N7 -> 111 | AT7: =COUNTIF(L146:L173,AS7) -> 1 | AU7: =AT7/(AV4-AT8) -> 0.04545454545 | AV7: =IF(AU7=0,0,(AU7*((LOG(AU7))/LOG(2)))) -> -0.2027014372
A8: 22 | B8: 278 | C8: 24 | D8: 282 | E8: 23 | F8: 291 | K8: 0 | L8: 222 | N8: 112 | O8: =COUNTIF($L$7:$L$500,N8) -> 24 | P8: =O8/$Q$4 -> 0.1437125749 | Q8: =IF(P8=0,0,(P8*((LOG(P8))/LOG(2)))) -> -0.4022143892 | T8: =N8 -> 112 | U8: =COUNTIF(L7:L34,T8) -> 0 | Y8: =N8 -> 112 | Z8: =COUNTIF(L35:L62,Y8) -> 3 | AD8: =N8 -> 112 | AE8: =COUNTIF(L63:L89,AD8) -> 5 | AI8: =N8 -> 112 | AJ8: =COUNTIF(L90:L117,AI8) -> 6 | AN8: =N8 -> 112 | AO8: =COUNTIF(L118:L145,AN8) -> 4 | AS8: =N8 -> 112 | AT8: =COUNTIF(L146:L173,AS8) -> 6
A9: 22 | B9: 433 | C9: 24 | D9: 443 | E9: 14 | F9: 458 | K9: 0 | L9: 221 | N9: 121 | O9: =COUNTIF($L$7:$L$500,N9) -> 4 | P9: =O9/$Q$4 -> 0.02395209581 | Q9: =IF(P9=0,0,(P9*((LOG(P9))/LOG(2)))) -> -0.128951001 | T9: =N9 -> 121 | U9: =COUNTIF(L7:L34,T9) -> 3 | V9: =U9/(W4-U8) -> 0.1071428571 | W9: =IF(V9=0,0,(V9*((LOG(V9))/LOG(2)))) -> -0.3452563309 | Y9: =N9 -> 121 | Z9: =COUNTIF(L35:L62,Y9) -> 0 | AA9: =Z9/(AB4-Z8) -> 0 | AB9: =IF(AA9=0,0,(AA9*((LOG(AA9))/LOG(2)))) -> 0 | AD9: =N9 -> 121 | AE9: =COUNTIF(L63:L89,AD9) -> 1 | AF9: =AE9/(AG4-AE8) -> 0.04545454545 | AG9: =IF(AF9=0,0,(AF9*((LOG(AF9))/LOG(2)))) -> -0.2027014372 | AI9: =N9 -> 121 | AJ9: =COUNTIF(L90:L117,AI9) -> 0 | AK9: =AJ9/(AL4-AJ8) -> 0 | AL9: =IF(AK9=0,0,(AK9*((LOG(AK9))/LOG(2)))) -> 0 | AN9: =N9 -> 121 | AO9: =COUNTIF(L118:L145,AN9) -> 0 | AP9: =AO9/(AQ4-AO8) -> 0 | AQ9: =IF(AP9=0,0,(AP9*((LOG(AP9))/LOG(2)))) -> 0 | AS9: =N9 -> 121 | AT9: =COUNTIF(L146:L173,AS9) -> 0 | AU9: =AT9/(AV4-AT8) -> 0 | AV9: =IF(AU9=0,0,(AU9*((LOG(AU9))/LOG(2)))) -> 0
A10: 22 | B10: 571 | C10: 13 | D10: 585 | E10: 23 | F10: 597 | K10: 0 | L10: 212 | N10: 122 | O10: =COUNTIF($L$7:$L$500,N10) -> 42 | P10: =O10/$Q$4 -> 0.251497006 | Q10: =IF(P10=0,0,(P10*((LOG(P10))/LOG(2)))) -> -0.5008278355 | T10: =N10 -> 122 | U10: =COUNTIF(L7:L34,T10) -> 10 | V10: =U10/(W4-U8) -> 0.3571428571 | W10: =IF(V10=0,0,(V10*((LOG(V10))/LOG(2)))) -> -0.5305095811 | Y10: =N10 -> 122 | Z10: =COUNTIF(L35:L62,Y10) -> 8 | AA10: =Z10/(AB4-Z8) -> 0.32 | AB10: =IF(AA10=0,0,(AA10*((LOG(AA10))/LOG(2)))) -> -0.5260339807 | AD10: =N10 -> 122 | AE10: =COUNTIF(L63:L89,AD10) -> 5 | AF10: =AE10/(AG4-AE8) -> 0.2272727273 | AG10: =IF(AF10=0,0,(AF10*((LOG(AF10))/LOG(2)))) -> -0.4857962554 | AI10: =N10 -> 122 | AJ10: =COUNTIF(L90:L117,AI10) -> 4 | AK10: =AJ10/(AL4-AJ8) -> 0.1818181818 | AL10: =IF(AK10=0,0,(AK10*((LOG(AK10))/LOG(2)))) -> -0.4471693852 | AN10: =N10 -> 122 | AO10: =COUNTIF(L118:L145,AN10) -> 8 | AP10: =AO10/(AQ4-AO8) -> 0.3333333333 | AQ10: =IF(AP10=0,0,(AP10*((LOG(AP10))/LOG(2)))) -> -0.5283208336 | AS10: =N10 -> 122 | AT10: =COUNTIF(L146:L173,AS10) -> 7 | AU10: =AT10/(AV4-AT8) -> 0.3181818182 | AV10: =IF(AU10=0,0,(AU10*((LOG(AU10))/LOG(2)))) -> -0.5256607671
A11: 11 | B11: 692 | C11: 22 | D11: 706 | E11: 23 | F11: 717 | K11: 0 | L11: 122 | N11: 211 | O11: =COUNTIF($L$7:$L$500,N11) -> 13 | P11: =O11/$Q$4 -> 0.07784431138 | Q11: =IF(P11=0,0,(P11*((LOG(P11))/LOG(2)))) -> -0.2867211944 | T11: =N11 -> 211 | U11: =COUNTIF(L7:L34,T11) -> 2 | V11: =U11/(W4-U8) -> 0.07142857143 | W11: =IF(V11=0,0,(V11*((LOG(V11))/LOG(2)))) -> -0.271953923 | Y11: =N11 -> 211 | Z11: =COUNTIF(L35:L62,Y11) -> 2 | AA11: =Z11/(AB4-Z8) -> 0.08 | AB11: =IF(AA11=0,0,(AA11*((LOG(AA11))/LOG(2)))) -> -0.2915084952 | AD11: =N11 -> 211 | AE11: =COUNTIF(L63:L89,AD11) -> 3 | AF11: =AE11/(AG4-AE8) -> 0.1363636364 | AG11: =IF(AF11=0,0,(AF11*((LOG(AF11))/LOG(2)))) -> -0.3919730615 | AI11: =N11 -> 211 | AJ11: =COUNTIF(L90:L117,AI11) -> 0 | AK11: =AJ11/(AL4-AJ8) -> 0 | AL11: =IF(AK11=0,0,(AK11*((LOG(AK11))/LOG(2)))) -> 0 | AN11: =N11 -> 211 | AO11: =COUNTIF(L118:L145,AN11) -> 2 | AP11: =AO11/(AQ4-AO8) -> 0.08333333333 | AQ11: =IF(AP11=0,0,(AP11*((LOG(AP11))/LOG(2)))) -> -0.2987468751 | AS11: =N11 -> 211 | AT11: =COUNTIF(L146:L173,AS11) -> 4 | AU11: =AT11/(AV4-AT8) -> 0.1818181818 | AV11: =IF(AU11=0,0,(AU11*((LOG(AU11))/LOG(2)))) -> -0.4471693852
A12: 11 | B12: 851 | C12: 22 | D12: 864 | E12: 14 | F12: 885 | K12: 0 | L12: 121 | N12: 212 | O12: =COUNTIF($L$7:$L$500,N12) -> 29 | P12: =O12/$Q$4 -> 0.1736526946 | Q12: =IF(P12=0,0,(P12*((LOG(P12))/LOG(2)))) -> -0.4385986564 | T12: =N12 -> 212 | U12: =COUNTIF(L7:L34,T12) -> 3 | V12: =U12/(W4-U8) -> 0.1071428571 | W12: =IF(V12=0,0,(V12*((LOG(V12))/LOG(2)))) -> -0.3452563309 | Y12: =N12 -> 212 | Z12: =COUNTIF(L35:L62,Y12) -> 8 | AA12: =Z12/(AB4-Z8) -> 0.32 | AB12: =IF(AA12=0,0,(AA12*((LOG(AA12))/LOG(2)))) -> -0.5260339807 | AD12: =N12 -> 212 | AE12: =COUNTIF(L63:L89,AD12) -> 2 | AF12: =AE12/(AG4-AE8) -> 0.09090909091 | AG12: =IF(AF12=0,0,(AF12*((LOG(AF12))/LOG(2)))) -> -0.3144937835 | AI12: =N12 -> 212 | AJ12: =COUNTIF(L90:L117,AI12) -> 7 | AK12: =AJ12/(AL4-AJ8) -> 0.3181818182 | AL12: =IF(AK12=0,0,(AK12*((LOG(AK12))/LOG(2)))) -> -0.5256607671 | AN12: =N12 -> 212 | AO12: =COUNTIF(L118:L145,AN12) -> 6 | AP12: =AO12/(AQ4-AO8) -> 0.25 | AQ12: =IF(AP12=0,0,(AP12*((LOG(AP12))/LOG(2)))) -> -0.5 | AS12: =N12 -> 212 | AT12: =COUNTIF(L146:L173,AS12) -> 3 | AU12: =AT12/(AV4-AT8) -> 0.1363636364 | AV12: =IF(AU12=0,0,(AU12*((LOG(AU12))/LOG(2)))) -> -0.3919730615
A13: 22 | B13: 984 | C13: 24 | D13: 1001 | E13: 23 | F13: 1014 | K13: 0 | L13: 222 | N13: 221 | O13: =COUNTIF($L$7:$L$500,N13) -> 6 | P13: =O13/$Q$4 -> 0.03592814371 | Q13: =IF(P13=0,0,(P13*((LOG(P13))/LOG(2)))) -> -0.1724098847 | T13: =N13 -> 221 | U13: =COUNTIF(L7:L34,T13) -> 1 | V13: =U13/(W4-U8) -> 0.03571428571 | W13: =IF(V13=0,0,(V13*((LOG(V13))/LOG(2)))) -> -0.1716912472 | Y13: =N13 -> 221 | Z13: =COUNTIF(L35:L62,Y13) -> 2 | AA13: =Z13/(AB4-Z8) -> 0.08 | AB13: =IF(AA13=0,0,(AA13*((LOG(AA13))/LOG(2)))) -> -0.2915084952 | AD13: =N13 -> 221 | AE13: =COUNTIF(L63:L89,AD13) -> 0 | AF13: =AE13/(AG4-AE8) -> 0 | AG13: =IF(AF13=0,0,(AF13*((LOG(AF13))/LOG(2)))) -> 0 | AI13: =N13 -> 221 | AJ13: =COUNTIF(L90:L117,AI13) -> 3 | AK13: =AJ13/(AL4-AJ8) -> 0.1363636364 | AL13: =IF(AK13=0,0,(AK13*((LOG(AK13))/LOG(2)))) -> -0.3919730615 | AN13: =N13 -> 221 | AO13: =COUNTIF(L118:L145,AN13) -> 0 | AP13: =AO13/(AQ4-AO8) -> 0 | AQ13: =IF(AP13=0,0,(AP13*((LOG(AP13))/LOG(2)))) -> 0 | AS13: =N13 -> 221 | AT13: =COUNTIF(L146:L173,AS13) -> 0 | AU13: =AT13/(AV4-AT8) -> 0 | AV13: =IF(AU13=0,0,(AU13*((LOG(AU13))/LOG(2)))) -> 0
A14: 22 | B14: 1113 | C14: 24 | D14: 1120 | E14: 23 | F14: 1133 | K14: 0 | L14: 222 | N14: 222 | O14: =COUNTIF($L$7:$L$500,N14) -> 44 | P14: =O14/$Q$4 -> 0.2634730539 | Q14: =IF(P14=0,0,(P14*((LOG(P14))/LOG(2)))) -> -0.5069939979 | T14: =N14 -> 222 | U14: =COUNTIF(L7:L34,T14) -> 8 | V14: =U14/(W4-U8) -> 0.2857142857 | W14: =IF(V14=0,0,(V14*((LOG(V14))/LOG(2)))) -> -0.5163871206 | Y14: =N14 -> 222 | Z14: =COUNTIF(L35:L62,Y14) -> 5 | AA14: =Z14/(AB4-Z8) -> 0.2 | AB14: =IF(AA14=0,0,(AA14*((LOG(AA14))/LOG(2)))) -> -0.464385619 | AD14: =N14 -> 222 | AE14: =COUNTIF(L63:L89,AD14) -> 9 | AF14: =AE14/(AG4-AE8) -> 0.4090909091 | AG14: =IF(AF14=0,0,(AF14*((LOG(AF14))/LOG(2)))) -> -0.5275254343 | AI14: =N14 -> 222 | AJ14: =COUNTIF(L90:L117,AI14) -> 8 | AK14: =AJ14/(AL4-AJ8) -> 0.3636363636 | AL14: =IF(AK14=0,0,(AK14*((LOG(AK14))/LOG(2)))) -> -0.5307024068 | AN14: =N14 -> 222 | AO14: =COUNTIF(L118:L145,AN14) -> 7 | AP14: =AO14/(AQ4-AO8) -> 0.2916666667 | AQ14: =IF(AP14=0,0,(AP14*((LOG(AP14))/LOG(2)))) -> -0.5184688771 | AS14: =N14 -> 222 | AT14: =COUNTIF(L146:L173,AS14) -> 7 | AU14: =AT14/(AV4-AT8) -> 0.3181818182 | AV14: =IF(AU14=0,0,(AU14*((LOG(AU14))/LOG(2)))) -> -0.5256607671
A15: 11 | B15: 1229 | C15: 11 | D15: 1233 | E15: 12 | F15: 1241 | K15: 0 | L15: 111 | P15: =SUM(P7:P14) -> 1 | Q15: =-SUM(Q7:Q14) -> 2.588267145 | V15: =SUM(V7:V14) -> 1 | W15: =-SUM(W7:W14) -> 2.352745781 | AA15: =SUM(AA7:AA14) -> 1 | AB15: =-SUM(AB7:AB14) -> 2.099470571 | AF15: =SUM(AF7:AF14) -> 1 | AG15: =-SUM(AG7:AG14) -> 2.236983755 | AK15: =SUM(AK7:AK14) -> 1 | AL15: =-SUM(AL7:AL14) -> 1.895505621 | AP15: =SUM(AP7:AP14) -> 1 | AQ15: =-SUM(AQ7:AQ14) -> 2.03657669 | AU15: =SUM(AU7:AU14) -> 1 | AV15: =-SUM(AV7:AV14) -> 2.093165418
A16: 22 | B16: 1433 | C16: 24 | D16: 1438 | E16: 23 | F16: 1445 | K16: 0 | L16: 222 | P16: U= | Q16: =Q15/(LOG(Q4)/LOG(2)) -> 0.3505377575 | V16: U1= | W16: =W15/(LOG(W4)/LOG(2)) -> 0.489405467 | AA16: U2= | AB16: =AB15/(LOG(AB4)/LOG(2)) -> 0.4367205261 | AF16: U3= | AG16: =AG15/(LOG(AG4)/LOG(2)) -> 0.4704598699 | AK16: U4= | AL16: =AL15/(LOG(AL4)/LOG(2)) -> 0.3942928391 | AP16: U5= | AQ16: =AQ15/(LOG(AQ4)/LOG(2)) -> 0.4236376808 | AU16: U6= | AV16: =AV15/(LOG(AV4)/LOG(2)) -> 0.4354089623
A17: 11 | B17: 1553 | C17: 22 | D17: 1562 | E17: 23 | F17: 1567 | K17: 0 | L17: 122
A18: 11 | B18: 1663 | C18: 22 | D18: 1676 | E18: 14 | F18: 1700 | K18: 0 | L18: 121
A19: 22 | B19: 1796 | C19: 13 | D19: 1808 | E19: 14 | F19: 1813 | K19: 0 | L19: 211 | N19: Total Target Seq
A20: 11 | B20: 1909 | C20: 22 | D20: 1926 | E20: 23 | F20: 1936 | K20: 0 | L20: 122 | N20: =COUNTIF(L7:L173,G3) -> 24 | P20: 28 | Q20: 28 | R20: 27 | S20: 28 | T20: 28 | U20: 28
A21: 11 | B21: 2060 | C21: 22 | D21: 2072 | E21: 23 | F21: 2078 | K21: 0 | L21: 122 | P21: % of reinforcement given in 6 equal intervals based on number of trials
A22: 11 | B22: 2190 | C22: 22 | D22: 2203 | E22: 23 | F22: 2209 | K22: 0 | L22: 122 | P22: %_1 | Q22: %_2 | R22: %_3 | S22: %_4 | T22: %_5 | U22: %_6
A23: 11 | B23: 2307 | C23: 22 | D23: 2317 | E23: 23 | F23: 2322 | K23: 0 | L23: 122 | O23: target sequence | P23: =$G$3 -> 112 | Q23: =$G$3 -> 112 | R23: =$G$3 -> 112 | S23: =$G$3 -> 112 | T23: =$G$3 -> 112 | U23: =$G$3 -> 112
A24: 11 | B24: 2421 | C24: 22 | D24: 2434 | E24: 23 | F24: 2448 | K24: 0 | L24: 122 | O24: total reinforcement | P24: =U8 -> 0 | Q24: =Z8 -> 3 | R24: =AE8 -> 5 | S24: =AJ8 -> 6 | T24: =AO8 -> 4 | U24: =AT8 -> 6
A25: 22 | B25: 2564 | C25: 13 | D25: 2582 | E25: 23 | F25: 2598 | K25: 0 | L25: 212 | O25: % target
A26: 22 | B26: 2719 | C26: 24 | D26: 2727 | E26: 23 | F26: 2736 | K26: 0 | L26: 222 | O26: CCRF
A27: 22 | B27: 2868 | C27: 24 | D27: 2873 | E27: 23 | F27: 2882 | K27: 0 | L27: 222 | O27: % CCRf
A28: 11 | B28: 2998 | C28: 22 | D28: 3006 | E28: 23 | F28: 3014 | K28: 0 | L28: 122 | O28: average response rate | P28: =F34/P20 -> 135.3928571 | Q28: =(F62-F34)/Q20 -> 139.4285714 | R28: =(F89-F62)/R20 -> 132.8888889 | S28: =(F117-F89)/S20 -> 130.3214286 | T28: =(F145-F117)/T20 -> 135.3214286 | U28: =(F173-F145)/U20 -> 186.5714286
A29: 11 | B29: 3132 | C29: 22 | D29: 3143 | E29: 23 | F29: 3147 | K29: 0 | L29: 122
A30: 11 | B30: 3245 | C30: 22 | D30: 3253 | E30: 14 | F30: 3278 | K30: 0 | L30: 121
A31: 22 | B31: 3377 | C31: 13 | D31: 3389 | E31: 14 | F31: 3394 | K31: 0 | L31: 211
A32: 22 | B32: 3516 | C32: 24 | D32: 3534 | E32: 23 | F32: 3542 | K32: 0 | L32: 222
A33: 22 | B33: 3638 | C33: 13 | D33: 3648 | E33: 23 | F33: 3661 | K33: 0 | L33: 212
A34: 11 | B34: 3771 | C34: 22 | D34: 3784 | E34: 23 | F34: 3791 | K34: 0 | L34: 122
A35: 22 | B35: 3915 | C35: 24 | D35: 3919 | E35: 23 | F35: 3926 | K35: 0 | L35: 222
A36: 22 | B36: 4046 | C36: 13 | D36: 4071 | E36: 23 | F36: 4086 | K36: 0 | L36: 212
A37: 22 | B37: 4186 | C37: 13 | D37: 4196 | E37: 23 | F37: 4203 | K37: 0 | L37: 212
A38: 22 | B38: 4297 | C38: 13 | D38: 4310 | E38: 14 | F38: 4313 | K38: 0 | L38: 211
A39: 22 | B39: 4408 | C39: 13 | D39: 4424 | E39: 23 | F39: 4436 | K39: 0 | L39: 212
A40: 22 | B40: 4607 | C40: 24 | D40: 4636 | E40: 23 | F40: 4643 | K40: 0 | L40: 222
A41: 11 | B41: 4742 | C41: 22 | D41: 4752 | E41: 23 | F41: 4757 | K41: 0 | L41: 122
A42: 22 | B42: 4902 | C42: 13 | D42: 4916 | E42: 23 | F42: 4927 | K42: 0 | L42: 212
A43: 22 | B43: 5023 | C43: 13 | D43: 5034 | E43: 23 | F43: 5045 | K43: 0 | L43: 212
A44: 11 | B44: 5140 | C44: 22 | D44: 5150 | E44: 23 | F44: 5160 | K44: 0 | L44: 122
A45: 22 | B45: 5267 | C45: 13 | D45: 5281 | E45: 23 | F45: 5293 | K45: 0 | L45: 212
A46: 22 | B46: 5417 | C46: 24 | D46: 5431 | E46: 14 | F46: 5445 | K46: 0 | L46: 221
A47: 11 | B47: 5547 | C47: 22 | D47: 5556 | E47: 23 | F47: 5562 | K47: 0 | L47: 122
A48: 11 | B48: 5694 | C48: 11 | D48: 5700 | E48: 21 | F48: 5708 | K48: 0 | L48: 112
A49: 22 | B49: 5974 | C49: 24 | D49: 5994 | E49: 23 | F49: 5999 | K49: 0 | L49: 222
A50: 11 | B50: 6098 | C50: 22 | D50: 6107 | E50: 23 | F50: 6113 | K50: 0 | L50: 122
A51: 22 | B51: 6214 | C51: 13 | D51: 6230 | E51: 23 | F51: 6239 | K51: 0 | L51: 212
A52: 22 | B52: 6333 | C52: 13 | D52: 6346 | E52: 23 | F52: 6357 | K52: 0 | L52: 212
A53: 11 | B53: 6462 | C53: 22 | D53: 6470 | E53: 23 | F53: 6475 | K53: 0 | L53: 122
A54: 22 | B54: 6578 | C54: 24 | D54: 6589 | E54: 14 | F54: 6604 | K54: 0 | L54: 221
A55: 22 | B55: 6723 | C55: 24 | D55: 6729 | E55: 23 | F55: 6737 | K55: 0 | L55: 222
A56: 11 | B56: 6834 | C56: 22 | D56: 6842 | E56: 23 | F56: 6846 | K56: 0 | L56: 122
A57: 11 | B57: 6952 | C57: 22 | D57: 6964 | E57: 23 | F57: 6970 | K57: 0 | L57: 122
A58: 22 | B58: 7066 | C58: 13 | D58: 7078 | E58: 14 | F58: 7085 | K58: 0 | L58: 211
A59: 11 | B59: 7187 | C59: 11 | D59: 7191 | E59: 21 | F59: 7203 | K59: 0 | L59: 112
A60: 22 | B60: 7440 | C60: 24 | D60: 7470 | E60: 23 | F60: 7477 | K60: 0 | L60: 222
A61: 11 | B61: 7576 | C61: 22 | D61: 7584 | E61: 23 | F61: 7589 | K61: 0 | L61: 122
A62: 11 | B62: 7683 | C62: 11 | D62: 7686 | E62: 21 | F62: 7695 | K62: 0 | L62: 112
A63: 22 | B63: 7856 | C63: 24 | D63: 7860 | E63: 23 | F63: 7879 | K63: 0 | L63: 222
A64: 11 | B64: 7975 | C64: 11 | D64: 7978 | E64: 21 | F64: 7989 | K64: 0 | L64: 112
A65: 22 | B65: 8161 | C65: 24 | D65: 8167 | E65: 23 | F65: 8174 | K65: 0 | L65: 222
A66: 22 | B66: 8275 | C66: 24 | D66: 8279 | E66: 23 | F66: 8286 | K66: 0 | L66: 222
A67: 11 | B67: 8381 | C67: 11 | D67: 8387 | E67: 21 | F67: 8399 | K67: 0 | L67: 112
A68: 22 | B68: 8538 | C68: 24 | D68: 8543 | E68: 23 | F68: 8572 | K68: 0 | L68: 222
A69: 11 | B69: 8664 | C69: 11 | D69: 8668 | E69: 21 | F69: 8679 | K69: 0 | L69: 112
A70: 22 | B70: 8813 | C70: 24 | D70: 8818 | E70: 23 | F70: 8826 | K70: 0 | L70: 222
A71: 22 | B71: 8918 | C71: 13 | D71: 8929 | E71: 14 | F71: 8934 | K71: 0 | L71: 211
A72: 22 | B72: 9045 | C72: 24 | D72: 9052 | E72: 23 | F72: 9059 | K72: 0 | L72: 222
A73: 11 | B73: 9152 | C73: 11 | D73: 9158 | E73: 21 | F73: 9176 | K73: 0 | L73: 112
A74: 22 | B74: 9405 | C74: 13 | D74: 9426 | E74: 14 | F74: 9435 | K74: 0 | L74: 211
A75: 22 | B75: 9531 | C75: 13 | D75: 9546 | E75: 23 | F75: 9561 | K75: 0 | L75: 212
A76: 22 | B76: 9660 | C76: 24 | D76: 9665 | E76: 23 | F76: 9672 | K76: 0 | L76: 222
A77: 22 | B77: 9765 | C77: 13 | D77: 9778 | E77: 23 | F77: 9796 | K77: 0 | L77: 212
A78: 11 | B78: 9891 | C78: 22 | D78: 9910 | E78: 23 | F78: 9919 | K78: 0 | L78: 122
A79: 11 | B79: 10013 | C79: 11 | D79: 10017 | E79: 21 | F79: 10026 | K79: 0 | L79: 112
A80: 22 | B80: 10169 | C80: 24 | D80: 10175 | E80: 23 | F80: 10182 | K80: 0 | L80: 222
A81: 11 | B81: 10274 | C81: 11 | D81: 10278 | E81: 12 | F81: 10283 | K81: 0 | L81: 111
A82: 11 | B82: 10376 | C82: 11 | D82: 10380 | E82: 12 | F82: 10384 | K82: 0 | L82: 111
A83: 11 | B83: 10494 | C83: 22 | D83: 10503 | E83: 14 | F83: 10517 | K83: 0 | L83: 121
A84: 11 | B84: 10612 | C84: 22 | D84: 10621 | E84: 23 | F84: 10625 | K84: 0 | L84: 122
A85: 11 | B85: 10719 | C85: 22 | D85: 10728 | E85: 23 | F85: 10733 | K85: 0 | L85: 122
A86: 22 | B86: 10834 | C86: 24 | D86: 10839 | E86: 23 | F86: 10850 | K86: 0 | L86: 222
A87: 22 | B87: 10946 | C87: 13 | D87: 10957 | E87: 14 | F87: 10964 | K87: 0 | L87: 211
A88: 11 | B88: 11153 | C88: 22 | D88: 11163 | E88: 23 | F88: 11170 | K88: 0 | L88: 122
A89: 11 | B89: 11263 | C89: 22 | D89: 11276 | E89: 23 | F89: 11283 | K89: 0 | L89: 122
A90: 11 | B90: 11394 | C90: 11 | D90: 11403 | E90: 21 | F90: 11414 | K90: 0 | L90: 112
A91: 22 | B91: 11538 | C91: 24 | D91: 11544 | E91: 14 | F91: 11559 | K91: 0 | L91: 221
A92: 22 | B92: 11659 | C92: 24 | D92: 11662 | E92: 23 | F92: 11668 | K92: 0 | L92: 222
A93: 22 | B93: 11765 | C93: 24 | D93: 11776 | E93: 14 | F93: 11792 | K93: 0 | L93: 221
A94: 22 | B94: 11891 | C94: 13 | D94: 11904 | E94: 23 | F94: 11929 | K94: 0 | L94: 212
A95: 22 | B95: 12024 | C95: 13 | D95: 12035 | E95: 23 | F95: 12050 | K95: 0 | L95: 212
A96: 22 | B96: 12142 | C96: 13 | D96: 12155 | E96: 23 | F96: 12167 | K96: 0 | L96: 212
A97: 22 | B97: 12268 | C97: 13 | D97: 12278 | E97: 23 | F97: 12294 | K97: 0 | L97: 212
A98: 22 | B98: 12393 | C98: 24 | D98: 12396 | E98: 14 | F98: 12408 | K98: 0 | L98: 221
A99: 11 | B99: 12504 | C99: 22 | D99: 12516 | E99: 23 | F99: 12523 | K99: 0 | L99: 122
A100: 11 | B100: 12617 | C100: 11 | D100: 12620 | E100: 21 | F100: 12639 | K100: 0 | L100: 112
A101: 22 | B101: 12798 | C101: 24 | D101: 12804 | E101: 23 | F101: 12810 | K101: 0 | L101: 222
A102: 22 | B102: 12905 | C102: 13 | D102: 12919 | E102: 23 | F102: 12931 | K102: 0 | L102: 212
A103: 11 | B103: 13027 | C103: 22 | D103: 13042 | E103: 23 | F103: 13048 | K103: 0 | L103: 122
A104: 11 | B104: 13142 | C104: 11 | D104: 13147 | E104: 21 | F104: 13168 | K104: 0 | L104: 112
A105: 22 | B105: 13315 | C105: 24 | D105: 13320 | E105: 23 | F105: 13325 | K105: 0 | L105: 222
A106: 22 | B106: 13423 | C106: 13 | D106: 13434 | E106: 23 | F106: 13455 | K106: 0 | L106: 212
A107: 22 | B107: 13550 | C107: 13 | D107: 13567 | E107: 23 | F107: 13588 | K107: 0 | L107: 212
A108: 22 | B108: 13684 | C108: 24 | D108: 13689 | E108: 23 | F108: 13695 | K108: 0 | L108: 222
A109: 22 | B109: 13795 | C109: 24 | D109: 13799 | E109: 23 | F109: 13806 | K109: 0 | L109: 222
A110: 11 | B110: 13948 | C110: 22 | D110: 13964 | E110: 23 | F110: 13972 | K110: 0 | L110: 122
A111: 11 | B111: 14067 | C111: 22 | D111: 14080 | E111: 23 | F111: 14087 | K111: 0 | L111: 122
A112: 11 | B112: 14183 | C112: 11 | D112: 14187 | E112: 21 | F112: 14197 | K112: 0 | L112: 112
A113: 22 | B113: 14338 | C113: 24 | D113: 14343 | E113: 23 | F113: 14346 | K113: 0 | L113: 222
A114: 11 | B114: 14452 | C114: 11 | D114: 14456 | E114: 21 | F114: 14481 | K114: 0 | L114: 112
A115: 22 | B115: 14638 | C115: 24 | D115: 14643 | E115: 23 | F115: 14650 | K115: 0 | L115: 222
A116: 11 | B116: 14744 | C116: 11 | D116: 14750 | E116: 21 | F116: 14763 | K116: 0 | L116: 112
A117: 22 | B117: 14899 | C117: 24 | D117: 14903 | E117: 23 | F117: 14932 | K117: 0 | L117: 222
A118: 22 | B118: 15028 | C118: 13 | D118: 15038 | E118: 23 | F118: 15050 | K118: 0 | L118: 212
A119: 11 | B119: 15144 | C119: 11 | D119: 15149 | E119: 21 | F119: 15172 | K119: 0 | L119: 112
A120: 22 | B120: 15331 | C120: 24 | D120: 15337 | E120: 23 | F120: 15381 | K120: 0 | L120: 222
A121: 11 | B121: 15479 | C121: 22 | D121: 15488 | E121: 23 | F121: 15493 | K121: 0 | L121: 122
A122: 11 | B122: 15680 | C122: 22 | D122: 15688 | E122: 23 | F122: 15698 | K122: 0 | L122: 122
A123: 22 | B123: 15795 | C123: 13 | D123: 15807 | E123: 23 | F123: 15831 | K123: 0 | L123: 212
A124: 22 | B124: 15925 | C124: 13 | D124: 15935 | E124: 14 | F124: 15939 | K124: 0 | L124: 211
A125: 11 | B125: 16049 | C125: 22 | D125: 16072 | E125: 23 | F125: 16083 | K125: 0 | L125: 122
A126: 11 | B126: 16189 | C126: 11 | D126: 16193 | E126: 12 | F126: 16200 | K126: 0 | L126: 111
A127: 11 | B127: 16295 | C127: 22 | D127: 16303 | E127: 23 | F127: 16314 | K127: 0 | L127: 122
A128: 11 | B128: 16408 | C128: 11 | D128: 16411 | E128: 21 | F128: 16421 | K128: 0 | L128: 112
A129: 22 | B129: 16552 | C129: 24 | D129: 16556 | E129: 23 | F129: 16562 | K129: 0 | L129: 222
A130: 11 | B130: 16658 | C130: 22 | D130: 16668 | E130: 23 | F130: 16683 | K130: 0 | L130: 122
A131: 11 | B131: 16788 | C131: 22 | D131: 16801 | E131: 23 | F131: 16808 | K131: 0 | L131: 122
A132: 22 | B132: 16907 | C132: 13 | D132: 16918 | E132: 23 | F132: 16938 | K132: 0 | L132: 212
A133: 11 | B133: 17033 | C133: 22 | D133: 17042 | E133: 23 | F133: 17047 | K133: 0 | L133: 122
A134: 11 | B134: 17143 | C134: 11 | D134: 17148 | E134: 21 | F134: 17160 | K134: 0 | L134: 112
A135: 22 | B135: 17293 | C135: 24 | D135: 17299 | E135: 23 | F135: 17304 | K135: 0 | L135: 222
A136: 22 | B136: 17401 | C136: 13 | D136: 17415 | E136: 14 | F136: 17420 | K136: 0 | L136: 211
A137: 22 | B137: 17518 | C137: 13 | D137: 17528 | E137: 23 | F137: 17538 | K137: 0 | L137: 212
A138: 11 | B138: 17685 | C138: 11 | D138: 17689 | E138: 21 | F138: 17699 | K138: 0 | L138: 112
A139: 22 | B139: 17888 | C139: 24 | D139: 17918 | E139: 23 | F139: 17933 | K139: 0 | L139: 222
A140: 22 | B140: 18040 | C140: 24 | D140: 18045 | E140: 23 | F140: 18052 | K140: 0 | L140: 222
A141: 11 | B141: 18160 | C141: 22 | D141: 18182 | E141: 23 | F141: 18196 | K141: 0 | L141: 122
A142: 22 | B142: 18343 | C142: 13 | D142: 18354 | E142: 23 | F142: 18365 | K142: 0 | L142: 212
A143: 22 | B143: 18470 | C143: 24 | D143: 18474 | E143: 23 | F143: 18479 | K143: 0 | L143: 222
A144: 22 | B144: 18576 | C144: 24 | D144: 18583 | E144: 23 | F144: 18592 | K144: 0 | L144: 222
A145: 22 | B145: 18688 | C145: 13 | D145: 18700 | E145: 23 | F145: 18721 | K145: 0 | L145: 212
A146: 22 | B146: 18818 | C146: 24 | D146: 18849 | E146: 23 | F146: 18858 | K146: 0 | L146: 222
A147: 11 | B147: 18952 | C147: 11 | D147: 18959 | E147: 21 | F147: 18981 | K147: 0 | L147: 112
A148: 22 | B148: 19099 | C148: 24 | D148: 19105 | E148: 23 | F148: 19141 | K148: 0 | L148: 222
A149: 22 | B149: 19236 | C149: 24 | D149: 19255 | E149: 23 | F149: 19262 | K149: 0 | L149: 222
A150: 22 | B150: 19378 | C150: 13 | D150: 19395 | E150: 14 | F150: 19399 | K150: 0 | L150: 211
A151: 11 | B151: 19491 | C151: 11 | D151: 19494 | E151: 21 | F151: 19507 | K151: 0 | L151: 112
A152: 22 | B152: 19665 | C152: 24 | D152: 19668 | E152: 23 | F152: 19693 | K152: 0 | L152: 222
A153: 11 | B153: 19794 | C153: 22 | D153: 19804 | E153: 23 | F153: 19809 | K153: 0 | L153: 122
A154: 11 | B154: 19902 | C154: 11 | D154: 19907 | E154: 21 | F154: 19920 | K154: 0 | L154: 112
A155: 22 | B155: 20065 | C155: 24 | D155: 20083 | E155: 23 | F155: 20087 | K155: 0 | L155: 222
A156: 22 | B156: 20193 | C156: 13 | D156: 20202 | E156: 23 | F156: 20212 | K156: 0 | L156: 212
A157: 22 | B157: 20309 | C157: 13 | D157: 20319 | E157: 23 | F157: 20337 | K157: 0 | L157: 212
A158: 11 | B158: 20434 | C158: 22 | D158: 20449 | E158: 23 | F158: 20458 | K158: 0 | L158: 122
A159: 11 | B159: 20554 | C159: 11 | D159: 20556 | E159: 21 | F159: 20569 | K159: 0 | L159: 112
A160: 22 | B160: 20696 | C160: 24 | D160: 20701 | E160: 23 | F160: 20733 | K160: 0 | L160: 222
A161: 22 | B161: 20834 | C161: 13 | D161: 20844 | E161: 23 | F161: 20860 | K161: 0 | L161: 212
A162: 11 | B162: 20956 | C162: 22 | D162: 20965 | E162: 23 | F162: 20972 | K162: 0 | L162: 122
A163: 11 | B163: 21067 | C163: 11 | D163: 21072 | E163: 21 | F163: 21084 | K163: 0 | L163: 112
A164: 22 | B164: 21200 | C164: 24 | D164: 21205 | E164: 23 | F164: 21232 | K164: 0 | L164: 222
A165: 11 | B165: 21328 | C165: 22 | D165: 21353 | E165: 23 | F165: 21363 | K165: 0 | L165: 122
A166: 22 | B166: 21458 | C166: 13 | D166: 21472 | E166: 14 | F166: 21477 | K166: 0 | L166: 211
A167: 11 | B167: 21580 | C167: 22 | D167: 21588 | E167: 23 | F167: 21593 | K167: 0 | L167: 122
A168: 11 | B168: 21696 | C168: 11 | D168: 21705 | E168: 12 | F168: 21715 | K168: 0 | L168: 111
A169: 22 | B169: 21813 | C169: 13 | D169: 21824 | E169: 14 | F169: 21827 | K169: 0 | L169: 211
A170: 22 | B170: 21919 | C170: 13 | D170: 21928 | E170: 14 | F170: 21932 | K170: 0 | L170: 211
A171: 11 | B171: 23654 | C171: 22 | D171: 23691 | E171: 23 | F171: 23698 | K171: 0 | L171: 122
A172: 11 | B172: 23806 | C172: 22 | D172: 23822 | E172: 23 | F172: 23834 | K172: 0 | L172: 122
A173: 11 | B173: 23929 | C173: 11 | D173: 23932 | E173: 21 | F173: 23945 | K173: 1 | L173: 112

Sheet !MB10A2I.sha
A1: Report for:!MB10A2I.sha
A2: Date: | B2: <date>
A3: Hen: | B3: <hen> | F3: Correct Sequence | G3: =Start!J2 -> 112 | P3: Total Sequences in Data | Q3: =4994-COUNTBLANK(L7:L5000) -> 181 | V3: Total Sequences in Block Data | W3: =COUNTA(L7:L36) -> 30 | AA3: Total Sequences in Block Data | AB3: =COUNTA(L37:L66) -> 30 | AF3: Total Sequences in Block Data | AG3: =COUNTA(L67:L97) -> 31 | AK3: Total Sequences in Block Data | AL3: =COUNTA(L98:L127) -> 30 | AP3: Total Sequences in Block Data | AQ3: =COUNTA(L128:L157) -> 30 | AU3: Total Sequences in Block Data | AV3: =COUNTA(L158:L187) -> 30
P4: Total Sequences in Summary | Q4: =SUM(O7:O14) -> 181 | V4: Total Sequences in Block Summary | W4: =SUM(U7:U14) -> 30 | AA4: Total Sequences in Block Summary | AB4: =SUM(Z7:Z14) -> 30 | AF4: Total Sequences in Block Summary | AG4: =SUM(AE7:AE14) -> 31 | AK4: Total Sequences in Block Summary | AL4: =SUM(AJ7:AJ14) -> 30 | AP4: Total Sequences in Block Summary | AQ4: =SUM(AO7:AO14) -> 30 | AU4: Total Sequences in Block Summary | AV4: =SUM(AT7:AT14) -> 30
T5: Block 1 | Y5: Block 2 | AD5: Block 3 | AI5: Block 4 | AN5: Block 5 | AS5: Block 6
A6: Sequence Component 1 | B6: Time 1 | C6: Sequence Component 2 | D6: Time 2 | E6: Sequence Component 3 | F6: Time 3 | G6: Sequence Component 4 | H6: Time 4 | I6: Sequence Component 5 | J6: Time 5 | K6: Correct? 0=No 1=Yes | L6: Sequence | N6: Frequency | P6: Relative Frequency | Q6: Variability | T6: Frequency | V6: Relative Frequency | W6: Variability | Y6: Frequency | AA6: Relative Frequency | AB6: Variability | AD6: Frequency | AF6: Relative Frequency | AG6: Variability | AI6: Frequency | AK6: Relative Frequency | AL6: Variability | AN6: Frequency | AP6: Relative Frequency | AQ6: Variability | AS6: Frequency | AU6: Relative Frequency | AV6: Variability
A7: 22 | B7: 21 | C7: 13 | D7: 33 | E7: 23 | F7: 43 | K7: 0 | L7: 212 | N7: 111 | O7: =COUNTIF($L$7:$L$500,N7) -> 14 | P7: =O7/$Q$4 -> 0.0773480663 | Q7: =IF(P7=0,0,(P7*((LOG(P7))/LOG(2)))) -> -0.285607036 | T7: =N7 -> 111 | U7: =COUNTIF(L7:L36,T7) -> 0 | V7: =U7/(W4-U8) -> 0 | W7: =IF(V7=0,0,(V7*((LOG(V7))/LOG(2)))) -> 0 | Y7: =N7 -> 111 | Z7: =COUNTIF(L37:L66,Y7) -> 2 | AA7: =Z7/(AB4-Z8) -> 0.07692307692 | AB7: =IF(AA7=0,0,(AA7*((LOG(AA7))/LOG(2)))) -> -0.2846492091 | AD7: =N7 -> 111 | AE7: =COUNTIF(L67:L97,AD7) -> 3 | AF7: =AE7/(AG4-AE8) -> 0.125 | AG7: =IF(AF7=0,0,(AF7*((LOG(AF7))/LOG(2)))) -> -0.375 | AI7: =N7 -> 111 | AJ7: =COUNTIF(L98:L127,AI7) -> 2 | AK7: =AJ7/(AL4-AJ8) -> 0.07692307692 | AL7: =IF(AK7=0,0,(AK7*((LOG(AK7))/LOG(2)))) -> -0.2846492091 | AN7: =N7 -> 111 | AO7: =COUNTIF(L128:L157,AN7) -> 3 | AP7: =AO7/(AQ4-AO8) -> 0.12 | AQ7: =IF(AP7=0,0,(AP7*((LOG(AP7))/LOG(2)))) -> -0.3670672427 | AS7: =N7 -> 111 | AT7: =COUNTIF(L158:L187,AS7) -> 4 | AU7: =AT7/(AV4-AT8) -> 0.1481481481 | AV7: =IF(AU7=0,0,(AU7*((LOG(AU7))/LOG(2)))) -> -0.4081314818
A8: 11 | B8: 191 | C8: 22 | D8: 200 | E8: 23 | F8: 205 | K8: 0 | L8: 122 | N8: 112 | O8: =COUNTIF($L$7:$L$500,N8) -> 28 | P8: =O8/$Q$4 -> 0.1546961326 | Q8: =IF(P8=0,0,(P8*((LOG(P8))/LOG(2)))) -> -0.4165179393 | T8: =N8 -> 112 | U8: =COUNTIF(L7:L36,T8) -> 5 | Y8: =N8 -> 112 | Z8: =COUNTIF(L37:L66,Y8) -> 4 | AD8: =N8 -> 112 | AE8: =COUNTIF(L67:L97,AD8) -> 7 | AI8: =N8 -> 112 | AJ8: =COUNTIF(L98:L127,AI8) -> 4 | AN8: =N8 -> 112 | AO8: =COUNTIF(L128:L157,AN8) -> 5 | AS8: =N8 -> 112 | AT8: =COUNTIF(L158:L187,AS8) -> 3
A9: 22 | B9: 336 | C9: 24 | D9: 362 | E9: 23 | F9: 367 | K9: 0 | L9: 222 | N9: 121 | O9: =COUNTIF($L$7:$L$500,N9) -> 9 | P9: =O9/$Q$4 -> 0.04972375691 | Q9: =IF(P9=0,0,(P9*((LOG(P9))/LOG(2)))) -> -0.2152999335 | T9: =N9 -> 121 | U9: =COUNTIF(L7:L36,T9) -> 2 | V9: =U9/(W4-U8) -> 0.08 | W9: =IF(V9=0,0,(V9*((LOG(V9))/LOG(2)))) -> -0.2915084952 | Y9: =N9 -> 121 | Z9: =COUNTIF(L37:L66,Y9) -> 2 | AA9: =Z9/(AB4-Z8) -> 0.07692307692 | AB9: =IF(AA9=0,0,(AA9*((LOG(AA9))/LOG(2)))) -> -0.2846492091 | AD9: =N9 -> 121 | AE9: =COUNTIF(L67:L97,AD9) -> 2 | AF9: =AE9/(AG4-AE8) -> 0.08333333333 | AG9: =IF(AF9=0,0,(AF9*((LOG(AF9))/LOG(2)))) -> -0.2987468751 | AI9: =N9 -> 121 | AJ9: =COUNTIF(L98:L127,AI9) -> 0 | AK9: =AJ9/(AL4-AJ8) -> 0 | AL9: =IF(AK9=0,0,(AK9*((LOG(AK9))/LOG(2)))) -> 0 | AN9: =N9 -> 121 | AO9: =COUNTIF(L128:L157,AN9) -> 1 | AP9: =AO9/(AQ4-AO8) -> 0.04 | AQ9: =IF(AP9=0,0,(AP9*((LOG(AP9))/LOG(2)))) -> -0.1857542476 | AS9: =N9 -> 121 | AT9: =COUNTIF(L158:L187,AS9) -> 2 | AU9: =AT9/(AV4-AT8) -> 0.07407407407 | AV9: =IF(AU9=0,0,(AU9*((LOG(AU9))/LOG(2)))) -> -0.278139815
A10: 11 | B10: 489 | C10: 22 | D10: 500 | E10: 23 | F10: 510 | K10: 0 | L10: 122 | N10: 122 | O10: =COUNTIF($L$7:$L$500,N10) -> 45 | P10: =O10/$Q$4 -> 0.2486187845 | Q10: =IF(P10=0,0,(P10*((LOG(P10))/LOG(2)))) -> -0.499224727 | T10: =N10 -> 122 | U10: =COUNTIF(L7:L36,T10) -> 8 | V10: =U10/(W4-U8) -> 0.32 | W10: =IF(V10=0,0,(V10*((LOG(V10))/LOG(2)))) -> -0.5260339807 | Y10: =N10 -> 122 | Z10: =COUNTIF(L37:L66,Y10) -> 9 | AA10: =Z10/(AB4-Z8) -> 0.3461538462 | AB10: =IF(AA10=0,0,(AA10*((LOG(AA10))/LOG(2)))) -> -0.5297935558 | AD10: =N10 -> 122 | AE10: =COUNTIF(L67:L97,AD10) -> 4 | AF10: =AE10/(AG4-AE8) -> 0.1666666667 | AG10: =IF(AF10=0,0,(AF10*((LOG(AF10))/LOG(2)))) -> -0.4308270835 | AI10: =N10 -> 122 | AJ10: =COUNTIF(L98:L127,AI10) -> 8 | AK10: =AJ10/(AL4-AJ8) -> 0.3076923077 | AL10: =IF(AK10=0,0,(AK10*((LOG(AK10))/LOG(2)))) -> -0.523212221 | AN10: =N10 -> 122 | AO10: =COUNTIF(L128:L157,AN10) -> 7 | AP10: =AO10/(AQ4-AO8) -> 0.28 | AQ10: =IF(AP10=0,0,(AP10*((LOG(AP10))/LOG(2)))) -> -0.514220355 | AS10: =N10 -> 122 | AT10: =COUNTIF(L158:L187,AS10) -> 9 | AU10: =AT10/(AV4-AT8) -> 0.3333333333 | AV10: =IF(AU10=0,0,(AU10*((LOG(AU10))/LOG(2)))) -> -0.5283208336
A11: 11 | B11: 605 | C11: 22 | D11: 617 | E11: 23 | F11: 622 | K11: 0 | L11: 122 | N11: 211 | O11: =COUNTIF($L$7:$L$500,N11) -> 12 | P11: =O11/$Q$4 -> 0.06629834254 | Q11: =IF(P11=0,0,(P11*((LOG(P11))/LOG(2)))) -> -0.2595502798 | T11: =N11 -> 211 | U11: =COUNTIF(L7:L36,T11) -> 0 | V11: =U11/(W4-U8) -> 0 | W11: =IF(V11=0,0,(V11*((LOG(V11))/LOG(2)))) -> 0 | Y11: =N11 -> 211 | Z11: =COUNTIF(L37:L66,Y11) -> 3 | AA11: =Z11/(AB4-Z8) -> 0.1153846154 | AB11: =IF(AA11=0,0,(AA11*((LOG(AA11))/LOG(2)))) -> -0.3594781405 | AD11: =N11 -> 211 | AE11: =COUNTIF(L67:L97,AD11) -> 3 | AF11: =AE11/(AG4-AE8) -> 0.125 | AG11: =IF(AF11=0,0,(AF11*((LOG(AF11))/LOG(2)))) -> -0.375 | AI11: =N11 -> 211 | AJ11: =COUNTIF(L98:L127,AI11) -> 2 | AK11: =AJ11/(AL4-AJ8) -> 0.07692307692 | AL11: =IF(AK11=0,0,(AK11*((LOG(AK11))/LOG(2)))) -> -0.2846492091 | AN11: =N11 -> 211 | AO11: =COUNTIF(L128:L157,AN11) -> 4 | AP11: =AO11/(AQ4-AO8) -> 0.16 | AQ11: =IF(AP11=0,0,(AP11*((LOG(AP11))/LOG(2)))) -> -0.4230169904 | AS11: =N11 -> 211 | AT11: =COUNTIF(L158:L187,AS11) -> 0 | AU11: =AT11/(AV4-AT8) -> 0 | AV11: =IF(AU11=0,0,(AU11*((LOG(AU11))/LOG(2)))) -> 0
A12: 11 | B12: 725 | C12: 22 | D12: 736 | E12: 14 | F12: 754 | K12: 0 | L12: 121 | N12: 212 | O12: =COUNTIF($L$7:$L$500,N12) -> 24 | P12: =O12/$Q$4 -> 0.1325966851 | Q12: =IF(P12=0,0,(P12*((LOG(P12))/LOG(2)))) -> -0.3865038744 | T12: =N12 -> 212 | U12: =COUNTIF(L7:L36,T12) -> 4 | V12: =U12/(W4-U8) -> 0.16 | W12: =IF(V12=0,0,(V12*((LOG(V12))/LOG(2)))) -> -0.4230169904 | Y12: =N12 -> 212 | Z12: =COUNTIF(L37:L66,Y12) -> 3 | AA12: =Z12/(AB4-Z8) -> 0.1153846154 | AB12: =IF(AA12=0,0,(AA12*((LOG(AA12))/LOG(2)))) -> -0.3594781405 | AD12: =N12 -> 212 | AE12: =COUNTIF(L67:L97,AD12) -> 3 | AF12: =AE12/(AG4-AE8) -> 0.125 | AG12: =IF(AF12=0,0,(AF12*((LOG(AF12))/LOG(2)))) -> -0.375 | AI12: =N12 -> 212 | AJ12: =COUNTIF(L98:L127,AI12) -> 6 | AK12: =AJ12/(AL4-AJ8) -> 0.2307692308 | AL12: =IF(AK12=0,0,(AK12*((LOG(AK12))/LOG(2)))) -> -0.4881870502 | AN12: =N12 -> 212 | AO12: =COUNTIF(L128:L157,AN12) -> 3 | AP12: =AO12/(AQ4-AO8) -> 0.12 | AQ12: =IF(AP12=0,0,(AP12*((LOG(AP12))/LOG(2)))) -> -0.3670672427 | AS12: =N12 -> 212 | AT12: =COUNTIF(L158:L187,AS12) -> 5 | AU12: =AT12/(AV4-AT8) -> 0.1851851852 | AV12: =IF(AU12=0,0,(AU12*((LOG(AU12))/LOG(2)))) -> -0.4505480384
A13: 22 | B13: 886 | C13: 24 | D13: 896 | E13: 23 | F13: 903 | K13: 0 | L13: 222 | N13: 221 | O13: =COUNTIF($L$7:$L$500,N13) -> 9 | P13: =O13/$Q$4 -> 0.04972375691 | Q13: =IF(P13=0,0,(P13*((LOG(P13))/LOG(2)))) -> -0.2152999335 | T13: =N13 -> 221 | U13: =COUNTIF(L7:L36,T13) -> 0 | V13: =U13/(W4-U8) -> 0 | W13: =IF(V13=0,0,(V13*((LOG(V13))/LOG(2)))) -> 0 | Y13: =N13 -> 221 | Z13: =COUNTIF(L37:L66,Y13) -> 1 | AA13: =Z13/(AB4-Z8) -> 0.03846153846 | AB13: =IF(AA13=0,0,(AA13*((LOG(AA13))/LOG(2)))) -> -0.180786143 | AD13: =N13 -> 221 | AE13: =COUNTIF(L67:L97,AD13) -> 3 | AF13: =AE13/(AG4-AE8) -> 0.125 | AG13: =IF(AF13=0,0,(AF13*((LOG(AF13))/LOG(2)))) -> -0.375 | AI13: =N13 -> 221 | AJ13: =COUNTIF(L98:L127,AI13) -> 2 | AK13: =AJ13/(AL4-AJ8) -> 0.07692307692 | AL13: =IF(AK13=0,0,(AK13*((LOG(AK13))/LOG(2)))) -> -0.2846492091 | AN13: =N13 -> 221 | AO13: =COUNTIF(L128:L157,AN13) -> 1 | AP13: =AO13/(AQ4-AO8) -> 0.04 | AQ13: =IF(AP13=0,0,(AP13*((LOG(AP13))/LOG(2)))) -> -0.1857542476 | AS13: =N13 -> 221 | AT13: =COUNTIF(L158:L187,AS13) -> 2 | AU13: =AT13/(AV4-AT8) -> 0.07407407407 | AV13: =IF(AU13=0,0,(AU13*((LOG(AU13))/LOG(2)))) -> -0.278139815
A14: 22 | B14: 1103 | C14: 24 | D14: 1113 | E14: 23 | F14: 1122 | K14: 0 | L14: 222 | N14: 222 | O14: =COUNTIF($L$7:$L$500,N14) -> 40 | P14: =O14/$Q$4 -> 0.2209944751 | Q14: =IF(P14=0,0,(P14*((LOG(P14))/LOG(2)))) -> -0.4813077994 | T14: =N14 -> 222 | U14: =COUNTIF(L7:L36,T14) -> 11 | V14: =U14/(W4-U8) -> 0.44 | W14: =IF(V14=0,0,(V14*((LOG(V14))/LOG(2)))) -> -0.5211468113 | Y14: =N14 -> 222 | Z14: =COUNTIF(L37:L66,Y14) -> 6 | AA14: =Z14/(AB4-Z8) -> 0.2307692308 | AB14: =IF(AA14=0,0,(AA14*((LOG(AA14))/LOG(2)))) -> -0.4881870502 | AD14: =N14 -> 222 | AE14: =COUNTIF(L67:L97,AD14) -> 6 | AF14: =AE14/(AG4-AE8) -> 0.25 | AG14: =IF(AF14=0,0,(AF14*((LOG(AF14))/LOG(2)))) -> -0.5 | AI14: =N14 -> 222 | AJ14: =COUNTIF(L98:L127,AI14) -> 6 | AK14: =AJ14/(AL4-AJ8) -> 0.2307692308 | AL14: =IF(AK14=0,0,(AK14*((LOG(AK14))/LOG(2)))) -> -0.4881870502 | AN14: =N14 -> 222 | AO14: =COUNTIF(L128:L157,AN14) -> 6 | AP14: =AO14/(AQ4-AO8) -> 0.24 | AQ14: =IF(AP14=0,0,(AP14*((LOG(AP14))/LOG(2)))) -> -0.4941344854 | AS14: =N14 -> 222 | AT14: =COUNTIF(L158:L187,AS14) -> 5 | AU14: =AT14/(AV4-AT8) -> 0.1851851852 | AV14: =IF(AU14=0,0,(AU14*((LOG(AU14))/LOG(2)))) -> -0.4505480384
A15: 22 | B15: 1239 | C15: 24 | D15: 1245 | E15: 23 | F15: 1249 | K15: 0 | L15: 222 | P15: =SUM(P7:P14) -> 1 | Q15: =-SUM(Q7:Q14) -> 2.759311523 | V15: =SUM(V7:V14) -> 1 | W15: =-SUM(W7:W14) -> 1.761706278 | AA15: =SUM(AA7:AA14) -> 1 | AB15: =-SUM(AB7:AB14) -> 2.487021448 | AF15: =SUM(AF7:AF14) -> 1 | AG15: =-SUM(AG7:AG14) -> 2.729573959 | AK15: =SUM(AK7:AK14) -> 1 | AL15: =-SUM(AL7:AL14) -> 2.353533949 | AP15: =SUM(AP7:AP14) -> 1 | AQ15: =-SUM(AQ7:AQ14) -> 2.537014811 | AU15: =SUM(AU7:AU14) -> 1 | AV15: =-SUM(AV7:AV14) -> 2.393828022
A16: 22 | B16: 1363 | C16: 13 | D16: 1380 | E16: 23 | F16: 1397 | K16: 0 | L16: 212 | P16: U= | Q16: =Q15/(LOG(Q4)/LOG(2)) -> 0.3679157631 | V16: U1= | W16: =W15/(LOG(W4)/LOG(2)) -> 0.3590270138 | AA16: U2= | AB16: =AB15/(LOG(AB4)/LOG(2)) -> 0.5068426531 | AF16: U3= | AG16: =AG15/(LOG(AG4)/LOG(2)) -> 0.5509620103 | AK16: U4= | AL16: =AL15/(LOG(AL4)/LOG(2)) -> 0.4796385619 | AP16: U5= | AQ16: =AQ15/(LOG(AQ4)/LOG(2)) -> 0.5170310529 | AU16: U6= | AV16: =AV15/(LOG(AV4)/LOG(2)) -> 0.4878502945
A17: 22 | B17: 1495 | C17: 24 | D17: 1509 | E17: 23 | F17: 1545 | K17: 0 | L17: 222
A18: 11 | B18: 1642 | C18: 22 | D18: 1650 | E18: 14 | F18: 1669 | K18: 0 | L18: 121
A19: 11 | B19: 1783 | C19: 22 | D19: 1796 | E19: 23 | F19: 1802 | K19: 0 | L19: 122 | N19: Total Target Seq
A20: 22 | B20: 1903 | C20: 24 | D20: 1912 | E20: 23 | F20: 1938 | K20: 0 | L20: 222 | N20: =COUNTIF(L7:L187,G3) -> 28 | P20: 30 | Q20: 30 | R20: 31 | S20: 30 | T20: 30 | U20: 30
A21: 11 | B21: 2030 | C21: 22 | D21: 2038 | E21: 23 | F21: 2058 | K21: 0 | L21: 122 | P21: % of reinforcement given in 6 equal intervals based on number of trials
A22: 11 | B22: 2175 | C22: 22 | D22: 2185 | E22: 23 | F22: 2189 | K22: 0 | L22: 122 | P22: %_1 | Q22: %_2 | R22: %_3 | S22: %_4 | T22: %_5 | U22: %_6
A23: 11 | B23: 2282 | C23: 11 | D23: 2288 | E23: 21 | F23: 2299 | K23: 0 | L23: 112 | O23: target sequence | P23: =$G$3 -> 112 | Q23: =$G$3 -> 112 | R23: =$G$3 -> 112 | S23: =$G$3 -> 112 | T23: =$G$3 -> 112 | U23: =$G$3 -> 112
A24: 22 | B24: 2555 | C24: 13 | D24: 2568 | E24: 23 | F24: 2584 | K24: 0 | L24: 212 | O24: total reinforcement | P24: =U8 -> 5 | Q24: =Z8 -> 4 | R24: =AE8 -> 7 | S24: =AJ8 -> 4 | T24: =AO8 -> 5 | U24: =AT8 -> 3
A25: 22 | B25: 2685 | C25: 24 | D25: 2695 | E25: 23 | F25: 2701 | K25: 0 | L25: 222 | O25: % target
A26: 22 | B26: 2832 | C26: 13 | D26: 2848 | E26: 23 | F26: 2865 | K26: 0 | L26: 212 | O26: CCRF
A27: 11 | B27: 2960 | C27: 11 | D27: 2965 | E27: 21 | F27: 2977 | K27: 0 | L27: 112 | O27: % CCRf
A28: 22 | B28: 3179 | C28: 24 | D28: 3187 | E28: 23 | F28: 3201 | K28: 0 | L28: 222 | O28: average response rate | P28: =F36/P20 -> 144.1666667 | Q28: =(F66-F36)/Q20 -> 129.3333333 | R28: =(F97-F66)/R20 -> 130.7741935 | S28: =(F127-F97)/S20 -> 133.8666667 | T28: =(F157-F127)/T20 -> 132.5 | U28: =(F187-F157)/U20 -> 124.4
A29: 11 | B29: 3297 | C29: 11 | D29: 3301 | E29: 21 | F29: 3310 | K29: 0 | L29: 112
A30: 22 | B30: 3438 | C30: 24 | D30: 3443 | E30: 23 | F30: 3456 | K30: 0 | L30: 222
A31: 11 | B31: 3552 | C31: 22 | D31: 3563 | E31: 23 | F31: 3568 | K31: 0 | L31: 122
A32: 11 | B32: 3662 | C32: 11 | D32: 3668 | E32: 21 | F32: 3681 | K32: 0 | L32: 112
A33: 22 | B33: 3916 | C33: 24 | D33: 3922 | E33: 23 | F33: 3927 | K33: 0 | L33: 222
A34: 11 | B34: 4022 | C34: 11 | D34: 4030 | E34: 21 | F34: 4045 | K34: 0 | L34: 112
A35: 22 | B35: 4181 | C35: 24 | D35: 4185 | E35: 23 | F35: 4212 | K35: 0 | L35: 222
A36: 11 | B36: 4307 | C36: 22 | D36: 4317 | E36: 23 | F36: 4325 | K36: 0 | L36: 122
A37: 11 | B37: 4418 | C37: 11 | D37: 4424 | E37: 12 | F37: 4432 | K37: 0 | L37: 111
A38: 11 | B38: 4525 | C38: 22 | D38: 4537 | E38: 14 | F38: 4553 | K38: 0 | L38: 121
A39: 22 | B39: 4650 | C39: 13 | D39: 4662 | E39: 23 | F39: 4675 | K39: 0 | L39: 212
A40: 11 | B40: 4769 | C40: 22 | D40: 4782 | E40: 23 | F40: 4787 | K40: 0 | L40: 122
A41: 11 | B41: 4883 | C41: 22 | D41: 4897 | E41: 23 | F41: 4902 | K41: 0 | L41: 122
A42: 22 | B42: 5001 | C42: 13 | D42: 5015 | E42: 14 | F42: 5019 | K42: 0 | L42: 211
A43: 22 | B43: 5145 | C43: 24 | D43: 5152 | E43: 23 | F43: 5159 | K43: 0 | L43: 222
A44: 11 | B44: 5254 | C44: 22 | D44: 5271 | E44: 23 | F44: 5282 | K44: 0 | L44: 122
A45: 22 | B45: 5400 | C45: 13 | D45: 5414 | E45: 23 | F45: 5424 | K45: 0 | L45: 212
A46: 11 | B46: 5552 | C46: 22 | D46: 5564 | E46: 23 | F46: 5569 | K46: 0 | L46: 122
A47: 11 | B47: 5673 | C47: 11 | D47: 5679 | E47: 12 | F47: 5685 | K47: 0 | L47: 111
A48: 22 | B48: 5783 | C48: 13 | D48: 5792 | E48: 23 | F48: 5806 | K48: 0 | L48: 212
A49: 11 | B49: 5898 | C49: 22 | D49: 5906 | E49: 14 | F49: 5922 | K49: 0 | L49: 121
A50: 11 | B50: 6016 | C50: 11 | D50: 6020 | E50: 21 | F50: 6035 | K50: 0 | L50: 112
A51: 22 | B51: 6183 | C51: 24 | D51: 6187 | E51: 23 | F51: 6192 | K51: 0 | L51: 222
A52: 22 | B52: 6289 | C52: 24 | D52: 6312 | E52: 23 | F52: 6319 | K52: 0 | L52: 222
A53: 11 | B53: 6414 | C53: 11 | D53: 6420 | E53: 21 | F53: 6436 | K53: 0 | L53: 112
A54: 22 | B54: 6613 | C54: 24 | D54: 6629 | E54: 23 | F54: 6634 | K54: 0 | L54: 222
A55: 22 | B55: 6725 | C55: 13 | D55: 6740 | E55: 14 | F55: 6745 | K55: 0 | L55: 211
A56: 22 | B56: 6872 | C56: 24 | D56: 6877 | E56: 23 | F56: 6884 | K56: 0 | L56: 222
A57: 11 | B57: 6995 | C57: 22 | D57: 7004 | E57: 23 | F57: 7008 | K57: 0 | L57: 122
A58: 11 | B58: 7101 | C58: 11 | D58: 7106 | E58: 21 | F58: 7116 | K58: 0 | L58: 112
A59: 11 | B59: 7254 | C59: 22 | D59: 7264 | E59: 23 | F59: 7270 | K59: 0 | L59: 122
A60: 11 | B60: 7365 | C60: 22 | D60: 7375 | E60: 23 | F60: 7380 | K60: 0 | L60: 122
A61: 22 | B61: 7477 | C61: 13 | D61: 7488 | E61: 14 | F61: 7492 | K61: 0 | L61: 211
A62: 11 | B62: 7660 | C62: 22 | D62: 7669 | E62: 23 | F62: 7677 | K62: 0 | L62: 122
A63: 11 | B63: 7774 | C63: 22 | D63: 7790 | E63: 23 | F63: 7799 | K63: 0 | L63: 122
A64: 22 | B64: 7909 | C64: 24 | D64: 7925 | E64: 23 | F64: 7932 | K64: 0 | L64: 222
A65: 11 | B65: 8029 | C65: 11 | D65: 8034 | E65: 21 | F65: 8045 | K65: 0 | L65: 112
A66: 22 | B66: 8184 | C66: 24 | D66: 8191 | E66: 14 | F66: 8205 | K66: 0 | L66: 221
A67: 22 | B67: 8303 | C67: 13 | D67: 8312 | E67: 14 | F67: 8317 | K67: 0 | L67: 211
A68: 11 | B68: 8422 | C68: 11 | D68: 8425 | E68: 21 | F68: 8440 | K68: 0 | L68: 112
A69: 22 | B69: 8612 | C69: 24 | D69: 8636 | E69: 23 | F69: 8644 | K69: 0 | L69: 222
A70: 22 | B70: 8743 | C70: 24 | D70: 8747 | E70: 23 | F70: 8754 | K70: 0 | L70: 222
A71: 22 | B71: 8873 | C71: 13 | D71: 8886 | E71: 14 | F71: 8921 | K71: 0 | L71: 211
A72: 11 | B72: 9026 | C72: 22 | D72: 9034 | E72: 23 | F72: 9043 | K72: 0 | L72: 122
A73: 11 | B73: 9138 | C73: 11 | D73: 9143 | E73: 21 | F73: 9167 | K73: 0 | L73: 112
A74: 22 | B74: 9329 | C74: 24 | D74: 9338 | E74: 23 | F74: 9342 | K74: 0 | L74: 222
A75: 22 | B75: 9438 | C75: 13 | D75: 9453 | E75: 23 | F75: 9469 | K75: 0 | L75: 212
A76: 11 | B76: 9563 | C76: 11 | D76: 9565 | E76: 21 | F76: 9579 | K76: 0 | L76: 112
A77: 22 | B77: 9677 | C77: 24 | D77: 9682 | E77: 23 | F77: 9687 | K77: 0 | L77: 222
A78: 11 | B78: 9783 | C78: 11 | D78: 9788 | E78: 21 | F78: 9800 | K78: 0 | L78: 112
A79: 22 | B79: 9975 | C79: 24 | D79: 9980 | E79: 14 | F79: 9990 | K79: 0 | L79: 221
A80: 11 | B80: 10094 | C80: 22 | D80: 10106 | E80: 14 | F80: 10110 | K80: 0 | L80: 121
A81: 22 | B81: 10205 | C81: 13 | D81: 10216 | E81: 14 | F81: 10218 | K81: 0 | L81: 211
A82: 11 | B82: 10322 | C82: 22 | D82: 10344 | E82: 23 | F82: 10352 | K82: 0 | L82: 122
A83: 11 | B83: 10447 | C83: 22 | D83: 10466 | E83: 23 | F83: 10473 | K83: 0 | L83: 122
A84: 11 | B84: 10568 | C84: 11 | D84: 10578 | E84: 21 | F84: 10593 | K84: 0 | L84: 112
A85: 22 | B85: 10715 | C85: 24 | D85: 10721 | E85: 14 | F85: 10736 | K85: 0 | L85: 221
A86: 11 | B86: 10831 | C86: 22 | D86: 10840 | E86: 14 | F86: 10853 | K86: 0 | L86: 121
A87: 11 | B87: 10950 | C87: 11 | D87: 10954 | E87: 21 | F87: 10973 | K87: 0 | L87: 112
A88: 22 | B88: 11168 | C88: 24 | D88: 11189 | E88: 23 | F88: 11195 | K88: 0 | L88: 222
A89: 22 | B89: 11292 | C89: 13 | D89: 11303 | E89: 23 | F89: 11315 | K89: 0 | L89: 212
A90: 22 | B90: 11414 | C90: 13 | D90: 11423 | E90: 23 | F90: 11434 | K90: 0 | L90: 212
A91: 11 | B91: 11527 | C91: 11 | D91: 11534 | E91: 12 | F91: 11543 | K91: 0 | L91: 111
A92: 11 | B92: 11636 | C92: 11 | D92: 11639 | E92: 12 | F92: 11644 | K92: 0 | L92: 111
A93: 11 | B93: 11740 | C93: 22 | D93: 11753 | E93: 23 | F93: 11762 | K93: 0 | L93: 122
A94: 22 | B94: 11866 | C94: 24 | D94: 11871 | E94: 14 | F94: 11887 | K94: 0 | L94: 221
A95: 11 | B95: 12005 | C95: 11 | D95: 12012 | E95: 12 | F95: 12019 | K95: 0 | L95: 111
A96: 22 | B96: 12124 | C96: 24 | D96: 12134 | E96: 23 | F96: 12144 | K96: 0 | L96: 222
A97: 11 | B97: 12239 | C97: 11 | D97: 12244 | E97: 21 | F97: 12259 | K97: 0 | L97: 112
A98: 11 | B98: 12484 | C98: 22 | D98: 12492 | E98: 23 | F98: 12496 | K98: 0 | L98: 122
A99: 11 | B99: 12591 | C99: 11 | D99: 12597 | E99: 21 | F99: 12610 | K99: 0 | L99: 112
A100: 22 | B100: 12752 | C100: 24 | D100: 12756 | E100: 23 | F100: 12781 | K100: 0 | L100: 222
A101: 22 | B101: 12879 | C101: 13 | D101: 12890 | E101: 23 | F101: 12909 | K101: 0 | L101: 212
A102: 11 | B102: 13015 | C102: 22 | D102: 13023 | E102: 23 | F102: 13036 | K102: 0 | L102: 122
A103: 22 | B103: 13132 | C103: 13 | D103: 13145 | E103: 14 | F103: 13149 | K103: 0 | L103: 211
A104: 11 | B104: 13256 | C104: 22 | D104: 13264 | E104: 23 | F104: 13268 | K104: 0 | L104: 122
A105: 11 | B105: 13373 | C105: 11 | D105: 13377 | E105: 12 | F105: 13383 | K105: 0 | L105: 111
A106: 22 | B106: 13482 | C106: 24 | D106: 13488 | E106: 23 | F106: 13494 | K106: 0 | L106: 222
A107: 11 | B107: 13591 | C107: 11 | D107: 13596 | E107: 21 | F107: 13614 | K107: 0 | L107: 112
A108: 11 | B108: 13845 | C108: 11 | D108: 13850 | E108: 12 | F108: 13854 | K108: 0 | L108: 111
A109: 11 | B109: 13948 | C109: 11 | D109: 13952 | E109: 21 | F109: 13962 | K109: 0 | L109: 112
A110: 22 | B110: 14137 | C110: 13 | D110: 14159 | E110: 23 | F110: 14187 | K110: 0 | L110: 212
A111: 22 | B111: 14283 | C111: 13 | D111: 14293 | E111: 23 | F111: 14318 | K111: 0 | L111: 212
A112: 22 | B112: 14418 | C112: 13 | D112: 14428 | E112: 23 | F112: 14445 | K112: 0 | L112: 212
A113: 22 | B113: 14542 | C113: 24 | D113: 14546 | E113: 14 | F113: 14556 | K113: 0 | L113: 221
A114: 11 | B114: 14648 | C114: 22 | D114: 14656 | E114: 23 | F114: 14661 | K114: 0 | L114: 122
A115: 11 | B115: 14757 | C115: 11 | D115: 14760 | E115: 21 | F115: 14772 | K115: 0 | L115: 112
A116: 22 | B116: 14916 | C116: 24 | D116: 14922 | E116: 14 | F116: 14938 | K116: 0 | L116: 221
A117: 22 | B117: 15037 | C117: 24 | D117: 15043 | E117: 23 | F117: 15050 | K117: 0 | L117: 222
A118: 11 | B118: 15151 | C118: 22 | D118: 15164 | E118: 23 | F118: 15172 | K118: 0 | L118: 122
A119: 22 | B119: 15287 | C119: 13 | D119: 15296 | E119: 23 | F119: 15308 | K119: 0 | L119: 212
A120: 22 | B120: 15404 | C120: 24 | D120: 15409 | E120: 23 | F120: 15415 | K120: 0 | L120: 222
A121: 22 | B121: 15554 | C121: 13 | D121: 15566 | E121: 23 | F121: 15579 | K121: 0 | L121: 212
A122: 22 | B122: 15677 | C122: 24 | D122: 15687 | E122: 23 | F122: 15695 | K122: 0 | L122: 222
A123: 22 | B123: 15790 | C123: 24 | D123: 15795 | E123: 23 | F123: 15802 | K123: 0 | L123: 222
A124: 11 | B124: 15899 | C124: 22 | D124: 15913 | E124: 23 | F124: 15920 | K124: 0 | L124: 122
A125: 22 | B125: 16015 | C125: 13 | D125: 16023 | E125: 14 | F125: 16029 | K125: 0 | L125: 211
A126: 11 | B126: 16127 | C126: 22 | D126: 16138 | E126: 23 | F126: 16146 | K126: 0 | L126: 122
A127: 11 | B127: 16252 | C127: 22 | D127: 16268 | E127: 23 | F127: 16275 | K127: 0 | L127: 122
A128: 11 | B128: 16402 | C128: 11 | D128: 16408 | E128: 21 | F128: 16422 | K128: 0 | L128: 112
A129: 22 | B129: 16618 | C129: 13 | D129: 16626 | E129: 14 | F129: 16631 | K129: 0 | L129: 211
A130: 22 | B130: 16731 | C130: 24 | D130: 16736 | E130: 23 | F130: 16743 | K130: 0 | L130: 222
A131: 11 | B131: 16845 | C131: 22 | D131: 16854 | E131: 14 | F131: 16868 | K131: 0 | L131: 121
A132: 11 | B132: 16980 | C132: 22 | D132: 16991 | E132: 23 | F132: 16997 | K132: 0 | L132: 122
A133: 11 | B133: 17094 | C133: 11 | D133: 17099 | E133: 21 | F133: 17109 | K133: 0 | L133: 112
A134: 22 | B134: 17288 | C134: 24 | D134: 17293 | E134: 23 | F134: 17300 | K134: 0 | L134: 222
A135: 11 | B135: 17395 | C135: 11 | D135: 17401 | E135: 12 | F135: 17407 | K135: 0 | L135: 111
A136: 11 | B136: 17499 | C136: 22 | D136: 17509 | E136: 23 | F136: 17514 | K136: 0 | L136: 122
A137: 22 | B137: 17609 | C137: 24 | D137: 17631 | E137: 23 | F137: 17640 | K137: 0 | L137: 222
A138: 22 | B138: 17734 | C138: 13 | D138: 17749 | E138: 23 | F138: 17765 | K138: 0 | L138: 212
A139: 11 | B139: 17859 | C139: 22 | D139: 17870 | E139: 23 | F139: 17875 | K139: 0 | L139: 122
A140: 22 | B140: 17971 | C140: 13 | D140: 17981 | E140: 23 | F140: 17996 | K140: 0 | L140: 212
A141: 11 | B141: 18091 | C141: 11 | D141: 18094 | E141: 21 | F141: 18119 | K141: 0 | L141: 112
A142: 22 | B142: 18298 | C142: 13 | D142: 18308 | E142: 14 | F142: 18313 | K142: 0 | L142: 211
A143: 22 | B143: 18410 | C143: 13 | D143: 18422 | E143: 14 | F143: 18426 | K143: 0 | L143: 211
A144: 22 | B144: 18557 | C144: 13 | D144: 18567 | E144: 23 | F144: 18582 | K144: 0 | L144: 212
A145: 11 | B145: 18688 | C145: 22 | D145: 18702 | E145: 23 | F145: 18709 | K145: 0 | L145: 122
A146: 22 | B146: 18805 | C146: 24 | D146: 18824 | E146: 14 | F146: 18837 | K146: 0 | L146: 221
A147: 11 | B147: 18939 | C147: 22 | D147: 18954 | E147: 23 | F147: 18961 | K147: 0 | L147: 122
A148: 11 | B148: 19055 | C148: 11 | D148: 19061 | E148: 21 | F148: 19076 | K148: 0 | L148: 112
A149: 22 | B149: 19201 | C149: 24 | D149: 19216 | E149: 23 | F149: 19221 | K149: 0 | L149: 222
A150: 11 | B150: 19313 | C150: 11 | D150: 19321 | E150: 12 | F150: 19325 | K150: 0 | L150: 111
A151: 22 | B151: 19508 | C151: 24 | D151: 19517 | E151: 23 | F151: 19523 | K151: 0 | L151: 222
A152: 22 | B152: 19620 | C152: 13 | D152: 19630 | E152: 14 | F152: 19634 | K152: 0 | L152: 211
A153: 11 | B153: 19729 | C153: 22 | D153: 19762 | E153: 23 | F153: 19773 | K153: 0 | L153: 122
A154: 11 | B154: 19871 | C154: 11 | D154: 19876 | E154: 12 | F154: 19902 | K154: 0 | L154: 111
A155: 11 | B155: 19995 | C155: 11 | D155: 19999 | E155: 21 | F155: 20010 | K155: 0 | L155: 112
A156: 22 | B156: 20123 | C156: 24 | D156: 20128 | E156: 23 | F156: 20133 | K156: 0 | L156: 222
A157: 11 | B157: 20231 | C157: 22 | D157: 20243 | E157: 23 | F157: 20250 | K157: 0 | L157: 122
A158: 22 | B158: 20350 | C158: 13 | D158: 20359 | E158: 23 | F158: 20384 | K158: 0 | L158: 212
A159: 22 | B159: 20483 | C159: 24 | D159: 20490 | E159: 23 | F159: 20498 | K159: 0 | L159: 222
A160: 22 | B160: 20596 | C160: 24 | D160: 20600 | E160: 23 | F160: 20604 | K160: 0 | L160: 222
A161: 11 | B161: 20700 | C161: 22 | D161: 20710 | E161: 23 | F161: 20717 | K161: 0 | L161: 122
A162: 22 | B162: 20812 | C162: 24 | D162: 20820 | E162: 14 | F162: 20833 | K162: 0 | L162: 221
A163: 11 | B163: 20934 | C163: 11 | D163: 20938 | E163: 21 | F163: 20951 | K163: 0 | L163: 112
A164: 22 | B164: 21123 | C164: 13 | D164: 21138 | E164: 23 | F164: 21162 | K164: 0 | L164: 212
A165: 11 | B165: 21256 | C165: 11 | D165: 21260 | E165: 12 | F165: 21267 | K165: 0 | L165: 111
A166: 22 | B166: 21363 | C166: 24 | D166: 21367 | E166: 23 | F166: 21372 | K166: 0 | L166: 222
A167: 22 | B167: 21469 | C167: 13 | D167: 21479 | E167: 23 | F167: 21506 | K167: 0 | L167: 212
A168: 11 | B168: 21602 | C168: 22 | D168: 21611 | E168: 23 | F168: 21616 | K168: 0 | L168: 122
A169: 11 | B169: 21708 | C169: 22 | D169: 21718 | E169: 23 | F169: 21724 | K169: 0 | L169: 122
A170: 11 | B170: 21820 | C170: 11 | D170: 21824 | E170: 12 | F170: 21829 | K170: 0 | L170: 111
A171: 11 | B171: 21924 | C171: 22 | D171: 21935 | E171: 23 | F171: 21941 | K171: 0 | L171: 122
A172: 11 | B172: 22036 | C172: 11 | D172: 22040 | E172: 21 | F172: 22064 | K172: 0 | L172: 112
A173: 22 | B173: 22231 | C173: 24 | D173: 22235 | E173: 14 | F173: 22245 | K173: 0 | L173: 221
A174: 11 | B174: 22340 | C174: 22 | D174: 22353 | E174: 23 | F174: 22367 | K174: 0 | L174: 122
A175: 11 | B175: 22459 | C175: 11 | D175: 22465 | E175: 12 | F175: 22473 | K175: 0 | L175: 111
A176: 11 | B176: 22574 | C176: 22 | D176: 22584 | E176: 23 | F176: 22588 | K176: 0 | L176: 122
A177: 22 | B177: 22685 | C177: 13 | D177: 22696 | E177: 23 | F177: 22711 | K177: 0 | L177: 212
A178: 22 | B178: 22809 | C178: 24 | D178: 22815 | E178: 23 | F178: 22821 | K178: 0 | L178: 222
A179: 11 | B179: 22916 | C179: 22 | D179: 22926 | E179: 23 | F179: 22932 | K179: 0 | L179: 122
A180: 11 | B180: 23026 | C180: 22 | D180: 23039 | E180: 14 | F180: 23053 | K180: 0 | L180: 121
A181: 11 | B181: 23145 | C181: 11 | D181: 23150 | E181: 21 | F181: 23163 | K181: 0 | L181: 112
A182: 22 | B182: 23320 | C182: 13 | D182: 23337 | E182: 23 | F182: 23354 | K182: 0 | L182: 212
A183: 11 | B183: 23447 | C183: 22 | D183: 23459 | E183: 23 | F183: 23464 | K183: 0 | L183: 122
A184: 11 | B184: 23612 | C184: 22 | D184: 23625 | E184: 14 | F184: 23635 | K184: 0 | L184: 121
A185: 11 | B185: 23729 | C185: 11 | D185: 23735 | E185: 12 | F185: 23741 | K185: 0 | L185: 111
A186: 22 | B186: 23841 | C186: 24 | D186: 23845 | E186: 23 | F186: 23854 | K186: 0 | L186: 222
A187: 11 | B187: 23957 | C187: 22 | D187: 23973 | E187: 23 | F187: 23982 | L187: 122

Sheet !MB11B1I.sha
A1: Report for:!MB11B1I.sha
A2: Date: | B2: <date>
A3: Hen: | B3: <hen> | F3: Correct Sequence | G3: =Start!J2 -> 112 | P3: Total Sequences in Data | Q3: =4994-COUNTBLANK(L7:L5000) -> 168 | V3: Total Sequences in Block Data | W3: =COUNTA(L7:L34) -> 28 | AA3: Total Sequences in Block Data | AB3: =COUNTA(L35:L62) -> 28 | AF3: Total Sequences in Block Data | AG3: =COUNTA(L63:L90) -> 28 | AK3: Total Sequences in Block Data | AL3: =COUNTA(L91:L118) -> 28 | AP3: Total Sequences in Block Data | AQ3: =COUNTA(L119:L146) -> 28 | AU3: Total Sequences in Block Data | AV3: =COUNTA(L147:L174) -> 28
P4: Total Sequences in Summary | Q4: =SUM(O7:O14) -> 168 | V4: Total Sequences in Block Summary | W4: =SUM(U7:U14) -> 28 | AA4: Total Sequences in Block Summary | AB4: =SUM(Z7:Z14) -> 28 | AF4: Total Sequences in Block Summary | AG4: =SUM(AE7:AE14) -> 28 | AK4: Total Sequences in Block Summary | AL4: =SUM(AJ7:AJ14) -> 28 | AP4: Total Sequences in Block Summary | AQ4: =SUM(AO7:AO14) -> 28 | AU4: Total Sequences in Block Summary | AV4: =SUM(AT7:AT14) -> 28
T5: Block 1 | Y5: Block 2 | AD5: Block 3 | AI5: Block 4 | AN5: Block 5 | AS5: Block 6
A6: Sequence Component 1 | B6: Time 1 | C6: Sequence Component 2 | D6: Time 2 | E6: Sequence Component 3 | F6: Time 3 | G6: Sequence Component 4 | H6: Time 4 | I6: Sequence Component 5 | J6: Time 5 | K6: Correct? 0=No 1=Yes | L6: Sequence | N6: Frequency | P6: Relative Frequency | Q6: Variability | T6: Frequency | V6: Relative Frequency | W6: Variability | Y6: Frequency | AA6: Relative Frequency | AB6: Variability | AD6: Frequency | AF6: Relative Frequency | AG6: Variability | AI6: Frequency | AK6: Relative Frequency | AL6: Variability | AN6: Frequency | AP6: Relative Frequency | AQ6: Variability | AS6: Frequency | AU6: Relative Frequency | AV6: Variability
A7: 11 | B7: 137 | C7: 22 | D7: 146 | E7: 23 | F7: 151 | K7: 0 | L7: 122 | N7: 111 | O7: =COUNTIF($L$7:$L$500,N7) -> 4 | P7: =O7/$Q$4 -> 0.02380952381 | Q7: =IF(P7=0,0,(P7*((LOG(P7))/LOG(2)))) -> -0.1283885101 | T7: =N7 -> 111 | U7: =COUNTIF(L7:L34,T7) -> 1 | V7: =U7/(W4-U8) -> 0.04 | W7: =IF(V7=0,0,(V7*((LOG(V7))/LOG(2)))) -> -0.1857542476 | Y7: =N7 -> 111 | Z7: =COUNTIF(L35:L62,Y7) -> 0 | AA7: =Z7/(AB4-Z8) -> 0 | AB7: =IF(AA7=0,0,(AA7*((LOG(AA7))/LOG(2)))) -> 0 | AD7: =N7 -> 111 | AE7: =COUNTIF(L63:L90,AD7) -> 0 | AF7: =AE7/(AG4-AE8) -> 0 | AG7: =IF(AF7=0,0,(AF7*((LOG(AF7))/LOG(2)))) -> 0 | AI7: =N7 -> 111 | AJ7: =COUNTIF(L91:L118,AI7) -> 2 | AK7: =AJ7/(AL4-AJ8) -> 0.08 | AL7: =IF(AK7=0,0,(AK7*((LOG(AK7))/LOG(2)))) -> -0.2915084952 | AN7: =N7 -> 111 | AO7: =COUNTIF(L119:L146,AN7) -> 0 | AP7: =AO7/(AQ4-AO8) -> 0 | AQ7: =IF(AP7=0,0,(AP7*((LOG(AP7))/LOG(2)))) -> 0 | AS7: =N7 -> 111 | AT7: =COUNTIF(L147:L174,AS7) -> 1 | AU7: =AT7/(AV4-AT8) -> 0.03846153846 | AV7: =IF(AU7=0,0,(AU7*((LOG(AU7))/LOG(2)))) -> -0.180786143
A8: 11 | B8: 243 | C8: 11 | D8: 245 | E8: 21 | F8: 255 | K8: 0 | L8: 112 | N8: 112 | O8: =COUNTIF($L$7:$L$500,N8) -> 21 | P8: =O8/$Q$4 -> 0.125 | Q8: =IF(P8=0,0,(P8*((LOG(P8))/LOG(2)))) -> -0.375 | T8: =N8 -> 112 | U8: =COUNTIF(L7:L34,T8) -> 3 | Y8: =N8 -> 112 | Z8: =COUNTIF(L35:L62,Y8) -> 4 | AD8: =N8 -> 112 | AE8: =COUNTIF(L63:L90,AD8) -> 8 | AI8: =N8 -> 112 | AJ8: =COUNTIF(L91:L118,AI8) -> 3 | AN8: =N8 -> 112 | AO8: =COUNTIF(L119:L146,AN8) -> 1 | AS8: =N8 -> 112 | AT8: =COUNTIF(L147:L174,AS8) -> 2
A9: 11 | B9: 598 | C9: 22 | D9: 606 | E9: 23 | F9: 610 | K9: 0 | L9: 122 | N9: 121 | O9: =COUNTIF($L$7:$L$500,N9) -> 9 | P9: =O9/$Q$4 -> 0.05357142857 | Q9: =IF(P9=0,0,(P9*((LOG(P9))/LOG(2)))) -> -0.226199594 | T9: =N9 -> 121 | U9: =COUNTIF(L7:L34,T9) -> 1 | V9: =U9/(W4-U8) -> 0.04 | W9: =IF(V9=0,0,(V9*((LOG(V9))/LOG(2)))) -> -0.1857542476 | Y9: =N9 -> 121 | Z9: =COUNTIF(L35:L62,Y9) -> 3 | AA9: =Z9/(AB4-Z8) -> 0.125 | AB9: =IF(AA9=0,0,(AA9*((LOG(AA9))/LOG(2)))) -> -0.375 | AD9: =N9 -> 121 | AE9: =COUNTIF(L63:L90,AD9) -> 0 | AF9: =AE9/(AG4-AE8) -> 0 | AG9: =IF(AF9=0,0,(AF9*((LOG(AF9))/LOG(2)))) -> 0 | AI9: =N9 -> 121 | AJ9: =COUNTIF(L91:L118,AI9) -> 0 | AK9: =AJ9/(AL4-AJ8) -> 0 | AL9: =IF(AK9=0,0,(AK9*((LOG(AK9))/LOG(2)))) -> 0 | AN9: =N9 -> 121 | AO9: =COUNTIF(L119:L146,AN9) -> 3 | AP9: =AO9/(AQ4-AO8) -> 0.1111111111 | AQ9: =IF(AP9=0,0,(AP9*((LOG(AP9))/LOG(2)))) -> -0.352213889 | AS9: =N9 -> 121 | AT9: =COUNTIF(L147:L174,AS9) -> 2 | AU9: =AT9/(AV4-AT8) -> 0.07692307692 | AV9: =IF(AU9=0,0,(AU9*((LOG(AU9))/LOG(2)))) -> -0.2846492091
A10: 11 | B10: 707 | C10: 22 | D10: 716 | E10: 23 | F10: 721 | K10: 0 | L10: 122 | N10: 122 | O10: =COUNTIF($L$7:$L$500,N10) -> 56 | P10: =O10/$Q$4 -> 0.3333333333 | Q10: =IF(P10=0,0,(P10*((LOG(P10))/LOG(2)))) -> -0.5283208336 | T10: =N10 -> 122 | U10: =COUNTIF(L7:L34,T10) -> 14 | V10: =U10/(W4-U8) -> 0.56 | W10: =IF(V10=0,0,(V10*((LOG(V10))/LOG(2)))) -> -0.4684407099 | Y10: =N10 -> 122 | Z10: =COUNTIF(L35:L62,Y10) -> 8 | AA10: =Z10/(AB4-Z8) -> 0.3333333333 | AB10: =IF(AA10=0,0,(AA10*((LOG(AA10))/LOG(2)))) -> -0.5283208336 | AD10: =N10 -> 122 | AE10: =COUNTIF(L63:L90,AD10) -> 5 | AF10: =AE10/(AG4-AE8) -> 0.25 | AG10: =IF(AF10=0,0,(AF10*((LOG(AF10))/LOG(2)))) -> -0.5 | AI10: =N10 -> 122 | AJ10: =COUNTIF(L91:L118,AI10) -> 10 | AK10: =AJ10/(AL4-AJ8) -> 0.4 | AL10: =IF(AK10=0,0,(AK10*((LOG(AK10))/LOG(2)))) -> -0.528771238 | AN10: =N10 -> 122 | AO10: =COUNTIF(L119:L146,AN10) -> 10 | AP10: =AO10/(AQ4-AO8) -> 0.3703703704 | AQ10: =IF(AP10=0,0,(AP10*((LOG(AP10))/LOG(2)))) -> -0.5307257064 | AS10: =N10 -> 122 | AT10: =COUNTIF(L147:L174,AS10) -> 9 | AU10: =AT10/(AV4-AT8) -> 0.3461538462 | AV10: =IF(AU10=0,0,(AU10*((LOG(AU10))/LOG(2)))) -> -0.5297935558
A11: 11 | B11: 817 | C11: 11 | D11: 822 | E11: 21 | F11: 832 | K11: 0 | L11: 112 | N11: 211 | O11: =COUNTIF($L$7:$L$500,N11) -> 4 | P11: =O11/$Q$4 -> 0.02380952381 | Q11: =IF(P11=0,0,(P11*((LOG(P11))/LOG(2)))) -> -0.1283885101 | T11: =N11 -> 211 | U11: =COUNTIF(L7:L34,T11) -> 0 | V11: =U11/(W4-U8) -> 0 | W11: =IF(V11=0,0,(V11*((LOG(V11))/LOG(2)))) -> 0 | Y11: =N11 -> 211 | Z11: =COUNTIF(L35:L62,Y11) -> 1 | AA11: =Z11/(AB4-Z8) -> 0.04166666667 | AB11: =IF(AA11=0,0,(AA11*((LOG(AA11))/LOG(2)))) -> -0.1910401042 | AD11: =N11 -> 211 | AE11: =COUNTIF(L63:L90,AD11) -> 1 | AF11: =AE11/(AG4-AE8) -> 0.05 | AG11: =IF(AF11=0,0,(AF11*((LOG(AF11))/LOG(2)))) -> -0.2160964047 | AI11: =N11 -> 211 | AJ11: =COUNTIF(L91:L118,AI11) -> 1 | AK11: =AJ11/(AL4-AJ8) -> 0.04 | AL11: =IF(AK11=0,0,(AK11*((LOG(AK11))/LOG(2)))) -> -0.1857542476 | AN11: =N11 -> 211 | AO11: =COUNTIF(L119:L146,AN11) -> 0 | AP11: =AO11/(AQ4-AO8) -> 0 | AQ11: =IF(AP11=0,0,(AP11*((LOG(AP11))/LOG(2)))) -> 0 | AS11: =N11 -> 211 | AT11: =COUNTIF(L147:L174,AS11) -> 1 | AU11: =AT11/(AV4-AT8) -> 0.03846153846 | AV11: =IF(AU11=0,0,(AU11*((LOG(AU11))/LOG(2)))) -> -0.180786143
A12: 11 | B12: 1095 | C12: 22 | D12: 1103 | E12: 23 | F12: 1110 | K12: 0 | L12: 122 | N12: 212 | O12: =COUNTIF($L$7:$L$500,N12) -> 26 | P12: =O12/$Q$4 -> 0.1547619048 | Q12: =IF(P12=0,0,(P12*((LOG(P12))/LOG(2)))) -> -0.416600121 | T12: =N12 -> 212 | U12: =COUNTIF(L7:L34,T12) -> 2 | V12: =U12/(W4-U8) -> 0.08 | W12: =IF(V12=0,0,(V12*((LOG(V12))/LOG(2)))) -> -0.2915084952 | Y12: =N12 -> 212 | Z12: =COUNTIF(L35:L62,Y12) -> 4 | AA12: =Z12/(AB4-Z8) -> 0.1666666667 | AB12: =IF(AA12=0,0,(AA12*((LOG(AA12))/LOG(2)))) -> -0.4308270835 | AD12: =N12 -> 212 | AE12: =COUNTIF(L63:L90,AD12) -> 6 | AF12: =AE12/(AG4-AE8) -> 0.3 | AG12: =IF(AF12=0,0,(AF12*((LOG(AF12))/LOG(2)))) -> -0.5210896782 | AI12: =N12 -> 212 | AJ12: =COUNTIF(L91:L118,AI12) -> 4 | AK12: =AJ12/(AL4-AJ8) -> 0.16 | AL12: =IF(AK12=0,0,(AK12*((LOG(AK12))/LOG(2)))) -> -0.4230169904 | AN12: =N12 -> 212 | AO12: =COUNTIF(L119:L146,AN12) -> 7 | AP12: =AO12/(AQ4-AO8) -> 0.2592592593 | AQ12: =IF(AP12=0,0,(AP12*((LOG(AP12))/LOG(2)))) -> -0.5049158541 | AS12: =N12 -> 212 | AT12: =COUNTIF(L147:L174,AS12) -> 3 | AU12: =AT12/(AV4-AT8) -> 0.1153846154 | AV12: =IF(AU12=0,0,(AU12*((LOG(AU12))/LOG(2)))) -> -0.3594781405
A13: 11 | B13: 1206 | C13: 22 | D13: 1215 | E13: 23 | F13: 1220 | K13: 0 | L13: 122 | N13: 221 | O13: =COUNTIF($L$7:$L$500,N13) -> 8 | P13: =O13/$Q$4 -> 0.04761904762 | Q13: =IF(P13=0,0,(P13*((LOG(P13))/LOG(2)))) -> -0.2091579725 | T13: =N13 -> 221 | U13: =COUNTIF(L7:L34,T13) -> 0 | V13: =U13/(W4-U8) -> 0 | W13: =IF(V13=0,0,(V13*((LOG(V13))/LOG(2)))) -> 0 | Y13: =N13 -> 221 | Z13: =COUNTIF(L35:L62,Y13) -> 1 | AA13: =Z13/(AB4-Z8) -> 0.04166666667 | AB13: =IF(AA13=0,0,(AA13*((LOG(AA13))/LOG(2)))) -> -0.1910401042 | AD13: =N13 -> 221 | AE13: =COUNTIF(L63:L90,AD13) -> 2 | AF13: =AE13/(AG4-AE8) -> 0.1 | AG13: =IF(AF13=0,0,(AF13*((LOG(AF13))/LOG(2)))) -> -0.3321928095 | AI13: =N13 -> 221 | AJ13: =COUNTIF(L91:L118,AI13) -> 2 | AK13: =AJ13/(AL4-AJ8) -> 0.08 | AL13: =IF(AK13=0,0,(AK13*((LOG(AK13))/LOG(2)))) -> -0.2915084952 | AN13: =N13 -> 221 | AO13: =COUNTIF(L119:L146,AN13) -> 3 | AP13: =AO13/(AQ4-AO8) -> 0.1111111111 | AQ13: =IF(AP13=0,0,(AP13*((LOG(AP13))/LOG(2)))) -> -0.352213889 | AS13: =N13 -> 221 | AT13: =COUNTIF(L147:L174,AS13) -> 0 | AU13: =AT13/(AV4-AT8) -> 0 | AV13: =IF(AU13=0,0,(AU13*((LOG(AU13))/LOG(2)))) -> 0
A14: 11 | B14: 1382 | C14: 22 | D14: 1389 | E14: 14 | F14: 1400 | K14: 0 | L14: 121 | N14: 222 | O14: =COUNTIF($L$7:$L$500,N14) -> 40 | P14: =O14/$Q$4 -> 0.2380952381 | Q14: =IF(P14=0,0,(P14*((LOG(P14))/LOG(2)))) -> -0.49294984 | T14: =N14 -> 222 | U14: =COUNTIF(L7:L34,T14) -> 7 | V14: =U14/(W4-U8) -> 0.28 | W14: =IF(V14=0,0,(V14*((LOG(V14))/LOG(2)))) -> -0.514220355 | Y14: =N14 -> 222 | Z14: =COUNTIF(L35:L62,Y14) -> 7 | AA14: =Z14/(AB4-Z8) -> 0.2916666667 | AB14: =IF(AA14=0,0,(AA14*((LOG(AA14))/LOG(2)))) -> -0.5184688771 | AD14: =N14 -> 222 | AE14: =COUNTIF(L63:L90,AD14) -> 6 | AF14: =AE14/(AG4-AE8) -> 0.3 | AG14: =IF(AF14=0,0,(AF14*((LOG(AF14))/LOG(2)))) -> -0.5210896782 | AI14: =N14 -> 222 | AJ14: =COUNTIF(L91:L118,AI14) -> 6 | AK14: =AJ14/(AL4-AJ8) -> 0.24 | AL14: =IF(AK14=0,0,(AK14*((LOG(AK14))/LOG(2)))) -> -0.4941344854 | AN14: =N14 -> 222 | AO14: =COUNTIF(L119:L146,AN14) -> 4 | AP14: =AO14/(AQ4-AO8) -> 0.1481481481 | AQ14: =IF(AP14=0,0,(AP14*((LOG(AP14))/LOG(2)))) -> -0.4081314818 | AS14: =N14 -> 222 | AT14: =COUNTIF(L147:L174,AS14) -> 10 | AU14: =AT14/(AV4-AT8) -> 0.3846153846 | AV14: =IF(AU14=0,0,(AU14*((LOG(AU14))/LOG(2)))) -> -0.5301967782
A15: 22 | B15: 1541 | C15: 24 | D15: 1552 | E15: 23 | F15: 1558 | K15: 0 | L15: 222 | P15: =SUM(P7:P14) -> 1 | Q15: =-SUM(Q7:Q14) -> 2.505005381 | V15: =SUM(V7:V14) -> 1 | W15: =-SUM(W7:W14) -> 1.645678055 | AA15: =SUM(AA7:AA14) -> 1 | AB15: =-SUM(AB7:AB14) -> 2.234697003 | AF15: =SUM(AF7:AF14) -> 1 | AG15: =-SUM(AG7:AG14) -> 2.090468571 | AK15: =SUM(AK7:AK14) -> 1 | AL15: =-SUM(AL7:AL14) -> 2.214693952 | AP15: =SUM(AP7:AP14) -> 1 | AQ15: =-SUM(AQ7:AQ14) -> 2.14820082 | AU15: =SUM(AU7:AU14) -> 1 | AV15: =-SUM(AV7:AV14) -> 2.06568997
A16: 22 | B16: 1657 | C16: 24 | D16: 1668 | E16: 23 | F16: 1673 | K16: 0 | L16: 222 | P16: U= | Q16: =Q15/(LOG(Q4)/LOG(2)) -> 0.3388660467 | V16: U1= | W16: =W15/(LOG(W4)/LOG(2)) -> 0.3423250586 | AA16: U2= | AB16: =AB15/(LOG(AB4)/LOG(2)) -> 0.4648495979 | AF16: U3= | AG16: =AG15/(LOG(AG4)/LOG(2)) -> 0.4348479787 | AK16: U4= | AL16: =AL15/(LOG(AL4)/LOG(2)) -> 0.4606886713 | AP16: U5= | AQ16: =AQ15/(LOG(AQ4)/LOG(2)) -> 0.4468571294 | AU16: U6= | AV16: =AV15/(LOG(AV4)/LOG(2)) -> 0.4296936679
A17: 22 | B17: 1771 | C17: 13 | D17: 1780 | E17: 23 | F17: 1793 | K17: 0 | L17: 212
A18: 11 | B18: 1885 | C18: 11 | D18: 1892 | E18: 21 | F18: 1903 | K18: 0 | L18: 112
A19: 22 | B19: 1993 | C19: 24 | D19: 2016 | E19: 23 | F19: 2023 | K19: 0 | L19: 222 | N19: Total Target Seq
A20: 22 | B20: 2120 | C20: 24 | D20: 2140 | E20: 23 | F20: 2147 | K20: 0 | L20: 222 | N20: =COUNTIF(L7:L174,G3) -> 21 | P20: 28 | Q20: 28 | R20: 28 | S20: 28 | T20: 28 | U20: 28
A21: 22 | B21: 2245 | C21: 24 | D21: 2250 | E21: 23 | F21: 2257 | K21: 0 | L21: 222 | P21: % of reinforcement given in 6 equal intervals based on number of trials
A22: 11 | B22: 2350 | C22: 11 | D22: 2354 | E22: 12 | F22: 2361 | K22: 0 | L22: 111 | P22: %_1 | Q22: %_2 | R22: %_3 | S22: %_4 | T22: %_5 | U22: %_6
A23: 11 | B23: 2464 | C23: 22 | D23: 2473 | E23: 23 | F23: 2480 | K23: 0 | L23: 122 | O23: target sequence | P23: =$G$3 -> 112 | Q23: =$G$3 -> 112 | R23: =$G$3 -> 112 | S23: =$G$3 -> 112 | T23: =$G$3 -> 112 | U23: =$G$3 -> 112
A24: 11 | B24: 2575 | C24: 22 | D24: 2592 | E24: 23 | F24: 2598 | K24: 0 | L24: 122 | O24: total reinforcement | P24: =U8 -> 3 | Q24: =Z8 -> 4 | R24: =AE8 -> 8 | S24: =AJ8 -> 3 | T24: =AO8 -> 1 | U24: =AT8 -> 2
A25: 11 | B25: 2695 | C25: 22 | D25: 2704 | E25: 23 | F25: 2709 | K25: 0 | L25: 122 | O25: % target
A26: 11 | B26: 2824 | C26: 22 | D26: 2833 | E26: 23 | F26: 2837 | K26: 0 | L26: 122 | O26: CCRF
A27: 11 | B27: 2935 | C27: 22 | D27: 2950 | E27: 23 | F27: 2956 | K27: 0 | L27: 122 | O27: % CCRf
A28: 22 | B28: 3052 | C28: 24 | D28: 3057 | E28: 23 | F28: 3064 | K28: 0 | L28: 222 | O28: average response rate | P28: =F34/P20 -> 134.0714286 | Q28: =(F62-F34)/Q20 -> 180.75 | R28: =(F90-F62)/R20 -> 132.1785714 | S28: =(F118-F90)/S20 -> 121.8928571 | T28: =(F146-F118)/T20 -> 122.6428571 | U28: =(F174-F146)/U20 -> 165.3928571
A29: 11 | B29: 3161 | C29: 22 | D29: 3170 | E29: 23 | F29: 3181 | K29: 0 | L29: 122
A30: 11 | B30: 3283 | C30: 22 | D30: 3293 | E30: 23 | F30: 3299 | K30: 0 | L30: 122
A31: 22 | B31: 3393 | C31: 13 | D31: 3403 | E31: 23 | F31: 3417 | K31: 0 | L31: 212
A32: 22 | B32: 3514 | C32: 24 | D32: 3518 | E32: 23 | F32: 3523 | K32: 0 | L32: 222
A33: 11 | B33: 3619 | C33: 22 | D33: 3630 | E33: 23 | F33: 3636 | K33: 0 | L33: 122
A34: 11 | B34: 3740 | C34: 22 | D34: 3749 | E34: 23 | F34: 3754 | K34: 0 | L34: 122
A35: 11 | B35: 3857 | C35: 22 | D35: 3864 | E35: 23 | F35: 3869 | K35: 0 | L35: 122
A36: 11 | B36: 3965 | C36: 11 | D36: 3970 | E36: 21 | F36: 3979 | K36: 0 | L36: 112
A37: 22 | B37: 4122 | C37: 13 | D37: 4132 | E37: 23 | F37: 4139 | K37: 0 | L37: 212
A38: 11 | B38: 4234 | C38: 11 | D38: 4238 | E38: 21 | F38: 4254 | K38: 0 | L38: 112
A39: 22 | B39: 4475 | C39: 24 | D39: 4481 | E39: 23 | F39: 4488 | K39: 0 | L39: 222
A40: 22 | B40: 4584 | C40: 13 | D40: 4594 | E40: 23 | F40: 4615 | K40: 0 | L40: 212
A41: 22 | B41: 4781 | C41: 24 | D41: 4787 | E41: 23 | F41: 4794 | K41: 0 | L41: 222
A42: 11 | B42: 4889 | C42: 22 | D42: 4905 | E42: 23 | F42: 4910 | K42: 0 | L42: 122
A43: 11 | B43: 5011 | C43: 22 | D43: 5020 | E43: 14 | F43: 5029 | K43: 0 | L43: 121
A44: 11 | B44: 5127 | C44: 22 | D44: 5138 | E44: 23 | F44: 5147 | K44: 0 | L44: 122
A45: 22 | B45: 5244 | C45: 13 | D45: 5251 | E45: 23 | F45: 5260 | K45: 0 | L45: 212
A46: 11 | B46: 5359 | C46: 22 | D46: 5370 | E46: 23 | F46: 5374 | K46: 0 | L46: 122
A47: 11 | B47: 5473 | C47: 22 | D47: 5482 | E47: 23 | F47: 5492 | K47: 0 | L47: 122
A48: 11 | B48: 5588 | C48: 22 | D48: 5599 | E48: 14 | F48: 5621 | K48: 0 | L48: 121
A49: 11 | B49: 5716 | C49: 22 | D49: 5727 | E49: 14 | F49: 5741 | K49: 0 | L49: 121
A50: 22 | B50: 7222 | C50: 24 | D50: 7230 | E50: 23 | F50: 7260 | K50: 0 | L50: 222
A51: 11 | B51: 7357 | C51: 11 | D51: 7360 | E51: 21 | F51: 7370 | K51: 0 | L51: 112
A52: 11 | B52: 7542 | C52: 22 | D52: 7555 | E52: 23 | F52: 7561 | K52: 0 | L52: 122
A53: 22 | B53: 7668 | C53: 13 | D53: 7680 | E53: 23 | F53: 7690 | K53: 0 | L53: 212
A54: 22 | B54: 7786 | C54: 24 | D54: 7793 | E54: 23 | F54: 7799 | K54: 0 | L54: 222
A55: 22 | B55: 7914 | C55: 24 | D55: 7919 | E55: 23 | F55: 7925 | K55: 0 | L55: 222
A56: 11 | B56: 8022 | C56: 22 | D56: 8034 | E56: 23 | F56: 8041 | K56: 0 | L56: 122
A57: 22 | B57: 8153 | C57: 24 | D57: 8157 | E57: 14 | F57: 8173 | K57: 0 | L57: 221
A58: 22 | B58: 8268 | C58: 24 | D58: 8289 | E58: 23 | F58: 8295 | K58: 0 | L58: 222
A59: 11 | B59: 8398 | C59: 11 | D59: 8404 | E59: 21 | F59: 8413 | K59: 0 | L59: 112
A60: 22 | B60: 8537 | C60: 13 | D60: 8548 | E60: 14 | F60: 8552 | K60: 0 | L60: 211
A61: 11 | B61: 8692 | C61: 22 | D61: 8701 | E61: 23 | F61: 8710 | K61: 0 | L61: 122
A62: 22 | B62: 8804 | C62: 24 | D62: 8811 | E62: 23 | F62: 8815 | K62: 0 | L62: 222
A63: 22 | B63: 8909 | C63: 13 | D63: 8928 | E63: 23 | F63: 8943 | K63: 0 | L63: 212
A64: 11 | B64: 9048 | C64: 22 | D64: 9057 | E64: 23 | F64: 9067 | K64: 0 | L64: 122
A65: 11 | B65: 9159 | C65: 22 | D65: 9168 | E65: 23 | F65: 9173 | K65: 0 | L65: 122
A66: 11 | B66: 9267 | C66: 22 | D66: 9277 | E66: 23 | F66: 9282 | K66: 0 | L66: 122
A67: 22 | B67: 9397 | C67: 13 | D67: 9412 | E67: 23 | F67: 9430 | K67: 0 | L67: 212
A68: 11 | B68: 9525 | C68: 11 | D68: 9528 | E68: 21 | F68: 9536 | K68: 0 | L68: 112
A69: 22 | B69: 9709 | C69: 24 | D69: 9728 | E69: 23 | F69: 9734 | K69: 0 | L69: 222
A70: 11 | B70: 9830 | C70: 11 | D70: 9835 | E70: 21 | F70: 9850 | K70: 0 | L70: 112
A71: 22 | B71: 10005 | C71: 24 | D71: 10029 | E71: 23 | F71: 10033 | K71: 0 | L71: 222
A72: 11 | B72: 10128 | C72: 11 | D72: 10132 | E72: 21 | F72: 10154 | K72: 0 | L72: 112
A73: 22 | B73: 10282 | C73: 13 | D73: 10303 | E73: 23 | F73: 10322 | K73: 0 | L73: 212
A74: 11 | B74: 10415 | C74: 11 | D74: 10422 | E74: 21 | F74: 10432 | K74: 0 | L74: 112
A75: 22 | B75: 10563 | C75: 24 | D75: 10567 | E75: 14 | F75: 10583 | K75: 0 | L75: 221
A76: 11 | B76: 10676 | C76: 22 | D76: 10693 | E76: 23 | F76: 10701 | K76: 0 | L76: 122
A77: 11 | B77: 10802 | C77: 11 | D77: 10806 | E77: 21 | F77: 10815 | K77: 0 | L77: 112
A78: 22 | B78: 10912 | C78: 24 | D78: 10942 | E78: 23 | F78: 10958 | K78: 0 | L78: 222
A79: 11 | B79: 11052 | C79: 11 | D79: 11057 | E79: 21 | F79: 11071 | K79: 0 | L79: 112
A80: 22 | B80: 11175 | C80: 13 | D80: 11190 | E80: 23 | F80: 11204 | K80: 0 | L80: 212
A81: 22 | B81: 11367 | C81: 13 | D81: 11377 | E81: 23 | F81: 11386 | K81: 0 | L81: 212
A82: 22 | B82: 11484 | C82: 24 | D82: 11490 | E82: 23 | F82: 11500 | K82: 0 | L82: 222
A83: 22 | B83: 11599 | C83: 24 | D83: 11604 | E83: 23 | F83: 11612 | K83: 0 | L83: 222
A84: 11 | B84: 11705 | C84: 11 | D84: 11711 | E84: 21 | F84: 11722 | K84: 0 | L84: 112
A85: 22 | B85: 11898 | C85: 13 | D85: 11906 | E85: 23 | F85: 11928 | K85: 0 | L85: 212
A86: 22 | B86: 12025 | C86: 24 | D86: 12029 | E86: 14 | F86: 12049 | K86: 0 | L86: 221
A87: 22 | B87: 12163 | C87: 24 | D87: 12170 | E87: 23 | F87: 12178 | K87: 0 | L87: 222
A88: 22 | B88: 12275 | C88: 13 | D88: 12288 | E88: 14 | F88: 12295 | K88: 0 | L88: 211
A89: 11 | B89: 12390 | C89: 22 | D89: 12401 | E89: 23 | F89: 12407 | K89: 0 | L89: 122
A90: 11 | B90: 12500 | C90: 11 | D90: 12502 | E90: 21 | F90: 12516 | K90: 0 | L90: 112
A91: 22 | B91: 12627 | C91: 24 | D91: 12649 | E91: 23 | F91: 12653 | K91: 0 | L91: 222
A92: 22 | B92: 12751 | C92: 13 | D92: 12762 | E92: 23 | F92: 12787 | K92: 0 | L92: 212
A93: 11 | B93: 12883 | C93: 22 | D93: 12893 | E93: 23 | F93: 12900 | K93: 0 | L93: 122
A94: 11 | B94: 12995 | C94: 22 | D94: 13004 | E94: 23 | F94: 13012 | K94: 0 | L94: 122
A95: 11 | B95: 13104 | C95: 11 | D95: 13107 | E95: 12 | F95: 13108 | K95: 0 | L95: 111
A96: 11 | B96: 13203 | C96: 11 | D96: 13207 | E96: 12 | F96: 13210 | K96: 0 | L96: 111
A97: 22 | B97: 13309 | C97: 13 | D97: 13318 | E97: 14 | F97: 13325 | K97: 0 | L97: 211
A98: 22 | B98: 13423 | C98: 13 | D98: 13430 | E98: 23 | F98: 13440 | K98: 0 | L98: 212
A99: 22 | B99: 13537 | C99: 24 | D99: 13541 | E99: 23 | F99: 13546 | K99: 0 | L99: 222
A100: 11 | B100: 13639 | C100: 11 | D100: 13645 | E100: 21 | F100: 13658 | K100: 0 | L100: 112
A101: 11 | B101: 13819 | C101: 22 | D101: 13826 | E101: 23 | F101: 13834 | K101: 0 | L101: 122
A102: 22 | B102: 13931 | C102: 24 | D102: 13936 | E102: 23 | F102: 13940 | K102: 0 | L102: 222
A103: 11 | B103: 14038 | C103: 22 | D103: 14053 | E103: 23 | F103: 14062 | K103: 0 | L103: 122
A104: 11 | B104: 14189 | C104: 22 | D104: 14201 | E104: 23 | F104: 14214 | K104: 0 | L104: 122
A105: 11 | B105: 14309 | C105: 22 | D105: 14318 | E105: 23 | F105: 14323 | K105: 0 | L105: 122
A106: 22 | B106: 14420 | C106: 13 | D106: 14433 | E106: 23 | F106: 14451 | K106: 0 | L106: 212
A107: 11 | B107: 14547 | C107: 22 | D107: 14555 | E107: 23 | F107: 14563 | K107: 0 | L107: 122
A108: 22 | B108: 14659 | C108: 24 | D108: 14663 | E108: 23 | F108: 14670 | K108: 0 | L108: 222
A109: 22 | B109: 14765 | C109: 24 | D109: 14774 | E109: 14 | F109: 14789 | K109: 0 | L109: 221
A110: 11 | B110: 14884 | C110: 11 | D110: 14887 | E110: 21 | F110: 14900 | K110: 0 | L110: 112
A111: 22 | B111: 14991 | C111: 24 | D111: 14998 | E111: 14 | F111: 15007 | K111: 0 | L111: 221
A112: 11 | B112: 15112 | C112: 22 | D112: 15136 | E112: 23 | F112: 15147 | K112: 0 | L112: 122
A113: 11 | B113: 15246 | C113: 11 | D113: 15260 | E113: 21 | F113: 15267 | K113: 0 | L113: 112
A114: 22 | B114: 15413 | C114: 24 | D114: 15437 | E114: 23 | F114: 15445 | K114: 0 | L114: 222
A115: 22 | B115: 15543 | C115: 13 | D115: 15554 | E115: 23 | F115: 15578 | K115: 0 | L115: 212
A116: 11 | B116: 15673 | C116: 22 | D116: 15682 | E116: 23 | F116: 15704 | K116: 0 | L116: 122
A117: 11 | B117: 15799 | C117: 22 | D117: 15808 | E117: 23 | F117: 15813 | K117: 0 | L117: 122
A118: 22 | B118: 15912 | C118: 24 | D118: 15921 | E118: 23 | F118: 15929 | K118: 0 | L118: 222
A119: 11 | B119: 16022 | C119: 11 | D119: 16026 | E119: 21 | F119: 16043 | K119: 0 | L119: 112
A120: 22 | B120: 16141 | C120: 24 | D120: 16155 | E120: 23 | F120: 16159 | K120: 0 | L120: 222
A121: 22 | B121: 16261 | C121: 13 | D121: 16270 | E121: 23 | F121: 16296 | K121: 0 | L121: 212
A122: 11 | B122: 16392 | C122: 22 | D122: 16400 | E122: 23 | F122: 16406 | K122: 0 | L122: 122
A123: 22 | B123: 16502 | C123: 24 | D123: 16505 | E123: 23 | F123: 16511 | K123: 0 | L123: 222
A124: 11 | B124: 16605 | C124: 22 | D124: 16613 | E124: 14 | F124: 16627 | K124: 0 | L124: 121
A125: 22 | B125: 16724 | C125: 24 | D125: 16743 | E125: 23 | F125: 16753 | K125: 0 | L125: 222
A126: 11 | B126: 16849 | C126: 22 | D126: 16856 | E126: 23 | F126: 16860 | K126: 0 | L126: 122
A127: 22 | B127: 16957 | C127: 13 | D127: 16968 | E127: 23 | F127: 16980 | K127: 0 | L127: 212
A128: 22 | B128: 17075 | C128: 13 | D128: 17084 | E128: 23 | F128: 17104 | K128: 0 | L128: 212
A129: 11 | B129: 17292 | C129: 22 | D129: 17299 | E129: 14 | F129: 17310 | K129: 0 | L129: 121
A130: 22 | B130: 17408 | C130: 24 | D130: 17413 | E130: 14 | F130: 17423 | K130: 0 | L130: 221
A131: 22 | B131: 17521 | C131: 13 | D131: 17530 | E131: 23 | F131: 17548 | K131: 0 | L131: 212
A132: 22 | B132: 17641 | C132: 24 | D132: 17646 | E132: 14 | F132: 17659 | K132: 0 | L132: 221
A133: 11 | B133: 17759 | C133: 22 | D133: 17771 | E133: 23 | F133: 17779 | K133: 0 | L133: 122
A134: 11 | B134: 17872 | C134: 22 | D134: 17881 | E134: 23 | F134: 17885 | K134: 0 | L134: 122
A135: 22 | B135: 17979 | C135: 13 | D135: 17990 | E135: 23 | F135: 17999 | K135: 0 | L135: 212
A136: 11 | B136: 18168 | C136: 22 | D136: 18175 | E136: 23 | F136: 18179 | K136: 0 | L136: 122
A137: 22 | B137: 18273 | C137: 13 | D137: 18284 | E137: 23 | F137: 18299 | K137: 0 | L137: 212
A138: 11 | B138: 18398 | C138: 22 | D138: 18409 | E138: 23 | F138: 18413 | K138: 0 | L138: 122
A139: 11 | B139: 18506 | C139: 22 | D139: 18520 | E139: 23 | F139: 18526 | K139: 0 | L139: 122
A140: 11 | B140: 18621 | C140: 22 | D140: 18631 | E140: 23 | F140: 18639 | K140: 0 | L140: 122
A141: 11 | B141: 18744 | C141: 22 | D141: 18757 | E141: 23 | F141: 18765 | K141: 0 | L141: 122
A142: 11 | B142: 18894 | C142: 22 | D142: 18901 | E142: 14 | F142: 18912 | K142: 0 | L142: 121
A143: 11 | B143: 19007 | C143: 22 | D143: 19016 | E143: 23 | F143: 19022 | K143: 0 | L143: 122
A144: 22 | B144: 19118 | C144: 13 | D144: 19125 | E144: 23 | F144: 19136 | K144: 0 | L144: 212
A145: 22 | B145: 19235 | C145: 24 | D145: 19243 | E145: 23 | F145: 19247 | K145: 0 | L145: 222
A146: 22 | B146: 19345 | C146: 24 | D146: 19348 | E146: 14 | F146: 19363 | K146: 0 | L146: 221
A147: 22 | B147: 19465 | C147: 24 | D147: 19472 | E147: 23 | F147: 19478 | K147: 0 | L147: 222
A148: 22 | B148: 19587 | C148: 24 | D148: 19609 | E148: 23 | F148: 19615 | K148: 0 | L148: 222
A149: 11 | B149: 19711 | C149: 22 | D149: 19721 | E149: 23 | F149: 19727 | K149: 0 | L149: 122
A150: 11 | B150: 19820 | C150: 11 | D150: 19826 | E150: 21 | F150: 19841 | K150: 0 | L150: 112
A151: 22 | B151: 20087 | C151: 24 | D151: 20111 | E151: 23 | F151: 20118 | K151: 0 | L151: 222
A152: 22 | B152: 20213 | C152: 13 | D152: 20220 | E152: 23 | F152: 20230 | K152: 0 | L152: 212
A153: 11 | B153: 20322 | C153: 22 | D153: 20337 | E153: 23 | F153: 20342 | K153: 0 | L153: 122
A154: 11 | B154: 20437 | C154: 22 | D154: 20446 | E154: 23 | F154: 20449 | K154: 0 | L154: 122
A155: 11 | B155: 20554 | C155: 22 | D155: 20568 | E155: 23 | F155: 20574 | K155: 0 | L155: 122
A156: 11 | B156: 20697 | C156: 22 | D156: 20704 | E156: 23 | F156: 20708 | K156: 0 | L156: 122
A157: 22 | B157: 20920 | C157: 13 | D157: 20966 | E157: 23 | F157: 20972 | K157: 0 | L157: 212
A158: 22 | B158: 21068 | C158: 24 | D158: 21074 | E158: 23 | F158: 21081 | K158: 0 | L158: 222
A159: 11 | B159: 21303 | C159: 22 | D159: 21308 | E159: 14 | F159: 21320 | K159: 0 | L159: 121
A160: 22 | B160: 21422 | C160: 24 | D160: 21427 | E160: 23 | F160: 21432 | K160: 0 | L160: 222
A161: 11 | B161: 21534 | C161: 22 | D161: 21545 | E161: 23 | F161: 21551 | K161: 0 | L161: 122
A162: 22 | B162: 21782 | C162: 24 | D162: 21785 | E162: 23 | F162: 21788 | K162: 0 | L162: 222
A163: 11 | B163: 21882 | C163: 11 | D163: 21886 | E163: 21 | F163: 21894 | K163: 0 | L163: 112
A164: 11 | B164: 22085 | C164: 22 | D164: 22092 | E164: 23 | F164: 22098 | K164: 0 | L164: 122
A165: 22 | B165: 22193 | C165: 24 | D165: 22211 | E165: 23 | F165: 22217 | K165: 0 | L165: 222
A166: 11 | B166: 22309 | C166: 11 | D166: 22314 | E166: 12 | F166: 22316 | K166: 0 | L166: 111
A167: 11 | B167: 22735 | C167: 22 | D167: 22742 | E167: 23 | F167: 22745 | K167: 0 | L167: 122
A168: 22 | B168: 22983 | C168: 24 | D168: 22988 | E168: 23 | F168: 22993 | K168: 0 | L168: 222
A169: 22 | B169: 23091 | C169: 24 | D169: 23097 | E169: 23 | F169: 23102 | K169: 0 | L169: 222
A170: 11 | B170: 23197 | C170: 22 | D170: 23206 | E170: 23 | F170: 23212 | K170: 0 | L170: 122
A171: 22 | B171: 23306 | C171: 13 | D171: 23316 | E171: 14 | F171: 23321 | K171: 0 | L171: 211
A172: 22 | B172: 23522 | C172: 24 | D172: 23528 | E172: 23 | F172: 23535 | K172: 0 | L172: 222
A173: 22 | B173: 23629 | C173: 13 | D173: 23637 | E173: 23 | F173: 23646 | K173: 0 | L173: 212
A174: 11 | B174: 23973 | C174: 22 | D174: 23984 | E174: 14 | F174: 23994 | L174: 121

Sheet !MB12A2I.sha
A1: Report for:!MB12A2I.sha
A2: Date: | B2: <date>
A3: Hen: | B3: <hen> | F3: Correct Sequence | G3: =Start!J2 -> 112 | P3: Total Sequences in Data | Q3: =4994-COUNTBLANK(L7:L5000) -> 136 | V3: Total Sequences in Block Data | W3: =COUNTA(L7:L29) -> 23 | AA3: Total Sequences in Block Data | AB3: =COUNTA(L30:L51) -> 22 | AF3: Total Sequences in Block Data | AG3: =COUNTA(L52:L74) -> 23 | AK3: Total Sequences in Block Data | AL3: =COUNTA(L75:L97) -> 23 | AP3: Total Sequences in Block Data | AQ3: =COUNTA(L98:L119) -> 22 | AU3: Total Sequences in Block Data | AV3: =COUNTA(L120:L142) -> 23
P4: Total Sequences in Summary | Q4: =SUM(O7:O14) -> 136 | V4: Total Sequences in Block Summary | W4: =SUM(U7:U14) -> 23 | AA4: Total Sequences in Block Summary | AB4: =SUM(Z7:Z14) -> 22 | AF4: Total Sequences in Block Summary | AG4: =SUM(AE7:AE14) -> 23 | AK4: Total Sequences in Block Summary | AL4: =SUM(AJ7:AJ14) -> 23 | AP4: Total Sequences in Block Summary | AQ4: =SUM(AO7:AO14) -> 22 | AU4: Total Sequences in Block Summary | AV4: =SUM(AT7:AT14) -> 23
T5: Block 1 | Y5: Block 2 | AD5: Block 3 | AI5: Block 4 | AN5: Block 5 | AS5: Block 6
A6: Sequence Component 1 | B6: Time 1 | C6: Sequence Component 2 | D6: Time 2 | E6: Sequence Component 3 | F6: Time 3 | G6: Sequence Component 4 | H6: Time 4 | I6: Sequence Component 5 | J6: Time 5 | K6: Correct? 0=No 1=Yes | L6: Sequence | N6: Frequency | P6: Relative Frequency | Q6: Variability | T6: Frequency | V6: Relative Frequency | W6: Variability | Y6: Frequency | AA6: Relative Frequency | AB6: Variability | AD6: Frequency | AF6: Relative Frequency | AG6: Variability | AI6: Frequency | AK6: Relative Frequency | AL6: Variability | AN6: Frequency | AP6: Relative Frequency | AQ6: Variability | AS6: Frequency | AU6: Relative Frequency | AV6: Variability
A7: 11 | B7: 16 | C7: 22 | D7: 27 | E7: 23 | F7: 32 | K7: 0 | L7: 122 | N7: 111 | O7: =COUNTIF($L$7:$L$500,N7) -> 10 | P7: =O7/$Q$4 -> 0.07352941176 | Q7: =IF(P7=0,0,(P7*((LOG(P7))/LOG(2)))) -> -0.2768775549 | T7: =N7 -> 111 | U7: =COUNTIF(L7:L29,T7) -> 0 | V7: =U7/(W4-U8) -> 0 | W7: =IF(V7=0,0,(V7*((LOG(V7))/LOG(2)))) -> 0 | Y7: =N7 -> 111 | Z7: =COUNTIF(L30:L51,Y7) -> 2 | AA7: =Z7/(AB4-Z8) -> 0.1333333333 | AB7: =IF(AA7=0,0,(AA7*((LOG(AA7))/LOG(2)))) -> -0.3875854127 | AD7: =N7 -> 111 | AE7: =COUNTIF(L52:L74,AD7) -> 2 | AF7: =AE7/(AG4-AE8) -> 0.125 | AG7: =IF(AF7=0,0,(AF7*((LOG(AF7))/LOG(2)))) -> -0.375 | AI7: =N7 -> 111 | AJ7: =COUNTIF(L75:L97,AI7) -> 2 | AK7: =AJ7/(AL4-AJ8) -> 0.1333333333 | AL7: =IF(AK7=0,0,(AK7*((LOG(AK7))/LOG(2)))) -> -0.3875854127 | AN7: =N7 -> 111 | AO7: =COUNTIF(L98:L119,AN7) -> 3 | AP7: =AO7/(AQ4-AO8) -> 0.2 | AQ7: =IF(AP7=0,0,(AP7*((LOG(AP7))/LOG(2)))) -> -0.464385619 | AS7: =N7 -> 111 | AT7: =COUNTIF(L120:L142,AS7) -> 1 | AU7: =AT7/(AV4-AT8) -> 0.06666666667 | AV7: =IF(AU7=0,0,(AU7*((LOG(AU7))/LOG(2)))) -> -0.260459373
A8: 11 | B8: 132 | C8: 22 | D8: 140 | E8: 23 | F8: 144 | K8: 0 | L8: 122 | N8: 112 | O8: =COUNTIF($L$7:$L$500,N8) -> 40 | P8: =O8/$Q$4 -> 0.2941176471 | Q8: =IF(P8=0,0,(P8*((LOG(P8))/LOG(2)))) -> -0.5192749254 | T8: =N8 -> 112 | U8: =COUNTIF(L7:L29,T8) -> 3 | Y8: =N8 -> 112 | Z8: =COUNTIF(L30:L51,Y8) -> 7 | AD8: =N8 -> 112 | AE8: =COUNTIF(L52:L74,AD8) -> 7 | AI8: =N8 -> 112 | AJ8: =COUNTIF(L75:L97,AI8) -> 8 | AN8: =N8 -> 112 | AO8: =COUNTIF(L98:L119,AN8) -> 7 | AS8: =N8 -> 112 | AT8: =COUNTIF(L120:L142,AS8) -> 8
A9: 11 | B9: 240 | C9: 22 | D9: 249 | E9: 23 | F9: 257 | K9: 0 | L9: 122 | N9: 121 | O9: =COUNTIF($L$7:$L$500,N9) -> 2 | P9: =O9/$Q$4 -> 0.01470588235 | Q9: =IF(P9=0,0,(P9*((LOG(P9))/LOG(2)))) -> -0.08952151237 | T9: =N9 -> 121 | U9: =COUNTIF(L7:L29,T9) -> 1 | V9: =U9/(W4-U8) -> 0.05 | W9: =IF(V9=0,0,(V9*((LOG(V9))/LOG(2)))) -> -0.2160964047 | Y9: =N9 -> 121 | Z9: =COUNTIF(L30:L51,Y9) -> 0 | AA9: =Z9/(AB4-Z8) -> 0 | AB9: =IF(AA9=0,0,(AA9*((LOG(AA9))/LOG(2)))) -> 0 | AD9: =N9 -> 121 | AE9: =COUNTIF(L52:L74,AD9) -> 0 | AF9: =AE9/(AG4-AE8) -> 0 | AG9: =IF(AF9=0,0,(AF9*((LOG(AF9))/LOG(2)))) -> 0 | AI9: =N9 -> 121 | AJ9: =COUNTIF(L75:L97,AI9) -> 0 | AK9: =AJ9/(AL4-AJ8) -> 0 | AL9: =IF(AK9=0,0,(AK9*((LOG(AK9))/LOG(2)))) -> 0 | AN9: =N9 -> 121 | AO9: =COUNTIF(L98:L119,AN9) -> 0 | AP9: =AO9/(AQ4-AO8) -> 0 | AQ9: =IF(AP9=0,0,(AP9*((LOG(AP9))/LOG(2)))) -> 0 | AS9: =N9 -> 121 | AT9: =COUNTIF(L120:L142,AS9) -> 1 | AU9: =AT9/(AV4-AT8) -> 0.06666666667 | AV9: =IF(AU9=0,0,(AU9*((LOG(AU9))/LOG(2)))) -> -0.260459373
A10: 22 | B10: 353 | C10: 13 | D10: 363 | E10: 23 | F10: 377 | K10: 0 | L10: 212 | N10: 122 | O10: =COUNTIF($L$7:$L$500,N10) -> 34 | P10: =O10/$Q$4 -> 0.25 | Q10: =IF(P10=0,0,(P10*((LOG(P10))/LOG(2)))) -> -0.5 | T10: =N10 -> 122 | U10: =COUNTIF(L7:L29,T10) -> 8 | V10: =U10/(W4-U8) -> 0.4 | W10: =IF(V10=0,0,(V10*((LOG(V10))/LOG(2)))) -> -0.528771238 | Y10: =N10 -> 122 | Z10: =COUNTIF(L30:L51,Y10) -> 3 | AA10: =Z10/(AB4-Z8) -> 0.2 | AB10: =IF(AA10=0,0,(AA10*((LOG(AA10))/LOG(2)))) -> -0.464385619 | AD10: =N10 -> 122 | AE10: =COUNTIF(L52:L74,AD10) -> 8 | AF10: =AE10/(AG4-AE8) -> 0.5 | AG10: =IF(AF10=0,0,(AF10*((LOG(AF10))/LOG(2)))) -> -0.5 | AI10: =N10 -> 122 | AJ10: =COUNTIF(L75:L97,AI10) -> 4 | AK10: =AJ10/(AL4-AJ8) -> 0.2666666667 | AL10: =IF(AK10=0,0,(AK10*((LOG(AK10))/LOG(2)))) -> -0.5085041588 | AN10: =N10 -> 122 | AO10: =COUNTIF(L98:L119,AN10) -> 4 | AP10: =AO10/(AQ4-AO8) -> 0.2666666667 | AQ10: =IF(AP10=0,0,(AP10*((LOG(AP10))/LOG(2)))) -> -0.5085041588 | AS10: =N10 -> 122 | AT10: =COUNTIF(L120:L142,AS10) -> 7 | AU10: =AT10/(AV4-AT8) -> 0.4666666667 | AV10: =IF(AU10=0,0,(AU10*((LOG(AU10))/LOG(2)))) -> -0.5131166477
A11: 11 | B11: 480 | C11: 22 | D11: 488 | E11: 14 | F11: 500 | K11: 0 | L11: 121 | N11: 211 | O11: =COUNTIF($L$7:$L$500,N11) -> 0 | P11: =O11/$Q$4 -> 0 | Q11: =IF(P11=0,0,(P11*((LOG(P11))/LOG(2)))) -> 0 | T11: =N11 -> 211 | U11: =COUNTIF(L7:L29,T11) -> 0 | V11: =U11/(W4-U8) -> 0 | W11: =IF(V11=0,0,(V11*((LOG(V11))/LOG(2)))) -> 0 | Y11: =N11 -> 211 | Z11: =COUNTIF(L30:L51,Y11) -> 0 | AA11: =Z11/(AB4-Z8) -> 0 | AB11: =IF(AA11=0,0,(AA11*((LOG(AA11))/LOG(2)))) -> 0 | AD11: =N11 -> 211 | AE11: =COUNTIF(L52:L74,AD11) -> 0 | AF11: =AE11/(AG4-AE8) -> 0 | AG11: =IF(AF11=0,0,(AF11*((LOG(AF11))/LOG(2)))) -> 0 | AI11: =N11 -> 211 | AJ11: =COUNTIF(L75:L97,AI11) -> 0 | AK11: =AJ11/(AL4-AJ8) -> 0 | AL11: =IF(AK11=0,0,(AK11*((LOG(AK11))/LOG(2)))) -> 0 | AN11: =N11 -> 211 | AO11: =COUNTIF(L98:L119,AN11) -> 0 | AP11: =AO11/(AQ4-AO8) -> 0 | AQ11: =IF(AP11=0,0,(AP11*((LOG(AP11))/LOG(2)))) -> 0 | AS11: =N11 -> 211 | AT11: =COUNTIF(L120:L142,AS11) -> 0 | AU11: =AT11/(AV4-AT8) -> 0 | AV11: =IF(AU11=0,0,(AU11*((LOG(AU11))/LOG(2)))) -> 0
A12: 11 | B12: 604 | C12: 11 | D12: 609 | E12: 21 | F12: 617 | K12: 0 | L12: 112 | N12: 212 | O12: =COUNTIF($L$7:$L$500,N12) -> 17 | P12: =O12/$Q$4 -> 0.125 | Q12: =IF(P12=0,0,(P12*((LOG(P12))/LOG(2)))) -> -0.375 | T12: =N12 -> 212 | U12: =COUNTIF(L7:L29,T12) -> 3 | V12: =U12/(W4-U8) -> 0.15 | W12: =IF(V12=0,0,(V12*((LOG(V12))/LOG(2)))) -> -0.4105448391 | Y12: =N12 -> 212 | Z12: =COUNTIF(L30:L51,Y12) -> 3 | AA12: =Z12/(AB4-Z8) -> 0.2 | AB12: =IF(AA12=0,0,(AA12*((LOG(AA12))/LOG(2)))) -> -0.464385619 | AD12: =N12 -> 212 | AE12: =COUNTIF(L52:L74,AD12) -> 3 | AF12: =AE12/(AG4-AE8) -> 0.1875 | AG12: =IF(AF12=0,0,(AF12*((LOG(AF12))/LOG(2)))) -> -0.4528195311 | AI12: =N12 -> 212 | AJ12: =COUNTIF(L75:L97,AI12) -> 2 | AK12: =AJ12/(AL4-AJ8) -> 0.1333333333 | AL12: =IF(AK12=0,0,(AK12*((LOG(AK12))/LOG(2)))) -> -0.3875854127 | AN12: =N12 -> 212 | AO12: =COUNTIF(L98:L119,AN12) -> 3 | AP12: =AO12/(AQ4-AO8) -> 0.2 | AQ12: =IF(AP12=0,0,(AP12*((LOG(AP12))/LOG(2)))) -> -0.464385619 | AS12: =N12 -> 212 | AT12: =COUNTIF(L120:L142,AS12) -> 3 | AU12: =AT12/(AV4-AT8) -> 0.2 | AV12: =IF(AU12=0,0,(AU12*((LOG(AU12))/LOG(2)))) -> -0.464385619
A13: 22 | B13: 763 | C13: 24 | D13: 780 | E13: 23 | F13: 784 | K13: 0 | L13: 222 | N13: 221 | O13: =COUNTIF($L$7:$L$500,N13) -> 8 | P13: =O13/$Q$4 -> 0.05882352941 | Q13: =IF(P13=0,0,(P13*((LOG(P13))/LOG(2)))) -> -0.2404389907 | T13: =N13 -> 221 | U13: =COUNTIF(L7:L29,T13) -> 1 | V13: =U13/(W4-U8) -> 0.05 | W13: =IF(V13=0,0,(V13*((LOG(V13))/LOG(2)))) -> -0.2160964047 | Y13: =N13 -> 221 | Z13: =COUNTIF(L30:L51,Y13) -> 1 | AA13: =Z13/(AB4-Z8) -> 0.06666666667 | AB13: =IF(AA13=0,0,(AA13*((LOG(AA13))/LOG(2)))) -> -0.260459373 | AD13: =N13 -> 221 | AE13: =COUNTIF(L52:L74,AD13) -> 1 | AF13: =AE13/(AG4-AE8) -> 0.0625 | AG13: =IF(AF13=0,0,(AF13*((LOG(AF13))/LOG(2)))) -> -0.25 | AI13: =N13 -> 221 | AJ13: =COUNTIF(L75:L97,AI13) -> 3 | AK13: =AJ13/(AL4-AJ8) -> 0.2 | AL13: =IF(AK13=0,0,(AK13*((LOG(AK13))/LOG(2)))) -> -0.464385619 | AN13: =N13 -> 221 | AO13: =COUNTIF(L98:L119,AN13) -> 1 | AP13: =AO13/(AQ4-AO8) -> 0.06666666667 | AQ13: =IF(AP13=0,0,(AP13*((LOG(AP13))/LOG(2)))) -> -0.260459373 | AS13: =N13 -> 221 | AT13: =COUNTIF(L120:L142,AS13) -> 1 | AU13: =AT13/(AV4-AT8) -> 0.06666666667 | AV13: =IF(AU13=0,0,(AU13*((LOG(AU13))/LOG(2)))) -> -0.260459373
A14: 22 | B14: 883 | C14: 24 | D14: 903 | E14: 23 | F14: 912 | K14: 0 | L14: 222 | N14: 222 | O14: =COUNTIF($L$7:$L$500,N14) -> 25 | P14: =O14/$Q$4 -> 0.1838235294 | Q14: =IF(P14=0,0,(P14*((LOG(P14))/LOG(2)))) -> -0.4491923992 | T14: =N14 -> 222 | U14: =COUNTIF(L7:L29,T14) -> 7 | V14: =U14/(W4-U8) -> 0.35 | W14: =IF(V14=0,0,(V14*((LOG(V14))/LOG(2)))) -> -0.5301006105 | Y14: =N14 -> 222 | Z14: =COUNTIF(L30:L51,Y14) -> 6 | AA14: =Z14/(AB4-Z8) -> 0.4 | AB14: =IF(AA14=0,0,(AA14*((LOG(AA14))/LOG(2)))) -> -0.528771238 | AD14: =N14 -> 222 | AE14: =COUNTIF(L52:L74,AD14) -> 2 | AF14: =AE14/(AG4-AE8) -> 0.125 | AG14: =IF(AF14=0,0,(AF14*((LOG(AF14))/LOG(2)))) -> -0.375 | AI14: =N14 -> 222 | AJ14: =COUNTIF(L75:L97,AI14) -> 4 | AK14: =AJ14/(AL4-AJ8) -> 0.2666666667 | AL14: =IF(AK14=0,0,(AK14*((LOG(AK14))/LOG(2)))) -> -0.5085041588 | AN14: =N14 -> 222 | AO14: =COUNTIF(L98:L119,AN14) -> 4 | AP14: =AO14/(AQ4-AO8) -> 0.2666666667 | AQ14: =IF(AP14=0,0,(AP14*((LOG(AP14))/LOG(2)))) -> -0.5085041588 | AS14: =N14 -> 222 | AT14: =COUNTIF(L120:L142,AS14) -> 2 | AU14: =AT14/(AV4-AT8) -> 0.1333333333 | AV14: =IF(AU14=0,0,(AU14*((LOG(AU14))/LOG(2)))) -> -0.3875854127
A15: 22 | B15: 1016 | C15: 13 | D15: 1027 | E15: 23 | F15: 1037 | K15: 0 | L15: 212 | P15: =SUM(P7:P14) -> 1 | Q15: =-SUM(Q7:Q14) -> 2.450305382 | V15: =SUM(V7:V14) -> 1 | W15: =-SUM(W7:W14) -> 1.901609497 | AA15: =SUM(AA7:AA14) -> 1 | AB15: =-SUM(AB7:AB14) -> 2.105587262 | AF15: =SUM(AF7:AF14) -> 1 | AG15: =-SUM(AG7:AG14) -> 1.952819531 | AK15: =SUM(AK7:AK14) -> 1 | AL15: =-SUM(AL7:AL14) -> 2.256564762 | AP15: =SUM(AP7:AP14) -> 1 | AQ15: =-SUM(AQ7:AQ14) -> 2.206238929 | AU15: =SUM(AU7:AU14) -> 1 | AV15: =-SUM(AV7:AV14) -> 2.146465799
A16: 22 | B16: 1148 | C16: 24 | D16: 1170 | E16: 23 | F16: 1176 | K16: 0 | L16: 222 | P16: U= | Q16: =Q15/(LOG(Q4)/LOG(2)) -> 0.3457239124 | V16: U1= | W16: =W15/(LOG(W4)/LOG(2)) -> 0.420378789 | AA16: U2= | AB16: =AB15/(LOG(AB4)/LOG(2)) -> 0.4721649398 | AF16: U3= | AG16: =AG15/(LOG(AG4)/LOG(2)) -> 0.4316995213 | AK16: U4= | AL16: =AL15/(LOG(AL4)/LOG(2)) -> 0.4988468786 | AP16: U5= | AQ16: =AQ15/(LOG(AQ4)/LOG(2)) -> 0.4947354545 | AU16: U6= | AV16: =AV15/(LOG(AV4)/LOG(2)) -> 0.474507881
A17: 22 | B17: 1289 | C17: 24 | D17: 1296 | E17: 23 | F17: 1303 | K17: 0 | L17: 222
A18: 11 | B18: 1401 | C18: 22 | D18: 1411 | E18: 23 | F18: 1414 | K18: 0 | L18: 122
A19: 22 | B19: 1513 | C19: 24 | D19: 1532 | E19: 23 | F19: 1537 | K19: 0 | L19: 222 | N19: Total Target Seq
A20: 22 | B20: 1638 | C20: 24 | D20: 1649 | E20: 23 | F20: 1657 | K20: 0 | L20: 222 | N20: =COUNTIF(L7:L142,G3) -> 40 | P20: 23 | Q20: 22 | R20: 23 | S20: 23 | T20: 22 | U20: 23
A21: 11 | B21: 1751 | C21: 22 | D21: 1764 | E21: 23 | F21: 1770 | K21: 0 | L21: 122 | P21: % of reinforcement given in 6 equal intervals based on number of trials
A22: 11 | B22: 1883 | C22: 22 | D22: 1890 | E22: 23 | F22: 1900 | K22: 0 | L22: 122 | P22: %_1 | Q22: %_2 | R22: %_3 | S22: %_4 | T22: %_5 | U22: %_6
A23: 11 | B23: 1994 | C23: 11 | D23: 1997 | E23: 21 | F23: 2010 | K23: 0 | L23: 112 | O23: target sequence | P23: =$G$3 -> 112 | Q23: =$G$3 -> 112 | R23: =$G$3 -> 112 | S23: =$G$3 -> 112 | T23: =$G$3 -> 112 | U23: =$G$3 -> 112
A24: 22 | B24: 2221 | C24: 24 | D24: 2226 | E24: 14 | F24: 2240 | K24: 0 | L24: 221 | O24: total reinforcement | P24: =U8 -> 3 | Q24: =Z8 -> 7 | R24: =AE8 -> 7 | S24: =AJ8 -> 8 | T24: =AO8 -> 7 | U24: =AT8 -> 8
A25: 22 | B25: 2338 | C25: 13 | D25: 2348 | E25: 23 | F25: 2364 | K25: 0 | L25: 212 | O25: % target
A26: 11 | B26: 2458 | C26: 22 | D26: 2470 | E26: 23 | F26: 2473 | K26: 0 | L26: 122 | O26: CCRF
A27: 11 | B27: 2581 | C27: 22 | D27: 2588 | E27: 23 | F27: 2593 | K27: 0 | L27: 122 | O27: % CCRf
A28: 11 | B28: 2684 | C28: 11 | D28: 2688 | E28: 21 | F28: 2698 | K28: 0 | L28: 112 | O28: average response rate | P28: =F29/P20 -> 126.2608696 | Q28: =(F51-F29)/Q20 -> 130.9090909 | R28: =(F74-F51)/R20 -> 131.173913 | S28: =(F97-F74)/S20 -> 130 | T28: =(F119-F97)/T20 -> 131.6818182 | U28: =(F142-F119)/U20 -> 142.9565217
A29: 22 | B29: 2882 | C29: 24 | D29: 2900 | E29: 23 | F29: 2904 | K29: 0 | L29: 222
A30: 11 | B30: 2999 | C30: 11 | D30: 3004 | E30: 21 | F30: 3020 | K30: 0 | L30: 112
A31: 22 | B31: 3144 | C31: 24 | D31: 3149 | E31: 14 | F31: 3159 | K31: 0 | L31: 221
A32: 22 | B32: 3257 | C32: 24 | D32: 3260 | E32: 23 | F32: 3266 | K32: 0 | L32: 222
A33: 11 | B33: 3362 | C33: 22 | D33: 3374 | E33: 23 | F33: 3384 | K33: 0 | L33: 122
A34: 22 | B34: 3486 | C34: 13 | D34: 3493 | E34: 23 | F34: 3508 | K34: 0 | L34: 212
A35: 11 | B35: 3603 | C35: 11 | D35: 3609 | E35: 21 | F35: 3618 | K35: 0 | L35: 112
A36: 22 | B36: 3830 | C36: 24 | D36: 3846 | E36: 23 | F36: 3850 | K36: 0 | L36: 222
A37: 11 | B37: 3960 | C37: 22 | D37: 3992 | E37: 23 | F37: 4002 | K37: 0 | L37: 122
A38: 11 | B38: 4097 | C38: 11 | D38: 4101 | E38: 21 | F38: 4111 | K38: 0 | L38: 112
A39: 22 | B39: 4246 | C39: 24 | D39: 4267 | E39: 23 | F39: 4278 | K39: 0 | L39: 222
A40: 11 | B40: 4373 | C40: 11 | D40: 4379 | E40: 21 | F40: 4388 | K40: 0 | L40: 112
A41: 22 | B41: 4540 | C41: 24 | D41: 4560 | E41: 23 | F41: 4565 | K41: 0 | L41: 222
A42: 22 | B42: 4666 | C42: 24 | D42: 4672 | E42: 23 | F42: 4681 | K42: 0 | L42: 222
A43: 11 | B43: 4776 | C43: 11 | D43: 4781 | E43: 12 | F43: 4787 | K43: 0 | L43: 111
A44: 22 | B44: 4887 | C44: 13 | D44: 4895 | E44: 23 | F44: 4923 | K44: 0 | L44: 212
A45: 11 | B45: 5017 | C45: 11 | D45: 5024 | E45: 21 | F45: 5040 | K45: 0 | L45: 112
A46: 22 | B46: 5144 | C46: 13 | D46: 5152 | E46: 23 | F46: 5165 | K46: 0 | L46: 212
A47: 11 | B47: 5259 | C47: 11 | D47: 5268 | E47: 21 | F47: 5294 | K47: 0 | L47: 112
A48: 22 | B48: 5414 | C48: 24 | D48: 5431 | E48: 23 | F48: 5435 | K48: 0 | L48: 222
A49: 11 | B49: 5529 | C49: 11 | D49: 5536 | E49: 12 | F49: 5543 | K49: 0 | L49: 111
A50: 11 | B50: 5652 | C50: 22 | D50: 5661 | E50: 23 | F50: 5673 | K50: 0 | L50: 122
A51: 11 | B51: 5765 | C51: 11 | D51: 5772 | E51: 21 | F51: 5784 | K51: 0 | L51: 112
A52: 22 | B52: 5977 | C52: 13 | D52: 5985 | E52: 23 | F52: 6001 | K52: 0 | L52: 212
A53: 11 | B53: 6103 | C53: 22 | D53: 6112 | E53: 23 | F53: 6127 | K53: 0 | L53: 122
A54: 11 | B54: 6222 | C54: 11 | D54: 6228 | E54: 21 | F54: 6240 | K54: 0 | L54: 112
A55: 22 | B55: 6337 | C55: 24 | D55: 6358 | E55: 23 | F55: 6364 | K55: 0 | L55: 222
A56: 11 | B56: 6462 | C56: 11 | D56: 6468 | E56: 12 | F56: 6476 | K56: 0 | L56: 111
A57: 11 | B57: 6569 | C57: 11 | D57: 6574 | E57: 21 | F57: 6587 | K57: 0 | L57: 112
A58: 22 | B58: 6719 | C58: 24 | D58: 6724 | E58: 14 | F58: 6734 | K58: 0 | L58: 221
A59: 11 | B59: 6829 | C59: 11 | D59: 6836 | E59: 21 | F59: 6861 | K59: 0 | L59: 112
A60: 22 | B60: 6976 | C60: 24 | D60: 6993 | E60: 23 | F60: 6999 | K60: 0 | L60: 222
A61: 11 | B61: 7104 | C61: 22 | D61: 7113 | E61: 23 | F61: 7119 | K61: 0 | L61: 122
A62: 11 | B62: 7216 | C62: 11 | D62: 7223 | E62: 21 | F62: 7240 | K62: 0 | L62: 112
A63: 22 | B63: 7378 | C63: 13 | D63: 7389 | E63: 23 | F63: 7405 | K63: 0 | L63: 212
A64: 11 | B64: 7498 | C64: 11 | D64: 7502 | E64: 12 | F64: 7509 | K64: 0 | L64: 111
A65: 11 | B65: 7614 | C65: 22 | D65: 7625 | E65: 23 | F65: 7639 | K65: 0 | L65: 122
A66: 11 | B66: 7735 | C66: 22 | D66: 7746 | E66: 23 | F66: 7757 | K66: 0 | L66: 122
A67: 11 | B67: 7859 | C67: 11 | D67: 7874 | E67: 21 | F67: 7885 | K67: 0 | L67: 112
A68: 11 | B68: 8017 | C68: 22 | D68: 8031 | E68: 23 | F68: 8038 | K68: 0 | L68: 122
A69: 11 | B69: 8134 | C69: 22 | D69: 8147 | E69: 23 | F69: 8151 | K69: 0 | L69: 122
A70: 11 | B70: 8247 | C70: 22 | D70: 8258 | E70: 23 | F70: 8264 | K70: 0 | L70: 122
A71: 11 | B71: 8356 | C71: 11 | D71: 8361 | E71: 21 | F71: 8371 | K71: 0 | L71: 112
A72: 11 | B72: 8498 | C72: 22 | D72: 8506 | E72: 23 | F72: 8511 | K72: 0 | L72: 122
A73: 11 | B73: 8607 | C73: 11 | D73: 8614 | E73: 21 | F73: 8625 | K73: 0 | L73: 112
A74: 22 | B74: 8774 | C74: 13 | D74: 8788 | E74: 23 | F74: 8801 | K74: 0 | L74: 212
A75: 11 | B75: 8896 | C75: 11 | D75: 8901 | E75: 21 | F75: 8913 | K75: 0 | L75: 112
A76: 11 | B76: 9008 | C76: 11 | D76: 9011 | E76: 21 | F76: 9024 | K76: 0 | L76: 112
A77: 22 | B77: 9233 | C77: 24 | D77: 9243 | E77: 14 | F77: 9256 | K77: 0 | L77: 221
A78: 11 | B78: 9355 | C78: 11 | D78: 9362 | E78: 12 | F78: 9367 | K78: 0 | L78: 111
A79: 22 | B79: 9464 | C79: 13 | D79: 9474 | E79: 23 | F79: 9501 | K79: 0 | L79: 212
A80: 11 | B80: 9593 | C80: 11 | D80: 9597 | E80: 12 | F80: 9602 | K80: 0 | L80: 111
A81: 11 | B81: 9703 | C81: 22 | D81: 9712 | E81: 23 | F81: 9732 | K81: 0 | L81: 122
A82: 11 | B82: 9826 | C82: 11 | D82: 9831 | E82: 21 | F82: 9842 | K82: 0 | L82: 112
A83: 22 | B83: 9941 | C83: 24 | D83: 9945 | E83: 14 | F83: 9954 | K83: 0 | L83: 221
A84: 11 | B84: 10049 | C84: 11 | D84: 10052 | E84: 21 | F84: 10074 | K84: 0 | L84: 112
A85: 22 | B85: 10175 | C85: 24 | D85: 10180 | E85: 14 | F85: 10189 | K85: 0 | L85: 221
A86: 11 | B86: 10285 | C86: 22 | D86: 10337 | E86: 23 | F86: 10348 | K86: 0 | L86: 122
A87: 11 | B87: 10444 | C87: 22 | D87: 10463 | E87: 23 | F87: 10475 | K87: 0 | L87: 122
A88: 22 | B88: 10573 | C88: 13 | D88: 10585 | E88: 23 | F88: 10605 | K88: 0 | L88: 212
A89: 11 | B89: 10706 | C89: 22 | D89: 10718 | E89: 23 | F89: 10735 | K89: 0 | L89: 122
A90: 11 | B90: 10861 | C90: 11 | D90: 10866 | E90: 21 | F90: 10878 | K90: 0 | L90: 112
A91: 22 | B91: 11003 | C91: 24 | D91: 11019 | E91: 23 | F91: 11023 | K91: 0 | L91: 222
A92: 11 | B92: 11115 | C92: 11 | D92: 11118 | E92: 21 | F92: 11128 | K92: 0 | L92: 112
A93: 22 | B93: 11274 | C93: 24 | D93: 11291 | E93: 23 | F93: 11302 | K93: 0 | L93: 222
A94: 11 | B94: 11397 | C94: 11 | D94: 11401 | E94: 21 | F94: 11426 | K94: 0 | L94: 112
A95: 22 | B95: 11519 | C95: 24 | D95: 11522 | E95: 23 | F95: 11539 | K95: 0 | L95: 222
A96: 22 | B96: 11639 | C96: 24 | D96: 11644 | E96: 23 | F96: 11651 | K96: 0 | L96: 222
A97: 11 | B97: 11780 | C97: 11 | D97: 11783 | E97: 21 | F97: 11791 | K97: 0 | L97: 112
A98: 11 | B98: 11925 | C98: 22 | D98: 11937 | E98: 23 | F98: 11949 | K98: 0 | L98: 122
A99: 11 | B99: 12043 | C99: 11 | D99: 12045 | E99: 21 | F99: 12065 | K99: 0 | L99: 112
A100: 22 | B100: 12192 | C100: 24 | D100: 12224 | E100: 23 | F100: 12234 | K100: 0 | L100: 222
A101: 22 | B101: 12333 | C101: 24 | D101: 12357 | E101: 23 | F101: 12366 | K101: 0 | L101: 222
A102: 22 | B102: 12469 | C102: 24 | D102: 12481 | E102: 23 | F102: 12490 | K102: 0 | L102: 222
A103: 11 | B103: 12583 | C103: 11 | D103: 12590 | E103: 12 | F103: 12594 | K103: 0 | L103: 111
A104: 11 | B104: 12692 | C104: 11 | D104: 12699 | E104: 21 | F104: 12742 | K104: 0 | L104: 112
A105: 22 | B105: 12862 | C105: 13 | D105: 12875 | E105: 23 | F105: 12890 | K105: 0 | L105: 212
A106: 22 | B106: 12989 | C106: 13 | D106: 13000 | E106: 23 | F106: 13021 | K106: 0 | L106: 212
A107: 11 | B107: 13119 | C107: 11 | D107: 13124 | E107: 21 | F107: 13152 | K107: 0 | L107: 112
A108: 22 | B108: 13276 | C108: 24 | D108: 13281 | E108: 14 | F108: 13294 | K108: 0 | L108: 221
A109: 22 | B109: 13394 | C109: 24 | D109: 13401 | E109: 23 | F109: 13411 | K109: 0 | L109: 222
A110: 11 | B110: 13509 | C110: 11 | D110: 13513 | E110: 12 | F110: 13523 | K110: 0 | L110: 111
A111: 11 | B111: 13616 | C111: 11 | D111: 13618 | E111: 21 | F111: 13631 | K111: 0 | L111: 112
A112: 11 | B112: 13788 | C112: 22 | D112: 13797 | E112: 23 | F112: 13802 | K112: 0 | L112: 122
A113: 11 | B113: 13900 | C113: 11 | D113: 13907 | E113: 21 | F113: 13924 | K113: 0 | L113: 112
A114: 11 | B114: 14038 | C114: 22 | D114: 14057 | E114: 23 | F114: 14083 | K114: 0 | L114: 122
A115: 11 | B115: 14183 | C115: 22 | D115: 14199 | E115: 23 | F115: 14209 | K115: 0 | L115: 122
A116: 11 | B116: 14304 | C116: 11 | D116: 14309 | E116: 21 | F116: 14321 | K116: 0 | L116: 112
A117: 22 | B117: 14439 | C117: 13 | D117: 14447 | E117: 23 | F117: 14461 | K117: 0 | L117: 212
A118: 11 | B118: 14555 | C118: 11 | D118: 14560 | E118: 12 | F118: 14565 | K118: 0 | L118: 111
A119: 11 | B119: 14660 | C119: 11 | D119: 14663 | E119: 21 | F119: 14688 | K119: 0 | L119: 112
A120: 22 | B120: 14787 | C120: 24 | D120: 14792 | E120: 14 | F120: 14800 | K120: 0 | L120: 221
A121: 11 | B121: 14896 | C121: 22 | D121: 14919 | E121: 23 | F121: 14935 | K121: 0 | L121: 122
A122: 11 | B122: 15030 | C122: 22 | D122: 15041 | E122: 14 | F122: 15056 | K122: 0 | L122: 121
A123: 11 | B123: 15149 | C123: 11 | D123: 15155 | E123: 21 | F123: 15167 | K123: 0 | L123: 112
A124: 22 | B124: 15285 | C124: 24 | D124: 15294 | E124: 23 | F124: 15304 | K124: 0 | L124: 222
A125: 11 | B125: 15399 | C125: 11 | D125: 15405 | E125: 12 | F125: 15411 | K125: 0 | L125: 111
A126: 11 | B126: 15504 | C126: 11 | D126: 15508 | E126: 21 | F126: 15542 | K126: 0 | L126: 112
A127: 22 | B127: 15732 | C127: 13 | D127: 15746 | E127: 23 | F127: 15778 | K127: 0 | L127: 212
A128: 11 | B128: 15890 | C128: 22 | D128: 15920 | E128: 23 | F128: 15933 | K128: 0 | L128: 122
A129: 11 | B129: 16030 | C129: 11 | D129: 16033 | E129: 21 | F129: 16070 | K129: 0 | L129: 112
A130: 11 | B130: 16207 | C130: 22 | D130: 16214 | E130: 23 | F130: 16218 | K130: 0 | L130: 122
A131: 11 | B131: 16324 | C131: 22 | D131: 16335 | E131: 23 | F131: 16342 | K131: 0 | L131: 122
A132: 11 | B132: 16438 | C132: 22 | D132: 16458 | E132: 23 | F132: 16467 | K132: 0 | L132: 122
A133: 11 | B133: 16582 | C133: 11 | D133: 16588 | E133: 21 | F133: 16598 | K133: 0 | L133: 112
A134: 22 | B134: 16718 | C134: 13 | D134: 16729 | E134: 23 | F134: 16740 | K134: 0 | L134: 212
A135: 11 | B135: 16845 | C135: 22 | D135: 16887 | E135: 23 | F135: 16899 | K135: 0 | L135: 122
A136: 11 | B136: 16995 | C136: 11 | D136: 17005 | E136: 21 | F136: 17022 | K136: 0 | L136: 112
A137: 11 | B137: 17178 | C137: 22 | D137: 17186 | E137: 23 | F137: 17192 | K137: 0 | L137: 122
A138: 11 | B138: 17287 | C138: 11 | D138: 17293 | E138: 21 | F138: 17332 | K138: 0 | L138: 112
A139: 22 | B139: 17507 | C139: 13 | D139: 17516 | E139: 23 | F139: 17525 | K139: 0 | L139: 212
A140: 11 | B140: 17622 | C140: 11 | D140: 17627 | E140: 21 | F140: 17643 | K140: 0 | L140: 112
A141: 22 | B141: 17804 | C141: 24 | D141: 17819 | E141: 23 | F141: 17826 | K141: 0 | L141: 222
A142: 11 | B142: 17923 | C142: 11 | D142: 17930 | E142: 21 | F142: 17976 | K142: 1 | L142: 112

Sheet !MB1391I.sha
A1: Report for:!MB1391I.sha
A2: Date: | B2: <date>
A3: Hen: | B3: <hen> | F3: Correct Sequence | G3: =Start!J2 -> 112 | P3: Total Sequences in Data | Q3: =4994-COUNTBLANK(L7:L5000) -> 128 | V3: Total Sequences in Block Data | W3: =COUNTA(L7:L27) -> 21 | AA3: Total Sequences in Block Data | AB3: =COUNTA(L28:L49) -> 22 | AF3: Total Sequences in Block Data | AG3: =COUNTA(L50:L70) -> 21 | AK3: Total Sequences in Block Data | AL3: =COUNTA(L71:L91) -> 21 | AP3: Total Sequences in Block Data | AQ3: =COUNTA(L92:L113) -> 22 | AU3: Total Sequences in Block Data | AV3: =COUNTA(L114:L134) -> 21
P4: Total Sequences in Summary | Q4: =SUM(O7:O14) -> 128 | V4: Total Sequences in Block Summary | W4: =SUM(U7:U14) -> 21 | AA4: Total Sequences in Block Summary | AB4: =SUM(Z7:Z14) -> 22 | AF4: Total Sequences in Block Summary | AG4: =SUM(AE7:AE14) -> 21 | AK4: Total Sequences in Block Summary | AL4: =SUM(AJ7:AJ14) -> 21 | AP4: Total Sequences in Block Summary | AQ4: =SUM(AO7:AO14) -> 22 | AU4: Total Sequences in Block Summary | AV4: =SUM(AT7:AT14) -> 21
T5: Block 1 | Y5: Block 2 | AD5: Block 3 | AI5: Block 4 | AN5: Block 5 | AS5: Block 6
A6: Sequence Component 1 | B6: Time 1 | C6: Sequence Component 2 | D6: Time 2 | E6: Sequence Component 3 | F6: Time 3 | G6: Sequence Component 4 | H6: Time 4 | I6: Sequence Component 5 | J6: Time 5 | K6: Correct? 0=No 1=Yes | L6: Sequence | N6: Frequency | P6: Relative Frequency | Q6: Variability | T6: Frequency | V6: Relative Frequency | W6: Variability | Y6: Frequency | AA6: Relative Frequency | AB6: Variability | AD6: Frequency | AF6: Relative Frequency | AG6: Variability | AI6: Frequency | AK6: Relative Frequency | AL6: Variability | AN6: Frequency | AP6: Relative Frequency | AQ6: Variability | AS6: Frequency | AU6: Relative Frequency | AV6: Variability
A7: 22 | B7: 61 | C7: 24 | D7: 80 | E7: 23 | F7: 85 | K7: 0 | L7: 222 | N7: 111 | O7: =COUNTIF($L$7:$L$500,N7) -> 10 | P7: =O7/$Q$4 -> 0.078125 | Q7: =IF(P7=0,0,(P7*((LOG(P7))/LOG(2)))) -> -0.2873493676 | T7: =N7 -> 111 | U7: =COUNTIF(L7:L27,T7) -> 2 | V7: =U7/(W4-U8) -> 0.1176470588 | W7: =IF(V7=0,0,(V7*((LOG(V7))/LOG(2)))) -> -0.3632309225 | Y7: =N7 -> 111 | Z7: =COUNTIF(L28:L49,Y7) -> 3 | AA7: =Z7/(AB4-Z8) -> 0.1666666667 | AB7: =IF(AA7=0,0,(AA7*((LOG(AA7))/LOG(2)))) -> -0.4308270835 | AD7: =N7 -> 111 | AE7: =COUNTIF(L50:L70,AD7) -> 4 | AF7: =AE7/(AG4-AE8) -> 0.2857142857 | AG7: =IF(AF7=0,0,(AF7*((LOG(AF7))/LOG(2)))) -> -0.5163871206 | AI7: =N7 -> 111 | AJ7: =COUNTIF(L71:L91,AI7) -> 0 | AK7: =AJ7/(AL4-AJ8) -> 0 | AL7: =IF(AK7=0,0,(AK7*((LOG(AK7))/LOG(2)))) -> 0 | AN7: =N7 -> 111 | AO7: =COUNTIF(L92:L113,AN7) -> 0 | AP7: =AO7/(AQ4-AO8) -> 0 | AQ7: =IF(AP7=0,0,(AP7*((LOG(AP7))/LOG(2)))) -> 0 | AS7: =N7 -> 111 | AT7: =COUNTIF(L114:L134,AS7) -> 1 | AU7: =AT7/(AV4-AT8) -> 0.07692307692 | AV7: =IF(AU7=0,0,(AU7*((LOG(AU7))/LOG(2)))) -> -0.2846492091
A8: 11 | B8: 177 | C8: 11 | D8: 182 | E8: 21 | F8: 193 | K8: 0 | L8: 112 | N8: 112 | O8: =COUNTIF($L$7:$L$500,N8) -> 40 | P8: =O8/$Q$4 -> 0.3125 | Q8: =IF(P8=0,0,(P8*((LOG(P8))/LOG(2)))) -> -0.5243974703 | T8: =N8 -> 112 | U8: =COUNTIF(L7:L27,T8) -> 4 | Y8: =N8 -> 112 | Z8: =COUNTIF(L28:L49,Y8) -> 4 | AD8: =N8 -> 112 | AE8: =COUNTIF(L50:L70,AD8) -> 7 | AI8: =N8 -> 112 | AJ8: =COUNTIF(L71:L91,AI8) -> 8 | AN8: =N8 -> 112 | AO8: =COUNTIF(L92:L113,AN8) -> 9 | AS8: =N8 -> 112 | AT8: =COUNTIF(L114:L134,AS8) -> 8
A9: 22 | B9: 315 | C9: 24 | D9: 320 | E9: 23 | F9: 328 | K9: 0 | L9: 222 | N9: 121 | O9: =COUNTIF($L$7:$L$500,N9) -> 0 | P9: =O9/$Q$4 -> 0 | Q9: =IF(P9=0,0,(P9*((LOG(P9))/LOG(2)))) -> 0 | T9: =N9 -> 121 | U9: =COUNTIF(L7:L27,T9) -> 0 | V9: =U9/(W4-U8) -> 0 | W9: =IF(V9=0,0,(V9*((LOG(V9))/LOG(2)))) -> 0 | Y9: =N9 -> 121 | Z9: =COUNTIF(L28:L49,Y9) -> 0 | AA9: =Z9/(AB4-Z8) -> 0 | AB9: =IF(AA9=0,0,(AA9*((LOG(AA9))/LOG(2)))) -> 0 | AD9: =N9 -> 121 | AE9: =COUNTIF(L50:L70,AD9) -> 0 | AF9: =AE9/(AG4-AE8) -> 0 | AG9: =IF(AF9=0,0,(AF9*((LOG(AF9))/LOG(2)))) -> 0 | AI9: =N9 -> 121 | AJ9: =COUNTIF(L71:L91,AI9) -> 0 | AK9: =AJ9/(AL4-AJ8) -> 0 | AL9: =IF(AK9=0,0,(AK9*((LOG(AK9))/LOG(2)))) -> 0 | AN9: =N9 -> 121 | AO9: =COUNTIF(L92:L113,AN9) -> 0 | AP9: =AO9/(AQ4-AO8) -> 0 | AQ9: =IF(AP9=0,0,(AP9*((LOG(AP9))/LOG(2)))) -> 0 | AS9: =N9 -> 121 | AT9: =COUNTIF(L114:L134,AS9) -> 0 | AU9: =AT9/(AV4-AT8) -> 0 | AV9: =IF(AU9=0,0,(AU9*((LOG(AU9))/LOG(2)))) -> 0
A10: 22 | B10: 431 | C10: 13 | D10: 455 | E10: 23 | F10: 481 | K10: 0 | L10: 212 | N10: 122 | O10: =COUNTIF($L$7:$L$500,N10) -> 24 | P10: =O10/$Q$4 -> 0.1875 | Q10: =IF(P10=0,0,(P10*((LOG(P10))/LOG(2)))) -> -0.4528195311 | T10: =N10 -> 122 | U10: =COUNTIF(L7:L27,T10) -> 5 | V10: =U10/(W4-U8) -> 0.2941176471 | W10: =IF(V10=0,0,(V10*((LOG(V10))/LOG(2)))) -> -0.5192749254 | Y10: =N10 -> 122 | Z10: =COUNTIF(L28:L49,Y10) -> 6 | AA10: =Z10/(AB4-Z8) -> 0.3333333333 | AB10: =IF(AA10=0,0,(AA10*((LOG(AA10))/LOG(2)))) -> -0.5283208336 | AD10: =N10 -> 122 | AE10: =COUNTIF(L50:L70,AD10) -> 2 | AF10: =AE10/(AG4-AE8) -> 0.1428571429 | AG10: =IF(AF10=0,0,(AF10*((LOG(AF10))/LOG(2)))) -> -0.4010507032 | AI10: =N10 -> 122 | AJ10: =COUNTIF(L71:L91,AI10) -> 2 | AK10: =AJ10/(AL4-AJ8) -> 0.1538461538 | AL10: =IF(AK10=0,0,(AK10*((LOG(AK10))/LOG(2)))) -> -0.4154522643 | AN10: =N10 -> 122 | AO10: =COUNTIF(L92:L113,AN10) -> 4 | AP10: =AO10/(AQ4-AO8) -> 0.3076923077 | AQ10: =IF(AP10=0,0,(AP10*((LOG(AP10))/LOG(2)))) -> -0.523212221 | AS10: =N10 -> 122 | AT10: =COUNTIF(L114:L134,AS10) -> 5 | AU10: =AT10/(AV4-AT8) -> 0.3846153846 | AV10: =IF(AU10=0,0,(AU10*((LOG(AU10))/LOG(2)))) -> -0.5301967782
A11: 22 | B11: 595 | C11: 24 | D11: 618 | E11: 23 | F11: 630 | K11: 0 | L11: 222 | N11: 211 | O11: =COUNTIF($L$7:$L$500,N11) -> 3 | P11: =O11/$Q$4 -> 0.0234375 | Q11: =IF(P11=0,0,(P11*((LOG(P11))/LOG(2)))) -> -0.1269149414 | T11: =N11 -> 211 | U11: =COUNTIF(L7:L27,T11) -> 0 | V11: =U11/(W4-U8) -> 0 | W11: =IF(V11=0,0,(V11*((LOG(V11))/LOG(2)))) -> 0 | Y11: =N11 -> 211 | Z11: =COUNTIF(L28:L49,Y11) -> 1 | AA11: =Z11/(AB4-Z8) -> 0.05555555556 | AB11: =IF(AA11=0,0,(AA11*((LOG(AA11))/LOG(2)))) -> -0.2316625001 | AD11: =N11 -> 211 | AE11: =COUNTIF(L50:L70,AD11) -> 1 | AF11: =AE11/(AG4-AE8) -> 0.07142857143 | AG11: =IF(AF11=0,0,(AF11*((LOG(AF11))/LOG(2)))) -> -0.271953923 | AI11: =N11 -> 211 | AJ11: =COUNTIF(L71:L91,AI11) -> 1 | AK11: =AJ11/(AL4-AJ8) -> 0.07692307692 | AL11: =IF(AK11=0,0,(AK11*((LOG(AK11))/LOG(2)))) -> -0.2846492091 | AN11: =N11 -> 211 | AO11: =COUNTIF(L92:L113,AN11) -> 0 | AP11: =AO11/(AQ4-AO8) -> 0 | AQ11: =IF(AP11=0,0,(AP11*((LOG(AP11))/LOG(2)))) -> 0 | AS11: =N11 -> 211 | AT11: =COUNTIF(L114:L134,AS11) -> 0 | AU11: =AT11/(AV4-AT8) -> 0 | AV11: =IF(AU11=0,0,(AU11*((LOG(AU11))/LOG(2)))) -> 0
A12: 22 | B12: 739 | C12: 24 | D12: 767 | E12: 23 | F12: 773 | K12: 0 | L12: 222 | N12: 212 | O12: =COUNTIF($L$7:$L$500,N12) -> 18 | P12: =O12/$Q$4 -> 0.140625 | Q12: =IF(P12=0,0,(P12*((LOG(P12))/LOG(2)))) -> -0.3979792967 | T12: =N12 -> 212 | U12: =COUNTIF(L7:L27,T12) -> 3 | V12: =U12/(W4-U8) -> 0.1764705882 | W12: =IF(V12=0,0,(V12*((LOG(V12))/LOG(2)))) -> -0.4416177072 | Y12: =N12 -> 212 | Z12: =COUNTIF(L28:L49,Y12) -> 2 | AA12: =Z12/(AB4-Z8) -> 0.1111111111 | AB12: =IF(AA12=0,0,(AA12*((LOG(AA12))/LOG(2)))) -> -0.352213889 | AD12: =N12 -> 212 | AE12: =COUNTIF(L50:L70,AD12) -> 5 | AF12: =AE12/(AG4-AE8) -> 0.3571428571 | AG12: =IF(AF12=0,0,(AF12*((LOG(AF12))/LOG(2)))) -> -0.5305095811 | AI12: =N12 -> 212 | AJ12: =COUNTIF(L71:L91,AI12) -> 2 | AK12: =AJ12/(AL4-AJ8) -> 0.1538461538 | AL12: =IF(AK12=0,0,(AK12*((LOG(AK12))/LOG(2)))) -> -0.4154522643 | AN12: =N12 -> 212 | AO12: =COUNTIF(L92:L113,AN12) -> 5 | AP12: =AO12/(AQ4-AO8) -> 0.3846153846 | AQ12: =IF(AP12=0,0,(AP12*((LOG(AP12))/LOG(2)))) -> -0.5301967782 | AS12: =N12 -> 212 | AT12: =COUNTIF(L114:L134,AS12) -> 1 | AU12: =AT12/(AV4-AT8) -> 0.07692307692 | AV12: =IF(AU12=0,0,(AU12*((LOG(AU12))/LOG(2)))) -> -0.2846492091
A13: 11 | B13: 869 | C13: 22 | D13: 878 | E13: 23 | F13: 885 | K13: 0 | L13: 122 | N13: 221 | O13: =COUNTIF($L$7:$L$500,N13) -> 7 | P13: =O13/$Q$4 -> 0.0546875 | Q13: =IF(P13=0,0,(P13*((LOG(P13))/LOG(2)))) -> -0.2292852777 | T13: =N13 -> 221 | U13: =COUNTIF(L7:L27,T13) -> 2 | V13: =U13/(W4-U8) -> 0.1176470588 | W13: =IF(V13=0,0,(V13*((LOG(V13))/LOG(2)))) -> -0.3632309225 | Y13: =N13 -> 221 | Z13: =COUNTIF(L28:L49,Y13) -> 1 | AA13: =Z13/(AB4-Z8) -> 0.05555555556 | AB13: =IF(AA13=0,0,(AA13*((LOG(AA13))/LOG(2)))) -> -0.2316625001 | AD13: =N13 -> 221 | AE13: =COUNTIF(L50:L70,AD13) -> 1 | AF13: =AE13/(AG4-AE8) -> 0.07142857143 | AG13: =IF(AF13=0,0,(AF13*((LOG(AF13))/LOG(2)))) -> -0.271953923 | AI13: =N13 -> 221 | AJ13: =COUNTIF(L71:L91,AI13) -> 2 | AK13: =AJ13/(AL4-AJ8) -> 0.1538461538 | AL13: =IF(AK13=0,0,(AK13*((LOG(AK13))/LOG(2)))) -> -0.4154522643 | AN13: =N13 -> 221 | AO13: =COUNTIF(L92:L113,AN13) -> 0 | AP13: =AO13/(AQ4-AO8) -> 0 | AQ13: =IF(AP13=0,0,(AP13*((LOG(AP13))/LOG(2)))) -> 0 | AS13: =N13 -> 221 | AT13: =COUNTIF(L114:L134,AS13) -> 1 | AU13: =AT13/(AV4-AT8) -> 0.07692307692 | AV13: =IF(AU13=0,0,(AU13*((LOG(AU13))/LOG(2)))) -> -0.2846492091
A14: 11 | B14: 991 | C14: 22 | D14: 1002 | E14: 23 | F14: 1011 | K14: 0 | L14: 122 | N14: 222 | O14: =COUNTIF($L$7:$L$500,N14) -> 26 | P14: =O14/$Q$4 -> 0.203125 | Q14: =IF(P14=0,0,(P14*((LOG(P14))/LOG(2)))) -> -0.4670981823 | T14: =N14 -> 222 | U14: =COUNTIF(L7:L27,T14) -> 5 | V14: =U14/(W4-U8) -> 0.2941176471 | W14: =IF(V14=0,0,(V14*((LOG(V14))/LOG(2)))) -> -0.5192749254 | Y14: =N14 -> 222 | Z14: =COUNTIF(L28:L49,Y14) -> 5 | AA14: =Z14/(AB4-Z8) -> 0.2777777778 | AB14: =IF(AA14=0,0,(AA14*((LOG(AA14))/LOG(2)))) -> -0.513332474 | AD14: =N14 -> 222 | AE14: =COUNTIF(L50:L70,AD14) -> 1 | AF14: =AE14/(AG4-AE8) -> 0.07142857143 | AG14: =IF(AF14=0,0,(AF14*((LOG(AF14))/LOG(2)))) -> -0.271953923 | AI14: =N14 -> 222 | AJ14: =COUNTIF(L71:L91,AI14) -> 6 | AK14: =AJ14/(AL4-AJ8) -> 0.4615384615 | AL14: =IF(AK14=0,0,(AK14*((LOG(AK14))/LOG(2)))) -> -0.5148356388 | AN14: =N14 -> 222 | AO14: =COUNTIF(L92:L113,AN14) -> 4 | AP14: =AO14/(AQ4-AO8) -> 0.3076923077 | AQ14: =IF(AP14=0,0,(AP14*((LOG(AP14))/LOG(2)))) -> -0.523212221 | AS14: =N14 -> 222 | AT14: =COUNTIF(L114:L134,AS14) -> 5 | AU14: =AT14/(AV4-AT8) -> 0.3846153846 | AV14: =IF(AU14=0,0,(AU14*((LOG(AU14))/LOG(2)))) -> -0.5301967782
A15: 11 | B15: 1122 | C15: 22 | D15: 1133 | E15: 23 | F15: 1139 | K15: 0 | L15: 122 | P15: =SUM(P7:P14) -> 1 | Q15: =-SUM(Q7:Q14) -> 2.485844067 | V15: =SUM(V7:V14) -> 1 | W15: =-SUM(W7:W14) -> 2.206629403 | AA15: =SUM(AA7:AA14) -> 1 | AB15: =-SUM(AB7:AB14) -> 2.28801928 | AF15: =SUM(AF7:AF14) -> 1 | AG15: =-SUM(AG7:AG14) -> 2.263809174 | AK15: =SUM(AK7:AK14) -> 1 | AL15: =-SUM(AL7:AL14) -> 2.045841641 | AP15: =SUM(AP7:AP14) -> 1 | AQ15: =-SUM(AQ7:AQ14) -> 1.57662122 | AU15: =SUM(AU7:AU14) -> 1 | AV15: =-SUM(AV7:AV14) -> 1.914341184
A16: 11 | B16: 1233 | C16: 22 | D16: 1245 | E16: 23 | F16: 1260 | K16: 0 | L16: 122 | P16: U= | Q16: =Q15/(LOG(Q4)/LOG(2)) -> 0.355120581 | V16: U1= | W16: =W15/(LOG(W4)/LOG(2)) -> 0.502383865 | AA16: U2= | AB16: =AB15/(LOG(AB4)/LOG(2)) -> 0.5130741933 | AF16: U3= | AG16: =AG15/(LOG(AG4)/LOG(2)) -> 0.5154019976 | AK16: U4= | AL16: =AL15/(LOG(AL4)/LOG(2)) -> 0.4657772752 | AP16: U5= | AQ16: =AQ15/(LOG(AQ4)/LOG(2)) -> 0.3535475717 | AU16: U6= | AV16: =AV15/(LOG(AV4)/LOG(2)) -> 0.4358385334
A17: 11 | B17: 1369 | C17: 11 | D17: 1375 | E17: 21 | F17: 1387 | K17: 0 | L17: 112
A18: 22 | B18: 1612 | C18: 24 | D18: 1619 | E18: 14 | F18: 1628 | K18: 0 | L18: 221
A19: 11 | B19: 1721 | C19: 11 | D19: 1726 | E19: 21 | F19: 1751 | K19: 0 | L19: 112 | N19: Total Target Seq
A20: 22 | B20: 1922 | C20: 13 | D20: 1944 | E20: 23 | F20: 1968 | K20: 0 | L20: 212 | N20: =COUNTIF(L7:L134,G3) -> 40 | P20: 21 | Q20: 22 | R20: 21 | S20: 21 | T20: 22 | U20: 21
A21: 11 | B21: 2064 | C21: 11 | D21: 2068 | E21: 12 | F21: 2073 | K21: 0 | L21: 111 | P21: % of reinforcement given in 6 equal intervals based on number of trials
A22: 22 | B22: 2165 | C22: 13 | D22: 2184 | E22: 23 | F22: 2195 | K22: 0 | L22: 212 | P22: %_1 | Q22: %_2 | R22: %_3 | S22: %_4 | T22: %_5 | U22: %_6
A23: 11 | B23: 2287 | C23: 11 | D23: 2290 | E23: 12 | F23: 2296 | K23: 0 | L23: 111 | O23: target sequence | P23: =$G$3 -> 112 | Q23: =$G$3 -> 112 | R23: =$G$3 -> 112 | S23: =$G$3 -> 112 | T23: =$G$3 -> 112 | U23: =$G$3 -> 112
A24: 22 | B24: 2391 | C24: 24 | D24: 2403 | E24: 14 | F24: 2413 | K24: 0 | L24: 221 | O24: total reinforcement | P24: =U8 -> 4 | Q24: =Z8 -> 4 | R24: =AE8 -> 7 | S24: =AJ8 -> 8 | T24: =AO8 -> 9 | U24: =AT8 -> 8
A25: 11 | B25: 2507 | C25: 11 | D25: 2511 | E25: 21 | F25: 2522 | K25: 0 | L25: 112 | O25: % target
A26: 22 | B26: 2685 | C26: 24 | D26: 2699 | E26: 23 | F26: 2713 | K26: 0 | L26: 222 | O26: CCRF
A27: 11 | B27: 2810 | C27: 22 | D27: 2841 | E27: 23 | F27: 2853 | K27: 0 | L27: 122 | O27: % CCRf
A28: 11 | B28: 2948 | C28: 11 | D28: 2971 | E28: 21 | F28: 2992 | K28: 0 | L28: 112 | O28: average response rate | P28: =F27/P20 -> 135.8571429 | Q28: =(F49-F27)/Q20 -> 129.1818182 | R28: =(F70-F49)/R20 -> 138.7142857 | S28: =(F91-F70)/S20 -> 132.7142857 | T28: =(F113-F91)/T20 -> 135.7727273 | U28: =(F134-F113)/U20 -> 124.8095238
A29: 22 | B29: 3119 | C29: 24 | D29: 3141 | E29: 23 | F29: 3146 | K29: 0 | L29: 222
A30: 11 | B30: 3240 | C30: 11 | D30: 3246 | E30: 12 | F30: 3254 | K30: 0 | L30: 111
A31: 22 | B31: 3350 | C31: 13 | D31: 3361 | E31: 23 | F31: 3377 | K31: 0 | L31: 212
A32: 11 | B32: 3472 | C32: 22 | D32: 3482 | E32: 23 | F32: 3486 | K32: 0 | L32: 122
A33: 22 | B33: 3585 | C33: 13 | D33: 3594 | E33: 23 | F33: 3603 | K33: 0 | L33: 212
A34: 11 | B34: 3698 | C34: 11 | D34: 3703 | E34: 21 | F34: 3716 | K34: 0 | L34: 112
A35: 22 | B35: 3901 | C35: 24 | D35: 3917 | E35: 14 | F35: 3932 | K35: 0 | L35: 221
A36: 22 | B36: 4031 | C36: 24 | D36: 4035 | E36: 23 | F36: 4048 | K36: 0 | L36: 222
A37: 11 | B37: 4150 | C37: 11 | D37: 4156 | E37: 21 | F37: 4173 | K37: 0 | L37: 112
A38: 22 | B38: 4340 | C38: 24 | D38: 4379 | E38: 23 | F38: 4401 | K38: 0 | L38: 222
A39: 11 | B39: 4498 | C39: 22 | D39: 4507 | E39: 23 | F39: 4511 | K39: 0 | L39: 122
A40: 11 | B40: 4618 | C40: 22 | D40: 4625 | E40: 23 | F40: 4630 | K40: 0 | L40: 122
A41: 11 | B41: 4731 | C41: 11 | D41: 4736 | E41: 12 | F41: 4741 | K41: 0 | L41: 111
A42: 22 | B42: 4837 | C42: 13 | D42: 4849 | E42: 14 | F42: 4852 | K42: 0 | L42: 211
A43: 11 | B43: 4947 | C43: 22 | D43: 4958 | E43: 23 | F43: 4963 | K43: 0 | L43: 122
A44: 11 | B44: 5063 | C44: 11 | D44: 5081 | E44: 21 | F44: 5090 | K44: 0 | L44: 112
A45: 22 | B45: 5221 | C45: 24 | D45: 5239 | E45: 23 | F45: 5244 | K45: 0 | L45: 222
A46: 22 | B46: 5344 | C46: 24 | D46: 5348 | E46: 23 | F46: 5355 | K46: 0 | L46: 222
A47: 11 | B47: 5447 | C47: 22 | D47: 5456 | E47: 23 | F47: 5475 | K47: 0 | L47: 122
A48: 11 | B48: 5568 | C48: 11 | D48: 5576 | E48: 12 | F48: 5579 | K48: 0 | L48: 111
A49: 11 | B49: 5674 | C49: 22 | D49: 5688 | E49: 23 | F49: 5695 | K49: 0 | L49: 122
A50: 22 | B50: 5794 | C50: 13 | D50: 5804 | E50: 23 | F50: 5819 | K50: 0 | L50: 212
A51: 22 | B51: 5919 | C51: 13 | D51: 5927 | E51: 23 | F51: 5937 | K51: 0 | L51: 212
A52: 11 | B52: 6035 | C52: 11 | D52: 6039 | E52: 21 | F52: 6053 | K52: 0 | L52: 112
A53: 11 | B53: 6239 | C53: 22 | D53: 6249 | E53: 23 | F53: 6253 | K53: 0 | L53: 122
A54: 11 | B54: 6349 | C54: 11 | D54: 6352 | E54: 21 | F54: 6376 | K54: 0 | L54: 112
A55: 22 | B55: 6503 | C55: 24 | D55: 6509 | E55: 14 | F55: 6526 | K55: 0 | L55: 221
A56: 11 | B56: 6619 | C56: 11 | D56: 6624 | E56: 21 | F56: 6634 | K56: 0 | L56: 112
A57: 22 | B57: 6760 | C57: 13 | D57: 6770 | E57: 14 | F57: 6777 | K57: 0 | L57: 211
A58: 11 | B58: 6872 | C58: 11 | D58: 6878 | E58: 21 | F58: 6896 | K58: 0 | L58: 112
A59: 22 | B59: 7097 | C59: 13 | D59: 7105 | E59: 23 | F59: 7117 | K59: 0 | L59: 212
A60: 11 | B60: 7213 | C60: 11 | D60: 7222 | E60: 12 | F60: 7230 | K60: 0 | L60: 111
A61: 11 | B61: 7322 | C61: 11 | D61: 7325 | E61: 12 | F61: 7331 | K61: 0 | L61: 111
A62: 11 | B62: 7422 | C62: 11 | D62: 7425 | E62: 12 | F62: 7427 | K62: 0 | L62: 111
A63: 11 | B63: 7519 | C63: 11 | D63: 7524 | E63: 21 | F63: 7534 | K63: 0 | L63: 112
A64: 11 | B64: 7810 | C64: 22 | D64: 7820 | E64: 23 | F64: 7825 | K64: 0 | L64: 122
A65: 22 | B65: 7922 | C65: 24 | D65: 7926 | E65: 23 | F65: 7938 | K65: 0 | L65: 222
A66: 11 | B66: 8034 | C66: 11 | D66: 8040 | E66: 21 | F66: 8082 | K66: 0 | L66: 112
A67: 22 | B67: 8226 | C67: 13 | D67: 8234 | E67: 23 | F67: 8260 | K67: 0 | L67: 212
A68: 11 | B68: 8354 | C68: 11 | D68: 8363 | E68: 12 | F68: 8367 | K68: 0 | L68: 111
A69: 22 | B69: 8463 | C69: 13 | D69: 8473 | E69: 23 | F69: 8494 | K69: 0 | L69: 212
A70: 11 | B70: 8588 | C70: 11 | D70: 8594 | E70: 21 | F70: 8608 | K70: 0 | L70: 112
A71: 22 | B71: 8749 | C71: 24 | D71: 8753 | E71: 23 | F71: 8759 | K71: 0 | L71: 222
A72: 11 | B72: 8854 | C72: 11 | D72: 8858 | E72: 21 | F72: 8877 | K72: 0 | L72: 112
A73: 22 | B73: 8981 | C73: 24 | D73: 9006 | E73: 23 | F73: 9012 | K73: 0 | L73: 222
A74: 11 | B74: 9105 | C74: 22 | D74: 9119 | E74: 23 | F74: 9123 | K74: 0 | L74: 122
A75: 22 | B75: 9242 | C75: 13 | D75: 9252 | E75: 14 | F75: 9257 | K75: 0 | L75: 211
A76: 11 | B76: 9349 | C76: 11 | D76: 9354 | E76: 21 | F76: 9425 | K76: 0 | L76: 112
A77: 22 | B77: 9517 | C77: 13 | D77: 9525 | E77: 23 | F77: 9537 | K77: 0 | L77: 212
A78: 11 | B78: 9632 | C78: 22 | D78: 9647 | E78: 23 | F78: 9661 | K78: 0 | L78: 122
A79: 22 | B79: 9757 | C79: 13 | D79: 9765 | E79: 23 | F79: 9783 | K79: 0 | L79: 212
A80: 11 | B80: 9885 | C80: 11 | D80: 9889 | E80: 21 | F80: 9899 | K80: 0 | L80: 112
A81: 22 | B81: 10066 | C81: 24 | D81: 10076 | E81: 14 | F81: 10086 | K81: 0 | L81: 221
A82: 11 | B82: 10179 | C82: 11 | D82: 10181 | E82: 21 | F82: 10215 | K82: 0 | L82: 112
A83: 22 | B83: 10329 | C83: 24 | D83: 10334 | E83: 23 | F83: 10341 | K83: 0 | L83: 222
A84: 11 | B84: 10435 | C84: 11 | D84: 10440 | E84: 21 | F84: 10450 | K84: 0 | L84: 112
A85: 22 | B85: 10547 | C85: 24 | D85: 10552 | E85: 14 | F85: 10566 | K85: 0 | L85: 221
A86: 11 | B86: 10666 | C86: 11 | D86: 10671 | E86: 21 | F86: 10683 | K86: 0 | L86: 112
A87: 22 | B87: 10806 | C87: 24 | D87: 10812 | E87: 23 | F87: 10819 | K87: 0 | L87: 222
A88: 11 | B88: 10919 | C88: 11 | D88: 10924 | E88: 21 | F88: 10946 | K88: 0 | L88: 112
A89: 22 | B89: 11122 | C89: 24 | D89: 11126 | E89: 23 | F89: 11130 | K89: 0 | L89: 222
A90: 22 | B90: 11243 | C90: 24 | D90: 11263 | E90: 23 | F90: 11273 | K90: 0 | L90: 222
A91: 11 | B91: 11371 | C91: 11 | D91: 11374 | E91: 21 | F91: 11395 | K91: 0 | L91: 112
A92: 22 | B92: 11565 | C92: 24 | D92: 11582 | E92: 23 | F92: 11588 | K92: 0 | L92: 222
A93: 11 | B93: 11682 | C93: 11 | D93: 11688 | E93: 21 | F93: 11737 | K93: 0 | L93: 112
A94: 22 | B94: 11857 | C94: 24 | D94: 11883 | E94: 23 | F94: 11887 | K94: 0 | L94: 222
A95: 22 | B95: 11985 | C95: 13 | D95: 11992 | E95: 23 | F95: 12001 | K95: 0 | L95: 212
A96: 22 | B96: 12099 | C96: 24 | D96: 12103 | E96: 23 | F96: 12108 | K96: 0 | L96: 222
A97: 11 | B97: 12201 | C97: 22 | D97: 12211 | E97: 23 | F97: 12220 | K97: 0 | L97: 122
A98: 11 | B98: 12323 | C98: 22 | D98: 12334 | E98: 23 | F98: 12339 | K98: 0 | L98: 122
A99: 11 | B99: 12431 | C99: 11 | D99: 12438 | E99: 21 | F99: 12460 | K99: 0 | L99: 112
A100: 11 | B100: 12593 | C100: 22 | D100: 12610 | E100: 23 | F100: 12619 | K100: 0 | L100: 122
A101: 11 | B101: 12717 | C101: 11 | D101: 12721 | E101: 21 | F101: 12752 | K101: 0 | L101: 112
A102: 22 | B102: 12906 | C102: 13 | D102: 12917 | E102: 23 | F102: 12951 | K102: 0 | L102: 212
A103: 11 | B103: 13046 | C103: 11 | D103: 13055 | E103: 21 | F103: 13088 | K103: 0 | L103: 112
A104: 22 | B104: 13243 | C104: 24 | D104: 13261 | E104: 23 | F104: 13265 | K104: 0 | L104: 222
A105: 22 | B105: 13364 | C105: 13 | D105: 13374 | E105: 23 | F105: 13406 | K105: 0 | L105: 212
A106: 11 | B106: 13501 | C106: 11 | D106: 13511 | E106: 21 | F106: 13523 | K106: 0 | L106: 112
A107: 11 | B107: 13614 | C107: 11 | D107: 13619 | E107: 21 | F107: 13627 | K107: 0 | L107: 112
A108: 11 | B108: 13769 | C108: 22 | D108: 13778 | E108: 23 | F108: 13784 | K108: 0 | L108: 122
A109: 11 | B109: 13878 | C109: 11 | D109: 13880 | E109: 21 | F109: 13890 | K109: 0 | L109: 112
A110: 22 | B110: 13993 | C110: 13 | D110: 14013 | E110: 23 | F110: 14028 | K110: 0 | L110: 212
A111: 11 | B111: 14123 | C111: 11 | D111: 14128 | E111: 21 | F111: 14141 | K111: 0 | L111: 112
A112: 22 | B112: 14249 | C112: 13 | D112: 14257 | E112: 23 | F112: 14265 | K112: 0 | L112: 212
A113: 11 | B113: 14357 | C113: 11 | D113: 14362 | E113: 21 | F113: 14382 | K113: 0 | L113: 112
A114: 22 | B114: 14489 | C114: 24 | D114: 14494 | E114: 23 | F114: 14510 | K114: 0 | L114: 222
A115: 11 | B115: 14606 | C115: 11 | D115: 14609 | E115: 12 | F115: 14612 | K115: 0 | L115: 111
A116: 11 | B116: 14704 | C116: 11 | D116: 14708 | E116: 21 | F116: 14718 | K116: 0 | L116: 112
A117: 11 | B117: 14888 | C117: 22 | D117: 14894 | E117: 23 | F117: 14899 | K117: 0 | L117: 122
A118: 11 | B118: 14993 | C118: 11 | D118: 14997 | E118: 21 | F118: 15021 | K118: 0 | L118: 112
A119: 22 | B119: 15121 | C119: 24 | D119: 15145 | E119: 23 | F119: 15151 | K119: 0 | L119: 222
A120: 11 | B120: 15257 | C120: 22 | D120: 15289 | E120: 23 | F120: 15301 | K120: 0 | L120: 122
A121: 11 | B121: 15396 | C121: 11 | D121: 15399 | E121: 21 | F121: 15426 | K121: 0 | L121: 112
A122: 22 | B122: 15518 | C122: 24 | D122: 15545 | E122: 23 | F122: 15550 | K122: 0 | L122: 222
A123: 11 | B123: 15642 | C123: 22 | D123: 15651 | E123: 23 | F123: 15659 | K123: 0 | L123: 122
A124: 11 | B124: 15752 | C124: 22 | D124: 15761 | E124: 23 | F124: 15765 | K124: 0 | L124: 122
A125: 22 | B125: 15865 | C125: 24 | D125: 15872 | E125: 14 | F125: 15886 | K125: 0 | L125: 221
A126: 11 | B126: 15980 | C126: 11 | D126: 15985 | E126: 21 | F126: 15995 | K126: 0 | L126: 112
A127: 11 | B127: 16084 | C127: 11 | D127: 16089 | E127: 21 | F127: 16098 | K127: 0 | L127: 112
A128: 22 | B128: 16209 | C128: 24 | D128: 16229 | E128: 23 | F128: 16234 | K128: 0 | L128: 222
A129: 11 | B129: 16328 | C129: 11 | D129: 16331 | E129: 21 | F129: 16346 | K129: 0 | L129: 112
A130: 22 | B130: 16450 | C130: 13 | D130: 16465 | E130: 23 | F130: 16474 | K130: 0 | L130: 212
A131: 11 | B131: 16570 | C131: 22 | D131: 16612 | E131: 23 | F131: 16625 | K131: 0 | L131: 122
A132: 11 | B132: 16719 | C132: 11 | D132: 16727 | E132: 21 | F132: 16740 | K132: 0 | L132: 112
A133: 22 | B133: 16881 | C133: 24 | D133: 16886 | E133: 23 | F133: 16892 | K133: 0 | L133: 222
A134: 11 | B134: 16983 | C134: 11 | D134: 16987 | E134: 21 | F134: 17003 | K134: 1 | L134: 112

Sheet !MB14A5I.sha
A1: Report for:!MB14A5I.sha
A2: Date: | B2: <date>
A3: Hen: | B3: <hen> | F3: Correct Sequence | G3: =Start!J2 -> 112 | P3: Total Sequences in Data | Q3: =4994-COUNTBLANK(L7:L5000) -> 136 | V3: Total Sequences in Block Data | W3: =COUNTA(L7:L29) -> 23 | AA3: Total Sequences in Block Data | AB3: =COUNTA(L30:L51) -> 22 | AF3: Total Sequences in Block Data | AG3: =COUNTA(L52:L74) -> 23 | AK3: Total Sequences in Block Data | AL3: =COUNTA(L75:L97) -> 23 | AP3: Total Sequences in Block Data | AQ3: =COUNTA(L98:L119) -> 22 | AU3: Total Sequences in Block Data | AV3: =COUNTA(L120:L142) -> 23
P4: Total Sequences in Summary | Q4: =SUM(O7:O14) -> 136 | V4: Total Sequences in Block Summary | W4: =SUM(U7:U14) -> 23 | AA4: Total Sequences in Block Summary | AB4: =SUM(Z7:Z14) -> 22 | AF4: Total Sequences in Block Summary | AG4: =SUM(AE7:AE14) -> 23 | AK4: Total Sequences in Block Summary | AL4: =SUM(AJ7:AJ14) -> 23 | AP4: Total Sequences in Block Summary | AQ4: =SUM(AO7:AO14) -> 22 | AU4: Total Sequences in Block Summary | AV4: =SUM(AT7:AT14) -> 23
T5: Block 1 | Y5: Block 2 | AD5: Block 3 | AI5: Block 4 | AN5: Block 5 | AS5: Block 6
A6: Sequence Component 1 | B6: Time 1 | C6: Sequence Component 2 | D6: Time 2 | E6: Sequence Component 3 | F6: Time 3 | G6: Sequence Component 4 | H6: Time 4 | I6: Sequence Component 5 | J6: Time 5 | K6: Correct? 0=No 1=Yes | L6: Sequence | N6: Frequency | P6: Relative Frequency | Q6: Variability | T6: Frequency | V6: Relative Frequency | W6: Variability | Y6: Frequency | AA6: Relative Frequency | AB6: Variability | AD6: Frequency | AF6: Relative Frequency | AG6: Variability | AI6: Frequency | AK6: Relative Frequency | AL6: Variability | AN6: Frequency | AP6: Relative Frequency | AQ6: Variability | AS6: Frequency | AU6: Relative Frequency | AV6: Variability
A7: 22 | B7: 144 | C7: 24 | D7: 152 | E7: 23 | F7: 171 | K7: 0 | L7: 222 | N7: 111 | O7: =COUNTIF($L$7:$L$500,N7) -> 22 | P7: =O7/$Q$4 -> 0.1617647059 | Q7: =IF(P7=0,0,(P7*((LOG(P7))/LOG(2)))) -> -0.4251226978 | T7: =N7 -> 111 | U7: =COUNTIF(L7:L29,T7) -> 3 | V7: =U7/(W4-U8) -> 0.1578947368 | W7: =IF(V7=0,0,(V7*((LOG(V7))/LOG(2)))) -> -0.4204681599 | Y7: =N7 -> 111 | Z7: =COUNTIF(L30:L51,Y7) -> 2 | AA7: =Z7/(AB4-Z8) -> 0.1538461538 | AB7: =IF(AA7=0,0,(AA7*((LOG(AA7))/LOG(2)))) -> -0.4154522643 | AD7: =N7 -> 111 | AE7: =COUNTIF(L52:L74,AD7) -> 4 | AF7: =AE7/(AG4-AE8) -> 0.2222222222 | AG7: =IF(AF7=0,0,(AF7*((LOG(AF7))/LOG(2)))) -> -0.4822055559 | AI7: =N7 -> 111 | AJ7: =COUNTIF(L75:L97,AI7) -> 4 | AK7: =AJ7/(AL4-AJ8) -> 0.2666666667 | AL7: =IF(AK7=0,0,(AK7*((LOG(AK7))/LOG(2)))) -> -0.5085041588 | AN7: =N7 -> 111 | AO7: =COUNTIF(L98:L119,AN7) -> 3 | AP7: =AO7/(AQ4-AO8) -> 0.2142857143 | AQ7: =IF(AP7=0,0,(AP7*((LOG(AP7))/LOG(2)))) -> -0.4762269474 | AS7: =N7 -> 111 | AT7: =COUNTIF(L120:L142,AS7) -> 6 | AU7: =AT7/(AV4-AT8) -> 0.3529411765 | AV7: =IF(AU7=0,0,(AU7*((LOG(AU7))/LOG(2)))) -> -0.5302942378
A8: 11 | B8: 277 | C8: 22 | D8: 288 | E8: 23 | F8: 292 | K8: 0 | L8: 122 | N8: 112 | O8: =COUNTIF($L$7:$L$500,N8) -> 40 | P8: =O8/$Q$4 -> 0.2941176471 | Q8: =IF(P8=0,0,(P8*((LOG(P8))/LOG(2)))) -> -0.5192749254 | T8: =N8 -> 112 | U8: =COUNTIF(L7:L29,T8) -> 4 | Y8: =N8 -> 112 | Z8: =COUNTIF(L30:L51,Y8) -> 9 | AD8: =N8 -> 112 | AE8: =COUNTIF(L52:L74,AD8) -> 5 | AI8: =N8 -> 112 | AJ8: =COUNTIF(L75:L97,AI8) -> 8 | AN8: =N8 -> 112 | AO8: =COUNTIF(L98:L119,AN8) -> 8 | AS8: =N8 -> 112 | AT8: =COUNTIF(L120:L142,AS8) -> 6
A9: 11 | B9: 388 | C9: 22 | D9: 401 | E9: 23 | F9: 406 | K9: 0 | L9: 122 | N9: 121 | O9: =COUNTIF($L$7:$L$500,N9) -> 2 | P9: =O9/$Q$4 -> 0.01470588235 | Q9: =IF(P9=0,0,(P9*((LOG(P9))/LOG(2)))) -> -0.08952151237 | T9: =N9 -> 121 | U9: =COUNTIF(L7:L29,T9) -> 0 | V9: =U9/(W4-U8) -> 0 | W9: =IF(V9=0,0,(V9*((LOG(V9))/LOG(2)))) -> 0 | Y9: =N9 -> 121 | Z9: =COUNTIF(L30:L51,Y9) -> 1 | AA9: =Z9/(AB4-Z8) -> 0.07692307692 | AB9: =IF(AA9=0,0,(AA9*((LOG(AA9))/LOG(2)))) -> -0.2846492091 | AD9: =N9 -> 121 | AE9: =COUNTIF(L52:L74,AD9) -> 0 | AF9: =AE9/(AG4-AE8) -> 0 | AG9: =IF(AF9=0,0,(AF9*((LOG(AF9))/LOG(2)))) -> 0 | AI9: =N9 -> 121 | AJ9: =COUNTIF(L75:L97,AI9) -> 1 | AK9: =AJ9/(AL4-AJ8) -> 0.06666666667 | AL9: =IF(AK9=0,0,(AK9*((LOG(AK9))/LOG(2)))) -> -0.260459373 | AN9: =N9 -> 121 | AO9: =COUNTIF(L98:L119,AN9) -> 0 | AP9: =AO9/(AQ4-AO8) -> 0 | AQ9: =IF(AP9=0,0,(AP9*((LOG(AP9))/LOG(2)))) -> 0 | AS9: =N9 -> 121 | AT9: =COUNTIF(L120:L142,AS9) -> 0 | AU9: =AT9/(AV4-AT8) -> 0 | AV9: =IF(AU9=0,0,(AU9*((LOG(AU9))/LOG(2)))) -> 0
A10: 11 | B10: 504 | C10: 22 | D10: 513 | E10: 23 | F10: 518 | K10: 0 | L10: 122 | N10: 122 | O10: =COUNTIF($L$7:$L$500,N10) -> 28 | P10: =O10/$Q$4 -> 0.2058823529 | Q10: =IF(P10=0,0,(P10*((LOG(P10))/LOG(2)))) -> -0.4694339834 | T10: =N10 -> 122 | U10: =COUNTIF(L7:L29,T10) -> 9 | V10: =U10/(W4-U8) -> 0.4736842105 | W10: =IF(V10=0,0,(V10*((LOG(V10))/LOG(2)))) -> -0.5106327688 | Y10: =N10 -> 122 | Z10: =COUNTIF(L30:L51,Y10) -> 5 | AA10: =Z10/(AB4-Z8) -> 0.3846153846 | AB10: =IF(AA10=0,0,(AA10*((LOG(AA10))/LOG(2)))) -> -0.5301967782 | AD10: =N10 -> 122 | AE10: =COUNTIF(L52:L74,AD10) -> 6 | AF10: =AE10/(AG4-AE8) -> 0.3333333333 | AG10: =IF(AF10=0,0,(AF10*((LOG(AF10))/LOG(2)))) -> -0.5283208336 | AI10: =N10 -> 122 | AJ10: =COUNTIF(L75:L97,AI10) -> 0 | AK10: =AJ10/(AL4-AJ8) -> 0 | AL10: =IF(AK10=0,0,(AK10*((LOG(AK10))/LOG(2)))) -> 0 | AN10: =N10 -> 122 | AO10: =COUNTIF(L98:L119,AN10) -> 4 | AP10: =AO10/(AQ4-AO8) -> 0.2857142857 | AQ10: =IF(AP10=0,0,(AP10*((LOG(AP10))/LOG(2)))) -> -0.5163871206 | AS10: =N10 -> 122 | AT10: =COUNTIF(L120:L142,AS10) -> 4 | AU10: =AT10/(AV4-AT8) -> 0.2352941176 | AV10: =IF(AU10=0,0,(AU10*((LOG(AU10))/LOG(2)))) -> -0.4911677274
A11: 11 | B11: 614 | C11: 22 | D11: 624 | E11: 23 | F11: 628 | K11: 0 | L11: 122 | N11: 211 | O11: =COUNTIF($L$7:$L$500,N11) -> 3 | P11: =O11/$Q$4 -> 0.02205882353 | Q11: =IF(P11=0,0,(P11*((LOG(P11))/LOG(2)))) -> -0.121378684 | T11: =N11 -> 211 | U11: =COUNTIF(L7:L29,T11) -> 0 | V11: =U11/(W4-U8) -> 0 | W11: =IF(V11=0,0,(V11*((LOG(V11))/LOG(2)))) -> 0 | Y11: =N11 -> 211 | Z11: =COUNTIF(L30:L51,Y11) -> 0 | AA11: =Z11/(AB4-Z8) -> 0 | AB11: =IF(AA11=0,0,(AA11*((LOG(AA11))/LOG(2)))) -> 0 | AD11: =N11 -> 211 | AE11: =COUNTIF(L52:L74,AD11) -> 2 | AF11: =AE11/(AG4-AE8) -> 0.1111111111 | AG11: =IF(AF11=0,0,(AF11*((LOG(AF11))/LOG(2)))) -> -0.352213889 | AI11: =N11 -> 211 | AJ11: =COUNTIF(L75:L97,AI11) -> 0 | AK11: =AJ11/(AL4-AJ8) -> 0 | AL11: =IF(AK11=0,0,(AK11*((LOG(AK11))/LOG(2)))) -> 0 | AN11: =N11 -> 211 | AO11: =COUNTIF(L98:L119,AN11) -> 0 | AP11: =AO11/(AQ4-AO8) -> 0 | AQ11: =IF(AP11=0,0,(AP11*((LOG(AP11))/LOG(2)))) -> 0 | AS11: =N11 -> 211 | AT11: =COUNTIF(L120:L142,AS11) -> 1 | AU11: =AT11/(AV4-AT8) -> 0.05882352941 | AV11: =IF(AU11=0,0,(AU11*((LOG(AU11))/LOG(2)))) -> -0.2404389907
A12: 11 | B12: 724 | C12: 11 | D12: 729 | E12: 21 | F12: 738 | K12: 0 | L12: 112 | N12: 212 | O12: =COUNTIF($L$7:$L$500,N12) -> 17 | P12: =O12/$Q$4 -> 0.125 | Q12: =IF(P12=0,0,(P12*((LOG(P12))/LOG(2)))) -> -0.375 | T12: =N12 -> 212 | U12: =COUNTIF(L7:L29,T12) -> 1 | V12: =U12/(W4-U8) -> 0.05263157895 | W12: =IF(V12=0,0,(V12*((LOG(V12))/LOG(2)))) -> -0.2235751323 | Y12: =N12 -> 212 | Z12: =COUNTIF(L30:L51,Y12) -> 2 | AA12: =Z12/(AB4-Z8) -> 0.1538461538 | AB12: =IF(AA12=0,0,(AA12*((LOG(AA12))/LOG(2)))) -> -0.4154522643 | AD12: =N12 -> 212 | AE12: =COUNTIF(L52:L74,AD12) -> 4 | AF12: =AE12/(AG4-AE8) -> 0.2222222222 | AG12: =IF(AF12=0,0,(AF12*((LOG(AF12))/LOG(2)))) -> -0.4822055559 | AI12: =N12 -> 212 | AJ12: =COUNTIF(L75:L97,AI12) -> 4 | AK12: =AJ12/(AL4-AJ8) -> 0.2666666667 | AL12: =IF(AK12=0,0,(AK12*((LOG(AK12))/LOG(2)))) -> -0.5085041588 | AN12: =N12 -> 212 | AO12: =COUNTIF(L98:L119,AN12) -> 2 | AP12: =AO12/(AQ4-AO8) -> 0.1428571429 | AQ12: =IF(AP12=0,0,(AP12*((LOG(AP12))/LOG(2)))) -> -0.4010507032 | AS12: =N12 -> 212 | AT12: =COUNTIF(L120:L142,AS12) -> 4 | AU12: =AT12/(AV4-AT8) -> 0.2352941176 | AV12: =IF(AU12=0,0,(AU12*((LOG(AU12))/LOG(2)))) -> -0.4911677274
A13: 22 | B13: 882 | C13: 24 | D13: 902 | E13: 23 | F13: 906 | K13: 0 | L13: 222 | N13: 221 | O13: =COUNTIF($L$7:$L$500,N13) -> 3 | P13: =O13/$Q$4 -> 0.02205882353 | Q13: =IF(P13=0,0,(P13*((LOG(P13))/LOG(2)))) -> -0.121378684 | T13: =N13 -> 221 | U13: =COUNTIF(L7:L29,T13) -> 0 | V13: =U13/(W4-U8) -> 0 | W13: =IF(V13=0,0,(V13*((LOG(V13))/LOG(2)))) -> 0 | Y13: =N13 -> 221 | Z13: =COUNTIF(L30:L51,Y13) -> 0 | AA13: =Z13/(AB4-Z8) -> 0 | AB13: =IF(AA13=0,0,(AA13*((LOG(AA13))/LOG(2)))) -> 0 | AD13: =N13 -> 221 | AE13: =COUNTIF(L52:L74,AD13) -> 0 | AF13: =AE13/(AG4-AE8) -> 0 | AG13: =IF(AF13=0,0,(AF13*((LOG(AF13))/LOG(2)))) -> 0 | AI13: =N13 -> 221 | AJ13: =COUNTIF(L75:L97,AI13) -> 2 | AK13: =AJ13/(AL4-AJ8) -> 0.1333333333 | AL13: =IF(AK13=0,0,(AK13*((LOG(AK13))/LOG(2)))) -> -0.3875854127 | AN13: =N13 -> 221 | AO13: =COUNTIF(L98:L119,AN13) -> 1 | AP13: =AO13/(AQ4-AO8) -> 0.07142857143 | AQ13: =IF(AP13=0,0,(AP13*((LOG(AP13))/LOG(2)))) -> -0.271953923 | AS13: =N13 -> 221 | AT13: =COUNTIF(L120:L142,AS13) -> 0 | AU13: =AT13/(AV4-AT8) -> 0 | AV13: =IF(AU13=0,0,(AU13*((LOG(AU13))/LOG(2)))) -> 0
A14: 11 | B14: 1010 | C14: 11 | D14: 1015 | E14: 21 | F14: 1028 | K14: 0 | L14: 112 | N14: 222 | O14: =COUNTIF($L$7:$L$500,N14) -> 21 | P14: =O14/$Q$4 -> 0.1544117647 | Q14: =IF(P14=0,0,(P14*((LOG(P14))/LOG(2)))) -> -0.4161621602 | T14: =N14 -> 222 | U14: =COUNTIF(L7:L29,T14) -> 6 | V14: =U14/(W4-U8) -> 0.3157894737 | W14: =IF(V14=0,0,(V14*((LOG(V14))/LOG(2)))) -> -0.5251468461 | Y14: =N14 -> 222 | Z14: =COUNTIF(L30:L51,Y14) -> 3 | AA14: =Z14/(AB4-Z8) -> 0.2307692308 | AB14: =IF(AA14=0,0,(AA14*((LOG(AA14))/LOG(2)))) -> -0.4881870502 | AD14: =N14 -> 222 | AE14: =COUNTIF(L52:L74,AD14) -> 2 | AF14: =AE14/(AG4-AE8) -> 0.1111111111 | AG14: =IF(AF14=0,0,(AF14*((LOG(AF14))/LOG(2)))) -> -0.352213889 | AI14: =N14 -> 222 | AJ14: =COUNTIF(L75:L97,AI14) -> 4 | AK14: =AJ14/(AL4-AJ8) -> 0.2666666667 | AL14: =IF(AK14=0,0,(AK14*((LOG(AK14))/LOG(2)))) -> -0.5085041588 | AN14: =N14 -> 222 | AO14: =COUNTIF(L98:L119,AN14) -> 4 | AP14: =AO14/(AQ4-AO8) -> 0.2857142857 | AQ14: =IF(AP14=0,0,(AP14*((LOG(AP14))/LOG(2)))) -> -0.5163871206 | AS14: =N14 -> 222 | AT14: =COUNTIF(L120:L142,AS14) -> 2 | AU14: =AT14/(AV4-AT8) -> 0.1176470588 | AV14: =IF(AU14=0,0,(AU14*((LOG(AU14))/LOG(2)))) -> -0.3632309225
A15: 22 | B15: 1409 | C15: 24 | D15: 1412 | E15: 23 | F15: 1416 | K15: 0 | L15: 222 | P15: =SUM(P7:P14) -> 1 | Q15: =-SUM(Q7:Q14) -> 2.537272647 | V15: =SUM(V7:V14) -> 1 | W15: =-SUM(W7:W14) -> 1.679822907 | AA15: =SUM(AA7:AA14) -> 1 | AB15: =-SUM(AB7:AB14) -> 2.133937566 | AF15: =SUM(AF7:AF14) -> 1 | AG15: =-SUM(AG7:AG14) -> 2.197159723 | AK15: =SUM(AK7:AK14) -> 1 | AL15: =-SUM(AL7:AL14) -> 2.173557262 | AP15: =SUM(AP7:AP14) -> 1 | AQ15: =-SUM(AQ7:AQ14) -> 2.182005815 | AU15: =SUM(AU7:AU14) -> 1 | AV15: =-SUM(AV7:AV14) -> 2.116299606
A16: 11 | B16: 1509 | C16: 22 | D16: 1518 | E16: 23 | F16: 1528 | K16: 0 | L16: 122 | P16: U= | Q16: =Q15/(LOG(Q4)/LOG(2)) -> 0.3579944903 | V16: U1= | W16: =W15/(LOG(W4)/LOG(2)) -> 0.3713495965 | AA16: U2= | AB16: =AB15/(LOG(AB4)/LOG(2)) -> 0.4785223205 | AF16: U3= | AG16: =AG15/(LOG(AG4)/LOG(2)) -> 0.4857145198 | AK16: U4= | AL16: =AL15/(LOG(AL4)/LOG(2)) -> 0.4804968481 | AP16: U5= | AQ16: =AQ15/(LOG(AQ4)/LOG(2)) -> 0.4893013284 | AU16: U6= | AV16: =AV15/(LOG(AV4)/LOG(2)) -> 0.4678391998
A17: 11 | B17: 1622 | C17: 11 | D17: 1631 | E17: 21 | F17: 1641 | K17: 0 | L17: 112
A18: 22 | B18: 1749 | C18: 24 | D18: 1766 | E18: 23 | F18: 1771 | K18: 0 | L18: 222
A19: 11 | B19: 1863 | C19: 11 | D19: 1870 | E19: 12 | F19: 1872 | K19: 0 | L19: 111 | N19: Total Target Seq
A20: 11 | B20: 1971 | C20: 11 | D20: 1978 | E20: 12 | F20: 1982 | K20: 0 | L20: 111 | N20: =COUNTIF(L7:L142,G3) -> 40 | P20: 23 | Q20: 22 | R20: 23 | S20: 23 | T20: 22 | U20: 23
A21: 22 | B21: 2079 | C21: 13 | D21: 2090 | E21: 23 | F21: 2105 | K21: 0 | L21: 212 | P21: % of reinforcement given in 6 equal intervals based on number of trials
A22: 11 | B22: 2210 | C22: 22 | D22: 2222 | E22: 23 | F22: 2228 | K22: 0 | L22: 122 | P22: %_1 | Q22: %_2 | R22: %_3 | S22: %_4 | T22: %_5 | U22: %_6
A23: 22 | B23: 2367 | C23: 24 | D23: 2372 | E23: 23 | F23: 2379 | K23: 0 | L23: 222 | O23: target sequence | P23: =$G$3 -> 112 | Q23: =$G$3 -> 112 | R23: =$G$3 -> 112 | S23: =$G$3 -> 112 | T23: =$G$3 -> 112 | U23: =$G$3 -> 112
A24: 11 | B24: 2474 | C24: 22 | D24: 2486 | E24: 23 | F24: 2492 | K24: 0 | L24: 122 | O24: total reinforcement | P24: =U8 -> 4 | Q24: =Z8 -> 9 | R24: =AE8 -> 5 | S24: =AJ8 -> 8 | T24: =AO8 -> 8 | U24: =AT8 -> 6
A25: 11 | B25: 2587 | C25: 11 | D25: 2593 | E25: 21 | F25: 2604 | K25: 0 | L25: 112 | O25: % target
A26: 11 | B26: 2831 | C26: 22 | D26: 2841 | E26: 23 | F26: 2846 | K26: 0 | L26: 122 | O26: CCRF
A27: 11 | B27: 2939 | C27: 11 | D27: 2943 | E27: 12 | F27: 2947 | K27: 0 | L27: 111 | O27: % CCRf
A28: 22 | B28: 3045 | C28: 24 | D28: 3050 | E28: 23 | F28: 3056 | K28: 0 | L28: 222 | O28: average response rate | P28: =F29/P20 -> 137.6521739 | Q28: =(F51-F29)/Q20 -> 134.7272727 | R28: =(F74-F51)/R20 -> 126.5652174 | S28: =(F97-F74)/S20 -> 138.7826087 | T28: =(F119-F97)/T20 -> 134.3636364 | U28: =(F142-F119)/U20 -> 133.8695652
A29: 11 | B29: 3151 | C29: 22 | D29: 3162 | E29: 23 | F29: 3166 | K29: 0 | L29: 122
A30: 11 | B30: 3263 | C30: 11 | D30: 3274 | E30: 21 | F30: 3285 | K30: 0 | L30: 112
A31: 22 | B31: 3451 | C31: 24 | D31: 3458 | E31: 23 | F31: 3481 | K31: 0 | L31: 222
A32: 11 | B32: 3576 | C32: 11 | D32: 3585 | E32: 21 | F32: 3605 | K32: 0 | L32: 112
A33: 11 | B33: 3756 | C33: 22 | D33: 3766 | E33: 14 | F33: 3785 | K33: 0 | L33: 121
A34: 11 | B34: 3879 | C34: 11 | D34: 3883 | E34: 21 | F34: 3899 | K34: 0 | L34: 112
A35: 11 | B35: 4052 | C35: 22 | D35: 4060 | E35: 23 | F35: 4065 | K35: 0 | L35: 122
A36: 11 | B36: 4159 | C36: 11 | D36: 4162 | E36: 12 | F36: 4168 | K36: 0 | L36: 111
A37: 11 | B37: 4260 | C37: 11 | D37: 4266 | E37: 21 | F37: 4284 | K37: 0 | L37: 112
A38: 11 | B38: 4452 | C38: 11 | D38: 4453 | E38: 21 | F38: 4462 | K38: 0 | L38: 112
A39: 22 | B39: 4608 | C39: 24 | D39: 4631 | E39: 23 | F39: 4636 | K39: 0 | L39: 222
A40: 11 | B40: 4737 | C40: 22 | D40: 4746 | E40: 23 | F40: 4754 | K40: 0 | L40: 122
A41: 11 | B41: 4849 | C41: 11 | D41: 4851 | E41: 21 | F41: 4871 | K41: 0 | L41: 112
A42: 22 | B42: 4999 | C42: 13 | D42: 5011 | E42: 23 | F42: 5022 | K42: 0 | L42: 212
A43: 11 | B43: 5114 | C43: 11 | D43: 5119 | E43: 12 | F43: 5124 | K43: 0 | L43: 111
A44: 11 | B44: 5219 | C44: 22 | D44: 5229 | E44: 23 | F44: 5234 | K44: 0 | L44: 122
A45: 11 | B45: 5328 | C45: 11 | D45: 5332 | E45: 21 | F45: 5344 | K45: 0 | L45: 112
A46: 11 | B46: 5489 | C46: 22 | D46: 5502 | E46: 23 | F46: 5509 | K46: 0 | L46: 122
A47: 11 | B47: 5604 | C47: 11 | D47: 5618 | E47: 21 | F47: 5629 | K47: 0 | L47: 112
A48: 22 | B48: 5728 | C48: 13 | D48: 5742 | E48: 23 | F48: 5753 | K48: 0 | L48: 212
A49: 22 | B49: 5889 | C49: 24 | D49: 5896 | E49: 23 | F49: 5902 | K49: 0 | L49: 222
A50: 11 | B50: 6005 | C50: 22 | D50: 6013 | E50: 23 | F50: 6018 | K50: 0 | L50: 122
A51: 11 | B51: 6113 | C51: 11 | D51: 6119 | E51: 21 | F51: 6130 | K51: 0 | L51: 112
A52: 22 | B52: 6225 | C52: 13 | D52: 6232 | E52: 14 | F52: 6236 | K52: 0 | L52: 211
A53: 11 | B53: 6330 | C53: 11 | D53: 6335 | E53: 21 | F53: 6346 | K53: 0 | L53: 112
A54: 11 | B54: 6462 | C54: 22 | D54: 6473 | E54: 23 | F54: 6481 | K54: 0 | L54: 122
A55: 11 | B55: 6575 | C55: 22 | D55: 6617 | E55: 23 | F55: 6632 | K55: 0 | L55: 122
A56: 11 | B56: 6726 | C56: 11 | D56: 6729 | E56: 21 | F56: 6739 | K56: 0 | L56: 112
A57: 11 | B57: 6937 | C57: 11 | D57: 6940 | E57: 21 | F57: 6949 | K57: 0 | L57: 112
A58: 11 | B58: 7098 | C58: 22 | D58: 7106 | E58: 23 | F58: 7112 | K58: 0 | L58: 122
A59: 11 | B59: 7209 | C59: 22 | D59: 7238 | E59: 23 | F59: 7248 | K59: 0 | L59: 122
A60: 11 | B60: 7343 | C60: 22 | D60: 7356 | E60: 23 | F60: 7363 | K60: 0 | L60: 122
A61: 11 | B61: 7455 | C61: 11 | D61: 7459 | E61: 12 | F61: 7465 | K61: 0 | L61: 111
A62: 22 | B62: 7563 | C62: 24 | D62: 7567 | E62: 23 | F62: 7572 | K62: 0 | L62: 222
A63: 22 | B63: 7671 | C63: 13 | D63: 7681 | E63: 23 | F63: 7701 | K63: 0 | L63: 212
A64: 11 | B64: 7796 | C64: 11 | D64: 7801 | E64: 21 | F64: 7816 | K64: 0 | L64: 112
A65: 22 | B65: 7916 | C65: 13 | D65: 7927 | E65: 14 | F65: 7932 | K65: 0 | L65: 211
A66: 11 | B66: 8027 | C66: 11 | D66: 8038 | E66: 21 | F66: 8069 | K66: 0 | L66: 112
A67: 22 | B67: 8209 | C67: 24 | D67: 8229 | E67: 23 | F67: 8235 | K67: 0 | L67: 222
A68: 11 | B68: 8337 | C68: 11 | D68: 8342 | E68: 12 | F68: 8346 | K68: 0 | L68: 111
A69: 11 | B69: 8442 | C69: 22 | D69: 8459 | E69: 23 | F69: 8466 | K69: 0 | L69: 122
A70: 11 | B70: 8559 | C70: 11 | D70: 8561 | E70: 12 | F70: 8564 | K70: 0 | L70: 111
A71: 22 | B71: 8659 | C71: 13 | D71: 8670 | E71: 23 | F71: 8681 | K71: 0 | L71: 212
A72: 11 | B72: 8776 | C72: 11 | D72: 8781 | E72: 12 | F72: 8787 | K72: 0 | L72: 111
A73: 22 | B73: 8884 | C73: 13 | D73: 8893 | E73: 23 | F73: 8908 | K73: 0 | L73: 212
A74: 22 | B74: 9006 | C74: 13 | D74: 9018 | E74: 23 | F74: 9041 | K74: 0 | L74: 212
A75: 11 | B75: 9138 | C75: 11 | D75: 9143 | E75: 21 | F75: 9153 | K75: 0 | L75: 112
A76: 11 | B76: 9313 | C76: 11 | D76: 9317 | E76: 21 | F76: 9327 | K76: 0 | L76: 112
A77: 22 | B77: 9498 | C77: 24 | D77: 9505 | E77: 23 | F77: 9512 | K77: 0 | L77: 222
A78: 11 | B78: 9608 | C78: 11 | D78: 9613 | E78: 21 | F78: 9631 | K78: 0 | L78: 112
A79: 22 | B79: 9751 | C79: 24 | D79: 9757 | E79: 23 | F79: 9773 | K79: 0 | L79: 222
A80: 11 | B80: 9867 | C80: 11 | D80: 9870 | E80: 21 | F80: 9905 | K80: 0 | L80: 112
A81: 22 | B81: 10033 | C81: 24 | D81: 10056 | E81: 23 | F81: 10062 | K81: 0 | L81: 222
A82: 11 | B82: 10155 | C82: 11 | D82: 10158 | E82: 12 | F82: 10168 | K82: 0 | L82: 111
A83: 11 | B83: 10262 | C83: 11 | D83: 10265 | E83: 12 | F83: 10269 | K83: 0 | L83: 111
A84: 22 | B84: 10364 | C84: 13 | D84: 10377 | E84: 23 | F84: 10390 | K84: 0 | L84: 212
A85: 11 | B85: 10482 | C85: 11 | D85: 10487 | E85: 12 | F85: 10491 | K85: 0 | L85: 111
A86: 11 | B86: 10592 | C86: 11 | D86: 10597 | E86: 21 | F86: 10610 | K86: 0 | L86: 112
A87: 11 | B87: 10827 | C87: 11 | D87: 10829 | E87: 21 | F87: 10839 | K87: 0 | L87: 112
A88: 22 | B88: 10949 | C88: 24 | D88: 10956 | E88: 14 | F88: 10965 | K88: 0 | L88: 221
A89: 22 | B89: 11061 | C89: 24 | D89: 11067 | E89: 14 | F89: 11080 | K89: 0 | L89: 221
A90: 11 | B90: 11173 | C90: 11 | D90: 11177 | E90: 21 | F90: 11203 | K90: 0 | L90: 112
A91: 22 | B91: 11316 | C91: 13 | D91: 11329 | E91: 23 | F91: 11341 | K91: 0 | L91: 212
A92: 11 | B92: 11435 | C92: 11 | D92: 11437 | E92: 21 | F92: 11451 | K92: 0 | L92: 112
A93: 22 | B93: 11588 | C93: 13 | D93: 11600 | E93: 23 | F93: 11616 | K93: 0 | L93: 212
A94: 22 | B94: 11734 | C94: 24 | D94: 11744 | E94: 23 | F94: 11753 | K94: 0 | L94: 222
A95: 22 | B95: 11850 | C95: 13 | D95: 11859 | E95: 23 | F95: 11869 | K95: 0 | L95: 212
A96: 11 | B96: 12101 | C96: 22 | D96: 12114 | E96: 14 | F96: 12128 | K96: 0 | L96: 121
A97: 11 | B97: 12223 | C97: 11 | D97: 12228 | E97: 12 | F97: 12233 | K97: 0 | L97: 111
A98: 11 | B98: 12327 | C98: 11 | D98: 12331 | E98: 21 | F98: 12350 | K98: 0 | L98: 112
A99: 22 | B99: 12503 | C99: 13 | D99: 12511 | E99: 23 | F99: 12551 | K99: 0 | L99: 212
A100: 11 | B100: 12645 | C100: 11 | D100: 12651 | E100: 21 | F100: 12675 | K100: 0 | L100: 112
A101: 22 | B101: 12776 | C101: 24 | D101: 12798 | E101: 23 | F101: 12804 | K101: 0 | L101: 222
A102: 11 | B102: 12897 | C102: 11 | D102: 12902 | E102: 12 | F102: 12907 | K102: 0 | L102: 111
A103: 22 | B103: 13019 | C103: 24 | D103: 13025 | E103: 23 | F103: 13032 | K103: 0 | L103: 222
A104: 11 | B104: 13139 | C104: 11 | D104: 13144 | E104: 21 | F104: 13154 | K104: 0 | L104: 112
A105: 22 | B105: 13283 | C105: 24 | D105: 13291 | E105: 23 | F105: 13327 | K105: 0 | L105: 222
A106: 11 | B106: 13419 | C106: 11 | D106: 13424 | E106: 21 | F106: 13479 | K106: 0 | L106: 112
A107: 22 | B107: 13681 | C107: 24 | D107: 13686 | E107: 14 | F107: 13696 | K107: 0 | L107: 221
A108: 11 | B108: 13790 | C108: 11 | D108: 13797 | E108: 21 | F108: 13815 | K108: 0 | L108: 112
A109: 11 | B109: 13933 | C109: 22 | D109: 13944 | E109: 23 | F109: 13951 | K109: 0 | L109: 122
A110: 11 | B110: 14047 | C110: 11 | D110: 14052 | E110: 21 | F110: 14075 | K110: 0 | L110: 112
A111: 22 | B111: 14216 | C111: 24 | D111: 14231 | E111: 23 | F111: 14236 | K111: 0 | L111: 222
A112: 11 | B112: 14335 | C112: 22 | D112: 14388 | E112: 23 | F112: 14400 | K112: 0 | L112: 122
A113: 11 | B113: 14493 | C113: 11 | D113: 14495 | E113: 12 | F113: 14499 | K113: 0 | L113: 111
A114: 11 | B114: 14593 | C114: 22 | D114: 14603 | E114: 23 | F114: 14609 | K114: 0 | L114: 122
A115: 11 | B115: 14704 | C115: 11 | D115: 14709 | E115: 12 | F115: 14716 | K115: 0 | L115: 111
A116: 11 | B116: 14811 | C116: 22 | D116: 14821 | E116: 23 | F116: 14828 | K116: 0 | L116: 122
A117: 11 | B117: 14936 | C117: 11 | D117: 14942 | E117: 21 | F117: 14969 | K117: 0 | L117: 112
A118: 22 | B118: 15062 | C118: 13 | D118: 15070 | E118: 23 | F118: 15079 | K118: 0 | L118: 212
A119: 11 | B119: 15173 | C119: 11 | D119: 15179 | E119: 21 | F119: 15189 | K119: 0 | L119: 112
A120: 22 | B120: 15281 | C120: 13 | D120: 15294 | E120: 14 | F120: 15301 | K120: 0 | L120: 211
A121: 22 | B121: 15401 | C121: 13 | D121: 15412 | E121: 23 | F121: 15483 | K121: 0 | L121: 212
A122: 11 | B122: 15594 | C122: 11 | D122: 15599 | E122: 12 | F122: 15604 | K122: 0 | L122: 111
A123: 11 | B123: 15698 | C123: 22 | D123: 15709 | E123: 23 | F123: 15713 | K123: 0 | L123: 122
A124: 11 | B124: 15808 | C124: 11 | D124: 15814 | E124: 12 | F124: 15822 | K124: 0 | L124: 111
A125: 11 | B125: 15949 | C125: 11 | D125: 15972 | E125: 21 | F125: 15985 | K125: 0 | L125: 112
A126: 11 | B126: 16162 | C126: 22 | D126: 16171 | E126: 23 | F126: 16177 | K126: 0 | L126: 122
A127: 11 | B127: 16271 | C127: 11 | D127: 16275 | E127: 12 | F127: 16281 | K127: 0 | L127: 111
A128: 11 | B128: 16373 | C128: 11 | D128: 16378 | E128: 12 | F128: 16384 | K128: 0 | L128: 111
A129: 22 | B129: 16487 | C129: 13 | D129: 16495 | E129: 23 | F129: 16526 | K129: 0 | L129: 212
A130: 11 | B130: 16621 | C130: 11 | D130: 16627 | E130: 12 | F130: 16633 | K130: 0 | L130: 111
A131: 22 | B131: 16731 | C131: 13 | D131: 16742 | E131: 23 | F131: 16751 | K131: 0 | L131: 212
A132: 11 | B132: 16846 | C132: 11 | D132: 16850 | E132: 12 | F132: 16854 | K132: 0 | L132: 111
A133: 11 | B133: 16963 | C133: 22 | D133: 16979 | E133: 23 | F133: 16987 | K133: 0 | L133: 122
A134: 11 | B134: 17083 | C134: 11 | D134: 17090 | E134: 21 | F134: 17110 | K134: 0 | L134: 112
A135: 22 | B135: 17205 | C135: 13 | D135: 17214 | E135: 23 | F135: 17227 | K135: 0 | L135: 212
A136: 11 | B136: 17320 | C136: 11 | D136: 17325 | E136: 21 | F136: 17339 | K136: 0 | L136: 112
A137: 22 | B137: 17461 | C137: 24 | D137: 17485 | E137: 23 | F137: 17494 | K137: 0 | L137: 222
A138: 11 | B138: 17590 | C138: 11 | D138: 17596 | E138: 21 | F138: 17614 | K138: 0 | L138: 112
A139: 11 | B139: 17757 | C139: 22 | D139: 17770 | E139: 23 | F139: 17777 | K139: 0 | L139: 122
A140: 11 | B140: 17870 | C140: 11 | D140: 17877 | E140: 21 | F140: 17898 | K140: 0 | L140: 112
A141: 22 | B141: 18116 | C141: 24 | D141: 18121 | E141: 23 | F141: 18133 | K141: 0 | L141: 222
A142: 11 | B142: 18230 | C142: 11 | D142: 18237 | E142: 21 | F142: 18268 | K142: 1 | L142: 112

Sheet !MB15A0I.sha
A1: Report for:!MB15A0I.sha
A2: Date: | B2: <date>
A3: Hen: | B3: <hen> | F3: Correct Sequence | G3: =Start!J2 -> 112 | P3: Total Sequences in Data | Q3: =4994-COUNTBLANK(L7:L5000) -> 165 | V3: Total Sequences in Block Data | W3: =COUNTA(L7:L34) -> 28 | AA3: Total Sequences in Block Data | AB3: =COUNTA(L35:L61) -> 27 | AF3: Total Sequences in Block Data | AG3: =COUNTA(L62:L89) -> 28 | AK3: Total Sequences in Block Data | AL3: =COUNTA(L90:L116) -> 27 | AP3: Total Sequences in Block Data | AQ3: =COUNTA(L117:L144) -> 28 | AU3: Total Sequences in Block Data | AV3: =COUNTA(L145:L171) -> 27
P4: Total Sequences in Summary | Q4: =SUM(O7:O14) -> 165 | V4: Total Sequences in Block Summary | W4: =SUM(U7:U14) -> 28 | AA4: Total Sequences in Block Summary | AB4: =SUM(Z7:Z14) -> 27 | AF4: Total Sequences in Block Summary | AG4: =SUM(AE7:AE14) -> 28 | AK4: Total Sequences in Block Summary | AL4: =SUM(AJ7:AJ14) -> 27 | AP4: Total Sequences in Block Summary | AQ4: =SUM(AO7:AO14) -> 28 | AU4: Total Sequences in Block Summary | AV4: =SUM(AT7:AT14) -> 27
T5: Block 1 | Y5: Block 2 | AD5: Block 3 | AI5: Block 4 | AN5: Block 5 | AS5: Block 6
A6: Sequence Component 1 | B6: Time 1 | C6: Sequence Component 2 | D6: Time 2 | E6: Sequence Component 3 | F6: Time 3 | G6: Sequence Component 4 | H6: Time 4 | I6: Sequence Component 5 | J6: Time 5 | K6: Correct? 0=No 1=Yes | L6: Sequence | N6: Frequency | P6: Relative Frequency | Q6: Variability | T6: Frequency | V6: Relative Frequency | W6: Variability | Y6: Frequency | AA6: Relative Frequency | AB6: Variability | AD6: Frequency | AF6: Relative Frequency | AG6: Variability | AI6: Frequency | AK6: Relative Frequency | AL6: Variability | AN6: Frequency | AP6: Relative Frequency | AQ6: Variability | AS6: Frequency | AU6: Relative Frequency | AV6: Variability
A7: 22 | B7: 20 | C7: 13 | D7: 33 | E7: 23 | F7: 44 | K7: 0 | L7: 212 | N7: 111 | O7: =COUNTIF($L$7:$L$500,N7) -> 26 | P7: =O7/$Q$4 -> 0.1575757576 | Q7: =IF(P7=0,0,(P7*((LOG(P7))/LOG(2)))) -> -0.4200784539 | T7: =N7 -> 111 | U7: =COUNTIF(L7:L34,T7) -> 5 | V7: =U7/(W4-U8) -> 0.1923076923 | W7: =IF(V7=0,0,(V7*((LOG(V7))/LOG(2)))) -> -0.4574060814 | Y7: =N7 -> 111 | Z7: =COUNTIF(L35:L61,Y7) -> 3 | AA7: =Z7/(AB4-Z8) -> 0.1578947368 | AB7: =IF(AA7=0,0,(AA7*((LOG(AA7))/LOG(2)))) -> -0.4204681599 | AD7: =N7 -> 111 | AE7: =COUNTIF(L62:L89,AD7) -> 3 | AF7: =AE7/(AG4-AE8) -> 0.1363636364 | AG7: =IF(AF7=0,0,(AF7*((LOG(AF7))/LOG(2)))) -> -0.3919730615 | AI7: =N7 -> 111 | AJ7: =COUNTIF(L90:L116,AI7) -> 4 | AK7: =AJ7/(AL4-AJ8) -> 0.2222222222 | AL7: =IF(AK7=0,0,(AK7*((LOG(AK7))/LOG(2)))) -> -0.4822055559 | AN7: =N7 -> 111 | AO7: =COUNTIF(L117:L144,AN7) -> 8 | AP7: =AO7/(AQ4-AO8) -> 0.3636363636 | AQ7: =IF(AP7=0,0,(AP7*((LOG(AP7))/LOG(2)))) -> -0.5307024068 | AS7: =N7 -> 111 | AT7: =COUNTIF(L145:L171,AS7) -> 3 | AU7: =AT7/(AV4-AT8) -> 0.1666666667 | AV7: =IF(AU7=0,0,(AU7*((LOG(AU7))/LOG(2)))) -> -0.4308270835
A8: 11 | B8: 138 | C8: 22 | D8: 148 | E8: 23 | F8: 153 | K8: 0 | L8: 122 | N8: 112 | O8: =COUNTIF($L$7:$L$500,N8) -> 40 | P8: =O8/$Q$4 -> 0.2424242424 | Q8: =IF(P8=0,0,(P8*((LOG(P8))/LOG(2)))) -> -0.4956106956 | T8: =N8 -> 112 | U8: =COUNTIF(L7:L34,T8) -> 2 | Y8: =N8 -> 112 | Z8: =COUNTIF(L35:L61,Y8) -> 8 | AD8: =N8 -> 112 | AE8: =COUNTIF(L62:L89,AD8) -> 6 | AI8: =N8 -> 112 | AJ8: =COUNTIF(L90:L116,AI8) -> 9 | AN8: =N8 -> 112 | AO8: =COUNTIF(L117:L144,AN8) -> 6 | AS8: =N8 -> 112 | AT8: =COUNTIF(L145:L171,AS8) -> 9
A9: 22 | B9: 252 | C9: 24 | D9: 273 | E9: 23 | F9: 280 | K9: 0 | L9: 222 | N9: 121 | O9: =COUNTIF($L$7:$L$500,N9) -> 1 | P9: =O9/$Q$4 -> 0.006060606061 | Q9: =IF(P9=0,0,(P9*((LOG(P9))/LOG(2)))) -> -0.04464437706 | T9: =N9 -> 121 | U9: =COUNTIF(L7:L34,T9) -> 0 | V9: =U9/(W4-U8) -> 0 | W9: =IF(V9=0,0,(V9*((LOG(V9))/LOG(2)))) -> 0 | Y9: =N9 -> 121 | Z9: =COUNTIF(L35:L61,Y9) -> 0 | AA9: =Z9/(AB4-Z8) -> 0 | AB9: =IF(AA9=0,0,(AA9*((LOG(AA9))/LOG(2)))) -> 0 | AD9: =N9 -> 121 | AE9: =COUNTIF(L62:L89,AD9) -> 1 | AF9: =AE9/(AG4-AE8) -> 0.04545454545 | AG9: =IF(AF9=0,0,(AF9*((LOG(AF9))/LOG(2)))) -> -0.2027014372 | AI9: =N9 -> 121 | AJ9: =COUNTIF(L90:L116,AI9) -> 0 | AK9: =AJ9/(AL4-AJ8) -> 0 | AL9: =IF(AK9=0,0,(AK9*((LOG(AK9))/LOG(2)))) -> 0 | AN9: =N9 -> 121 | AO9: =COUNTIF(L117:L144,AN9) -> 0 | AP9: =AO9/(AQ4-AO8) -> 0 | AQ9: =IF(AP9=0,0,(AP9*((LOG(AP9))/LOG(2)))) -> 0 | AS9: =N9 -> 121 | AT9: =COUNTIF(L145:L171,AS9) -> 0 | AU9: =AT9/(AV4-AT8) -> 0 | AV9: =IF(AU9=0,0,(AU9*((LOG(AU9))/LOG(2)))) -> 0
A10: 11 | B10: 387 | C10: 22 | D10: 396 | E10: 23 | F10: 402 | K10: 0 | L10: 122 | N10: 122 | O10: =COUNTIF($L$7:$L$500,N10) -> 66 | P10: =O10/$Q$4 -> 0.4 | Q10: =IF(P10=0,0,(P10*((LOG(P10))/LOG(2)))) -> -0.528771238 | T10: =N10 -> 122 | U10: =COUNTIF(L7:L34,T10) -> 15 | V10: =U10/(W4-U8) -> 0.5769230769 | W10: =IF(V10=0,0,(V10*((LOG(V10))/LOG(2)))) -> -0.4578168015 | Y10: =N10 -> 122 | Z10: =COUNTIF(L35:L61,Y10) -> 9 | AA10: =Z10/(AB4-Z8) -> 0.4736842105 | AB10: =IF(AA10=0,0,(AA10*((LOG(AA10))/LOG(2)))) -> -0.5106327688 | AD10: =N10 -> 122 | AE10: =COUNTIF(L62:L89,AD10) -> 15 | AF10: =AE10/(AG4-AE8) -> 0.6818181818 | AG10: =IF(AF10=0,0,(AF10*((LOG(AF10))/LOG(2)))) -> -0.3767325157 | AI10: =N10 -> 122 | AJ10: =COUNTIF(L90:L116,AI10) -> 8 | AK10: =AJ10/(AL4-AJ8) -> 0.4444444444 | AL10: =IF(AK10=0,0,(AK10*((LOG(AK10))/LOG(2)))) -> -0.5199666673 | AN10: =N10 -> 122 | AO10: =COUNTIF(L117:L144,AN10) -> 12 | AP10: =AO10/(AQ4-AO8) -> 0.5454545455 | AQ10: =IF(AP10=0,0,(AP10*((LOG(AP10))/LOG(2)))) -> -0.4769831552 | AS10: =N10 -> 122 | AT10: =COUNTIF(L145:L171,AS10) -> 7 | AU10: =AT10/(AV4-AT8) -> 0.3888888889 | AV10: =IF(AU10=0,0,(AU10*((LOG(AU10))/LOG(2)))) -> -0.5298883642
A11: 11 | B11: 497 | C11: 22 | D11: 510 | E11: 23 | F11: 515 | K11: 0 | L11: 122 | N11: 211 | O11: =COUNTIF($L$7:$L$500,N11) -> 1 | P11: =O11/$Q$4 -> 0.006060606061 | Q11: =IF(P11=0,0,(P11*((LOG(P11))/LOG(2)))) -> -0.04464437706 | T11: =N11 -> 211 | U11: =COUNTIF(L7:L34,T11) -> 0 | V11: =U11/(W4-U8) -> 0 | W11: =IF(V11=0,0,(V11*((LOG(V11))/LOG(2)))) -> 0 | Y11: =N11 -> 211 | Z11: =COUNTIF(L35:L61,Y11) -> 0 | AA11: =Z11/(AB4-Z8) -> 0 | AB11: =IF(AA11=0,0,(AA11*((LOG(AA11))/LOG(2)))) -> 0 | AD11: =N11 -> 211 | AE11: =COUNTIF(L62:L89,AD11) -> 0 | AF11: =AE11/(AG4-AE8) -> 0 | AG11: =IF(AF11=0,0,(AF11*((LOG(AF11))/LOG(2)))) -> 0 | AI11: =N11 -> 211 | AJ11: =COUNTIF(L90:L116,AI11) -> 0 | AK11: =AJ11/(AL4-AJ8) -> 0 | AL11: =IF(AK11=0,0,(AK11*((LOG(AK11))/LOG(2)))) -> 0 | AN11: =N11 -> 211 | AO11: =COUNTIF(L117:L144,AN11) -> 0 | AP11: =AO11/(AQ4-AO8) -> 0 | AQ11: =IF(AP11=0,0,(AP11*((LOG(AP11))/LOG(2)))) -> 0 | AS11: =N11 -> 211 | AT11: =COUNTIF(L145:L171,AS11) -> 1 | AU11: =AT11/(AV4-AT8) -> 0.05555555556 | AV11: =IF(AU11=0,0,(AU11*((LOG(AU11))/LOG(2)))) -> -0.2316625001
A12: 11 | B12: 616 | C12: 22 | D12: 627 | E12: 23 | F12: 633 | K12: 0 | L12: 122 | N12: 212 | O12: =COUNTIF($L$7:$L$500,N12) -> 11 | P12: =O12/$Q$4 -> 0.06666666667 | Q12: =IF(P12=0,0,(P12*((LOG(P12))/LOG(2)))) -> -0.260459373 | T12: =N12 -> 212 | U12: =COUNTIF(L7:L34,T12) -> 3 | V12: =U12/(W4-U8) -> 0.1153846154 | W12: =IF(V12=0,0,(V12*((LOG(V12))/LOG(2)))) -> -0.3594781405 | Y12: =N12 -> 212 | Z12: =COUNTIF(L35:L61,Y12) -> 3 | AA12: =Z12/(AB4-Z8) -> 0.1578947368 | AB12: =IF(AA12=0,0,(AA12*((LOG(AA12))/LOG(2)))) -> -0.4204681599 | AD12: =N12 -> 212 | AE12: =COUNTIF(L62:L89,AD12) -> 0 | AF12: =AE12/(AG4-AE8) -> 0 | AG12: =IF(AF12=0,0,(AF12*((LOG(AF12))/LOG(2)))) -> 0 | AI12: =N12 -> 212 | AJ12: =COUNTIF(L90:L116,AI12) -> 1 | AK12: =AJ12/(AL4-AJ8) -> 0.05555555556 | AL12: =IF(AK12=0,0,(AK12*((LOG(AK12))/LOG(2)))) -> -0.2316625001 | AN12: =N12 -> 212 | AO12: =COUNTIF(L117:L144,AN12) -> 2 | AP12: =AO12/(AQ4-AO8) -> 0.09090909091 | AQ12: =IF(AP12=0,0,(AP12*((LOG(AP12))/LOG(2)))) -> -0.3144937835 | AS12: =N12 -> 212 | AT12: =COUNTIF(L145:L171,AS12) -> 2 | AU12: =AT12/(AV4-AT8) -> 0.1111111111 | AV12: =IF(AU12=0,0,(AU12*((LOG(AU12))/LOG(2)))) -> -0.352213889
A13: 11 | B13: 724 | C13: 11 | D13: 727 | E13: 12 | F13: 732 | K13: 0 | L13: 111 | N13: 221 | O13: =COUNTIF($L$7:$L$500,N13) -> 2 | P13: =O13/$Q$4 -> 0.01212121212 | Q13: =IF(P13=0,0,(P13*((LOG(P13))/LOG(2)))) -> -0.07716754199 | T13: =N13 -> 221 | U13: =COUNTIF(L7:L34,T13) -> 0 | V13: =U13/(W4-U8) -> 0 | W13: =IF(V13=0,0,(V13*((LOG(V13))/LOG(2)))) -> 0 | Y13: =N13 -> 221 | Z13: =COUNTIF(L35:L61,Y13) -> 0 | AA13: =Z13/(AB4-Z8) -> 0 | AB13: =IF(AA13=0,0,(AA13*((LOG(AA13))/LOG(2)))) -> 0 | AD13: =N13 -> 221 | AE13: =COUNTIF(L62:L89,AD13) -> 1 | AF13: =AE13/(AG4-AE8) -> 0.04545454545 | AG13: =IF(AF13=0,0,(AF13*((LOG(AF13))/LOG(2)))) -> -0.2027014372 | AI13: =N13 -> 221 | AJ13: =COUNTIF(L90:L116,AI13) -> 0 | AK13: =AJ13/(AL4-AJ8) -> 0 | AL13: =IF(AK13=0,0,(AK13*((LOG(AK13))/LOG(2)))) -> 0 | AN13: =N13 -> 221 | AO13: =COUNTIF(L117:L144,AN13) -> 0 | AP13: =AO13/(AQ4-AO8) -> 0 | AQ13: =IF(AP13=0,0,(AP13*((LOG(AP13))/LOG(2)))) -> 0 | AS13: =N13 -> 221 | AT13: =COUNTIF(L145:L171,AS13) -> 1 | AU13: =AT13/(AV4-AT8) -> 0.05555555556 | AV13: =IF(AU13=0,0,(AU13*((LOG(AU13))/LOG(2)))) -> -0.2316625001
A14: 22 | B14: 829 | C14: 13 | D14: 838 | E14: 23 | F14: 848 | K14: 0 | L14: 212 | N14: 222 | O14: =COUNTIF($L$7:$L$500,N14) -> 18 | P14: =O14/$Q$4 -> 0.1090909091 | Q14: =IF(P14=0,0,(P14*((LOG(P14))/LOG(2)))) -> -0.3486978778 | T14: =N14 -> 222 | U14: =COUNTIF(L7:L34,T14) -> 3 | V14: =U14/(W4-U8) -> 0.1153846154 | W14: =IF(V14=0,0,(V14*((LOG(V14))/LOG(2)))) -> -0.3594781405 | Y14: =N14 -> 222 | Z14: =COUNTIF(L35:L61,Y14) -> 4 | AA14: =Z14/(AB4-Z8) -> 0.2105263158 | AB14: =IF(AA14=0,0,(AA14*((LOG(AA14))/LOG(2)))) -> -0.4732478976 | AD14: =N14 -> 222 | AE14: =COUNTIF(L62:L89,AD14) -> 2 | AF14: =AE14/(AG4-AE8) -> 0.09090909091 | AG14: =IF(AF14=0,0,(AF14*((LOG(AF14))/LOG(2)))) -> -0.3144937835 | AI14: =N14 -> 222 | AJ14: =COUNTIF(L90:L116,AI14) -> 5 | AK14: =AJ14/(AL4-AJ8) -> 0.2777777778 | AL14: =IF(AK14=0,0,(AK14*((LOG(AK14))/LOG(2)))) -> -0.513332474 | AN14: =N14 -> 222 | AO14: =COUNTIF(L117:L144,AN14) -> 0 | AP14: =AO14/(AQ4-AO8) -> 0 | AQ14: =IF(AP14=0,0,(AP14*((LOG(AP14))/LOG(2)))) -> 0 | AS14: =N14 -> 222 | AT14: =COUNTIF(L145:L171,AS14) -> 4 | AU14: =AT14/(AV4-AT8) -> 0.2222222222 | AV14: =IF(AU14=0,0,(AU14*((LOG(AU14))/LOG(2)))) -> -0.4822055559
A15: 11 | B15: 945 | C15: 22 | D15: 955 | E15: 23 | F15: 961 | K15: 0 | L15: 122 | P15: =SUM(P7:P14) -> 1 | Q15: =-SUM(Q7:Q14) -> 2.220073934 | V15: =SUM(V7:V14) -> 1 | W15: =-SUM(W7:W14) -> 1.634179164 | AA15: =SUM(AA7:AA14) -> 1 | AB15: =-SUM(AB7:AB14) -> 1.824816986 | AF15: =SUM(AF7:AF14) -> 1 | AG15: =-SUM(AG7:AG14) -> 1.488602235 | AK15: =SUM(AK7:AK14) -> 1 | AL15: =-SUM(AL7:AL14) -> 1.747167197 | AP15: =SUM(AP7:AP14) -> 1 | AQ15: =-SUM(AQ7:AQ14) -> 1.322179346 | AU15: =SUM(AU7:AU14) -> 1 | AV15: =-SUM(AV7:AV14) -> 2.258459893
A16: 11 | B16: 1056 | C16: 22 | D16: 1066 | E16: 23 | F16: 1070 | K16: 0 | L16: 122 | P16: U= | Q16: =Q15/(LOG(Q4)/LOG(2)) -> 0.3013815945 | V16: U1= | W16: =W15/(LOG(W4)/LOG(2)) -> 0.3399331213 | AA16: U2= | AB16: =AB15/(LOG(AB4)/LOG(2)) -> 0.3837771105 | AF16: U3= | AG16: =AG15/(LOG(AG4)/LOG(2)) -> 0.309650995 | AK16: U4= | AL16: =AL15/(LOG(AL4)/LOG(2)) -> 0.3674465897 | AP16: U5= | AQ16: =AQ15/(LOG(AQ4)/LOG(2)) -> 0.2750326046 | AU16: U6= | AV16: =AV15/(LOG(AV4)/LOG(2)) -> 0.4749765145
A17: 11 | B17: 1163 | C17: 22 | D17: 1174 | E17: 23 | F17: 1178 | K17: 0 | L17: 122
A18: 11 | B18: 1273 | C18: 11 | D18: 1281 | E18: 21 | F18: 1295 | K18: 0 | L18: 112
A19: 22 | B19: 1446 | C19: 13 | D19: 1458 | E19: 23 | F19: 1468 | K19: 0 | L19: 212 | N19: Total Target Seq
A20: 11 | B20: 1565 | C20: 22 | D20: 1591 | E20: 23 | F20: 1610 | K20: 0 | L20: 122 | N20: =COUNTIF(L7:L171,G3) -> 40 | P20: 28 | Q20: 27 | R20: 28 | S20: 27 | T20: 28 | U20: 27
A21: 11 | B21: 1714 | C21: 22 | D21: 1723 | E21: 23 | F21: 1726 | K21: 0 | L21: 122 | P21: % of reinforcement given in 6 equal intervals based on number of trials
A22: 11 | B22: 1821 | C22: 11 | D22: 1826 | E22: 12 | F22: 1832 | K22: 0 | L22: 111 | P22: %_1 | Q22: %_2 | R22: %_3 | S22: %_4 | T22: %_5 | U22: %_6
A23: 11 | B23: 1926 | C23: 22 | D23: 1936 | E23: 23 | F23: 1941 | K23: 0 | L23: 122 | O23: target sequence | P23: =$G$3 -> 112 | Q23: =$G$3 -> 112 | R23: =$G$3 -> 112 | S23: =$G$3 -> 112 | T23: =$G$3 -> 112 | U23: =$G$3 -> 112
A24: 22 | B24: 2079 | C24: 24 | D24: 2086 | E24: 23 | F24: 2092 | K24: 0 | L24: 222 | O24: total reinforcement | P24: =U8 -> 2 | Q24: =Z8 -> 8 | R24: =AE8 -> 6 | S24: =AJ8 -> 9 | T24: =AO8 -> 6 | U24: =AT8 -> 9
A25: 11 | B25: 2184 | C25: 11 | D25: 2186 | E25: 12 | F25: 2191 | K25: 0 | L25: 111 | O25: % target
A26: 11 | B26: 2286 | C26: 22 | D26: 2295 | E26: 23 | F26: 2300 | K26: 0 | L26: 122 | O26: CCRF
A27: 11 | B27: 2395 | C27: 22 | D27: 2406 | E27: 23 | F27: 2417 | K27: 0 | L27: 122 | O27: % CCRf
A28: 11 | B28: 2510 | C28: 11 | D28: 2511 | E28: 12 | F28: 2517 | K28: 0 | L28: 111 | O28: average response rate | P28: =F34/P20 -> 114.3214286 | Q28: =(F61-F34)/Q20 -> 141.2962963 | R28: =(F89-F61)/R20 -> 123.5714286 | S28: =(F116-F89)/S20 -> 138.4814815 | T28: =(F144-F116)/T20 -> 122.4285714 | U28: =(F171-F144)/U20 -> 133.5185185
A29: 11 | B29: 2610 | C29: 22 | D29: 2623 | E29: 23 | F29: 2630 | K29: 0 | L29: 122
A30: 11 | B30: 2725 | C30: 11 | D30: 2730 | E30: 12 | F30: 2736 | K30: 0 | L30: 111
A31: 22 | B31: 2851 | C31: 24 | D31: 2858 | E31: 23 | F31: 2863 | K31: 0 | L31: 222
A32: 11 | B32: 2958 | C32: 22 | D32: 2968 | E32: 23 | F32: 2972 | K32: 0 | L32: 122
A33: 11 | B33: 3069 | C33: 22 | D33: 3080 | E33: 23 | F33: 3089 | K33: 0 | L33: 122
A34: 11 | B34: 3186 | C34: 11 | D34: 3191 | E34: 21 | F34: 3201 | K34: 0 | L34: 112
A35: 22 | B35: 3318 | C35: 24 | D35: 3323 | E35: 23 | F35: 3329 | K35: 0 | L35: 222
A36: 11 | B36: 3425 | C36: 11 | D36: 3429 | E36: 12 | F36: 3435 | K36: 0 | L36: 111
A37: 11 | B37: 3534 | C37: 22 | D37: 3541 | E37: 23 | F37: 3546 | K37: 0 | L37: 122
A38: 11 | B38: 3641 | C38: 22 | D38: 3657 | E38: 23 | F38: 3670 | K38: 0 | L38: 122
A39: 11 | B39: 3779 | C39: 11 | D39: 3783 | E39: 21 | F39: 3794 | K39: 0 | L39: 112
A40: 11 | B40: 3958 | C40: 11 | D40: 3961 | E40: 21 | F40: 3978 | K40: 0 | L40: 112
A41: 22 | B41: 4115 | C41: 13 | D41: 4124 | E41: 23 | F41: 4137 | K41: 0 | L41: 212
A42: 11 | B42: 4232 | C42: 22 | D42: 4243 | E42: 23 | F42: 4251 | K42: 0 | L42: 122
A43: 11 | B43: 4345 | C43: 11 | D43: 4348 | E43: 12 | F43: 4350 | K43: 0 | L43: 111
A44: 11 | B44: 4443 | C44: 11 | D44: 4446 | E44: 21 | F44: 4455 | K44: 0 | L44: 112
A45: 22 | B45: 4668 | C45: 24 | D45: 4674 | E45: 23 | F45: 4680 | K45: 0 | L45: 222
A46: 11 | B46: 4780 | C46: 11 | D46: 4785 | E46: 21 | F46: 4815 | K46: 0 | L46: 112
A47: 22 | B47: 4954 | C47: 24 | D47: 4972 | E47: 23 | F47: 4980 | K47: 0 | L47: 222
A48: 11 | B48: 5075 | C48: 11 | D48: 5080 | E48: 21 | F48: 5094 | K48: 0 | L48: 112
A49: 22 | B49: 5279 | C49: 24 | D49: 5286 | E49: 23 | F49: 5305 | K49: 0 | L49: 222
A50: 11 | B50: 5400 | C50: 11 | D50: 5406 | E50: 21 | F50: 5434 | K50: 0 | L50: 112
A51: 22 | B51: 5562 | C51: 13 | D51: 5581 | E51: 23 | F51: 5595 | K51: 0 | L51: 212
A52: 11 | B52: 5688 | C52: 11 | D52: 5692 | E52: 12 | F52: 5697 | K52: 0 | L52: 111
A53: 22 | B53: 5796 | C53: 13 | D53: 5805 | E53: 23 | F53: 5867 | K53: 0 | L53: 212
A54: 11 | B54: 6017 | C54: 22 | D54: 6028 | E54: 23 | F54: 6035 | K54: 0 | L54: 122
A55: 11 | B55: 6129 | C55: 22 | D55: 6140 | E55: 23 | F55: 6152 | K55: 0 | L55: 122
A56: 11 | B56: 6248 | C56: 22 | D56: 6260 | E56: 23 | F56: 6268 | K56: 0 | L56: 122
A57: 11 | B57: 6363 | C57: 11 | D57: 6371 | E57: 21 | F57: 6381 | K57: 0 | L57: 112
A58: 11 | B58: 6509 | C58: 22 | D58: 6525 | E58: 23 | F58: 6530 | K58: 0 | L58: 122
A59: 11 | B59: 6627 | C59: 22 | D59: 6644 | E59: 23 | F59: 6658 | K59: 0 | L59: 122
A60: 11 | B60: 6752 | C60: 11 | D60: 6758 | E60: 21 | F60: 6776 | K60: 0 | L60: 112
A61: 11 | B61: 7004 | C61: 22 | D61: 7011 | E61: 23 | F61: 7016 | K61: 0 | L61: 122
A62: 11 | B62: 7110 | C62: 11 | D62: 7113 | E62: 21 | F62: 7132 | K62: 0 | L62: 112
A63: 11 | B63: 7284 | C63: 22 | D63: 7297 | E63: 23 | F63: 7302 | K63: 0 | L63: 122
A64: 11 | B64: 7399 | C64: 22 | D64: 7410 | E64: 23 | F64: 7422 | K64: 0 | L64: 122
A65: 11 | B65: 7528 | C65: 22 | D65: 7540 | E65: 23 | F65: 7546 | K65: 0 | L65: 122
A66: 11 | B66: 7641 | C66: 22 | D66: 7653 | E66: 23 | F66: 7659 | K66: 0 | L66: 122
A67: 11 | B67: 7754 | C67: 22 | D67: 7766 | E67: 23 | F67: 7775 | K67: 0 | L67: 122
A68: 11 | B68: 7871 | C68: 11 | D68: 7876 | E68: 21 | F68: 7887 | K68: 0 | L68: 112
A69: 11 | B69: 8060 | C69: 22 | D69: 8069 | E69: 23 | F69: 8074 | K69: 0 | L69: 122
A70: 11 | B70: 8170 | C70: 22 | D70: 8181 | E70: 23 | F70: 8199 | K70: 0 | L70: 122
A71: 11 | B71: 8295 | C71: 11 | D71: 8301 | E71: 21 | F71: 8312 | K71: 0 | L71: 112
A72: 11 | B72: 8407 | C72: 22 | D72: 8416 | E72: 23 | F72: 8420 | K72: 0 | L72: 122
A73: 22 | B73: 8532 | C73: 24 | D73: 8536 | E73: 23 | F73: 8542 | K73: 0 | L73: 222
A74: 11 | B74: 8636 | C74: 22 | D74: 8649 | E74: 23 | F74: 8659 | K74: 0 | L74: 122
A75: 11 | B75: 8752 | C75: 11 | D75: 8757 | E75: 21 | F75: 8769 | K75: 0 | L75: 112
A76: 11 | B76: 8896 | C76: 22 | D76: 8903 | E76: 23 | F76: 8910 | K76: 0 | L76: 122
A77: 11 | B77: 9005 | C77: 22 | D77: 9030 | E77: 23 | F77: 9039 | K77: 0 | L77: 122
A78: 22 | B78: 9142 | C78: 24 | D78: 9147 | E78: 23 | F78: 9155 | K78: 0 | L78: 222
A79: 11 | B79: 9247 | C79: 11 | D79: 9250 | E79: 12 | F79: 9254 | K79: 0 | L79: 111
A80: 22 | B80: 9360 | C80: 24 | D80: 9371 | E80: 14 | F80: 9382 | K80: 0 | L80: 221
A81: 11 | B81: 9482 | C81: 22 | D81: 9490 | E81: 23 | F81: 9494 | K81: 0 | L81: 122
A82: 11 | B82: 9590 | C82: 22 | D82: 9600 | E82: 14 | F82: 9618 | K82: 0 | L82: 121
A83: 11 | B83: 9710 | C83: 11 | D83: 9714 | E83: 21 | F83: 9725 | K83: 0 | L83: 112
A84: 11 | B84: 9900 | C84: 22 | D84: 9915 | E84: 23 | F84: 9926 | K84: 0 | L84: 122
A85: 11 | B85: 10023 | C85: 22 | D85: 10040 | E85: 23 | F85: 10049 | K85: 0 | L85: 122
A86: 11 | B86: 10143 | C86: 11 | D86: 10148 | E86: 12 | F86: 10154 | K86: 0 | L86: 111
A87: 11 | B87: 10249 | C87: 22 | D87: 10259 | E87: 23 | F87: 10267 | K87: 0 | L87: 122
A88: 11 | B88: 10359 | C88: 11 | D88: 10361 | E88: 12 | F88: 10366 | K88: 0 | L88: 111
A89: 11 | B89: 10458 | C89: 11 | D89: 10465 | E89: 21 | F89: 10476 | K89: 0 | L89: 112
A90: 22 | B90: 10632 | C90: 24 | D90: 10637 | E90: 23 | F90: 10648 | K90: 0 | L90: 222
A91: 11 | B91: 10740 | C91: 11 | D91: 10747 | E91: 21 | F91: 10759 | K91: 0 | L91: 112
A92: 11 | B92: 10930 | C92: 22 | D92: 10946 | E92: 23 | F92: 10953 | K92: 0 | L92: 122
A93: 11 | B93: 11045 | C93: 11 | D93: 11047 | E93: 12 | F93: 11053 | K93: 0 | L93: 111
A94: 11 | B94: 11144 | C94: 11 | D94: 11149 | E94: 12 | F94: 11155 | K94: 0 | L94: 111
A95: 11 | B95: 11287 | C95: 22 | D95: 11296 | E95: 23 | F95: 11300 | K95: 0 | L95: 122
A96: 11 | B96: 11395 | C96: 11 | D96: 11403 | E96: 21 | F96: 11411 | K96: 0 | L96: 112
A97: 11 | B97: 11550 | C97: 22 | D97: 11559 | E97: 23 | F97: 11564 | K97: 0 | L97: 122
A98: 22 | B98: 11684 | C98: 24 | D98: 11691 | E98: 23 | F98: 11704 | K98: 0 | L98: 222
A99: 22 | B99: 11803 | C99: 24 | D99: 11823 | E99: 23 | F99: 11830 | K99: 0 | L99: 222
A100: 11 | B100: 11928 | C100: 22 | D100: 11936 | E100: 23 | F100: 11943 | K100: 0 | L100: 122
A101: 11 | B101: 12038 | C101: 22 | D101: 12048 | E101: 23 | F101: 12055 | K101: 0 | L101: 122
A102: 11 | B102: 12149 | C102: 11 | D102: 12155 | E102: 21 | F102: 12164 | K102: 0 | L102: 112
A103: 22 | B103: 12276 | C103: 13 | D103: 12291 | E103: 23 | F103: 12304 | K103: 0 | L103: 212
A104: 11 | B104: 12396 | C104: 11 | D104: 12401 | E104: 12 | F104: 12407 | K104: 0 | L104: 111
A105: 11 | B105: 12499 | C105: 11 | D105: 12501 | E105: 21 | F105: 12511 | K105: 0 | L105: 112
A106: 11 | B106: 12726 | C106: 11 | D106: 12730 | E106: 12 | F106: 12735 | K106: 0 | L106: 111
A107: 11 | B107: 12827 | C107: 11 | D107: 12832 | E107: 21 | F107: 12841 | K107: 0 | L107: 112
A108: 11 | B108: 12959 | C108: 11 | D108: 12964 | E108: 21 | F108: 12978 | K108: 0 | L108: 112
A109: 22 | B109: 13114 | C109: 24 | D109: 13138 | E109: 23 | F109: 13151 | K109: 0 | L109: 222
A110: 22 | B110: 13252 | C110: 24 | D110: 13256 | E110: 23 | F110: 13263 | K110: 0 | L110: 222
A111: 11 | B111: 13419 | C111: 11 | D111: 13424 | E111: 21 | F111: 13436 | K111: 0 | L111: 112
A112: 11 | B112: 13547 | C112: 11 | D112: 13552 | E112: 21 | F112: 13566 | K112: 0 | L112: 112
A113: 11 | B113: 13699 | C113: 11 | D113: 13703 | E113: 21 | F113: 13730 | K113: 0 | L113: 112
A114: 11 | B114: 13955 | C114: 22 | D114: 13975 | E114: 23 | F114: 13982 | K114: 0 | L114: 122
A115: 11 | B115: 14077 | C115: 22 | D115: 14091 | E115: 23 | F115: 14101 | K115: 0 | L115: 122
A116: 11 | B116: 14199 | C116: 22 | D116: 14210 | E116: 23 | F116: 14215 | K116: 0 | L116: 122
A117: 11 | B117: 14306 | C117: 22 | D117: 14314 | E117: 23 | F117: 14320 | K117: 0 | L117: 122
A118: 22 | B118: 14416 | C118: 13 | D118: 14427 | E118: 23 | F118: 14444 | K118: 0 | L118: 212
A119: 11 | B119: 14543 | C119: 22 | D119: 14554 | E119: 23 | F119: 14560 | K119: 0 | L119: 122
A120: 11 | B120: 14655 | C120: 22 | D120: 14665 | E120: 23 | F120: 14669 | K120: 0 | L120: 122
A121: 22 | B121: 14769 | C121: 13 | D121: 14784 | E121: 23 | F121: 14800 | K121: 0 | L121: 212
A122: 11 | B122: 14898 | C122: 22 | D122: 14907 | E122: 23 | F122: 14916 | K122: 0 | L122: 122
A123: 11 | B123: 15010 | C123: 22 | D123: 15020 | E123: 23 | F123: 15025 | K123: 0 | L123: 122
A124: 11 | B124: 15120 | C124: 11 | D124: 15125 | E124: 12 | F124: 15130 | K124: 0 | L124: 111
A125: 11 | B125: 15224 | C125: 11 | D125: 15229 | E125: 21 | F125: 15239 | K125: 0 | L125: 112
A126: 11 | B126: 15372 | C126: 11 | D126: 15376 | E126: 12 | F126: 15382 | K126: 0 | L126: 111
A127: 11 | B127: 15478 | C127: 11 | D127: 15482 | E127: 21 | F127: 15540 | K127: 0 | L127: 112
A128: 11 | B128: 15803 | C128: 22 | D128: 15812 | E128: 23 | F128: 15818 | K128: 0 | L128: 122
A129: 11 | B129: 15910 | C129: 11 | D129: 15919 | E129: 21 | F129: 15931 | K129: 0 | L129: 112
A130: 11 | B130: 16024 | C130: 22 | D130: 16042 | E130: 23 | F130: 16052 | K130: 0 | L130: 122
A131: 11 | B131: 16147 | C131: 11 | D131: 16152 | E131: 12 | F131: 16154 | K131: 0 | L131: 111
A132: 11 | B132: 16247 | C132: 22 | D132: 16258 | E132: 23 | F132: 16265 | K132: 0 | L132: 122
A133: 11 | B133: 16357 | C133: 11 | D133: 16361 | E133: 12 | F133: 16366 | K133: 0 | L133: 111
A134: 11 | B134: 16462 | C134: 22 | D134: 16474 | E134: 23 | F134: 16486 | K134: 0 | L134: 122
A135: 11 | B135: 16586 | C135: 11 | D135: 16591 | E135: 12 | F135: 16596 | K135: 0 | L135: 111
A136: 11 | B136: 16688 | C136: 11 | D136: 16693 | E136: 21 | F136: 16702 | K136: 0 | L136: 112
A137: 11 | B137: 16814 | C137: 11 | D137: 16815 | E137: 12 | F137: 16818 | K137: 0 | L137: 111
A138: 11 | B138: 16910 | C138: 11 | D138: 16915 | E138: 12 | F138: 16919 | K138: 0 | L138: 111
A139: 11 | B139: 17013 | C139: 11 | D139: 17016 | E139: 21 | F139: 17026 | K139: 0 | L139: 112
A140: 11 | B140: 17148 | C140: 22 | D140: 17158 | E140: 23 | F140: 17170 | K140: 0 | L140: 122
A141: 11 | B141: 17262 | C141: 11 | D141: 17269 | E141: 12 | F141: 17276 | K141: 0 | L141: 111
A142: 11 | B142: 17370 | C142: 22 | D142: 17385 | E142: 23 | F142: 17393 | K142: 0 | L142: 122
A143: 11 | B143: 17520 | C143: 22 | D143: 17528 | E143: 23 | F143: 17534 | K143: 0 | L143: 122
A144: 11 | B144: 17629 | C144: 11 | D144: 17633 | E144: 21 | F144: 17643 | K144: 0 | L144: 112
A145: 22 | B145: 17771 | C145: 24 | D145: 17779 | E145: 23 | F145: 17785 | K145: 0 | L145: 222
A146: 11 | B146: 17881 | C146: 22 | D146: 17931 | E146: 23 | F146: 17944 | K146: 0 | L146: 122
A147: 11 | B147: 18039 | C147: 11 | D147: 18044 | E147: 12 | F147: 18049 | K147: 0 | L147: 111
A148: 11 | B148: 18141 | C148: 11 | D148: 18143 | E148: 12 | F148: 18148 | K148: 0 | L148: 111
A149: 11 | B149: 18243 | C149: 11 | D149: 18245 | E149: 12 | F149: 18250 | K149: 0 | L149: 111
A150: 22 | B150: 18344 | C150: 24 | D150: 18366 | E150: 23 | F150: 18374 | K150: 0 | L150: 222
A151: 11 | B151: 18470 | C151: 22 | D151: 18487 | E151: 23 | F151: 18492 | K151: 0 | L151: 122
A152: 11 | B152: 18588 | C152: 11 | D152: 18596 | E152: 21 | F152: 18606 | K152: 0 | L152: 112
A153: 11 | B153: 18712 | C153: 11 | D153: 18716 | E153: 21 | F153: 18729 | K153: 0 | L153: 112
A154: 11 | B154: 18926 | C154: 22 | D154: 18944 | E154: 23 | F154: 18958 | K154: 0 | L154: 122
A155: 11 | B155: 19051 | C155: 11 | D155: 19057 | E155: 21 | F155: 19123 | K155: 0 | L155: 112
A156: 22 | B156: 19233 | C156: 24 | D156: 19244 | E156: 14 | F156: 19254 | K156: 0 | L156: 221
A157: 11 | B157: 19349 | C157: 11 | D157: 19354 | E157: 21 | F157: 19363 | K157: 0 | L157: 112
A158: 11 | B158: 19473 | C158: 22 | D158: 19487 | E158: 23 | F158: 19494 | K158: 0 | L158: 122
A159: 11 | B159: 19590 | C159: 22 | D159: 19638 | E159: 23 | F159: 19649 | K159: 0 | L159: 122
A160: 11 | B160: 19744 | C160: 11 | D160: 19750 | E160: 21 | F160: 19774 | K160: 0 | L160: 112
A161: 22 | B161: 19928 | C161: 13 | D161: 19941 | E161: 23 | F161: 19957 | K161: 0 | L161: 212
A162: 22 | B162: 20057 | C162: 24 | D162: 20061 | E162: 23 | F162: 20097 | K162: 0 | L162: 222
A163: 11 | B163: 20267 | C163: 22 | D163: 20275 | E163: 23 | F163: 20280 | K163: 0 | L163: 122
A164: 11 | B164: 20378 | C164: 11 | D164: 20384 | E164: 21 | F164: 20407 | K164: 0 | L164: 112
A165: 22 | B165: 20522 | C165: 13 | D165: 20530 | E165: 14 | F165: 20535 | K165: 0 | L165: 211
A166: 11 | B166: 20631 | C166: 22 | D166: 20641 | E166: 23 | F166: 20651 | K166: 0 | L166: 122
A167: 11 | B167: 20746 | C167: 11 | D167: 20752 | E167: 21 | F167: 20778 | K167: 0 | L167: 112
A168: 22 | B168: 20874 | C168: 13 | D168: 20885 | E168: 23 | F168: 20894 | K168: 0 | L168: 212
A169: 11 | B169: 20991 | C169: 11 | D169: 20996 | E169: 21 | F169: 21013 | K169: 0 | L169: 112
A170: 22 | B170: 21108 | C170: 24 | D170: 21127 | E170: 23 | F170: 21137 | K170: 0 | L170: 222
A171: 11 | B171: 21231 | C171: 11 | D171: 21237 | E171: 21 | F171: 21248 | K171: 1 | L171: 112

Sheet !MB1691I.sha
A1: Report for:!MB1691I.sha
A2: Date: | B2: <date>
A3: Hen: | B3: <hen> | F3: Correct Sequence | G3: =Start!J2 -> 112 | P3: Total Sequences in Data | Q3: =4994-COUNTBLANK(L7:L5000) -> 98 | V3: Total Sequences in Block Data | W3: =COUNTA(L7:L22) -> 16 | AA3: Total Sequences in Block Data | AB3: =COUNTA(L23:L39) -> 17 | AF3: Total Sequences in Block Data | AG3: =COUNTA(L40:L55) -> 16 | AK3: Total Sequences in Block Data | AL3: =COUNTA(L56:L71) -> 16 | AP3: Total Sequences in Block Data | AQ3: =COUNTA(L72:L88) -> 17 | AU3: Total Sequences in Block Data | AV3: =COUNTA(L89:L104) -> 16
P4: Total Sequences in Summary | Q4: =SUM(O7:O14) -> 98 | V4: Total Sequences in Block Summary | W4: =SUM(U7:U14) -> 16 | AA4: Total Sequences in Block Summary | AB4: =SUM(Z7:Z14) -> 17 | AF4: Total Sequences in Block Summary | AG4: =SUM(AE7:AE14) -> 16 | AK4: Total Sequences in Block Summary | AL4: =SUM(AJ7:AJ14) -> 16 | AP4: Total Sequences in Block Summary | AQ4: =SUM(AO7:AO14) -> 17 | AU4: Total Sequences in Block Summary | AV4: =SUM(AT7:AT14) -> 16
T5: Block 1 | Y5: Block 2 | AD5: Block 3 | AI5: Block 4 | AN5: Block 5 | AS5: Block 6
A6: Sequence Component 1 | B6: Time 1 | C6: Sequence Component 2 | D6: Time 2 | E6: Sequence Component 3 | F6: Time 3 | G6: Sequence Component 4 | H6: Time 4 | I6: Sequence Component 5 | J6: Time 5 | K6: Correct? 0=No 1=Yes | L6: Sequence | N6: Frequency | P6: Relative Frequency | Q6: Variability | T6: Frequency | V6: Relative Frequency | W6: Variability | Y6: Frequency | AA6: Relative Frequency | AB6: Variability | AD6: Frequency | AF6: Relative Frequency | AG6: Variability | AI6: Frequency | AK6: Relative Frequency | AL6: Variability | AN6: Frequency | AP6: Relative Frequency | AQ6: Variability | AS6: Frequency | AU6: Relative Frequency | AV6: Variability
A7: 22 | B7: 18 | C7: 24 | D7: 24 | E7: 14 | F7: 37 | K7: 0 | L7: 221 | N7: 111 | O7: =COUNTIF($L$7:$L$500,N7) -> 12 | P7: =O7/$Q$4 -> 0.1224489796 | Q7: =IF(P7=0,0,(P7*((LOG(P7))/LOG(2)))) -> -0.3709894706 | T7: =N7 -> 111 | U7: =COUNTIF(L7:L22,T7) -> 0 | V7: =U7/(W4-U8) -> 0 | W7: =IF(V7=0,0,(V7*((LOG(V7))/LOG(2)))) -> 0 | Y7: =N7 -> 111 | Z7: =COUNTIF(L23:L39,Y7) -> 2 | AA7: =Z7/(AB4-Z8) -> 0.2 | AB7: =IF(AA7=0,0,(AA7*((LOG(AA7))/LOG(2)))) -> -0.464385619 | AD7: =N7 -> 111 | AE7: =COUNTIF(L40:L55,AD7) -> 2 | AF7: =AE7/(AG4-AE8) -> 0.25 | AG7: =IF(AF7=0,0,(AF7*((LOG(AF7))/LOG(2)))) -> -0.5 | AI7: =N7 -> 111 | AJ7: =COUNTIF(L56:L71,AI7) -> 1 | AK7: =AJ7/(AL4-AJ8) -> 0.125 | AL7: =IF(AK7=0,0,(AK7*((LOG(AK7))/LOG(2)))) -> -0.375 | AN7: =N7 -> 111 | AO7: =COUNTIF(L72:L88,AN7) -> 4 | AP7: =AO7/(AQ4-AO8) -> 0.3636363636 | AQ7: =IF(AP7=0,0,(AP7*((LOG(AP7))/LOG(2)))) -> -0.5307024068 | AS7: =N7 -> 111 | AT7: =COUNTIF(L89:L104,AS7) -> 3 | AU7: =AT7/(AV4-AT8) -> 0.3 | AV7: =IF(AU7=0,0,(AU7*((LOG(AU7))/LOG(2)))) -> -0.5210896782
A8: 11 | B8: 128 | C8: 11 | D8: 134 | E8: 21 | F8: 143 | K8: 0 | L8: 112 | N8: 112 | O8: =COUNTIF($L$7:$L$500,N8) -> 40 | P8: =O8/$Q$4 -> 0.4081632653 | Q8: =IF(P8=0,0,(P8*((LOG(P8))/LOG(2)))) -> -0.5276660201 | T8: =N8 -> 112 | U8: =COUNTIF(L7:L22,T8) -> 5 | Y8: =N8 -> 112 | Z8: =COUNTIF(L23:L39,Y8) -> 7 | AD8: =N8 -> 112 | AE8: =COUNTIF(L40:L55,AD8) -> 8 | AI8: =N8 -> 112 | AJ8: =COUNTIF(L56:L71,AI8) -> 8 | AN8: =N8 -> 112 | AO8: =COUNTIF(L72:L88,AN8) -> 6 | AS8: =N8 -> 112 | AT8: =COUNTIF(L89:L104,AS8) -> 6
A9: 22 | B9: 393 | C9: 13 | D9: 407 | E9: 23 | F9: 419 | K9: 0 | L9: 212 | N9: 121 | O9: =COUNTIF($L$7:$L$500,N9) -> 0 | P9: =O9/$Q$4 -> 0 | Q9: =IF(P9=0,0,(P9*((LOG(P9))/LOG(2)))) -> 0 | T9: =N9 -> 121 | U9: =COUNTIF(L7:L22,T9) -> 0 | V9: =U9/(W4-U8) -> 0 | W9: =IF(V9=0,0,(V9*((LOG(V9))/LOG(2)))) -> 0 | Y9: =N9 -> 121 | Z9: =COUNTIF(L23:L39,Y9) -> 0 | AA9: =Z9/(AB4-Z8) -> 0 | AB9: =IF(AA9=0,0,(AA9*((LOG(AA9))/LOG(2)))) -> 0 | AD9: =N9 -> 121 | AE9: =COUNTIF(L40:L55,AD9) -> 0 | AF9: =AE9/(AG4-AE8) -> 0 | AG9: =IF(AF9=0,0,(AF9*((LOG(AF9))/LOG(2)))) -> 0 | AI9: =N9 -> 121 | AJ9: =COUNTIF(L56:L71,AI9) -> 0 | AK9: =AJ9/(AL4-AJ8) -> 0 | AL9: =IF(AK9=0,0,(AK9*((LOG(AK9))/LOG(2)))) -> 0 | AN9: =N9 -> 121 | AO9: =COUNTIF(L72:L88,AN9) -> 0 | AP9: =AO9/(AQ4-AO8) -> 0 | AQ9: =IF(AP9=0,0,(AP9*((LOG(AP9))/LOG(2)))) -> 0 | AS9: =N9 -> 121 | AT9: =COUNTIF(L89:L104,AS9) -> 0 | AU9: =AT9/(AV4-AT8) -> 0 | AV9: =IF(AU9=0,0,(AU9*((LOG(AU9))/LOG(2)))) -> 0
A10: 11 | B10: 514 | C10: 22 | D10: 526 | E10: 23 | F10: 537 | K10: 0 | L10: 122 | N10: 122 | O10: =COUNTIF($L$7:$L$500,N10) -> 37 | P10: =O10/$Q$4 -> 0.3775510204 | Q10: =IF(P10=0,0,(P10*((LOG(P10))/LOG(2)))) -> -0.5305560174 | T10: =N10 -> 122 | U10: =COUNTIF(L7:L22,T10) -> 7 | V10: =U10/(W4-U8) -> 0.6363636364 | W10: =IF(V10=0,0,(V10*((LOG(V10))/LOG(2)))) -> -0.4149578978 | Y10: =N10 -> 122 | Z10: =COUNTIF(L23:L39,Y10) -> 8 | AA10: =Z10/(AB4-Z8) -> 0.8 | AB10: =IF(AA10=0,0,(AA10*((LOG(AA10))/LOG(2)))) -> -0.2575424759 | AD10: =N10 -> 122 | AE10: =COUNTIF(L40:L55,AD10) -> 5 | AF10: =AE10/(AG4-AE8) -> 0.625 | AG10: =IF(AF10=0,0,(AF10*((LOG(AF10))/LOG(2)))) -> -0.4237949407 | AI10: =N10 -> 122 | AJ10: =COUNTIF(L56:L71,AI10) -> 7 | AK10: =AJ10/(AL4-AJ8) -> 0.875 | AL10: =IF(AK10=0,0,(AK10*((LOG(AK10))/LOG(2)))) -> -0.1685644432 | AN10: =N10 -> 122 | AO10: =COUNTIF(L72:L88,AN10) -> 5 | AP10: =AO10/(AQ4-AO8) -> 0.4545454545 | AQ10: =IF(AP10=0,0,(AP10*((LOG(AP10))/LOG(2)))) -> -0.5170470562 | AS10: =N10 -> 122 | AT10: =COUNTIF(L89:L104,AS10) -> 5 | AU10: =AT10/(AV4-AT8) -> 0.5 | AV10: =IF(AU10=0,0,(AU10*((LOG(AU10))/LOG(2)))) -> -0.5
A11: 11 | B11: 632 | C11: 22 | D11: 642 | E11: 23 | F11: 648 | K11: 0 | L11: 122 | N11: 211 | O11: =COUNTIF($L$7:$L$500,N11) -> 0 | P11: =O11/$Q$4 -> 0 | Q11: =IF(P11=0,0,(P11*((LOG(P11))/LOG(2)))) -> 0 | T11: =N11 -> 211 | U11: =COUNTIF(L7:L22,T11) -> 0 | V11: =U11/(W4-U8) -> 0 | W11: =IF(V11=0,0,(V11*((LOG(V11))/LOG(2)))) -> 0 | Y11: =N11 -> 211 | Z11: =COUNTIF(L23:L39,Y11) -> 0 | AA11: =Z11/(AB4-Z8) -> 0 | AB11: =IF(AA11=0,0,(AA11*((LOG(AA11))/LOG(2)))) -> 0 | AD11: =N11 -> 211 | AE11: =COUNTIF(L40:L55,AD11) -> 0 | AF11: =AE11/(AG4-AE8) -> 0 | AG11: =IF(AF11=0,0,(AF11*((LOG(AF11))/LOG(2)))) -> 0 | AI11: =N11 -> 211 | AJ11: =COUNTIF(L56:L71,AI11) -> 0 | AK11: =AJ11/(AL4-AJ8) -> 0 | AL11: =IF(AK11=0,0,(AK11*((LOG(AK11))/LOG(2)))) -> 0 | AN11: =N11 -> 211 | AO11: =COUNTIF(L72:L88,AN11) -> 0 | AP11: =AO11/(AQ4-AO8) -> 0 | AQ11: =IF(AP11=0,0,(AP11*((LOG(AP11))/LOG(2)))) -> 0 | AS11: =N11 -> 211 | AT11: =COUNTIF(L89:L104,AS11) -> 0 | AU11: =AT11/(AV4-AT8) -> 0 | AV11: =IF(AU11=0,0,(AU11*((LOG(AU11))/LOG(2)))) -> 0
A12: 11 | B12: 745 | C12: 22 | D12: 755 | E12: 23 | F12: 764 | K12: 0 | L12: 122 | N12: 212 | O12: =COUNTIF($L$7:$L$500,N12) -> 3 | P12: =O12/$Q$4 -> 0.0306122449 | Q12: =IF(P12=0,0,(P12*((LOG(P12))/LOG(2)))) -> -0.1539718575 | T12: =N12 -> 212 | U12: =COUNTIF(L7:L22,T12) -> 1 | V12: =U12/(W4-U8) -> 0.09090909091 | W12: =IF(V12=0,0,(V12*((LOG(V12))/LOG(2)))) -> -0.3144937835 | Y12: =N12 -> 212 | Z12: =COUNTIF(L23:L39,Y12) -> 0 | AA12: =Z12/(AB4-Z8) -> 0 | AB12: =IF(AA12=0,0,(AA12*((LOG(AA12))/LOG(2)))) -> 0 | AD12: =N12 -> 212 | AE12: =COUNTIF(L40:L55,AD12) -> 0 | AF12: =AE12/(AG4-AE8) -> 0 | AG12: =IF(AF12=0,0,(AF12*((LOG(AF12))/LOG(2)))) -> 0 | AI12: =N12 -> 212 | AJ12: =COUNTIF(L56:L71,AI12) -> 0 | AK12: =AJ12/(AL4-AJ8) -> 0 | AL12: =IF(AK12=0,0,(AK12*((LOG(AK12))/LOG(2)))) -> 0 | AN12: =N12 -> 212 | AO12: =COUNTIF(L72:L88,AN12) -> 2 | AP12: =AO12/(AQ4-AO8) -> 0.1818181818 | AQ12: =IF(AP12=0,0,(AP12*((LOG(AP12))/LOG(2)))) -> -0.4471693852 | AS12: =N12 -> 212 | AT12: =COUNTIF(L89:L104,AS12) -> 0 | AU12: =AT12/(AV4-AT8) -> 0 | AV12: =IF(AU12=0,0,(AU12*((LOG(AU12))/LOG(2)))) -> 0
A13: 11 | B13: 860 | C13: 22 | D13: 869 | E13: 23 | F13: 876 | K13: 0 | L13: 122 | N13: 221 | O13: =COUNTIF($L$7:$L$500,N13) -> 1 | P13: =O13/$Q$4 -> 0.01020408163 | Q13: =IF(P13=0,0,(P13*((LOG(P13))/LOG(2)))) -> -0.06749703923 | T13: =N13 -> 221 | U13: =COUNTIF(L7:L22,T13) -> 1 | V13: =U13/(W4-U8) -> 0.09090909091 | W13: =IF(V13=0,0,(V13*((LOG(V13))/LOG(2)))) -> -0.3144937835 | Y13: =N13 -> 221 | Z13: =COUNTIF(L23:L39,Y13) -> 0 | AA13: =Z13/(AB4-Z8) -> 0 | AB13: =IF(AA13=0,0,(AA13*((LOG(AA13))/LOG(2)))) -> 0 | AD13: =N13 -> 221 | AE13: =COUNTIF(L40:L55,AD13) -> 0 | AF13: =AE13/(AG4-AE8) -> 0 | AG13: =IF(AF13=0,0,(AF13*((LOG(AF13))/LOG(2)))) -> 0 | AI13: =N13 -> 221 | AJ13: =COUNTIF(L56:L71,AI13) -> 0 | AK13: =AJ13/(AL4-AJ8) -> 0 | AL13: =IF(AK13=0,0,(AK13*((LOG(AK13))/LOG(2)))) -> 0 | AN13: =N13 -> 221 | AO13: =COUNTIF(L72:L88,AN13) -> 0 | AP13: =AO13/(AQ4-AO8) -> 0 | AQ13: =IF(AP13=0,0,(AP13*((LOG(AP13))/LOG(2)))) -> 0 | AS13: =N13 -> 221 | AT13: =COUNTIF(L89:L104,AS13) -> 0 | AU13: =AT13/(AV4-AT8) -> 0 | AV13: =IF(AU13=0,0,(AU13*((LOG(AU13))/LOG(2)))) -> 0
A14: 11 | B14: 969 | C14: 11 | D14: 975 | E14: 21 | F14: 991 | K14: 0 | L14: 112 | N14: 222 | O14: =COUNTIF($L$7:$L$500,N14) -> 5 | P14: =O14/$Q$4 -> 0.05102040816 | Q14: =IF(P14=0,0,(P14*((LOG(P14))/LOG(2)))) -> -0.219019477 | T14: =N14 -> 222 | U14: =COUNTIF(L7:L22,T14) -> 2 | V14: =U14/(W4-U8) -> 0.1818181818 | W14: =IF(V14=0,0,(V14*((LOG(V14))/LOG(2)))) -> -0.4471693852 | Y14: =N14 -> 222 | Z14: =COUNTIF(L23:L39,Y14) -> 0 | AA14: =Z14/(AB4-Z8) -> 0 | AB14: =IF(AA14=0,0,(AA14*((LOG(AA14))/LOG(2)))) -> 0 | AD14: =N14 -> 222 | AE14: =COUNTIF(L40:L55,AD14) -> 1 | AF14: =AE14/(AG4-AE8) -> 0.125 | AG14: =IF(AF14=0,0,(AF14*((LOG(AF14))/LOG(2)))) -> -0.375 | AI14: =N14 -> 222 | AJ14: =COUNTIF(L56:L71,AI14) -> 0 | AK14: =AJ14/(AL4-AJ8) -> 0 | AL14: =IF(AK14=0,0,(AK14*((LOG(AK14))/LOG(2)))) -> 0 | AN14: =N14 -> 222 | AO14: =COUNTIF(L72:L88,AN14) -> 0 | AP14: =AO14/(AQ4-AO8) -> 0 | AQ14: =IF(AP14=0,0,(AP14*((LOG(AP14))/LOG(2)))) -> 0 | AS14: =N14 -> 222 | AT14: =COUNTIF(L89:L104,AS14) -> 2 | AU14: =AT14/(AV4-AT8) -> 0.2 | AV14: =IF(AU14=0,0,(AU14*((LOG(AU14))/LOG(2)))) -> -0.464385619
A15: 11 | B15: 1202 | C15: 22 | D15: 1210 | E15: 23 | F15: 1217 | K15: 0 | L15: 122 | P15: =SUM(P7:P14) -> 1 | Q15: =-SUM(Q7:Q14) -> 1.869699882 | V15: =SUM(V7:V14) -> 1 | W15: =-SUM(W7:W14) -> 1.49111485 | AA15: =SUM(AA7:AA14) -> 1 | AB15: =-SUM(AB7:AB14) -> 0.7219280949 | AF15: =SUM(AF7:AF14) -> 1 | AG15: =-SUM(AG7:AG14) -> 1.298794941 | AK15: =SUM(AK7:AK14) -> 1 | AL15: =-SUM(AL7:AL14) -> 0.5435644432 | AP15: =SUM(AP7:AP14) -> 1 | AQ15: =-SUM(AQ7:AQ14) -> 1.494918848 | AU15: =SUM(AU7:AU14) -> 1 | AV15: =-SUM(AV7:AV14) -> 1.485475297
A16: 11 | B16: 1309 | C16: 11 | D16: 1316 | E16: 21 | F16: 1327 | K16: 0 | L16: 112 | P16: U= | Q16: =Q15/(LOG(Q4)/LOG(2)) -> 0.2826578831 | V16: U1= | W16: =W15/(LOG(W4)/LOG(2)) -> 0.3727787125 | AA16: U2= | AB16: =AB15/(LOG(AB4)/LOG(2)) -> 0.1766200998 | AF16: U3= | AG16: =AG15/(LOG(AG4)/LOG(2)) -> 0.3246987352 | AK16: U4= | AL16: =AL15/(LOG(AL4)/LOG(2)) -> 0.1358911108 | AP16: U5= | AQ16: =AQ15/(LOG(AQ4)/LOG(2)) -> 0.3657327066 | AU16: U6= | AV16: =AV15/(LOG(AV4)/LOG(2)) -> 0.3713688243
A17: 22 | B17: 1481 | C17: 24 | D17: 1500 | E17: 23 | F17: 1504 | K17: 0 | L17: 222
A18: 11 | B18: 1601 | C18: 22 | D18: 1613 | E18: 23 | F18: 1628 | K18: 0 | L18: 122
A19: 11 | B19: 1727 | C19: 22 | D19: 1736 | E19: 23 | F19: 1746 | K19: 0 | L19: 122 | N19: Total Target Seq
A20: 11 | B20: 1840 | C20: 11 | D20: 1849 | E20: 21 | F20: 1874 | K20: 0 | L20: 112 | N20: =COUNTIF(L7:L104,G3) -> 40 | P20: 16 | Q20: 17 | R20: 16 | S20: 16 | T20: 17 | U20: 16
A21: 11 | B21: 2035 | C21: 11 | D21: 2041 | E21: 21 | F21: 2050 | K21: 0 | L21: 112 | P21: % of reinforcement given in 6 equal intervals based on number of trials
A22: 22 | B22: 2194 | C22: 24 | D22: 2202 | E22: 23 | F22: 2212 | K22: 0 | L22: 222 | P22: %_1 | Q22: %_2 | R22: %_3 | S22: %_4 | T22: %_5 | U22: %_6
A23: 11 | B23: 2304 | C23: 11 | D23: 2311 | E23: 21 | F23: 2328 | K23: 0 | L23: 112 | O23: target sequence | P23: =$G$3 -> 112 | Q23: =$G$3 -> 112 | R23: =$G$3 -> 112 | S23: =$G$3 -> 112 | T23: =$G$3 -> 112 | U23: =$G$3 -> 112
A24: 11 | B24: 2452 | C24: 11 | D24: 2455 | E24: 21 | F24: 2465 | K24: 0 | L24: 112 | O24: total reinforcement | P24: =U8 -> 5 | Q24: =Z8 -> 7 | R24: =AE8 -> 8 | S24: =AJ8 -> 8 | T24: =AO8 -> 6 | U24: =AT8 -> 6
A25: 11 | B25: 2575 | C25: 11 | D25: 2581 | E25: 12 | F25: 2588 | K25: 0 | L25: 111 | O25: % target
A26: 11 | B26: 2686 | C26: 22 | D26: 2700 | E26: 23 | F26: 2714 | K26: 0 | L26: 122 | O26: CCRF
A27: 11 | B27: 2815 | C27: 22 | D27: 2825 | E27: 23 | F27: 2835 | K27: 0 | L27: 122 | O27: % CCRf
A28: 11 | B28: 2929 | C28: 22 | D28: 2941 | E28: 23 | F28: 2946 | K28: 0 | L28: 122 | O28: average response rate | P28: =F22/P20 -> 138.25 | Q28: =(F39-F22)/Q20 -> 124.1764706 | R28: =(F55-F39)/R20 -> 126.4375 | S28: =(F71-F55)/S20 -> 138.5 | T28: =(F88-F71)/T20 -> 129.2352941 | U28: =(F104-F88)/U20 -> 123.125
A29: 11 | B29: 3061 | C29: 22 | D29: 3073 | E29: 23 | F29: 3079 | K29: 0 | L29: 122
A30: 11 | B30: 3174 | C30: 11 | D30: 3178 | E30: 21 | F30: 3189 | K30: 0 | L30: 112
A31: 11 | B31: 3298 | C31: 11 | D31: 3302 | E31: 21 | F31: 3313 | K31: 0 | L31: 112
A32: 11 | B32: 3430 | C32: 22 | D32: 3452 | E32: 23 | F32: 3464 | K32: 0 | L32: 122
A33: 11 | B33: 3558 | C33: 11 | D33: 3566 | E33: 21 | F33: 3577 | K33: 0 | L33: 112
A34: 11 | B34: 3696 | C34: 11 | D34: 3701 | E34: 12 | F34: 3706 | K34: 0 | L34: 111
A35: 11 | B35: 3798 | C35: 11 | D35: 3808 | E35: 21 | F35: 3836 | K35: 0 | L35: 112
A36: 11 | B36: 3959 | C36: 22 | D36: 3971 | E36: 23 | F36: 3977 | K36: 0 | L36: 122
A37: 11 | B37: 4072 | C37: 22 | D37: 4082 | E37: 23 | F37: 4095 | K37: 0 | L37: 122
A38: 11 | B38: 4191 | C38: 22 | D38: 4202 | E38: 23 | F38: 4207 | K38: 0 | L38: 122
A39: 11 | B39: 4309 | C39: 11 | D39: 4313 | E39: 21 | F39: 4323 | K39: 0 | L39: 112
A40: 11 | B40: 4417 | C40: 11 | D40: 4430 | E40: 21 | F40: 4445 | K40: 0 | L40: 112
A41: 11 | B41: 4558 | C41: 11 | D41: 4571 | E41: 12 | F41: 4577 | K41: 0 | L41: 111
A42: 22 | B42: 4683 | C42: 24 | D42: 4698 | E42: 23 | F42: 4711 | K42: 0 | L42: 222
A43: 11 | B43: 4806 | C43: 11 | D43: 4811 | E43: 21 | F43: 4832 | K43: 0 | L43: 112
A44: 11 | B44: 4957 | C44: 11 | D44: 4963 | E44: 21 | F44: 4977 | K44: 0 | L44: 112
A45: 11 | B45: 5092 | C45: 22 | D45: 5102 | E45: 23 | F45: 5113 | K45: 0 | L45: 122
A46: 11 | B46: 5209 | C46: 22 | D46: 5219 | E46: 23 | F46: 5224 | K46: 0 | L46: 122
A47: 11 | B47: 5319 | C47: 22 | D47: 5341 | E47: 23 | F47: 5346 | K47: 0 | L47: 122
A48: 11 | B48: 5443 | C48: 11 | D48: 5449 | E48: 21 | F48: 5460 | K48: 0 | L48: 112
A49: 11 | B49: 5575 | C49: 11 | D49: 5582 | E49: 21 | F49: 5594 | K49: 0 | L49: 112
A50: 11 | B50: 5696 | C50: 11 | D50: 5702 | E50: 12 | F50: 5712 | K50: 0 | L50: 111
A51: 11 | B51: 5806 | C51: 22 | D51: 5821 | E51: 23 | F51: 5834 | K51: 0 | L51: 122
A52: 11 | B52: 5930 | C52: 22 | D52: 5940 | E52: 23 | F52: 5944 | K52: 0 | L52: 122
A53: 11 | B53: 6037 | C53: 11 | D53: 6040 | E53: 21 | F53: 6052 | K53: 0 | L53: 112
A54: 11 | B54: 6145 | C54: 11 | D54: 6152 | E54: 21 | F54: 6166 | K54: 0 | L54: 112
A55: 11 | B55: 6323 | C55: 11 | D55: 6331 | E55: 21 | F55: 6346 | K55: 0 | L55: 112
A56: 11 | B56: 6505 | C56: 22 | D56: 6514 | E56: 23 | F56: 6518 | K56: 0 | L56: 122
A57: 11 | B57: 6611 | C57: 22 | D57: 6622 | E57: 23 | F57: 6630 | K57: 0 | L57: 122
A58: 11 | B58: 6726 | C58: 11 | D58: 6729 | E58: 12 | F58: 6730 | K58: 0 | L58: 111
A59: 11 | B59: 6826 | C59: 22 | D59: 6836 | E59: 23 | F59: 6843 | K59: 0 | L59: 122
A60: 11 | B60: 6954 | C60: 22 | D60: 6963 | E60: 23 | F60: 6974 | K60: 0 | L60: 122
A61: 11 | B61: 7069 | C61: 11 | D61: 7077 | E61: 21 | F61: 7087 | K61: 0 | L61: 112
A62: 11 | B62: 7251 | C62: 11 | D62: 7256 | E62: 21 | F62: 7264 | K62: 0 | L62: 112
A63: 11 | B63: 7415 | C63: 11 | D63: 7423 | E63: 21 | F63: 7436 | K63: 0 | L63: 112
A64: 11 | B64: 7580 | C64: 11 | D64: 7587 | E64: 21 | F64: 7601 | K64: 0 | L64: 112
A65: 11 | B65: 7729 | C65: 11 | D65: 7736 | E65: 21 | F65: 7746 | K65: 0 | L65: 112
A66: 11 | B66: 7876 | C66: 22 | D66: 7896 | E66: 23 | F66: 7907 | K66: 0 | L66: 122
A67: 11 | B67: 8002 | C67: 22 | D67: 8021 | E67: 23 | F67: 8031 | K67: 0 | L67: 122
A68: 11 | B68: 8160 | C68: 22 | D68: 8168 | E68: 23 | F68: 8179 | K68: 0 | L68: 122
A69: 11 | B69: 8274 | C69: 11 | D69: 8279 | E69: 21 | F69: 8290 | K69: 0 | L69: 112
A70: 11 | B70: 8409 | C70: 11 | D70: 8415 | E70: 21 | F70: 8429 | K70: 0 | L70: 112
A71: 11 | B71: 8522 | C71: 11 | D71: 8526 | E71: 21 | F71: 8562 | K71: 0 | L71: 112
A72: 11 | B72: 8761 | C72: 22 | D72: 8772 | E72: 23 | F72: 8779 | K72: 0 | L72: 122
A73: 11 | B73: 8874 | C73: 11 | D73: 8884 | E73: 21 | F73: 8898 | K73: 0 | L73: 112
A74: 11 | B74: 9018 | C74: 11 | D74: 9024 | E74: 21 | F74: 9038 | K74: 0 | L74: 112
A75: 11 | B75: 9162 | C75: 22 | D75: 9178 | E75: 23 | F75: 9187 | K75: 0 | L75: 122
A76: 11 | B76: 9279 | C76: 11 | D76: 9282 | E76: 12 | F76: 9287 | K76: 0 | L76: 111
A77: 22 | B77: 9383 | C77: 13 | D77: 9394 | E77: 23 | F77: 9405 | K77: 0 | L77: 212
A78: 11 | B78: 9498 | C78: 11 | D78: 9503 | E78: 12 | F78: 9509 | K78: 0 | L78: 111
A79: 11 | B79: 9604 | C79: 22 | D79: 9613 | E79: 23 | F79: 9624 | K79: 0 | L79: 122
A80: 11 | B80: 9719 | C80: 11 | D80: 9721 | E80: 21 | F80: 9739 | K80: 0 | L80: 112
A81: 11 | B81: 9884 | C81: 11 | D81: 9889 | E81: 21 | F81: 9898 | K81: 0 | L81: 112
A82: 11 | B82: 10034 | C82: 11 | D82: 10039 | E82: 21 | F82: 10057 | K82: 0 | L82: 112
A83: 22 | B83: 10156 | C83: 13 | D83: 10164 | E83: 23 | F83: 10181 | K83: 0 | L83: 212
A84: 11 | B84: 10274 | C84: 11 | D84: 10278 | E84: 12 | F84: 10281 | K84: 0 | L84: 111
A85: 11 | B85: 10375 | C85: 22 | D85: 10385 | E85: 23 | F85: 10388 | K85: 0 | L85: 122
A86: 11 | B86: 10482 | C86: 11 | D86: 10486 | E86: 12 | F86: 10491 | K86: 0 | L86: 111
A87: 11 | B87: 10591 | C87: 11 | D87: 10597 | E87: 21 | F87: 10609 | K87: 0 | L87: 112
A88: 11 | B88: 10702 | C88: 22 | D88: 10738 | E88: 23 | F88: 10759 | K88: 0 | L88: 122
A89: 22 | B89: 10866 | C89: 24 | D89: 10872 | E89: 23 | F89: 10881 | K89: 0 | L89: 222
A90: 11 | B90: 10978 | C90: 11 | D90: 10984 | E90: 21 | F90: 10994 | K90: 0 | L90: 112
A91: 11 | B91: 11086 | C91: 11 | D91: 11102 | E91: 12 | F91: 11110 | K91: 0 | L91: 111
A92: 11 | B92: 11206 | C92: 22 | D92: 11219 | E92: 23 | F92: 11233 | K92: 0 | L92: 122
A93: 11 | B93: 11360 | C93: 11 | D93: 11363 | E93: 12 | F93: 11367 | K93: 0 | L93: 111
A94: 22 | B94: 11466 | C94: 24 | D94: 11474 | E94: 23 | F94: 11480 | K94: 0 | L94: 222
A95: 11 | B95: 11583 | C95: 11 | D95: 11589 | E95: 21 | F95: 11601 | K95: 0 | L95: 112
A96: 11 | B96: 11731 | C96: 11 | D96: 11736 | E96: 21 | F96: 11747 | K96: 0 | L96: 112
A97: 11 | B97: 11865 | C97: 22 | D97: 11875 | E97: 23 | F97: 11882 | K97: 0 | L97: 122
A98: 11 | B98: 11977 | C98: 11 | D98: 11983 | E98: 21 | F98: 11996 | K98: 0 | L98: 112
A99: 11 | B99: 12105 | C99: 22 | D99: 12132 | E99: 23 | F99: 12150 | K99: 0 | L99: 122
A100: 11 | B100: 12245 | C100: 22 | D100: 12261 | E100: 23 | F100: 12270 | K100: 0 | L100: 122
A101: 11 | B101: 12365 | C101: 11 | D101: 12369 | E101: 12 | F101: 12375 | K101: 0 | L101: 111
A102: 11 | B102: 12470 | C102: 11 | D102: 12476 | E102: 21 | F102: 12486 | K102: 0 | L102: 112
A103: 11 | B103: 12581 | C103: 22 | D103: 12611 | E103: 23 | F103: 12621 | K103: 0 | L103: 122
A104: 11 | B104: 12716 | C104: 11 | D104: 12719 | E104: 21 | F104: 12729 | K104: 1 | L104: 112

Sheet !MB1780I.sha
A1: Report for:!MB1780I.sha
A2: Date: | B2: <date>
A3: Hen: | B3: <hen> | F3: Correct Sequence | G3: =Start!J2 -> 112 | P3: Total Sequences in Data | Q3: =4994-COUNTBLANK(L7:L5000) -> 96 | V3: Total Sequences in Block Data | W3: =COUNTA(L7:L22) -> 16 | AA3: Total Sequences in Block Data | AB3: =COUNTA(L23:L38) -> 16 | AF3: Total Sequences in Block Data | AG3: =COUNTA(L39:L54) -> 16 | AK3: Total Sequences in Block Data | AL3: =COUNTA(L55:L70) -> 16 | AP3: Total Sequences in Block Data | AQ3: =COUNTA(L71:L86) -> 16 | AU3: Total Sequences in Block Data | AV3: =COUNTA(L87:L102) -> 16
P4: Total Sequences in Summary | Q4: =SUM(O7:O14) -> 96 | V4: Total Sequences in Block Summary | W4: =SUM(U7:U14) -> 16 | AA4: Total Sequences in Block Summary | AB4: =SUM(Z7:Z14) -> 16 | AF4: Total Sequences in Block Summary | AG4: =SUM(AE7:AE14) -> 16 | AK4: Total Sequences in Block Summary | AL4: =SUM(AJ7:AJ14) -> 16 | AP4: Total Sequences in Block Summary | AQ4: =SUM(AO7:AO14) -> 16 | AU4: Total Sequences in Block Summary | AV4: =SUM(AT7:AT14) -> 16
T5: Block 1 | Y5: Block 2 | AD5: Block 3 | AI5: Block 4 | AN5: Block 5 | AS5: Block 6
A6: Sequence Component 1 | B6: Time 1 | C6: Sequence Component 2 | D6: Time 2 | E6: Sequence Component 3 | F6: Time 3 | G6: Sequence Component 4 | H6: Time 4 | I6: Sequence Component 5 | J6: Time 5 | K6: Correct? 0=No 1=Yes | L6: Sequence | N6: Frequency | P6: Relative Frequency | Q6: Variability | T6: Frequency | V6: Relative Frequency | W6: Variability | Y6: Frequency | AA6: Relative Frequency | AB6: Variability | AD6: Frequency | AF6: Relative Frequency | AG6: Variability | AI6: Frequency | AK6: Relative Frequency | AL6: Variability | AN6: Frequency | AP6: Relative Frequency | AQ6: Variability | AS6: Frequency | AU6: Relative Frequency | AV6: Variability
A7: 11 | B7: 56 | C7: 22 | D7: 69 | E7: 23 | F7: 82 | K7: 0 | L7: 122 | N7: 111 | O7: =COUNTIF($L$7:$L$500,N7) -> 11 | P7: =O7/$Q$4 -> 0.1145833333 | Q7: =IF(P7=0,0,(P7*((LOG(P7))/LOG(2)))) -> -0.3581337469 | T7: =N7 -> 111 | U7: =COUNTIF(L7:L22,T7) -> 0 | V7: =U7/(W4-U8) -> 0 | W7: =IF(V7=0,0,(V7*((LOG(V7))/LOG(2)))) -> 0 | Y7: =N7 -> 111 | Z7: =COUNTIF(L23:L38,Y7) -> 3 | AA7: =Z7/(AB4-Z8) -> 0.2307692308 | AB7: =IF(AA7=0,0,(AA7*((LOG(AA7))/LOG(2)))) -> -0.4881870502 | AD7: =N7 -> 111 | AE7: =COUNTIF(L39:L54,AD7) -> 1 | AF7: =AE7/(AG4-AE8) -> 0.125 | AG7: =IF(AF7=0,0,(AF7*((LOG(AF7))/LOG(2)))) -> -0.375 | AI7: =N7 -> 111 | AJ7: =COUNTIF(L55:L70,AI7) -> 3 | AK7: =AJ7/(AL4-AJ8) -> 0.5 | AL7: =IF(AK7=0,0,(AK7*((LOG(AK7))/LOG(2)))) -> -0.5 | AN7: =N7 -> 111 | AO7: =COUNTIF(L71:L86,AN7) -> 2 | AP7: =AO7/(AQ4-AO8) -> 0.2222222222 | AQ7: =IF(AP7=0,0,(AP7*((LOG(AP7))/LOG(2)))) -> -0.4822055559 | AS7: =N7 -> 111 | AT7: =COUNTIF(L87:L102,AS7) -> 2 | AU7: =AT7/(AV4-AT8) -> 0.25 | AV7: =IF(AU7=0,0,(AU7*((LOG(AU7))/LOG(2)))) -> -0.5
A8: 11 | B8: 182 | C8: 22 | D8: 192 | E8: 23 | F8: 198 | K8: 0 | L8: 122 | N8: 112 | O8: =COUNTIF($L$7:$L$500,N8) -> 40 | P8: =O8/$Q$4 -> 0.4166666667 | Q8: =IF(P8=0,0,(P8*((LOG(P8))/LOG(2)))) -> -0.5262643358 | T8: =N8 -> 112 | U8: =COUNTIF(L7:L22,T8) -> 4 | Y8: =N8 -> 112 | Z8: =COUNTIF(L23:L38,Y8) -> 3 | AD8: =N8 -> 112 | AE8: =COUNTIF(L39:L54,AD8) -> 8 | AI8: =N8 -> 112 | AJ8: =COUNTIF(L55:L70,AI8) -> 10 | AN8: =N8 -> 112 | AO8: =COUNTIF(L71:L86,AN8) -> 7 | AS8: =N8 -> 112 | AT8: =COUNTIF(L87:L102,AS8) -> 8
A9: 11 | B9: 291 | C9: 11 | D9: 297 | E9: 21 | F9: 314 | K9: 0 | L9: 112 | N9: 121 | O9: =COUNTIF($L$7:$L$500,N9) -> 1 | P9: =O9/$Q$4 -> 0.01041666667 | Q9: =IF(P9=0,0,(P9*((LOG(P9))/LOG(2)))) -> -0.06859335938 | T9: =N9 -> 121 | U9: =COUNTIF(L7:L22,T9) -> 0 | V9: =U9/(W4-U8) -> 0 | W9: =IF(V9=0,0,(V9*((LOG(V9))/LOG(2)))) -> 0 | Y9: =N9 -> 121 | Z9: =COUNTIF(L23:L38,Y9) -> 0 | AA9: =Z9/(AB4-Z8) -> 0 | AB9: =IF(AA9=0,0,(AA9*((LOG(AA9))/LOG(2)))) -> 0 | AD9: =N9 -> 121 | AE9: =COUNTIF(L39:L54,AD9) -> 0 | AF9: =AE9/(AG4-AE8) -> 0 | AG9: =IF(AF9=0,0,(AF9*((LOG(AF9))/LOG(2)))) -> 0 | AI9: =N9 -> 121 | AJ9: =COUNTIF(L55:L70,AI9) -> 1 | AK9: =AJ9/(AL4-AJ8) -> 0.1666666667 | AL9: =IF(AK9=0,0,(AK9*((LOG(AK9))/LOG(2)))) -> -0.4308270835 | AN9: =N9 -> 121 | AO9: =COUNTIF(L71:L86,AN9) -> 0 | AP9: =AO9/(AQ4-AO8) -> 0 | AQ9: =IF(AP9=0,0,(AP9*((LOG(AP9))/LOG(2)))) -> 0 | AS9: =N9 -> 121 | AT9: =COUNTIF(L87:L102,AS9) -> 0 | AU9: =AT9/(AV4-AT8) -> 0 | AV9: =IF(AU9=0,0,(AU9*((LOG(AU9))/LOG(2)))) -> 0
A10: 22 | B10: 503 | C10: 13 | D10: 516 | E10: 23 | F10: 533 | K10: 0 | L10: 212 | N10: 122 | O10: =COUNTIF($L$7:$L$500,N10) -> 32 | P10: =O10/$Q$4 -> 0.3333333333 | Q10: =IF(P10=0,0,(P10*((LOG(P10))/LOG(2)))) -> -0.5283208336 | T10: =N10 -> 122 | U10: =COUNTIF(L7:L22,T10) -> 5 | V10: =U10/(W4-U8) -> 0.4166666667 | W10: =IF(V10=0,0,(V10*((LOG(V10))/LOG(2)))) -> -0.5262643358 | Y10: =N10 -> 122 | Z10: =COUNTIF(L23:L38,Y10) -> 8 | AA10: =Z10/(AB4-Z8) -> 0.6153846154 | AB10: =IF(AA10=0,0,(AA10*((LOG(AA10))/LOG(2)))) -> -0.4310398265 | AD10: =N10 -> 122 | AE10: =COUNTIF(L39:L54,AD10) -> 7 | AF10: =AE10/(AG4-AE8) -> 0.875 | AG10: =IF(AF10=0,0,(AF10*((LOG(AF10))/LOG(2)))) -> -0.1685644432 | AI10: =N10 -> 122 | AJ10: =COUNTIF(L55:L70,AI10) -> 2 | AK10: =AJ10/(AL4-AJ8) -> 0.3333333333 | AL10: =IF(AK10=0,0,(AK10*((LOG(AK10))/LOG(2)))) -> -0.5283208336 | AN10: =N10 -> 122 | AO10: =COUNTIF(L71:L86,AN10) -> 6 | AP10: =AO10/(AQ4-AO8) -> 0.6666666667 | AQ10: =IF(AP10=0,0,(AP10*((LOG(AP10))/LOG(2)))) -> -0.3899750005 | AS10: =N10 -> 122 | AT10: =COUNTIF(L87:L102,AS10) -> 4 | AU10: =AT10/(AV4-AT8) -> 0.5 | AV10: =IF(AU10=0,0,(AU10*((LOG(AU10))/LOG(2)))) -> -0.5
A11: 11 | B11: 629 | C11: 11 | D11: 636 | E11: 21 | F11: 648 | K11: 0 | L11: 112 | N11: 211 | O11: =COUNTIF($L$7:$L$500,N11) -> 0 | P11: =O11/$Q$4 -> 0 | Q11: =IF(P11=0,0,(P11*((LOG(P11))/LOG(2)))) -> 0 | T11: =N11 -> 211 | U11: =COUNTIF(L7:L22,T11) -> 0 | V11: =U11/(W4-U8) -> 0 | W11: =IF(V11=0,0,(V11*((LOG(V11))/LOG(2)))) -> 0 | Y11: =N11 -> 211 | Z11: =COUNTIF(L23:L38,Y11) -> 0 | AA11: =Z11/(AB4-Z8) -> 0 | AB11: =IF(AA11=0,0,(AA11*((LOG(AA11))/LOG(2)))) -> 0 | AD11: =N11 -> 211 | AE11: =COUNTIF(L39:L54,AD11) -> 0 | AF11: =AE11/(AG4-AE8) -> 0 | AG11: =IF(AF11=0,0,(AF11*((LOG(AF11))/LOG(2)))) -> 0 | AI11: =N11 -> 211 | AJ11: =COUNTIF(L55:L70,AI11) -> 0 | AK11: =AJ11/(AL4-AJ8) -> 0 | AL11: =IF(AK11=0,0,(AK11*((LOG(AK11))/LOG(2)))) -> 0 | AN11: =N11 -> 211 | AO11: =COUNTIF(L71:L86,AN11) -> 0 | AP11: =AO11/(AQ4-AO8) -> 0 | AQ11: =IF(AP11=0,0,(AP11*((LOG(AP11))/LOG(2)))) -> 0 | AS11: =N11 -> 211 | AT11: =COUNTIF(L87:L102,AS11) -> 0 | AU11: =AT11/(AV4-AT8) -> 0 | AV11: =IF(AU11=0,0,(AU11*((LOG(AU11))/LOG(2)))) -> 0
A12: 22 | B12: 907 | C12: 24 | D12: 940 | E12: 23 | F12: 955 | K12: 0 | L12: 222 | N12: 212 | O12: =COUNTIF($L$7:$L$500,N12) -> 3 | P12: =O12/$Q$4 -> 0.03125 | Q12: =IF(P12=0,0,(P12*((LOG(P12))/LOG(2)))) -> -0.15625 | T12: =N12 -> 212 | U12: =COUNTIF(L7:L22,T12) -> 1 | V12: =U12/(W4-U8) -> 0.08333333333 | W12: =IF(V12=0,0,(V12*((LOG(V12))/LOG(2)))) -> -0.2987468751 | Y12: =N12 -> 212 | Z12: =COUNTIF(L23:L38,Y12) -> 0 | AA12: =Z12/(AB4-Z8) -> 0 | AB12: =IF(AA12=0,0,(AA12*((LOG(AA12))/LOG(2)))) -> 0 | AD12: =N12 -> 212 | AE12: =COUNTIF(L39:L54,AD12) -> 0 | AF12: =AE12/(AG4-AE8) -> 0 | AG12: =IF(AF12=0,0,(AF12*((LOG(AF12))/LOG(2)))) -> 0 | AI12: =N12 -> 212 | AJ12: =COUNTIF(L55:L70,AI12) -> 0 | AK12: =AJ12/(AL4-AJ8) -> 0 | AL12: =IF(AK12=0,0,(AK12*((LOG(AK12))/LOG(2)))) -> 0 | AN12: =N12 -> 212 | AO12: =COUNTIF(L71:L86,AN12) -> 1 | AP12: =AO12/(AQ4-AO8) -> 0.1111111111 | AQ12: =IF(AP12=0,0,(AP12*((LOG(AP12))/LOG(2)))) -> -0.352213889 | AS12: =N12 -> 212 | AT12: =COUNTIF(L87:L102,AS12) -> 1 | AU12: =AT12/(AV4-AT8) -> 0.125 | AV12: =IF(AU12=0,0,(AU12*((LOG(AU12))/LOG(2)))) -> -0.375
A13: 11 | B13: 1047 | C13: 11 | D13: 1051 | E13: 21 | F13: 1067 | K13: 0 | L13: 112 | N13: 221 | O13: =COUNTIF($L$7:$L$500,N13) -> 2 | P13: =O13/$Q$4 -> 0.02083333333 | Q13: =IF(P13=0,0,(P13*((LOG(P13))/LOG(2)))) -> -0.1163533854 | T13: =N13 -> 221 | U13: =COUNTIF(L7:L22,T13) -> 2 | V13: =U13/(W4-U8) -> 0.1666666667 | W13: =IF(V13=0,0,(V13*((LOG(V13))/LOG(2)))) -> -0.4308270835 | Y13: =N13 -> 221 | Z13: =COUNTIF(L23:L38,Y13) -> 0 | AA13: =Z13/(AB4-Z8) -> 0 | AB13: =IF(AA13=0,0,(AA13*((LOG(AA13))/LOG(2)))) -> 0 | AD13: =N13 -> 221 | AE13: =COUNTIF(L39:L54,AD13) -> 0 | AF13: =AE13/(AG4-AE8) -> 0 | AG13: =IF(AF13=0,0,(AF13*((LOG(AF13))/LOG(2)))) -> 0 | AI13: =N13 -> 221 | AJ13: =COUNTIF(L55:L70,AI13) -> 0 | AK13: =AJ13/(AL4-AJ8) -> 0 | AL13: =IF(AK13=0,0,(AK13*((LOG(AK13))/LOG(2)))) -> 0 | AN13: =N13 -> 221 | AO13: =COUNTIF(L71:L86,AN13) -> 0 | AP13: =AO13/(AQ4-AO8) -> 0 | AQ13: =IF(AP13=0,0,(AP13*((LOG(AP13))/LOG(2)))) -> 0 | AS13: =N13 -> 221 | AT13: =COUNTIF(L87:L102,AS13) -> 0 | AU13: =AT13/(AV4-AT8) -> 0 | AV13: =IF(AU13=0,0,(AU13*((LOG(AU13))/LOG(2)))) -> 0
A14: 22 | B14: 1202 | C14: 24 | D14: 1210 | E14: 14 | F14: 1221 | K14: 0 | L14: 221 | N14: 222 | O14: =COUNTIF($L$7:$L$500,N14) -> 7 | P14: =O14/$Q$4 -> 0.07291666667 | Q14: =IF(P14=0,0,(P14*((LOG(P14))/LOG(2)))) -> -0.2754505526 | T14: =N14 -> 222 | U14: =COUNTIF(L7:L22,T14) -> 4 | V14: =U14/(W4-U8) -> 0.3333333333 | W14: =IF(V14=0,0,(V14*((LOG(V14))/LOG(2)))) -> -0.5283208336 | Y14: =N14 -> 222 | Z14: =COUNTIF(L23:L38,Y14) -> 2 | AA14: =Z14/(AB4-Z8) -> 0.1538461538 | AB14: =IF(AA14=0,0,(AA14*((LOG(AA14))/LOG(2)))) -> -0.4154522643 | AD14: =N14 -> 222 | AE14: =COUNTIF(L39:L54,AD14) -> 0 | AF14: =AE14/(AG4-AE8) -> 0 | AG14: =IF(AF14=0,0,(AF14*((LOG(AF14))/LOG(2)))) -> 0 | AI14: =N14 -> 222 | AJ14: =COUNTIF(L55:L70,AI14) -> 0 | AK14: =AJ14/(AL4-AJ8) -> 0 | AL14: =IF(AK14=0,0,(AK14*((LOG(AK14))/LOG(2)))) -> 0 | AN14: =N14 -> 222 | AO14: =COUNTIF(L71:L86,AN14) -> 0 | AP14: =AO14/(AQ4-AO8) -> 0 | AQ14: =IF(AP14=0,0,(AP14*((LOG(AP14))/LOG(2)))) -> 0 | AS14: =N14 -> 222 | AT14: =COUNTIF(L87:L102,AS14) -> 1 | AU14: =AT14/(AV4-AT8) -> 0.125 | AV14: =IF(AU14=0,0,(AU14*((LOG(AU14))/LOG(2)))) -> -0.375
A15: 11 | B15: 1324 | C15: 22 | D15: 1335 | E15: 23 | F15: 1342 | K15: 0 | L15: 122 | P15: =SUM(P7:P14) -> 1 | Q15: =-SUM(Q7:Q14) -> 2.029366214 | V15: =SUM(V7:V14) -> 1 | W15: =-SUM(W7:W14) -> 1.784159128 | AA15: =SUM(AA7:AA14) -> 1 | AB15: =-SUM(AB7:AB14) -> 1.334679141 | AF15: =SUM(AF7:AF14) -> 1 | AG15: =-SUM(AG7:AG14) -> 0.5435644432 | AK15: =SUM(AK7:AK14) -> 1 | AL15: =-SUM(AL7:AL14) -> 1.459147917 | AP15: =SUM(AP7:AP14) -> 1 | AQ15: =-SUM(AQ7:AQ14) -> 1.224394445 | AU15: =SUM(AU7:AU14) -> 1 | AV15: =-SUM(AV7:AV14) -> 1.75
A16: 22 | B16: 1458 | C16: 24 | D16: 1468 | E16: 23 | F16: 1475 | K16: 0 | L16: 222 | P16: U= | Q16: =Q15/(LOG(Q4)/LOG(2)) -> 0.3081818937 | V16: U1= | W16: =W15/(LOG(W4)/LOG(2)) -> 0.446039782 | AA16: U2= | AB16: =AB15/(LOG(AB4)/LOG(2)) -> 0.3336697853 | AF16: U3= | AG16: =AG15/(LOG(AG4)/LOG(2)) -> 0.1358911108 | AK16: U4= | AL16: =AL15/(LOG(AL4)/LOG(2)) -> 0.3647869793 | AP16: U5= | AQ16: =AQ15/(LOG(AQ4)/LOG(2)) -> 0.3060986114 | AU16: U6= | AV16: =AV15/(LOG(AV4)/LOG(2)) -> 0.4375
A17: 22 | B17: 1593 | C17: 24 | D17: 1602 | E17: 23 | F17: 1610 | K17: 0 | L17: 222
A18: 22 | B18: 1721 | C18: 24 | D18: 1728 | E18: 23 | F18: 1737 | K18: 0 | L18: 222
A19: 11 | B19: 1838 | C19: 11 | D19: 1844 | E19: 21 | F19: 1854 | K19: 0 | L19: 112 | N19: Total Target Seq
A20: 22 | B20: 2063 | C20: 24 | D20: 2068 | E20: 14 | F20: 2082 | K20: 0 | L20: 221 | N20: =COUNTIF(L7:L102,G3) -> 40 | P20: 16 | Q20: 16 | R20: 16 | S20: 16 | T20: 16 | U20: 16
A21: 11 | B21: 2178 | C21: 22 | D21: 2190 | E21: 23 | F21: 2195 | K21: 0 | L21: 122 | P21: % of reinforcement given in 6 equal intervals based on number of trials
A22: 11 | B22: 2290 | C22: 22 | D22: 2306 | E22: 23 | F22: 2314 | K22: 0 | L22: 122 | P22: %_1 | Q22: %_2 | R22: %_3 | S22: %_4 | T22: %_5 | U22: %_6
A23: 11 | B23: 2411 | C23: 11 | D23: 2415 | E23: 12 | F23: 2420 | K23: 0 | L23: 111 | O23: target sequence | P23: =$G$3 -> 112 | Q23: =$G$3 -> 112 | R23: =$G$3 -> 112 | S23: =$G$3 -> 112 | T23: =$G$3 -> 112 | U23: =$G$3 -> 112
A24: 22 | B24: 2535 | C24: 24 | D24: 2541 | E24: 23 | F24: 2546 | K24: 0 | L24: 222 | O24: total reinforcement | P24: =U8 -> 4 | Q24: =Z8 -> 3 | R24: =AE8 -> 8 | S24: =AJ8 -> 10 | T24: =AO8 -> 7 | U24: =AT8 -> 8
A25: 11 | B25: 2641 | C25: 11 | D25: 2645 | E25: 12 | F25: 2652 | K25: 0 | L25: 111 | O25: % target
A26: 11 | B26: 2747 | C26: 11 | D26: 2750 | E26: 21 | F26: 2762 | K26: 0 | L26: 112 | O26: CCRF
A27: 11 | B27: 2972 | C27: 22 | D27: 2981 | E27: 23 | F27: 2991 | K27: 0 | L27: 122 | O27: % CCRf
A28: 11 | B28: 3087 | C28: 22 | D28: 3100 | E28: 23 | F28: 3114 | K28: 0 | L28: 122 | O28: average response rate | P28: =F22/P20 -> 144.625 | Q28: =(F38-F22)/Q20 -> 130 | R28: =(F54-F38)/R20 -> 146.5 | S28: =(F70-F54)/S20 -> 130.125 | T28: =(F86-F70)/T20 -> 137.9375 | U28: =(F102-F86)/U20 -> 128.125
A29: 11 | B29: 3208 | C29: 11 | D29: 3212 | E29: 12 | F29: 3217 | K29: 0 | L29: 111
A30: 11 | B30: 3313 | C30: 22 | D30: 3323 | E30: 23 | F30: 3330 | K30: 0 | L30: 122
A31: 22 | B31: 3448 | C31: 24 | D31: 3469 | E31: 23 | F31: 3476 | K31: 0 | L31: 222
A32: 11 | B32: 3574 | C32: 22 | D32: 3587 | E32: 23 | F32: 3594 | K32: 0 | L32: 122
A33: 11 | B33: 3689 | C33: 22 | D33: 3719 | E33: 23 | F33: 3732 | K33: 0 | L33: 122
A34: 11 | B34: 3829 | C34: 22 | D34: 3839 | E34: 23 | F34: 3846 | K34: 0 | L34: 122
A35: 11 | B35: 3941 | C35: 11 | D35: 3947 | E35: 21 | F35: 3979 | K35: 0 | L35: 112
A36: 11 | B36: 4144 | C36: 22 | D36: 4153 | E36: 23 | F36: 4162 | K36: 0 | L36: 122
A37: 11 | B37: 4259 | C37: 22 | D37: 4270 | E37: 23 | F37: 4283 | K37: 0 | L37: 122
A38: 11 | B38: 4378 | C38: 11 | D38: 4384 | E38: 21 | F38: 4394 | K38: 0 | L38: 112
A39: 11 | B39: 4579 | C39: 11 | D39: 4585 | E39: 21 | F39: 4604 | K39: 0 | L39: 112
A40: 11 | B40: 4697 | C40: 22 | D40: 4713 | E40: 23 | F40: 4721 | K40: 0 | L40: 122
A41: 11 | B41: 4815 | C41: 22 | D41: 4842 | E41: 23 | F41: 4852 | K41: 0 | L41: 122
A42: 11 | B42: 4949 | C42: 22 | D42: 4963 | E42: 23 | F42: 4968 | K42: 0 | L42: 122
A43: 11 | B43: 5069 | C43: 22 | D43: 5079 | E43: 23 | F43: 5083 | K43: 0 | L43: 122
A44: 11 | B44: 5175 | C44: 11 | D44: 5180 | E44: 21 | F44: 5190 | K44: 0 | L44: 112
A45: 11 | B45: 5334 | C45: 11 | D45: 5345 | E45: 21 | F45: 5368 | K45: 0 | L45: 112
A46: 11 | B46: 5532 | C46: 11 | D46: 5538 | E46: 21 | F46: 5561 | K46: 0 | L46: 112
A47: 11 | B47: 5737 | C47: 11 | D47: 5745 | E47: 21 | F47: 5754 | K47: 0 | L47: 112
A48: 11 | B48: 5862 | C48: 11 | D48: 5868 | E48: 21 | F48: 5877 | K48: 0 | L48: 112
A49: 11 | B49: 5978 | C49: 22 | D49: 5995 | E49: 23 | F49: 6005 | K49: 0 | L49: 122
A50: 11 | B50: 6100 | C50: 11 | D50: 6110 | E50: 21 | F50: 6131 | K50: 0 | L50: 112
A51: 11 | B51: 6348 | C51: 22 | D51: 6368 | E51: 23 | F51: 6381 | K51: 0 | L51: 122
A52: 11 | B52: 6476 | C52: 11 | D52: 6481 | E52: 21 | F52: 6491 | K52: 0 | L52: 112
A53: 11 | B53: 6611 | C53: 11 | D53: 6616 | E53: 12 | F53: 6622 | K53: 0 | L53: 111
A54: 11 | B54: 6718 | C54: 22 | D54: 6728 | E54: 23 | F54: 6738 | K54: 0 | L54: 122
A55: 11 | B55: 6831 | C55: 11 | D55: 6837 | E55: 21 | F55: 6851 | K55: 0 | L55: 112
A56: 11 | B56: 7002 | C56: 22 | D56: 7023 | E56: 23 | F56: 7033 | K56: 0 | L56: 122
A57: 11 | B57: 7129 | C57: 11 | D57: 7134 | E57: 21 | F57: 7145 | K57: 0 | L57: 112
A58: 11 | B58: 7243 | C58: 11 | D58: 7248 | E58: 21 | F58: 7274 | K58: 0 | L58: 112
A59: 11 | B59: 7437 | C59: 22 | D59: 7449 | E59: 14 | F59: 7464 | K59: 0 | L59: 121
A60: 11 | B60: 7558 | C60: 11 | D60: 7563 | E60: 12 | F60: 7568 | K60: 0 | L60: 111
A61: 11 | B61: 7663 | C61: 22 | D61: 7674 | E61: 23 | F61: 7679 | K61: 0 | L61: 122
A62: 11 | B62: 7776 | C62: 11 | D62: 7783 | E62: 21 | F62: 7795 | K62: 0 | L62: 112
A63: 11 | B63: 7896 | C63: 11 | D63: 7901 | E63: 12 | F63: 7907 | K63: 0 | L63: 111
A64: 11 | B64: 8002 | C64: 11 | D64: 8010 | E64: 21 | F64: 8020 | K64: 0 | L64: 112
A65: 11 | B65: 8113 | C65: 11 | D65: 8119 | E65: 12 | F65: 8125 | K65: 0 | L65: 111
A66: 11 | B66: 8219 | C66: 11 | D66: 8228 | E66: 21 | F66: 8238 | K66: 0 | L66: 112
A67: 11 | B67: 8353 | C67: 11 | D67: 8363 | E67: 21 | F67: 8387 | K67: 0 | L67: 112
A68: 11 | B68: 8520 | C68: 11 | D68: 8526 | E68: 21 | F68: 8538 | K68: 0 | L68: 112
A69: 11 | B69: 8633 | C69: 11 | D69: 8637 | E69: 21 | F69: 8648 | K69: 0 | L69: 112
A70: 11 | B70: 8806 | C70: 11 | D70: 8810 | E70: 21 | F70: 8820 | K70: 0 | L70: 112
A71: 11 | B71: 8929 | C71: 11 | D71: 8938 | E71: 21 | F71: 8958 | K71: 0 | L71: 112
A72: 11 | B72: 9145 | C72: 22 | D72: 9181 | E72: 23 | F72: 9196 | K72: 0 | L72: 122
A73: 11 | B73: 9290 | C73: 11 | D73: 9293 | E73: 21 | F73: 9304 | K73: 0 | L73: 112
A74: 11 | B74: 9466 | C74: 11 | D74: 9473 | E74: 12 | F74: 9480 | K74: 0 | L74: 111
A75: 11 | B75: 9572 | C75: 11 | D75: 9576 | E75: 21 | F75: 9585 | K75: 0 | L75: 112
A76: 11 | B76: 9691 | C76: 22 | D76: 9714 | E76: 23 | F76: 9724 | K76: 0 | L76: 122
A77: 11 | B77: 9822 | C77: 11 | D77: 9828 | E77: 12 | F77: 9836 | K77: 0 | L77: 111
A78: 11 | B78: 9931 | C78: 11 | D78: 9935 | E78: 21 | F78: 9955 | K78: 0 | L78: 112
A79: 11 | B79: 10046 | C79: 11 | D79: 10056 | E79: 21 | F79: 10075 | K79: 0 | L79: 112
A80: 11 | B80: 10216 | C80: 22 | D80: 10224 | E80: 23 | F80: 10233 | K80: 0 | L80: 122
A81: 11 | B81: 10339 | C81: 22 | D81: 10349 | E81: 23 | F81: 10362 | K81: 0 | L81: 122
A82: 11 | B82: 10458 | C82: 22 | D82: 10468 | E82: 23 | F82: 10478 | K82: 0 | L82: 122
A83: 11 | B83: 10576 | C83: 11 | D83: 10581 | E83: 21 | F83: 10604 | K83: 0 | L83: 112
A84: 11 | B84: 10714 | C84: 22 | D84: 10726 | E84: 23 | F84: 10731 | K84: 0 | L84: 122
A85: 11 | B85: 10826 | C85: 11 | D85: 10831 | E85: 21 | F85: 10861 | K85: 0 | L85: 112
A86: 22 | B86: 10988 | C86: 13 | D86: 10996 | E86: 23 | F86: 11027 | K86: 0 | L86: 212
A87: 22 | B87: 11147 | C87: 13 | D87: 11157 | E87: 23 | F87: 11170 | K87: 0 | L87: 212
A88: 11 | B88: 11262 | C88: 11 | D88: 11265 | E88: 21 | F88: 11286 | K88: 0 | L88: 112
A89: 11 | B89: 11381 | C89: 22 | D89: 11403 | E89: 23 | F89: 11412 | K89: 0 | L89: 122
A90: 11 | B90: 11507 | C90: 11 | D90: 11510 | E90: 21 | F90: 11519 | K90: 0 | L90: 112
A91: 11 | B91: 11609 | C91: 11 | D91: 11612 | E91: 21 | F91: 11626 | K91: 0 | L91: 112
A92: 11 | B92: 11714 | C92: 11 | D92: 11716 | E92: 12 | F92: 11722 | K92: 0 | L92: 111
A93: 11 | B93: 11816 | C93: 11 | D93: 11821 | E93: 21 | F93: 11830 | K93: 0 | L93: 112
A94: 11 | B94: 11921 | C94: 22 | D94: 11948 | E94: 23 | F94: 11958 | K94: 0 | L94: 122
A95: 11 | B95: 12050 | C95: 11 | D95: 12055 | E95: 12 | F95: 12060 | K95: 0 | L95: 111
A96: 11 | B96: 12155 | C96: 11 | D96: 12160 | E96: 21 | F96: 12181 | K96: 0 | L96: 112
A97: 11 | B97: 12285 | C97: 11 | D97: 12290 | E97: 21 | F97: 12316 | K97: 0 | L97: 112
A98: 11 | B98: 12428 | C98: 11 | D98: 12434 | E98: 21 | F98: 12448 | K98: 0 | L98: 112
A99: 22 | B99: 12702 | C99: 24 | D99: 12708 | E99: 23 | F99: 12717 | K99: 0 | L99: 222
A100: 11 | B100: 12814 | C100: 22 | D100: 12837 | E100: 23 | F100: 12846 | K100: 0 | L100: 122
A101: 11 | B101: 12952 | C101: 22 | D101: 12962 | E101: 23 | F101: 12971 | K101: 0 | L101: 122
A102: 11 | B102: 13062 | C102: 11 | D102: 13067 | E102: 21 | F102: 13077 | K102: 1 | L102: 112

Sheet !MB1893I.sha
A1: Report for:!MB1893I.sha
A2: Date: | B2: <date>
A3: Hen: | B3: <hen> | F3: Correct Sequence | G3: =Start!J2 -> 112 | P3: Total Sequences in Data | Q3: =4994-COUNTBLANK(L7:L5000) -> 123 | V3: Total Sequences in Block Data | W3: =COUNTA(L7:L27) -> 21 | AA3: Total Sequences in Block Data | AB3: =COUNTA(L28:L47) -> 20 | AF3: Total Sequences in Block Data | AG3: =COUNTA(L48:L68) -> 21 | AK3: Total Sequences in Block Data | AL3: =COUNTA(L69:L88) -> 20 | AP3: Total Sequences in Block Data | AQ3: =COUNTA(L89:L109) -> 21 | AU3: Total Sequences in Block Data | AV3: =COUNTA(L110:L129) -> 20
P4: Total Sequences in Summary | Q4: =SUM(O7:O14) -> 123 | V4: Total Sequences in Block Summary | W4: =SUM(U7:U14) -> 21 | AA4: Total Sequences in Block Summary | AB4: =SUM(Z7:Z14) -> 20 | AF4: Total Sequences in Block Summary | AG4: =SUM(AE7:AE14) -> 21 | AK4: Total Sequences in Block Summary | AL4: =SUM(AJ7:AJ14) -> 20 | AP4: Total Sequences in Block Summary | AQ4: =SUM(AO7:AO14) -> 21 | AU4: Total Sequences in Block Summary | AV4: =SUM(AT7:AT14) -> 20
T5: Block 1 | Y5: Block 2 | AD5: Block 3 | AI5: Block 4 | AN5: Block 5 | AS5: Block 6
A6: Sequence Component 1 | B6: Time 1 | C6: Sequence Component 2 | D6: Time 2 | E6: Sequence Component 3 | F6: Time 3 | G6: Sequence Component 4 | H6: Time 4 | I6: Sequence Component 5 | J6: Time 5 | K6: Correct? 0=No 1=Yes | L6: Sequence | N6: Frequency | P6: Relative Frequency | Q6: Variability | T6: Frequency | V6: Relative Frequency | W6: Variability | Y6: Frequency | AA6: Relative Frequency | AB6: Variability | AD6: Frequency | AF6: Relative Frequency | AG6: Variability | AI6: Frequency | AK6: Relative Frequency | AL6: Variability | AN6: Frequency | AP6: Relative Frequency | AQ6: Variability | AS6: Frequency | AU6: Relative Frequency | AV6: Variability
A7: 22 | B7: 107 | C7: 24 | D7: 112 | E7: 23 | F7: 118 | K7: 0 | L7: 222 | N7: 111 | O7: =COUNTIF($L$7:$L$500,N7) -> 8 | P7: =O7/$Q$4 -> 0.06504065041 | Q7: =IF(P7=0,0,(P7*((LOG(P7))/LOG(2)))) -> -0.2564237077 | T7: =N7 -> 111 | U7: =COUNTIF(L7:L27,T7) -> 1 | V7: =U7/(W4-U8) -> 0.05263157895 | W7: =IF(V7=0,0,(V7*((LOG(V7))/LOG(2)))) -> -0.2235751323 | Y7: =N7 -> 111 | Z7: =COUNTIF(L28:L47,Y7) -> 1 | AA7: =Z7/(AB4-Z8) -> 0.08333333333 | AB7: =IF(AA7=0,0,(AA7*((LOG(AA7))/LOG(2)))) -> -0.2987468751 | AD7: =N7 -> 111 | AE7: =COUNTIF(L48:L68,AD7) -> 0 | AF7: =AE7/(AG4-AE8) -> 0 | AG7: =IF(AF7=0,0,(AF7*((LOG(AF7))/LOG(2)))) -> 0 | AI7: =N7 -> 111 | AJ7: =COUNTIF(L69:L88,AI7) -> 4 | AK7: =AJ7/(AL4-AJ8) -> 0.2857142857 | AL7: =IF(AK7=0,0,(AK7*((LOG(AK7))/LOG(2)))) -> -0.5163871206 | AN7: =N7 -> 111 | AO7: =COUNTIF(L89:L109,AN7) -> 2 | AP7: =AO7/(AQ4-AO8) -> 0.1333333333 | AQ7: =IF(AP7=0,0,(AP7*((LOG(AP7))/LOG(2)))) -> -0.3875854127 | AS7: =N7 -> 111 | AT7: =COUNTIF(L110:L129,AS7) -> 0 | AU7: =AT7/(AV4-AT8) -> 0 | AV7: =IF(AU7=0,0,(AU7*((LOG(AU7))/LOG(2)))) -> 0
A8: 11 | B8: 215 | C8: 22 | D8: 225 | E8: 23 | F8: 230 | K8: 0 | L8: 122 | N8: 112 | O8: =COUNTIF($L$7:$L$500,N8) -> 40 | P8: =O8/$Q$4 -> 0.325203252 | Q8: =IF(P8=0,0,(P8*((LOG(P8))/LOG(2)))) -> -0.5270199709 | T8: =N8 -> 112 | U8: =COUNTIF(L7:L27,T8) -> 2 | Y8: =N8 -> 112 | Z8: =COUNTIF(L28:L47,Y8) -> 8 | AD8: =N8 -> 112 | AE8: =COUNTIF(L48:L68,AD8) -> 7 | AI8: =N8 -> 112 | AJ8: =COUNTIF(L69:L88,AI8) -> 6 | AN8: =N8 -> 112 | AO8: =COUNTIF(L89:L109,AN8) -> 6 | AS8: =N8 -> 112 | AT8: =COUNTIF(L110:L129,AS8) -> 11
A9: 11 | B9: 325 | C9: 22 | D9: 334 | E9: 23 | F9: 338 | K9: 0 | L9: 122 | N9: 121 | O9: =COUNTIF($L$7:$L$500,N9) -> 2 | P9: =O9/$Q$4 -> 0.0162601626 | Q9: =IF(P9=0,0,(P9*((LOG(P9))/LOG(2)))) -> -0.09662625212 | T9: =N9 -> 121 | U9: =COUNTIF(L7:L27,T9) -> 1 | V9: =U9/(W4-U8) -> 0.05263157895 | W9: =IF(V9=0,0,(V9*((LOG(V9))/LOG(2)))) -> -0.2235751323 | Y9: =N9 -> 121 | Z9: =COUNTIF(L28:L47,Y9) -> 0 | AA9: =Z9/(AB4-Z8) -> 0 | AB9: =IF(AA9=0,0,(AA9*((LOG(AA9))/LOG(2)))) -> 0 | AD9: =N9 -> 121 | AE9: =COUNTIF(L48:L68,AD9) -> 0 | AF9: =AE9/(AG4-AE8) -> 0 | AG9: =IF(AF9=0,0,(AF9*((LOG(AF9))/LOG(2)))) -> 0 | AI9: =N9 -> 121 | AJ9: =COUNTIF(L69:L88,AI9) -> 0 | AK9: =AJ9/(AL4-AJ8) -> 0 | AL9: =IF(AK9=0,0,(AK9*((LOG(AK9))/LOG(2)))) -> 0 | AN9: =N9 -> 121 | AO9: =COUNTIF(L89:L109,AN9) -> 0 | AP9: =AO9/(AQ4-AO8) -> 0 | AQ9: =IF(AP9=0,0,(AP9*((LOG(AP9))/LOG(2)))) -> 0 | AS9: =N9 -> 121 | AT9: =COUNTIF(L110:L129,AS9) -> 1 | AU9: =AT9/(AV4-AT8) -> 0.1111111111 | AV9: =IF(AU9=0,0,(AU9*((LOG(AU9))/LOG(2)))) -> -0.352213889
A10: 11 | B10: 433 | C10: 22 | D10: 440 | E10: 14 | F10: 452 | K10: 0 | L10: 121 | N10: 122 | O10: =COUNTIF($L$7:$L$500,N10) -> 66 | P10: =O10/$Q$4 -> 0.5365853659 | Q10: =IF(P10=0,0,(P10*((LOG(P10))/LOG(2)))) -> -0.4819182559 | T10: =N10 -> 122 | U10: =COUNTIF(L7:L27,T10) -> 14 | V10: =U10/(W4-U8) -> 0.7368421053 | W10: =IF(V10=0,0,(V10*((LOG(V10))/LOG(2)))) -> -0.3246324358 | Y10: =N10 -> 122 | Z10: =COUNTIF(L28:L47,Y10) -> 10 | AA10: =Z10/(AB4-Z8) -> 0.8333333333 | AB10: =IF(AA10=0,0,(AA10*((LOG(AA10))/LOG(2)))) -> -0.2191953382 | AD10: =N10 -> 122 | AE10: =COUNTIF(L48:L68,AD10) -> 12 | AF10: =AE10/(AG4-AE8) -> 0.8571428571 | AG10: =IF(AF10=0,0,(AF10*((LOG(AF10))/LOG(2)))) -> -0.1906220754 | AI10: =N10 -> 122 | AJ10: =COUNTIF(L69:L88,AI10) -> 10 | AK10: =AJ10/(AL4-AJ8) -> 0.7142857143 | AL10: =IF(AK10=0,0,(AK10*((LOG(AK10))/LOG(2)))) -> -0.346733448 | AN10: =N10 -> 122 | AO10: =COUNTIF(L89:L109,AN10) -> 12 | AP10: =AO10/(AQ4-AO8) -> 0.8 | AQ10: =IF(AP10=0,0,(AP10*((LOG(AP10))/LOG(2)))) -> -0.2575424759 | AS10: =N10 -> 122 | AT10: =COUNTIF(L110:L129,AS10) -> 8 | AU10: =AT10/(AV4-AT8) -> 0.8888888889 | AV10: =IF(AU10=0,0,(AU10*((LOG(AU10))/LOG(2)))) -> -0.1510444457
A11: 11 | B11: 546 | C11: 22 | D11: 559 | E11: 23 | F11: 566 | K11: 0 | L11: 122 | N11: 211 | O11: =COUNTIF($L$7:$L$500,N11) -> 0 | P11: =O11/$Q$4 -> 0 | Q11: =IF(P11=0,0,(P11*((LOG(P11))/LOG(2)))) -> 0 | T11: =N11 -> 211 | U11: =COUNTIF(L7:L27,T11) -> 0 | V11: =U11/(W4-U8) -> 0 | W11: =IF(V11=0,0,(V11*((LOG(V11))/LOG(2)))) -> 0 | Y11: =N11 -> 211 | Z11: =COUNTIF(L28:L47,Y11) -> 0 | AA11: =Z11/(AB4-Z8) -> 0 | AB11: =IF(AA11=0,0,(AA11*((LOG(AA11))/LOG(2)))) -> 0 | AD11: =N11 -> 211 | AE11: =COUNTIF(L48:L68,AD11) -> 0 | AF11: =AE11/(AG4-AE8) -> 0 | AG11: =IF(AF11=0,0,(AF11*((LOG(AF11))/LOG(2)))) -> 0 | AI11: =N11 -> 211 | AJ11: =COUNTIF(L69:L88,AI11) -> 0 | AK11: =AJ11/(AL4-AJ8) -> 0 | AL11: =IF(AK11=0,0,(AK11*((LOG(AK11))/LOG(2)))) -> 0 | AN11: =N11 -> 211 | AO11: =COUNTIF(L89:L109,AN11) -> 0 | AP11: =AO11/(AQ4-AO8) -> 0 | AQ11: =IF(AP11=0,0,(AP11*((LOG(AP11))/LOG(2)))) -> 0 | AS11: =N11 -> 211 | AT11: =COUNTIF(L110:L129,AS11) -> 0 | AU11: =AT11/(AV4-AT8) -> 0 | AV11: =IF(AU11=0,0,(AU11*((LOG(AU11))/LOG(2)))) -> 0
A12: 22 | B12: 712 | C12: 24 | D12: 720 | E12: 23 | F12: 726 | K12: 0 | L12: 222 | N12: 212 | O12: =COUNTIF($L$7:$L$500,N12) -> 0 | P12: =O12/$Q$4 -> 0 | Q12: =IF(P12=0,0,(P12*((LOG(P12))/LOG(2)))) -> 0 | T12: =N12 -> 212 | U12: =COUNTIF(L7:L27,T12) -> 0 | V12: =U12/(W4-U8) -> 0 | W12: =IF(V12=0,0,(V12*((LOG(V12))/LOG(2)))) -> 0 | Y12: =N12 -> 212 | Z12: =COUNTIF(L28:L47,Y12) -> 0 | AA12: =Z12/(AB4-Z8) -> 0 | AB12: =IF(AA12=0,0,(AA12*((LOG(AA12))/LOG(2)))) -> 0 | AD12: =N12 -> 212 | AE12: =COUNTIF(L48:L68,AD12) -> 0 | AF12: =AE12/(AG4-AE8) -> 0 | AG12: =IF(AF12=0,0,(AF12*((LOG(AF12))/LOG(2)))) -> 0 | AI12: =N12 -> 212 | AJ12: =COUNTIF(L69:L88,AI12) -> 0 | AK12: =AJ12/(AL4-AJ8) -> 0 | AL12: =IF(AK12=0,0,(AK12*((LOG(AK12))/LOG(2)))) -> 0 | AN12: =N12 -> 212 | AO12: =COUNTIF(L89:L109,AN12) -> 0 | AP12: =AO12/(AQ4-AO8) -> 0 | AQ12: =IF(AP12=0,0,(AP12*((LOG(AP12))/LOG(2)))) -> 0 | AS12: =N12 -> 212 | AT12: =COUNTIF(L110:L129,AS12) -> 0 | AU12: =AT12/(AV4-AT8) -> 0 | AV12: =IF(AU12=0,0,(AU12*((LOG(AU12))/LOG(2)))) -> 0
A13: 22 | B13: 830 | C13: 24 | D13: 835 | E13: 23 | F13: 842 | K13: 0 | L13: 222 | N13: 221 | O13: =COUNTIF($L$7:$L$500,N13) -> 0 | P13: =O13/$Q$4 -> 0 | Q13: =IF(P13=0,0,(P13*((LOG(P13))/LOG(2)))) -> 0 | T13: =N13 -> 221 | U13: =COUNTIF(L7:L27,T13) -> 0 | V13: =U13/(W4-U8) -> 0 | W13: =IF(V13=0,0,(V13*((LOG(V13))/LOG(2)))) -> 0 | Y13: =N13 -> 221 | Z13: =COUNTIF(L28:L47,Y13) -> 0 | AA13: =Z13/(AB4-Z8) -> 0 | AB13: =IF(AA13=0,0,(AA13*((LOG(AA13))/LOG(2)))) -> 0 | AD13: =N13 -> 221 | AE13: =COUNTIF(L48:L68,AD13) -> 0 | AF13: =AE13/(AG4-AE8) -> 0 | AG13: =IF(AF13=0,0,(AF13*((LOG(AF13))/LOG(2)))) -> 0 | AI13: =N13 -> 221 | AJ13: =COUNTIF(L69:L88,AI13) -> 0 | AK13: =AJ13/(AL4-AJ8) -> 0 | AL13: =IF(AK13=0,0,(AK13*((LOG(AK13))/LOG(2)))) -> 0 | AN13: =N13 -> 221 | AO13: =COUNTIF(L89:L109,AN13) -> 0 | AP13: =AO13/(AQ4-AO8) -> 0 | AQ13: =IF(AP13=0,0,(AP13*((LOG(AP13))/LOG(2)))) -> 0 | AS13: =N13 -> 221 | AT13: =COUNTIF(L110:L129,AS13) -> 0 | AU13: =AT13/(AV4-AT8) -> 0 | AV13: =IF(AU13=0,0,(AU13*((LOG(AU13))/LOG(2)))) -> 0
A14: 11 | B14: 940 | C14: 22 | D14: 957 | E14: 23 | F14: 973 | K14: 0 | L14: 122 | N14: 222 | O14: =COUNTIF($L$7:$L$500,N14) -> 7 | P14: =O14/$Q$4 -> 0.05691056911 | Q14: =IF(P14=0,0,(P14*((LOG(P14))/LOG(2)))) -> -0.2353342852 | T14: =N14 -> 222 | U14: =COUNTIF(L7:L27,T14) -> 3 | V14: =U14/(W4-U8) -> 0.1578947368 | W14: =IF(V14=0,0,(V14*((LOG(V14))/LOG(2)))) -> -0.4204681599 | Y14: =N14 -> 222 | Z14: =COUNTIF(L28:L47,Y14) -> 1 | AA14: =Z14/(AB4-Z8) -> 0.08333333333 | AB14: =IF(AA14=0,0,(AA14*((LOG(AA14))/LOG(2)))) -> -0.2987468751 | AD14: =N14 -> 222 | AE14: =COUNTIF(L48:L68,AD14) -> 2 | AF14: =AE14/(AG4-AE8) -> 0.1428571429 | AG14: =IF(AF14=0,0,(AF14*((LOG(AF14))/LOG(2)))) -> -0.4010507032 | AI14: =N14 -> 222 | AJ14: =COUNTIF(L69:L88,AI14) -> 0 | AK14: =AJ14/(AL4-AJ8) -> 0 | AL14: =IF(AK14=0,0,(AK14*((LOG(AK14))/LOG(2)))) -> 0 | AN14: =N14 -> 222 | AO14: =COUNTIF(L89:L109,AN14) -> 1 | AP14: =AO14/(AQ4-AO8) -> 0.06666666667 | AQ14: =IF(AP14=0,0,(AP14*((LOG(AP14))/LOG(2)))) -> -0.260459373 | AS14: =N14 -> 222 | AT14: =COUNTIF(L110:L129,AS14) -> 0 | AU14: =AT14/(AV4-AT8) -> 0 | AV14: =IF(AU14=0,0,(AU14*((LOG(AU14))/LOG(2)))) -> 0
A15: 11 | B15: 1066 | C15: 11 | D15: 1072 | E15: 21 | F15: 1086 | K15: 0 | L15: 112 | P15: =SUM(P7:P14) -> 1 | Q15: =-SUM(Q7:Q14) -> 1.597322472 | V15: =SUM(V7:V14) -> 1 | W15: =-SUM(W7:W14) -> 1.19225086 | AA15: =SUM(AA7:AA14) -> 1 | AB15: =-SUM(AB7:AB14) -> 0.8166890883 | AF15: =SUM(AF7:AF14) -> 1 | AG15: =-SUM(AG7:AG14) -> 0.5916727786 | AK15: =SUM(AK7:AK14) -> 1 | AL15: =-SUM(AL7:AL14) -> 0.8631205686 | AP15: =SUM(AP7:AP14) -> 1 | AQ15: =-SUM(AQ7:AQ14) -> 0.9055872617 | AU15: =SUM(AU7:AU14) -> 1 | AV15: =-SUM(AV7:AV14) -> 0.5032583348
A16: 11 | B16: 1314 | C16: 22 | D16: 1323 | E16: 23 | F16: 1328 | K16: 0 | L16: 122 | P16: U= | Q16: =Q15/(LOG(Q4)/LOG(2)) -> 0.2300783773 | V16: U1= | W16: =W15/(LOG(W4)/LOG(2)) -> 0.2714400499 | AA16: U2= | AB16: =AB15/(LOG(AB4)/LOG(2)) -> 0.188964062 | AF16: U3= | AG16: =AG15/(LOG(AG4)/LOG(2)) -> 0.1347062886 | AK16: U4= | AL16: =AL15/(LOG(AL4)/LOG(2)) -> 0.1997072949 | AP16: U5= | AQ16: =AQ15/(LOG(AQ4)/LOG(2)) -> 0.2061752771 | AU16: U6= | AV16: =AV15/(LOG(AV4)/LOG(2)) -> 0.1164430143
A17: 11 | B17: 1424 | C17: 22 | D17: 1448 | E17: 23 | F17: 1461 | K17: 0 | L17: 122
A18: 11 | B18: 1557 | C18: 22 | D18: 1568 | E18: 23 | F18: 1574 | K18: 0 | L18: 122
A19: 11 | B19: 1673 | C19: 11 | D19: 1676 | E19: 12 | F19: 1678 | K19: 0 | L19: 111 | N19: Total Target Seq
A20: 11 | B20: 1777 | C20: 11 | D20: 1783 | E20: 21 | F20: 1796 | K20: 0 | L20: 112 | N20: =COUNTIF(L7:L129,G3) -> 40 | P20: 21 | Q20: 20 | R20: 21 | S20: 20 | T20: 21 | U20: 20
A21: 11 | B21: 1932 | C21: 22 | D21: 1940 | E21: 23 | F21: 1944 | K21: 0 | L21: 122 | P21: % of reinforcement given in 6 equal intervals based on number of trials
A22: 11 | B22: 2039 | C22: 22 | D22: 2057 | E22: 23 | F22: 2066 | K22: 0 | L22: 122 | P22: %_1 | Q22: %_2 | R22: %_3 | S22: %_4 | T22: %_5 | U22: %_6
A23: 11 | B23: 2164 | C23: 22 | D23: 2175 | E23: 23 | F23: 2183 | K23: 0 | L23: 122 | O23: target sequence | P23: =$G$3 -> 112 | Q23: =$G$3 -> 112 | R23: =$G$3 -> 112 | S23: =$G$3 -> 112 | T23: =$G$3 -> 112 | U23: =$G$3 -> 112
A24: 11 | B24: 2279 | C24: 22 | D24: 2289 | E24: 23 | F24: 2294 | K24: 0 | L24: 122 | O24: total reinforcement | P24: =U8 -> 2 | Q24: =Z8 -> 8 | R24: =AE8 -> 7 | S24: =AJ8 -> 6 | T24: =AO8 -> 6 | U24: =AT8 -> 11
A25: 11 | B25: 2390 | C25: 22 | D25: 2404 | E25: 23 | F25: 2434 | K25: 0 | L25: 122 | O25: % target
A26: 11 | B26: 2527 | C26: 22 | D26: 2574 | E26: 23 | F26: 2590 | K26: 0 | L26: 122 | O26: CCRF
A27: 11 | B27: 2689 | C27: 22 | D27: 2701 | E27: 23 | F27: 2706 | K27: 0 | L27: 122 | O27: % CCRf
A28: 11 | B28: 2803 | C28: 22 | D28: 2814 | E28: 23 | F28: 2819 | K28: 0 | L28: 122 | O28: average response rate | P28: =F27/P20 -> 128.8571429 | Q28: =(F47-F27)/Q20 -> 134.8 | R28: =(F68-F47)/R20 -> 130.7142857 | S28: =(F88-F68)/S20 -> 121.25 | T28: =(F109-F88)/T20 -> 126.7619048 | U28: =(F129-F109)/U20 -> 133.85
A29: 22 | B29: 2923 | C29: 24 | D29: 2928 | E29: 23 | F29: 2935 | K29: 0 | L29: 222
A30: 11 | B30: 3032 | C30: 22 | D30: 3052 | E30: 23 | F30: 3061 | K30: 0 | L30: 122
A31: 11 | B31: 3153 | C31: 11 | D31: 3155 | E31: 21 | F31: 3169 | K31: 0 | L31: 112
A32: 11 | B32: 3355 | C32: 11 | D32: 3360 | E32: 21 | F32: 3370 | K32: 0 | L32: 112
A33: 11 | B33: 3534 | C33: 22 | D33: 3583 | E33: 23 | F33: 3593 | K33: 0 | L33: 122
A34: 11 | B34: 3687 | C34: 11 | D34: 3692 | E34: 21 | F34: 3702 | K34: 0 | L34: 112
A35: 11 | B35: 3803 | C35: 22 | D35: 3849 | E35: 23 | F35: 3860 | K35: 0 | L35: 122
A36: 11 | B36: 3952 | C36: 11 | D36: 3957 | E36: 21 | F36: 3967 | K36: 0 | L36: 112
A37: 11 | B37: 4077 | C37: 22 | D37: 4090 | E37: 23 | F37: 4099 | K37: 0 | L37: 122
A38: 11 | B38: 4191 | C38: 11 | D38: 4196 | E38: 12 | F38: 4202 | K38: 0 | L38: 111
A39: 11 | B39: 4298 | C39: 22 | D39: 4316 | E39: 23 | F39: 4323 | K39: 0 | L39: 122
A40: 11 | B40: 4420 | C40: 22 | D40: 4433 | E40: 23 | F40: 4438 | K40: 0 | L40: 122
A41: 11 | B41: 4532 | C41: 11 | D41: 4540 | E41: 21 | F41: 4550 | K41: 0 | L41: 112
A42: 11 | B42: 4666 | C42: 22 | D42: 4676 | E42: 23 | F42: 4687 | K42: 0 | L42: 122
A43: 11 | B43: 4782 | C43: 11 | D43: 4786 | E43: 21 | F43: 4802 | K43: 0 | L43: 112
A44: 11 | B44: 4931 | C44: 11 | D44: 4941 | E44: 21 | F44: 4980 | K44: 0 | L44: 112
A45: 11 | B45: 5106 | C45: 22 | D45: 5122 | E45: 23 | F45: 5138 | K45: 0 | L45: 122
A46: 11 | B46: 5233 | C46: 11 | D46: 5242 | E46: 21 | F46: 5278 | K46: 0 | L46: 112
A47: 11 | B47: 5385 | C47: 22 | D47: 5397 | E47: 23 | F47: 5402 | K47: 0 | L47: 122
A48: 11 | B48: 5494 | C48: 11 | D48: 5516 | E48: 21 | F48: 5529 | K48: 0 | L48: 112
A49: 11 | B49: 5683 | C49: 22 | D49: 5693 | E49: 23 | F49: 5734 | K49: 0 | L49: 122
A50: 11 | B50: 5837 | C50: 22 | D50: 5846 | E50: 23 | F50: 5850 | K50: 0 | L50: 122
A51: 11 | B51: 5943 | C51: 11 | D51: 5948 | E51: 21 | F51: 5961 | K51: 0 | L51: 112
A52: 11 | B52: 6058 | C52: 11 | D52: 6065 | E52: 21 | F52: 6076 | K52: 0 | L52: 112
A53: 11 | B53: 6189 | C53: 22 | D53: 6207 | E53: 23 | F53: 6219 | K53: 0 | L53: 122
A54: 11 | B54: 6312 | C54: 11 | D54: 6316 | E54: 21 | F54: 6333 | K54: 0 | L54: 112
A55: 11 | B55: 6518 | C55: 22 | D55: 6528 | E55: 23 | F55: 6536 | K55: 0 | L55: 122
A56: 11 | B56: 6631 | C56: 22 | D56: 6642 | E56: 23 | F56: 6650 | K56: 0 | L56: 122
A57: 11 | B57: 6749 | C57: 22 | D57: 6761 | E57: 23 | F57: 6771 | K57: 0 | L57: 122
A58: 11 | B58: 6876 | C58: 22 | D58: 6886 | E58: 23 | F58: 6894 | K58: 0 | L58: 122
A59: 22 | B59: 6993 | C59: 24 | D59: 6998 | E59: 23 | F59: 7002 | K59: 0 | L59: 222
A60: 11 | B60: 7100 | C60: 22 | D60: 7113 | E60: 23 | F60: 7124 | K60: 0 | L60: 122
A61: 22 | B61: 7225 | C61: 24 | D61: 7235 | E61: 23 | F61: 7245 | K61: 0 | L61: 222
A62: 11 | B62: 7344 | C62: 11 | D62: 7349 | E62: 21 | F62: 7360 | K62: 0 | L62: 112
A63: 11 | B63: 7468 | C63: 22 | D63: 7478 | E63: 23 | F63: 7486 | K63: 0 | L63: 122
A64: 11 | B64: 7580 | C64: 11 | D64: 7584 | E64: 21 | F64: 7595 | K64: 0 | L64: 112
A65: 11 | B65: 7729 | C65: 22 | D65: 7740 | E65: 23 | F65: 7747 | K65: 0 | L65: 122
A66: 11 | B66: 7843 | C66: 22 | D66: 7865 | E66: 23 | F66: 7877 | K66: 0 | L66: 122
A67: 11 | B67: 7972 | C67: 11 | D67: 7976 | E67: 21 | F67: 7986 | K67: 0 | L67: 112
A68: 11 | B68: 8128 | C68: 22 | D68: 8138 | E68: 23 | F68: 8147 | K68: 0 | L68: 122
A69: 11 | B69: 8241 | C69: 11 | D69: 8246 | E69: 12 | F69: 8251 | K69: 0 | L69: 111
A70: 11 | B70: 8346 | C70: 22 | D70: 8356 | E70: 23 | F70: 8367 | K70: 0 | L70: 122
A71: 11 | B71: 8468 | C71: 11 | D71: 8473 | E71: 12 | F71: 8477 | K71: 0 | L71: 111
A72: 11 | B72: 8576 | C72: 22 | D72: 8585 | E72: 23 | F72: 8591 | K72: 0 | L72: 122
A73: 11 | B73: 8684 | C73: 11 | D73: 8688 | E73: 21 | F73: 8701 | K73: 0 | L73: 112
A74: 11 | B74: 8823 | C74: 11 | D74: 8827 | E74: 21 | F74: 8837 | K74: 0 | L74: 112
A75: 11 | B75: 8936 | C75: 22 | D75: 8945 | E75: 23 | F75: 8958 | K75: 0 | L75: 122
A76: 11 | B76: 9053 | C76: 11 | D76: 9061 | E76: 12 | F76: 9065 | K76: 0 | L76: 111
A77: 11 | B77: 9160 | C77: 22 | D77: 9174 | E77: 23 | F77: 9180 | K77: 0 | L77: 122
A78: 11 | B78: 9276 | C78: 11 | D78: 9283 | E78: 21 | F78: 9291 | K78: 0 | L78: 112
A79: 11 | B79: 9412 | C79: 22 | D79: 9421 | E79: 23 | F79: 9430 | K79: 0 | L79: 122
A80: 11 | B80: 9522 | C80: 11 | D80: 9527 | E80: 21 | F80: 9548 | K80: 0 | L80: 112
A81: 11 | B81: 9648 | C81: 22 | D81: 9662 | E81: 23 | F81: 9673 | K81: 0 | L81: 122
A82: 11 | B82: 9768 | C82: 11 | D82: 9773 | E82: 12 | F82: 9778 | K82: 0 | L82: 111
A83: 11 | B83: 9875 | C83: 11 | D83: 9882 | E83: 21 | F83: 9892 | K83: 0 | L83: 112
A84: 11 | B84: 10030 | C84: 22 | D84: 10038 | E84: 23 | F84: 10049 | K84: 0 | L84: 122
A85: 11 | B85: 10144 | C85: 11 | D85: 10149 | E85: 21 | F85: 10176 | K85: 0 | L85: 112
A86: 11 | B86: 10301 | C86: 22 | D86: 10310 | E86: 23 | F86: 10318 | K86: 0 | L86: 122
A87: 11 | B87: 10413 | C87: 22 | D87: 10440 | E87: 23 | F87: 10454 | K87: 0 | L87: 122
A88: 11 | B88: 10546 | C88: 22 | D88: 10562 | E88: 23 | F88: 10572 | K88: 0 | L88: 122
A89: 11 | B89: 10667 | C89: 11 | D89: 10671 | E89: 21 | F89: 10706 | K89: 0 | L89: 112
A90: 11 | B90: 10798 | C90: 22 | D90: 10811 | E90: 23 | F90: 10832 | K90: 0 | L90: 122
A91: 11 | B91: 10927 | C91: 11 | D91: 10934 | E91: 21 | F91: 10946 | K91: 0 | L91: 112
A92: 11 | B92: 11055 | C92: 22 | D92: 11064 | E92: 23 | F92: 11070 | K92: 0 | L92: 122
A93: 11 | B93: 11166 | C93: 22 | D93: 11178 | E93: 23 | F93: 11189 | K93: 0 | L93: 122
A94: 11 | B94: 11283 | C94: 22 | D94: 11293 | E94: 23 | F94: 11300 | K94: 0 | L94: 122
A95: 11 | B95: 11396 | C95: 22 | D95: 11405 | E95: 23 | F95: 11415 | K95: 0 | L95: 122
A96: 11 | B96: 11510 | C96: 11 | D96: 11516 | E96: 21 | F96: 11526 | K96: 0 | L96: 112
A97: 11 | B97: 11638 | C97: 22 | D97: 11652 | E97: 23 | F97: 11663 | K97: 0 | L97: 122
A98: 11 | B98: 11756 | C98: 11 | D98: 11758 | E98: 12 | F98: 11764 | K98: 0 | L98: 111
A99: 11 | B99: 11862 | C99: 22 | D99: 11878 | E99: 23 | F99: 11883 | K99: 0 | L99: 122
A100: 11 | B100: 11978 | C100: 11 | D100: 11984 | E100: 21 | F100: 11993 | K100: 0 | L100: 112
A101: 11 | B101: 12092 | C101: 22 | D101: 12145 | E101: 23 | F101: 12157 | K101: 0 | L101: 122
A102: 11 | B102: 12257 | C102: 22 | D102: 12281 | E102: 23 | F102: 12301 | K102: 0 | L102: 122
A103: 11 | B103: 12393 | C103: 11 | D103: 12397 | E103: 21 | F103: 12407 | K103: 0 | L103: 112
A104: 11 | B104: 12624 | C104: 22 | D104: 12642 | E104: 23 | F104: 12653 | K104: 0 | L104: 122
A105: 22 | B105: 12763 | C105: 24 | D105: 12772 | E105: 23 | F105: 12795 | K105: 0 | L105: 222
A106: 11 | B106: 12890 | C106: 22 | D106: 12902 | E106: 23 | F106: 12912 | K106: 0 | L106: 122
A107: 11 | B107: 13007 | C107: 11 | D107: 13011 | E107: 12 | F107: 13016 | K107: 0 | L107: 111
A108: 11 | B108: 13111 | C108: 22 | D108: 13121 | E108: 23 | F108: 13127 | K108: 0 | L108: 122
A109: 11 | B109: 13219 | C109: 11 | D109: 13223 | E109: 21 | F109: 13234 | K109: 0 | L109: 112
A110: 11 | B110: 13388 | C110: 11 | D110: 13394 | E110: 21 | F110: 13410 | K110: 0 | L110: 112
A111: 11 | B111: 13547 | C111: 22 | D111: 13557 | E111: 23 | F111: 13563 | K111: 0 | L111: 122
A112: 11 | B112: 13659 | C112: 11 | D112: 13664 | E112: 21 | F112: 13685 | K112: 0 | L112: 112
A113: 11 | B113: 13778 | C113: 22 | D113: 13810 | E113: 23 | F113: 13824 | K113: 0 | L113: 122
A114: 11 | B114: 13916 | C114: 11 | D114: 13921 | E114: 21 | F114: 13931 | K114: 0 | L114: 112
A115: 11 | B115: 14055 | C115: 22 | D115: 14076 | E115: 23 | F115: 14091 | K115: 0 | L115: 122
A116: 11 | B116: 14187 | C116: 11 | D116: 14190 | E116: 21 | F116: 14203 | K116: 0 | L116: 112
A117: 11 | B117: 14316 | C117: 22 | D117: 14329 | E117: 14 | F117: 14345 | K117: 0 | L117: 121
A118: 11 | B118: 14441 | C118: 11 | D118: 14445 | E118: 21 | F118: 14462 | K118: 0 | L118: 112
A119: 11 | B119: 14597 | C119: 11 | D119: 14601 | E119: 21 | F119: 14609 | K119: 0 | L119: 112
A120: 11 | B120: 14714 | C120: 22 | D120: 14725 | E120: 23 | F120: 14752 | K120: 0 | L120: 122
A121: 11 | B121: 14848 | C121: 11 | D121: 14853 | E121: 21 | F121: 14862 | K121: 0 | L121: 112
A122: 11 | B122: 14964 | C122: 11 | D122: 14969 | E122: 21 | F122: 14994 | K122: 0 | L122: 112
A123: 11 | B123: 15131 | C123: 22 | D123: 15141 | E123: 23 | F123: 15149 | K123: 0 | L123: 122
A124: 11 | B124: 15250 | C124: 22 | D124: 15287 | E124: 23 | F124: 15300 | K124: 0 | L124: 122
A125: 11 | B125: 15393 | C125: 11 | D125: 15399 | E125: 21 | F125: 15409 | K125: 0 | L125: 112
A126: 11 | B126: 15521 | C126: 22 | D126: 15536 | E126: 23 | F126: 15544 | K126: 0 | L126: 122
A127: 11 | B127: 15640 | C127: 22 | D127: 15666 | E127: 23 | F127: 15676 | K127: 0 | L127: 122
A128: 11 | B128: 15772 | C128: 11 | D128: 15774 | E128: 21 | F128: 15784 | K128: 0 | L128: 112
A129: 11 | B129: 15875 | C129: 11 | D129: 15882 | E129: 21 | F129: 15911 | K129: 1 | L129: 112

Sheet !MB19A3I.sha
A1: Report for:!MB19A3I.sha
A2: Date: | B2: <date>
A3: Hen: | B3: <hen> | F3: Correct Sequence | G3: =Start!J2 -> 112 | P3: Total Sequences in Data | Q3: =4994-COUNTBLANK(L7:L5000) -> 115 | V3: Total Sequences in Block Data | W3: =COUNTA(L7:L25) -> 19 | AA3: Total Sequences in Block Data | AB3: =COUNTA(L26:L44) -> 19 | AF3: Total Sequences in Block Data | AG3: =COUNTA(L45:L64) -> 20 | AK3: Total Sequences in Block Data | AL3: =COUNTA(L65:L83) -> 19 | AP3: Total Sequences in Block Data | AQ3: =COUNTA(L84:L102) -> 19 | AU3: Total Sequences in Block Data | AV3: =COUNTA(L103:L121) -> 19
P4: Total Sequences in Summary | Q4: =SUM(O7:O14) -> 115 | V4: Total Sequences in Block Summary | W4: =SUM(U7:U14) -> 19 | AA4: Total Sequences in Block Summary | AB4: =SUM(Z7:Z14) -> 19 | AF4: Total Sequences in Block Summary | AG4: =SUM(AE7:AE14) -> 20 | AK4: Total Sequences in Block Summary | AL4: =SUM(AJ7:AJ14) -> 19 | AP4: Total Sequences in Block Summary | AQ4: =SUM(AO7:AO14) -> 19 | AU4: Total Sequences in Block Summary | AV4: =SUM(AT7:AT14) -> 19
T5: Block 1 | Y5: Block 2 | AD5: Block 3 | AI5: Block 4 | AN5: Block 5 | AS5: Block 6
A6: Sequence Component 1 | B6: Time 1 | C6: Sequence Component 2 | D6: Time 2 | E6: Sequence Component 3 | F6: Time 3 | G6: Sequence Component 4 | H6: Time 4 | I6: Sequence Component 5 | J6: Time 5 | K6: Correct? 0=No 1=Yes | L6: Sequence | N6: Frequency | P6: Relative Frequency | Q6: Variability | T6: Frequency | V6: Relative Frequency | W6: Variability | Y6: Frequency | AA6: Relative Frequency | AB6: Variability | AD6: Frequency | AF6: Relative Frequency | AG6: Variability | AI6: Frequency | AK6: Relative Frequency | AL6: Variability | AN6: Frequency | AP6: Relative Frequency | AQ6: Variability | AS6: Frequency | AU6: Relative Frequency | AV6: Variability
A7: 22 | B7: 159 | C7: 24 | D7: 164 | E7: 23 | F7: 174 | K7: 0 | L7: 222 | N7: 111 | O7: =COUNTIF($L$7:$L$500,N7) -> 12 | P7: =O7/$Q$4 -> 0.1043478261 | Q7: =IF(P7=0,0,(P7*((LOG(P7))/LOG(2)))) -> -0.3402289618 | T7: =N7 -> 111 | U7: =COUNTIF(L7:L25,T7) -> 0 | V7: =U7/(W4-U8) -> 0 | W7: =IF(V7=0,0,(V7*((LOG(V7))/LOG(2)))) -> 0 | Y7: =N7 -> 111 | Z7: =COUNTIF(L26:L44,Y7) -> 0 | AA7: =Z7/(AB4-Z8) -> 0 | AB7: =IF(AA7=0,0,(AA7*((LOG(AA7))/LOG(2)))) -> 0 | AD7: =N7 -> 111 | AE7: =COUNTIF(L45:L64,AD7) -> 1 | AF7: =AE7/(AG4-AE8) -> 0.06666666667 | AG7: =IF(AF7=0,0,(AF7*((LOG(AF7))/LOG(2)))) -> -0.260459373 | AI7: =N7 -> 111 | AJ7: =COUNTIF(L65:L83,AI7) -> 6 | AK7: =AJ7/(AL4-AJ8) -> 0.5 | AL7: =IF(AK7=0,0,(AK7*((LOG(AK7))/LOG(2)))) -> -0.5 | AN7: =N7 -> 111 | AO7: =COUNTIF(L84:L102,AN7) -> 3 | AP7: =AO7/(AQ4-AO8) -> 0.25 | AQ7: =IF(AP7=0,0,(AP7*((LOG(AP7))/LOG(2)))) -> -0.5 | AS7: =N7 -> 111 | AT7: =COUNTIF(L103:L121,AS7) -> 2 | AU7: =AT7/(AV4-AT8) -> 0.1818181818 | AV7: =IF(AU7=0,0,(AU7*((LOG(AU7))/LOG(2)))) -> -0.4471693852
A8: 22 | B8: 279 | C8: 24 | D8: 284 | E8: 23 | F8: 290 | K8: 0 | L8: 222 | N8: 112 | O8: =COUNTIF($L$7:$L$500,N8) -> 40 | P8: =O8/$Q$4 -> 0.347826087 | Q8: =IF(P8=0,0,(P8*((LOG(P8))/LOG(2)))) -> -0.5299345934 | T8: =N8 -> 112 | U8: =COUNTIF(L7:L25,T8) -> 2 | Y8: =N8 -> 112 | Z8: =COUNTIF(L26:L44,Y8) -> 11 | AD8: =N8 -> 112 | AE8: =COUNTIF(L45:L64,AD8) -> 5 | AI8: =N8 -> 112 | AJ8: =COUNTIF(L65:L83,AI8) -> 7 | AN8: =N8 -> 112 | AO8: =COUNTIF(L84:L102,AN8) -> 7 | AS8: =N8 -> 112 | AT8: =COUNTIF(L103:L121,AS8) -> 8
A9: 11 | B9: 383 | C9: 11 | D9: 387 | E9: 21 | F9: 398 | K9: 0 | L9: 112 | N9: 121 | O9: =COUNTIF($L$7:$L$500,N9) -> 2 | P9: =O9/$Q$4 -> 0.01739130435 | Q9: =IF(P9=0,0,(P9*((LOG(P9))/LOG(2)))) -> -0.1016606965 | T9: =N9 -> 121 | U9: =COUNTIF(L7:L25,T9) -> 0 | V9: =U9/(W4-U8) -> 0 | W9: =IF(V9=0,0,(V9*((LOG(V9))/LOG(2)))) -> 0 | Y9: =N9 -> 121 | Z9: =COUNTIF(L26:L44,Y9) -> 0 | AA9: =Z9/(AB4-Z8) -> 0 | AB9: =IF(AA9=0,0,(AA9*((LOG(AA9))/LOG(2)))) -> 0 | AD9: =N9 -> 121 | AE9: =COUNTIF(L45:L64,AD9) -> 1 | AF9: =AE9/(AG4-AE8) -> 0.06666666667 | AG9: =IF(AF9=0,0,(AF9*((LOG(AF9))/LOG(2)))) -> -0.260459373 | AI9: =N9 -> 121 | AJ9: =COUNTIF(L65:L83,AI9) -> 1 | AK9: =AJ9/(AL4-AJ8) -> 0.08333333333 | AL9: =IF(AK9=0,0,(AK9*((LOG(AK9))/LOG(2)))) -> -0.2987468751 | AN9: =N9 -> 121 | AO9: =COUNTIF(L84:L102,AN9) -> 0 | AP9: =AO9/(AQ4-AO8) -> 0 | AQ9: =IF(AP9=0,0,(AP9*((LOG(AP9))/LOG(2)))) -> 0 | AS9: =N9 -> 121 | AT9: =COUNTIF(L103:L121,AS9) -> 0 | AU9: =AT9/(AV4-AT8) -> 0 | AV9: =IF(AU9=0,0,(AU9*((LOG(AU9))/LOG(2)))) -> 0
A10: 22 | B10: 570 | C10: 24 | D10: 574 | E10: 23 | F10: 580 | K10: 0 | L10: 222 | N10: 122 | O10: =COUNTIF($L$7:$L$500,N10) -> 44 | P10: =O10/$Q$4 -> 0.3826086957 | Q10: =IF(P10=0,0,(P10*((LOG(P10))/LOG(2)))) -> -0.5303180089 | T10: =N10 -> 122 | U10: =COUNTIF(L7:L25,T10) -> 7 | V10: =U10/(W4-U8) -> 0.4117647059 | W10: =IF(V10=0,0,(V10*((LOG(V10))/LOG(2)))) -> -0.5271032608 | Y10: =N10 -> 122 | Z10: =COUNTIF(L26:L44,Y10) -> 7 | AA10: =Z10/(AB4-Z8) -> 0.875 | AB10: =IF(AA10=0,0,(AA10*((LOG(AA10))/LOG(2)))) -> -0.1685644432 | AD10: =N10 -> 122 | AE10: =COUNTIF(L45:L64,AD10) -> 11 | AF10: =AE10/(AG4-AE8) -> 0.7333333333 | AG10: =IF(AF10=0,0,(AF10*((LOG(AF10))/LOG(2)))) -> -0.3281365831 | AI10: =N10 -> 122 | AJ10: =COUNTIF(L65:L83,AI10) -> 4 | AK10: =AJ10/(AL4-AJ8) -> 0.3333333333 | AL10: =IF(AK10=0,0,(AK10*((LOG(AK10))/LOG(2)))) -> -0.5283208336 | AN10: =N10 -> 122 | AO10: =COUNTIF(L84:L102,AN10) -> 6 | AP10: =AO10/(AQ4-AO8) -> 0.5 | AQ10: =IF(AP10=0,0,(AP10*((LOG(AP10))/LOG(2)))) -> -0.5 | AS10: =N10 -> 122 | AT10: =COUNTIF(L103:L121,AS10) -> 9 | AU10: =AT10/(AV4-AT8) -> 0.8181818182 | AV10: =IF(AU10=0,0,(AU10*((LOG(AU10))/LOG(2)))) -> -0.2368690504
A11: 22 | B11: 687 | C11: 24 | D11: 695 | E11: 23 | F11: 702 | K11: 0 | L11: 222 | N11: 211 | O11: =COUNTIF($L$7:$L$500,N11) -> 0 | P11: =O11/$Q$4 -> 0 | Q11: =IF(P11=0,0,(P11*((LOG(P11))/LOG(2)))) -> 0 | T11: =N11 -> 211 | U11: =COUNTIF(L7:L25,T11) -> 0 | V11: =U11/(W4-U8) -> 0 | W11: =IF(V11=0,0,(V11*((LOG(V11))/LOG(2)))) -> 0 | Y11: =N11 -> 211 | Z11: =COUNTIF(L26:L44,Y11) -> 0 | AA11: =Z11/(AB4-Z8) -> 0 | AB11: =IF(AA11=0,0,(AA11*((LOG(AA11))/LOG(2)))) -> 0 | AD11: =N11 -> 211 | AE11: =COUNTIF(L45:L64,AD11) -> 0 | AF11: =AE11/(AG4-AE8) -> 0 | AG11: =IF(AF11=0,0,(AF11*((LOG(AF11))/LOG(2)))) -> 0 | AI11: =N11 -> 211 | AJ11: =COUNTIF(L65:L83,AI11) -> 0 | AK11: =AJ11/(AL4-AJ8) -> 0 | AL11: =IF(AK11=0,0,(AK11*((LOG(AK11))/LOG(2)))) -> 0 | AN11: =N11 -> 211 | AO11: =COUNTIF(L84:L102,AN11) -> 0 | AP11: =AO11/(AQ4-AO8) -> 0 | AQ11: =IF(AP11=0,0,(AP11*((LOG(AP11))/LOG(2)))) -> 0 | AS11: =N11 -> 211 | AT11: =COUNTIF(L103:L121,AS11) -> 0 | AU11: =AT11/(AV4-AT8) -> 0 | AV11: =IF(AU11=0,0,(AU11*((LOG(AU11))/LOG(2)))) -> 0
A12: 11 | B12: 797 | C12: 11 | D12: 801 | E12: 21 | F12: 817 | K12: 0 | L12: 112 | N12: 212 | O12: =COUNTIF($L$7:$L$500,N12) -> 0 | P12: =O12/$Q$4 -> 0 | Q12: =IF(P12=0,0,(P12*((LOG(P12))/LOG(2)))) -> 0 | T12: =N12 -> 212 | U12: =COUNTIF(L7:L25,T12) -> 0 | V12: =U12/(W4-U8) -> 0 | W12: =IF(V12=0,0,(V12*((LOG(V12))/LOG(2)))) -> 0 | Y12: =N12 -> 212 | Z12: =COUNTIF(L26:L44,Y12) -> 0 | AA12: =Z12/(AB4-Z8) -> 0 | AB12: =IF(AA12=0,0,(AA12*((LOG(AA12))/LOG(2)))) -> 0 | AD12: =N12 -> 212 | AE12: =COUNTIF(L45:L64,AD12) -> 0 | AF12: =AE12/(AG4-AE8) -> 0 | AG12: =IF(AF12=0,0,(AF12*((LOG(AF12))/LOG(2)))) -> 0 | AI12: =N12 -> 212 | AJ12: =COUNTIF(L65:L83,AI12) -> 0 | AK12: =AJ12/(AL4-AJ8) -> 0 | AL12: =IF(AK12=0,0,(AK12*((LOG(AK12))/LOG(2)))) -> 0 | AN12: =N12 -> 212 | AO12: =COUNTIF(L84:L102,AN12) -> 0 | AP12: =AO12/(AQ4-AO8) -> 0 | AQ12: =IF(AP12=0,0,(AP12*((LOG(AP12))/LOG(2)))) -> 0 | AS12: =N12 -> 212 | AT12: =COUNTIF(L103:L121,AS12) -> 0 | AU12: =AT12/(AV4-AT8) -> 0 | AV12: =IF(AU12=0,0,(AU12*((LOG(AU12))/LOG(2)))) -> 0
A13: 22 | B13: 997 | C13: 24 | D13: 1002 | E13: 23 | F13: 1009 | K13: 0 | L13: 222 | N13: 221 | O13: =COUNTIF($L$7:$L$500,N13) -> 0 | P13: =O13/$Q$4 -> 0 | Q13: =IF(P13=0,0,(P13*((LOG(P13))/LOG(2)))) -> 0 | T13: =N13 -> 221 | U13: =COUNTIF(L7:L25,T13) -> 0 | V13: =U13/(W4-U8) -> 0 | W13: =IF(V13=0,0,(V13*((LOG(V13))/LOG(2)))) -> 0 | Y13: =N13 -> 221 | Z13: =COUNTIF(L26:L44,Y13) -> 0 | AA13: =Z13/(AB4-Z8) -> 0 | AB13: =IF(AA13=0,0,(AA13*((LOG(AA13))/LOG(2)))) -> 0 | AD13: =N13 -> 221 | AE13: =COUNTIF(L45:L64,AD13) -> 0 | AF13: =AE13/(AG4-AE8) -> 0 | AG13: =IF(AF13=0,0,(AF13*((LOG(AF13))/LOG(2)))) -> 0 | AI13: =N13 -> 221 | AJ13: =COUNTIF(L65:L83,AI13) -> 0 | AK13: =AJ13/(AL4-AJ8) -> 0 | AL13: =IF(AK13=0,0,(AK13*((LOG(AK13))/LOG(2)))) -> 0 | AN13: =N13 -> 221 | AO13: =COUNTIF(L84:L102,AN13) -> 0 | AP13: =AO13/(AQ4-AO8) -> 0 | AQ13: =IF(AP13=0,0,(AP13*((LOG(AP13))/LOG(2)))) -> 0 | AS13: =N13 -> 221 | AT13: =COUNTIF(L103:L121,AS13) -> 0 | AU13: =AT13/(AV4-AT8) -> 0 | AV13: =IF(AU13=0,0,(AU13*((LOG(AU13))/LOG(2)))) -> 0
A14: 22 | B14: 1110 | C14: 24 | D14: 1114 | E14: 23 | F14: 1119 | K14: 0 | L14: 222 | N14: 222 | O14: =COUNTIF($L$7:$L$500,N14) -> 17 | P14: =O14/$Q$4 -> 0.147826087 | Q14: =IF(P14=0,0,(P14*((LOG(P14))/LOG(2)))) -> -0.4077083701 | T14: =N14 -> 222 | U14: =COUNTIF(L7:L25,T14) -> 10 | V14: =U14/(W4-U8) -> 0.5882352941 | W14: =IF(V14=0,0,(V14*((LOG(V14))/LOG(2)))) -> -0.4503145567 | Y14: =N14 -> 222 | Z14: =COUNTIF(L26:L44,Y14) -> 1 | AA14: =Z14/(AB4-Z8) -> 0.125 | AB14: =IF(AA14=0,0,(AA14*((LOG(AA14))/LOG(2)))) -> -0.375 | AD14: =N14 -> 222 | AE14: =COUNTIF(L45:L64,AD14) -> 2 | AF14: =AE14/(AG4-AE8) -> 0.1333333333 | AG14: =IF(AF14=0,0,(AF14*((LOG(AF14))/LOG(2)))) -> -0.3875854127 | AI14: =N14 -> 222 | AJ14: =COUNTIF(L65:L83,AI14) -> 1 | AK14: =AJ14/(AL4-AJ8) -> 0.08333333333 | AL14: =IF(AK14=0,0,(AK14*((LOG(AK14))/LOG(2)))) -> -0.2987468751 | AN14: =N14 -> 222 | AO14: =COUNTIF(L84:L102,AN14) -> 3 | AP14: =AO14/(AQ4-AO8) -> 0.25 | AQ14: =IF(AP14=0,0,(AP14*((LOG(AP14))/LOG(2)))) -> -0.5 | AS14: =N14 -> 222 | AT14: =COUNTIF(L103:L121,AS14) -> 0 | AU14: =AT14/(AV4-AT8) -> 0 | AV14: =IF(AU14=0,0,(AU14*((LOG(AU14))/LOG(2)))) -> 0
A15: 22 | B15: 1225 | C15: 24 | D15: 1230 | E15: 23 | F15: 1285 | K15: 0 | L15: 222 | P15: =SUM(P7:P14) -> 1 | Q15: =-SUM(Q7:Q14) -> 1.909850631 | V15: =SUM(V7:V14) -> 1 | W15: =-SUM(W7:W14) -> 0.9774178175 | AA15: =SUM(AA7:AA14) -> 1 | AB15: =-SUM(AB7:AB14) -> 0.5435644432 | AF15: =SUM(AF7:AF14) -> 1 | AG15: =-SUM(AG7:AG14) -> 1.236640742 | AK15: =SUM(AK7:AK14) -> 1 | AL15: =-SUM(AL7:AL14) -> 1.625814584 | AP15: =SUM(AP7:AP14) -> 1 | AQ15: =-SUM(AQ7:AQ14) -> 1.5 | AU15: =SUM(AU7:AU14) -> 1 | AV15: =-SUM(AV7:AV14) -> 0.6840384356
A16: 11 | B16: 1381 | C16: 22 | D16: 1389 | E16: 23 | F16: 1395 | K16: 0 | L16: 122 | P16: U= | Q16: =Q15/(LOG(Q4)/LOG(2)) -> 0.278993997 | V16: U1= | W16: =W15/(LOG(W4)/LOG(2)) -> 0.2300928663 | AA16: U2= | AB16: =AB15/(LOG(AB4)/LOG(2)) -> 0.1279599149 | AF16: U3= | AG16: =AG15/(LOG(AG4)/LOG(2)) -> 0.2861317252 | AK16: U4= | AL16: =AL15/(LOG(AL4)/LOG(2)) -> 0.3827312445 | AP16: U5= | AQ16: =AQ15/(LOG(AQ4)/LOG(2)) -> 0.35311337 | AU16: U6= | AV16: =AV15/(LOG(AV4)/LOG(2)) -> 0.1610287448
A17: 11 | B17: 1489 | C17: 22 | D17: 1502 | E17: 23 | F17: 1511 | K17: 0 | L17: 122
A18: 11 | B18: 1605 | C18: 22 | D18: 1616 | E18: 23 | F18: 1622 | K18: 0 | L18: 122
A19: 22 | B19: 1752 | C19: 24 | D19: 1776 | E19: 23 | F19: 1783 | K19: 0 | L19: 222 | N19: Total Target Seq
A20: 22 | B20: 1884 | C20: 24 | D20: 1888 | E20: 23 | F20: 1895 | K20: 0 | L20: 222 | N20: =COUNTIF(L7:L121,G3) -> 40 | P20: 19 | Q20: 19 | R20: 20 | S20: 19 | T20: 19 | U20: 19
A21: 11 | B21: 1987 | C21: 22 | D21: 2001 | E21: 23 | F21: 2010 | K21: 0 | L21: 122 | P21: % of reinforcement given in 6 equal intervals based on number of trials
A22: 22 | B22: 2115 | C22: 24 | D22: 2122 | E22: 23 | F22: 2130 | K22: 0 | L22: 222 | P22: %_1 | Q22: %_2 | R22: %_3 | S22: %_4 | T22: %_5 | U22: %_6
A23: 11 | B23: 2228 | C23: 22 | D23: 2238 | E23: 23 | F23: 2243 | K23: 0 | L23: 122 | O23: target sequence | P23: =$G$3 -> 112 | Q23: =$G$3 -> 112 | R23: =$G$3 -> 112 | S23: =$G$3 -> 112 | T23: =$G$3 -> 112 | U23: =$G$3 -> 112
A24: 11 | B24: 2342 | C24: 22 | D24: 2364 | E24: 23 | F24: 2371 | K24: 0 | L24: 122 | O24: total reinforcement | P24: =U8 -> 2 | Q24: =Z8 -> 11 | R24: =AE8 -> 5 | S24: =AJ8 -> 7 | T24: =AO8 -> 7 | U24: =AT8 -> 8
A25: 11 | B25: 2465 | C25: 22 | D25: 2478 | E25: 23 | F25: 2482 | K25: 0 | L25: 122 | O25: % target
A26: 11 | B26: 2578 | C26: 11 | D26: 2584 | E26: 21 | F26: 2594 | K26: 0 | L26: 112 | O26: CCRF
A27: 11 | B27: 2756 | C27: 11 | D27: 2760 | E27: 21 | F27: 2776 | K27: 0 | L27: 112 | O27: % CCRf
A28: 22 | B28: 2931 | C28: 24 | D28: 2934 | E28: 23 | F28: 2941 | K28: 0 | L28: 222 | O28: average response rate | P28: =F25/P20 -> 130.6315789 | Q28: =(F44-F25)/Q20 -> 135.1578947 | R28: =(F64-F44)/R20 -> 136.25 | S28: =(F83-F64)/S20 -> 117.6842105 | T28: =(F102-F83)/T20 -> 135.4736842 | U28: =(F121-F102)/U20 -> 133.1052632
A29: 11 | B29: 3036 | C29: 11 | D29: 3046 | E29: 21 | F29: 3064 | K29: 0 | L29: 112
A30: 11 | B30: 3207 | C30: 11 | D30: 3214 | E30: 21 | F30: 3224 | K30: 0 | L30: 112
A31: 11 | B31: 3377 | C31: 22 | D31: 3391 | E31: 23 | F31: 3398 | K31: 0 | L31: 122
A32: 11 | B32: 3493 | C32: 22 | D32: 3510 | E32: 23 | F32: 3519 | K32: 0 | L32: 122
A33: 11 | B33: 3619 | C33: 22 | D33: 3632 | E33: 23 | F33: 3639 | K33: 0 | L33: 122
A34: 11 | B34: 3731 | C34: 11 | D34: 3737 | E34: 21 | F34: 3766 | K34: 0 | L34: 112
A35: 11 | B35: 3857 | C35: 11 | D35: 3861 | E35: 21 | F35: 3872 | K35: 0 | L35: 112
A36: 11 | B36: 4031 | C36: 11 | D36: 4038 | E36: 21 | F36: 4052 | K36: 0 | L36: 112
A37: 11 | B37: 4166 | C37: 22 | D37: 4182 | E37: 23 | F37: 4193 | K37: 0 | L37: 122
A38: 11 | B38: 4289 | C38: 22 | D38: 4300 | E38: 23 | F38: 4311 | K38: 0 | L38: 122
A39: 11 | B39: 4408 | C39: 11 | D39: 4413 | E39: 21 | F39: 4423 | K39: 0 | L39: 112
A40: 11 | B40: 4515 | C40: 11 | D40: 4519 | E40: 21 | F40: 4534 | K40: 0 | L40: 112
A41: 11 | B41: 4645 | C41: 22 | D41: 4654 | E41: 23 | F41: 4665 | K41: 0 | L41: 122
A42: 11 | B42: 4760 | C42: 22 | D42: 4794 | E42: 23 | F42: 4809 | K42: 0 | L42: 122
A43: 11 | B43: 4904 | C43: 11 | D43: 4909 | E43: 21 | F43: 4921 | K43: 0 | L43: 112
A44: 11 | B44: 5015 | C44: 11 | D44: 5020 | E44: 21 | F44: 5050 | K44: 0 | L44: 112
A45: 11 | B45: 5181 | C45: 22 | D45: 5197 | E45: 23 | F45: 5211 | K45: 0 | L45: 122
A46: 11 | B46: 5305 | C46: 22 | D46: 5315 | E46: 23 | F46: 5322 | K46: 0 | L46: 122
A47: 11 | B47: 5420 | C47: 22 | D47: 5428 | E47: 23 | F47: 5438 | K47: 0 | L47: 122
A48: 22 | B48: 5590 | C48: 24 | D48: 5598 | E48: 23 | F48: 5609 | K48: 0 | L48: 222
A49: 11 | B49: 5703 | C49: 22 | D49: 5716 | E49: 23 | F49: 5726 | K49: 0 | L49: 122
A50: 11 | B50: 5826 | C50: 11 | D50: 5831 | E50: 12 | F50: 5840 | K50: 0 | L50: 111
A51: 11 | B51: 5932 | C51: 22 | D51: 5942 | E51: 23 | F51: 5952 | K51: 0 | L51: 122
A52: 11 | B52: 6046 | C52: 11 | D52: 6049 | E52: 21 | F52: 6058 | K52: 0 | L52: 112
A53: 11 | B53: 6199 | C53: 22 | D53: 6226 | E53: 23 | F53: 6244 | K53: 0 | L53: 122
A54: 11 | B54: 6339 | C54: 22 | D54: 6357 | E54: 23 | F54: 6369 | K54: 0 | L54: 122
A55: 11 | B55: 6464 | C55: 11 | D55: 6467 | E55: 21 | F55: 6477 | K55: 0 | L55: 112
A56: 11 | B56: 6574 | C56: 11 | D56: 6578 | E56: 21 | F56: 6614 | K56: 0 | L56: 112
A57: 11 | B57: 6713 | C57: 11 | D57: 6722 | E57: 21 | F57: 6736 | K57: 0 | L57: 112
A58: 11 | B58: 6869 | C58: 22 | D58: 6884 | E58: 23 | F58: 6888 | K58: 0 | L58: 122
A59: 11 | B59: 6984 | C59: 22 | D59: 6993 | E59: 14 | F59: 7094 | K59: 0 | L59: 121
A60: 22 | B60: 7236 | C60: 24 | D60: 7256 | E60: 23 | F60: 7267 | K60: 0 | L60: 222
A61: 11 | B61: 7361 | C61: 11 | D61: 7366 | E61: 21 | F61: 7384 | K61: 0 | L61: 112
A62: 11 | B62: 7489 | C62: 22 | D62: 7516 | E62: 23 | F62: 7531 | K62: 0 | L62: 122
A63: 11 | B63: 7626 | C63: 22 | D63: 7651 | E63: 23 | F63: 7663 | K63: 0 | L63: 122
A64: 11 | B64: 7759 | C64: 22 | D64: 7769 | E64: 23 | F64: 7775 | K64: 0 | L64: 122
A65: 11 | B65: 7867 | C65: 11 | D65: 7872 | E65: 21 | F65: 7882 | K65: 0 | L65: 112
A66: 11 | B66: 7972 | C66: 11 | D66: 7975 | E66: 21 | F66: 7988 | K66: 0 | L66: 112
A67: 11 | B67: 8118 | C67: 22 | D67: 8131 | E67: 23 | F67: 8141 | K67: 0 | L67: 122
A68: 11 | B68: 8237 | C68: 11 | D68: 8242 | E68: 12 | F68: 8248 | K68: 0 | L68: 111
A69: 11 | B69: 8341 | C69: 22 | D69: 8351 | E69: 23 | F69: 8363 | K69: 0 | L69: 122
A70: 11 | B70: 8457 | C70: 11 | D70: 8463 | E70: 12 | F70: 8467 | K70: 0 | L70: 111
A71: 11 | B71: 8562 | C71: 22 | D71: 8572 | E71: 23 | F71: 8579 | K71: 0 | L71: 122
A72: 11 | B72: 8675 | C72: 11 | D72: 8680 | E72: 12 | F72: 8686 | K72: 0 | L72: 111
A73: 11 | B73: 8778 | C73: 11 | D73: 8782 | E73: 21 | F73: 8804 | K73: 0 | L73: 112
A74: 11 | B74: 8895 | C74: 11 | D74: 8898 | E74: 21 | F74: 8926 | K74: 0 | L74: 112
A75: 11 | B75: 9039 | C75: 11 | D75: 9044 | E75: 21 | F75: 9075 | K75: 0 | L75: 112
A76: 11 | B76: 9210 | C76: 11 | D76: 9217 | E76: 12 | F76: 9223 | K76: 0 | L76: 111
A77: 11 | B77: 9319 | C77: 22 | D77: 9331 | E77: 23 | F77: 9344 | K77: 0 | L77: 122
A78: 11 | B78: 9440 | C78: 11 | D78: 9444 | E78: 21 | F78: 9454 | K78: 0 | L78: 112
A79: 11 | B79: 9545 | C79: 11 | D79: 9551 | E79: 12 | F79: 9558 | K79: 0 | L79: 111
A80: 11 | B80: 9653 | C80: 11 | D80: 9659 | E80: 21 | F80: 9669 | K80: 0 | L80: 112
A81: 11 | B81: 9763 | C81: 11 | D81: 9766 | E81: 12 | F81: 9772 | K81: 0 | L81: 111
A82: 22 | B82: 9876 | C82: 24 | D82: 9883 | E82: 23 | F82: 9892 | K82: 0 | L82: 222
A83: 11 | B83: 9989 | C83: 22 | D83: 10000 | E83: 14 | F83: 10011 | K83: 0 | L83: 121
A84: 11 | B84: 10124 | C84: 11 | D84: 10130 | E84: 21 | F84: 10139 | K84: 0 | L84: 112
A85: 11 | B85: 10279 | C85: 11 | D85: 10282 | E85: 12 | F85: 10286 | K85: 0 | L85: 111
A86: 22 | B86: 10389 | C86: 24 | D86: 10396 | E86: 23 | F86: 10454 | K86: 0 | L86: 222
A87: 11 | B87: 10549 | C87: 22 | D87: 10563 | E87: 23 | F87: 10573 | K87: 0 | L87: 122
A88: 11 | B88: 10664 | C88: 11 | D88: 10671 | E88: 12 | F88: 10677 | K88: 0 | L88: 111
A89: 11 | B89: 10770 | C89: 11 | D89: 10772 | E89: 12 | F89: 10777 | K89: 0 | L89: 111
A90: 11 | B90: 10869 | C90: 11 | D90: 10874 | E90: 21 | F90: 10885 | K90: 0 | L90: 112
A91: 11 | B91: 10994 | C91: 11 | D91: 10997 | E91: 21 | F91: 11016 | K91: 0 | L91: 112
A92: 11 | B92: 11166 | C92: 11 | D92: 11174 | E92: 21 | F92: 11205 | K92: 0 | L92: 112
A93: 22 | B93: 11377 | C93: 24 | D93: 11384 | E93: 23 | F93: 11395 | K93: 0 | L93: 222
A94: 11 | B94: 11491 | C94: 22 | D94: 11501 | E94: 23 | F94: 11510 | K94: 0 | L94: 122
A95: 11 | B95: 11655 | C95: 11 | D95: 11661 | E95: 21 | F95: 11685 | K95: 0 | L95: 112
A96: 22 | B96: 11861 | C96: 24 | D96: 11873 | E96: 23 | F96: 11882 | K96: 0 | L96: 222
A97: 11 | B97: 11981 | C97: 22 | D97: 12007 | E97: 23 | F97: 12021 | K97: 0 | L97: 122
A98: 11 | B98: 12117 | C98: 22 | D98: 12133 | E98: 23 | F98: 12142 | K98: 0 | L98: 122
A99: 11 | B99: 12238 | C99: 22 | D99: 12248 | E99: 23 | F99: 12255 | K99: 0 | L99: 122
A100: 11 | B100: 12349 | C100: 22 | D100: 12359 | E100: 23 | F100: 12366 | K100: 0 | L100: 122
A101: 11 | B101: 12460 | C101: 11 | D101: 12465 | E101: 21 | F101: 12475 | K101: 0 | L101: 112
A102: 11 | B102: 12567 | C102: 11 | D102: 12572 | E102: 21 | F102: 12585 | K102: 0 | L102: 112
A103: 11 | B103: 12701 | C103: 11 | D103: 12707 | E103: 21 | F103: 12724 | K103: 0 | L103: 112
A104: 11 | B104: 12823 | C104: 22 | D104: 12837 | E104: 23 | F104: 12846 | K104: 0 | L104: 122
A105: 11 | B105: 12938 | C105: 11 | D105: 12942 | E105: 21 | F105: 12956 | K105: 0 | L105: 112
A106: 11 | B106: 13066 | C106: 11 | D106: 13073 | E106: 12 | F106: 13121 | K106: 0 | L106: 111
A107: 11 | B107: 13217 | C107: 22 | D107: 13227 | E107: 23 | F107: 13234 | K107: 0 | L107: 122
A108: 11 | B108: 13326 | C108: 22 | D108: 13343 | E108: 23 | F108: 13350 | K108: 0 | L108: 122
A109: 11 | B109: 13445 | C109: 11 | D109: 13451 | E109: 12 | F109: 13458 | K109: 0 | L109: 111
A110: 11 | B110: 13562 | C110: 22 | D110: 13574 | E110: 23 | F110: 13582 | K110: 0 | L110: 122
A111: 11 | B111: 13684 | C111: 22 | D111: 13697 | E111: 23 | F111: 13703 | K111: 0 | L111: 122
A112: 11 | B112: 13798 | C112: 22 | D112: 13808 | E112: 23 | F112: 13814 | K112: 0 | L112: 122
A113: 11 | B113: 13907 | C113: 11 | D113: 13915 | E113: 21 | F113: 13949 | K113: 0 | L113: 112
A114: 11 | B114: 14089 | C114: 22 | D114: 14108 | E114: 23 | F114: 14120 | K114: 0 | L114: 122
A115: 11 | B115: 14215 | C115: 11 | D115: 14220 | E115: 21 | F115: 14236 | K115: 0 | L115: 112
A116: 11 | B116: 14360 | C116: 22 | D116: 14373 | E116: 23 | F116: 14381 | K116: 0 | L116: 122
A117: 11 | B117: 14476 | C117: 11 | D117: 14483 | E117: 21 | F117: 14504 | K117: 0 | L117: 112
A118: 11 | B118: 14623 | C118: 11 | D118: 14628 | E118: 21 | F118: 14645 | K118: 0 | L118: 112
A119: 11 | B119: 14773 | C119: 11 | D119: 14779 | E119: 21 | F119: 14793 | K119: 0 | L119: 112
A120: 11 | B120: 14936 | C120: 22 | D120: 14966 | E120: 23 | F120: 14984 | K120: 0 | L120: 122
A121: 11 | B121: 15078 | C121: 11 | D121: 15084 | E121: 21 | F121: 15114 | K121: 1 | L121: 112

Sheet !MB2091I.sha
A1: Report for:!MB2091I.sha
A2: Date: | B2: <date>
A3: Hen: | B3: <hen> | F3: Correct Sequence | G3: =Start!J2 -> 112 | P3: Total Sequences in Data | Q3: =4994-COUNTBLANK(L7:L5000) -> 117 | V3: Total Sequences in Block Data | W3: =COUNTA(L7:L26) -> 20 | AA3: Total Sequences in Block Data | AB3: =COUNTA(L27:L45) -> 19 | AF3: Total Sequences in Block Data | AG3: =COUNTA(L46:L65) -> 20 | AK3: Total Sequences in Block Data | AL3: =COUNTA(L66:L84) -> 19 | AP3: Total Sequences in Block Data | AQ3: =COUNTA(L85:L104) -> 20 | AU3: Total Sequences in Block Data | AV3: =COUNTA(L105:L123) -> 19
P4: Total Sequences in Summary | Q4: =SUM(O7:O14) -> 117 | V4: Total Sequences in Block Summary | W4: =SUM(U7:U14) -> 20 | AA4: Total Sequences in Block Summary | AB4: =SUM(Z7:Z14) -> 19 | AF4: Total Sequences in Block Summary | AG4: =SUM(AE7:AE14) -> 20 | AK4: Total Sequences in Block Summary | AL4: =SUM(AJ7:AJ14) -> 19 | AP4: Total Sequences in Block Summary | AQ4: =SUM(AO7:AO14) -> 20 | AU4: Total Sequences in Block Summary | AV4: =SUM(AT7:AT14) -> 19
T5: Block 1 | Y5: Block 2 | AD5: Block 3 | AI5: Block 4 | AN5: Block 5 | AS5: Block 6
A6: Sequence Component 1 | B6: Time 1 | C6: Sequence Component 2 | D6: Time 2 | E6: Sequence Component 3 | F6: Time 3 | G6: Sequence Component 4 | H6: Time 4 | I6: Sequence Component 5 | J6: Time 5 | K6: Correct? 0=No 1=Yes | L6: Sequence | N6: Frequency | P6: Relative Frequency | Q6: Variability | T6: Frequency | V6: Relative Frequency | W6: Variability | Y6: Frequency | AA6: Relative Frequency | AB6: Variability | AD6: Frequency | AF6: Relative Frequency | AG6: Variability | AI6: Frequency | AK6: Relative Frequency | AL6: Variability | AN6: Frequency | AP6: Relative Frequency | AQ6: Variability | AS6: Frequency | AU6: Relative Frequency | AV6: Variability
A7: 22 | B7: 24 | C7: 24 | D7: 30 | E7: 23 | F7: 50 | K7: 0 | L7: 222 | N7: 111 | O7: =COUNTIF($L$7:$L$500,N7) -> 10 | P7: =O7/$Q$4 -> 0.08547008547 | Q7: =IF(P7=0,0,(P7*((LOG(P7))/LOG(2)))) -> -0.3032851816 | T7: =N7 -> 111 | U7: =COUNTIF(L7:L26,T7) -> 2 | V7: =U7/(W4-U8) -> 0.1176470588 | W7: =IF(V7=0,0,(V7*((LOG(V7))/LOG(2)))) -> -0.3632309225 | Y7: =N7 -> 111 | Z7: =COUNTIF(L27:L45,Y7) -> 1 | AA7: =Z7/(AB4-Z8) -> 0.1 | AB7: =IF(AA7=0,0,(AA7*((LOG(AA7))/LOG(2)))) -> -0.3321928095 | AD7: =N7 -> 111 | AE7: =COUNTIF(L46:L65,AD7) -> 0 | AF7: =AE7/(AG4-AE8) -> 0 | AG7: =IF(AF7=0,0,(AF7*((LOG(AF7))/LOG(2)))) -> 0 | AI7: =N7 -> 111 | AJ7: =COUNTIF(L66:L84,AI7) -> 2 | AK7: =AJ7/(AL4-AJ8) -> 0.1666666667 | AL7: =IF(AK7=0,0,(AK7*((LOG(AK7))/LOG(2)))) -> -0.4308270835 | AN7: =N7 -> 111 | AO7: =COUNTIF(L85:L104,AN7) -> 3 | AP7: =AO7/(AQ4-AO8) -> 0.1875 | AQ7: =IF(AP7=0,0,(AP7*((LOG(AP7))/LOG(2)))) -> -0.4528195311 | AS7: =N7 -> 111 | AT7: =COUNTIF(L105:L123,AS7) -> 2 | AU7: =AT7/(AV4-AT8) -> 0.2857142857 | AV7: =IF(AU7=0,0,(AU7*((LOG(AU7))/LOG(2)))) -> -0.5163871206
A8: 22 | B8: 167 | C8: 24 | D8: 172 | E8: 23 | F8: 179 | K8: 0 | L8: 222 | N8: 112 | O8: =COUNTIF($L$7:$L$500,N8) -> 40 | P8: =O8/$Q$4 -> 0.3418803419 | Q8: =IF(P8=0,0,(P8*((LOG(P8))/LOG(2)))) -> -0.5293800426 | T8: =N8 -> 112 | U8: =COUNTIF(L7:L26,T8) -> 3 | Y8: =N8 -> 112 | Z8: =COUNTIF(L27:L45,Y8) -> 9 | AD8: =N8 -> 112 | AE8: =COUNTIF(L46:L65,AD8) -> 5 | AI8: =N8 -> 112 | AJ8: =COUNTIF(L66:L84,AI8) -> 7 | AN8: =N8 -> 112 | AO8: =COUNTIF(L85:L104,AN8) -> 4 | AS8: =N8 -> 112 | AT8: =COUNTIF(L105:L123,AS8) -> 12
